Workbook

Sheet III Tool Overview
C2: Informing Investment to tackle health Inequalities in Scotland (III) - Income
C3: What is the nature of the intervention? There are five options here, showing the effect of different policies to change the income distribution in Scotland. These are (1) Introduction of a Living Wage, (2) 10% rise in Working Tax Credit, (3) 10% rise in council tax, (4) 10% rise in JSA/IS and (5) 1p on standard rate of income tax . These policies are taken from the paper by Comerford & Eiser (2014).
X4: Geographies
X5: Scotland
G6: Population | H6: Orkney Islands Local Authority | X6: Ayrshire & Arran Health Board
G7: Intervention name | H7: Income | X7: Borders Health Board
G8: Additional number of people treated | H8: 0 | I8: =IF(H8>#REF!,"Too high - please check & re-enter","") ->  | X8: Dumfries & Galloway Health Board | Y8: 10% rise in JSA/IS
G9: Number treated at baseline | H9: 0 | X9: Fife Health Board | Y9: 1p on standard rate of income tax
G10: Income intervention | H10: Introduction of a Living Wage | X10: Forth Valley Health Board
G11: Total direct cost of intervention (£m, 2012 prices) | H11: =(D35*H8)/1000000 -> 0 | X11: Grampian Health Board
X12: Greater Glasgow & Clyde Health Board
X13: Highland Health Board
X14: Lanarkshire Health Board
C15: Baseline Information: Income | G15: Model Outcomes (whole population) | H15: 2 years | I15: 10 years | J15: 20 years | X15: Lothian Health Board
C16: Baseline year | D16: =Calculations!C1 -> 2012 | G16: Years of life gained | H16: =Calculations!S86+Calculations!S107+Calculations!S129+Calculations!S150+Calculations!S172+Calculations!S193+Calculations!S215+Calculations!S236+Calculations!S258+Calculations!S279 -> 37.93892506 | I16: =Calculations!Y86+Calculations!Y107+Calculations!Y129+Calculations!Y150+Calculations!Y172+Calculations!Y193+Calculations!Y215+Calculations!Y236+Calculations!Y258+Calculations!Y279 -> 313.7234663 | J16: =Calculations!AB86+Calculations!AB107+Calculations!AB129+Calculations!AB150+Calculations!AB172+Calculations!AB193+Calculations!AB215+Calculations!AB236+Calculations!AB258+Calculations!AB279 -> 599.8924709 | X16: Orkney Health Board
C17: Age group | D17: All | G17: Continuous inpatient stays prevented | H17: =Calculations!AE86+Calculations!AE107+Calculations!AE129+Calculations!AE150+Calculations!AE172+Calculations!AE193+Calculations!AE215+Calculations!AE236+Calculations!AE258+Calculations!AE279 -> 27.65630497 | I17: =Calculations!AK86+Calculations!AK107+Calculations!AK129+Calculations!AK150+Calculations!AK172+Calculations!AK193+Calculations!AK215+Calculations!AK236+Calculations!AK258+Calculations!AK279 -> 234.0988229 | J17: =Calculations!AN86+Calculations!AN107+Calculations!AN129+Calculations!AN150+Calculations!AN172+Calculations!AN193+Calculations!AN215+Calculations!AN236+Calculations!AN258+Calculations!AN279 -> 450.7405897 | X17: Shetland Health Board
C18: Number of people affected by intervention | D18: =HLOOKUP('III Tool Overview'!$H$6,Baseline_Data_2012!$B$1:$AV$280,Baseline_Data_2012!AW272,FALSE) -> 21530 | X18: Tayside Health Board
C19: Of which, Q1 only: | D19: =HLOOKUP('III Tool Overview'!$H$6,Baseline_Data_2012!$B$1:$AV$280,Baseline_Data_2012!AW273,FALSE) -> 0 | G19: Model Outcomes (Quintiles 1 & 2) | H19: 2 years | I19: 10 years | J19: 20 years | X19: Western Isles Health Board
C20: Of which, Q1 & Q2: | D20: =HLOOKUP('III Tool Overview'!$H$6,Baseline_Data_2012!$B$1:$AV$280,Baseline_Data_2012!AW274,FALSE) -> 4526 | G20: Years of life gained | H20: =Calculations!S86+Calculations!S107+Calculations!S129+Calculations!S150 -> 12.96105915 | I20: =Calculations!Y86+Calculations!Y107+Calculations!Y129+Calculations!Y150 -> 102.9553065 | J20: =Calculations!AB86+Calculations!AB107+Calculations!AB129+Calculations!AB150 -> 188.9003047 | X20: Aberdeen City Local Authority
G21: Continuous inpatient stays prevented | H21: =Calculations!AE86+Calculations!AE107+Calculations!AE129+Calculations!AE150 -> 8.784764631 | I21: =Calculations!AK86+Calculations!AK107+Calculations!AK129+Calculations!AK150 -> 71.09558282 | J21: =Calculations!AN86+Calculations!AN107+Calculations!AN129+Calculations!AN150 -> 130.7533122 | X21: Aberdeenshire Local Authority
C22: Annual continuous inpatient stays (2012) | D22: =HLOOKUP('III Tool Overview'!$H$6,Baseline_Data_2012!$B$1:$AV$280,Baseline_Data_2012!AW278,FALSE) -> 5908 | X22: Angus Local Authority
C23: Of which, Q1 only: | D23: =HLOOKUP('III Tool Overview'!$H$6,Baseline_Data_2012!$B$1:$AV$280,Baseline_Data_2012!AW279,FALSE) -> 0 | G23: Model Outcomes (comparative health inequalities) | H23: 2 years | I23: 10 years | J23: 20 years | X23: Argyll & Bute Local Authority
C24: Of which, Q1 & Q2: | D24: =HLOOKUP('III Tool Overview'!$H$6,Baseline_Data_2012!$B$1:$AV$280,Baseline_Data_2012!AW280,FALSE) -> 1413 | G24: RII: Years of life lost (without intervention) | H24: =RII!H20 -> -0.9618578925 | I24: =RII!H39 -> -1.05746647 | J24: =RII!H58 -> -1.146768975 | X24: Clackmannanshire Local Authority
G25: RII: Years of life lost (with intervention) | H25: =RII!S20 -> -0.9714217591 | I25: =RII!S39 -> -1.065801037 | J25: =RII!S58 -> -1.154028595 | X25: Dumfries & Galloway Local Authority
G26: RII: years of life lost (difference) | H26: =H25-H24 -> -0.009563866616 | I26: =I25-I24 -> -0.00833456719 | J26: -0.007259619131 | X26: Dundee City Local Authority
G27: RII: continuous inpatient stays (without intervention) | H27: =RII!H77 -> -1.326531476 | I27: =RII!H96 -> -1.409786888 | J27: =RII!H115 -> -1.507888029 | X27: East Ayrshire Local Authority
G28: RII: continuous inpatient stays (with intervention) | H28: =RII!S77 -> -1.334073842 | I28: =RII!S96 -> -1.416048341 | J28: =RII!S115 -> -1.512954134 | X28: East Dunbartonshire Local Authority
G29: RII: continuous inpatient stays (difference) | H29: =H28-H27 -> -0.007542366203 | I29: =I28-I27 -> -0.006261452758 | J29: -0.005066104802 | X29: East Lothian Local Authority
X30: East Renfrewshire Local Authority
G31: Direct financial savings | H31: 2 years | I31: 10 years | J31: 20 years | X31: Edinburgh, City of Local Authority
G32: Reduced continuous inpatient stays (£'000s) - all | H32: =(H17*2445)/1000 -> 67.61966564 | I32: =(I17*2445)/1000 -> 572.3716219 | J32: =(J17*2445)/1000 -> 1102.060742 | X32: Eilean Siar Local Authority
G33: Reduced continuous inpatient stays (£'000) - MDQ | H33: =(H18*2445)/1000 -> 0 | I33: =(I18*2445)/1000 -> 0 | J33: 0 | X33: Falkirk Local Authority
X34: Fife Local Authority
G35: How are costs and financial savings estimated? | X35: Glasgow City Local Authority
G36: Geue et al. (2012) estimated the cost of a continuous inpatient stay at £2113 in 2006/07 - this has been adjusted to 2012/13 prices. Please note that for the income interventions we have not attempted to estimate the direct costs. PLEASE NOTE THAT FOR THE ISLANDS, COST SAVINGS ARE SHOWN IN £'000s. | X36: Highland Local Authority
X37: Inverclyde Local Authority
X38: Midlothian Local Authority
X39: Moray Local Authority
X40: North Ayrshire Local Authority
X41: North Lanarkshire Local Authority
X42: Orkney Islands Local Authority
X43: Perth & Kinross Local Authority
X44: Renfrewshire Local Authority
X45: Scottish Borders Local Authority
X46: Shetland Islands Local Authority
X47: South Ayrshire Local Authority
X48: South Lanarkshire Local Authority
X49: Stirling Local Authority
X50: West Dunbartonshire Local Authority
X51: West Lothian Local Authority
X56: Options
X57: Introduction of a Living Wage
X58: 10% rise in Working Tax Credit
X59: 10% rise in council tax
X60: 10% rise in JSA/IS
X61: 1p on standard rate of income tax
X69: Orkney Health Board
X70: Shetland Health Board
X71: Orkney Islands Local Authority
X72: Shetland Islands Local Authority

Sheet Baseline_Data_2012
A1: POPULATION (2012) | B1: Scotland | C1: Ayrshire & Arran Health Board | D1: Borders Health Board | E1: Dumfries & Galloway Health Board | F1: Fife Health Board | G1: Forth Valley Health Board | H1: Grampian Health Board | I1: Greater Glasgow & Clyde Health Board | J1: Highland Health Board | K1: Lanarkshire Health Board | L1: Lothian Health Board | M1: Orkney Health Board | N1: Shetland Health Board | O1: Tayside Health Board | P1: Western Isles Health Board | Q1: Aberdeen City Local Authority | R1: Aberdeenshire Local Authority | S1: Angus Local Authority | T1: Argyll & Bute Local Authority | U1: Clackmannanshire Local Authority | V1: Dumfries & Galloway Local Authority | W1: Dundee City Local Authority | X1: East Ayrshire Local Authority | Y1: East Dunbartonshire Local Authority | Z1: East Lothian Local Authority | AA1: East Renfrewshire Local Authority | AB1: Edinburgh, City of Local Authority | AC1: Eilean Siar Local Authority | AD1: Falkirk Local Authority | AE1: Fife Local Authority | AF1: Glasgow City Local Authority | AG1: Highland Local Authority | AH1: Inverclyde Local Authority | AI1: Midlothian Local Authority | AJ1: Moray Local Authority | AK1: North Ayrshire Local Authority | AL1: North Lanarkshire Local Authority | AM1: Orkney Islands Local Authority | AN1: Perth & Kinross Local Authority | AO1: Renfrewshire Local Authority | AP1: Scottish Borders Local Authority | AQ1: Shetland Islands Local Authority | AR1: South Ayrshire Local Authority | AS1: South Lanarkshire Local Authority | AT1: Stirling Local Authority | AU1: West Dunbartonshire Local Authority | AV1: West Lothian Local Authority | AW1: 1
AW2: 2
A3: All, by SIMD | AW3: 3
A4: Total | B4: =B11+B18 -> 5313600 | C4: =C11+C18 -> 373190 | D4: 113710 | E4: 150830 | F4: 366220 | G4: 299100 | H4: 573420 | I4: 1137320 | J4: 319810 | K4: 652230 | L4: 843720 | M4: 21530 | N4: 23210 | O4: 411750 | P4: 27560 | Q4: 224970 | R4: 255540 | S4: 116210 | T4: 86900 | U4: 51280 | V4: 150830 | W4: 147800 | X4: 122720 | Y4: 105880 | Z4: 100850 | AA4: 91030 | AB4: 482640 | AC4: 27560 | AD4: 156800 | AE4: 366220 | AF4: 595080 | AG4: 232910 | AH4: 80680 | AI4: 84240 | AJ4: 92910 | AK4: 137560 | AL4: 337870 | AM4: 21530 | AN4: 147740 | AO4: 174310 | AP4: 113710 | AQ4: 23210 | AR4: 112910 | AS4: 314360 | AT4: 91020 | AU4: 90340 | AV4: 175990 | AW4: 4
A5: Q 1 | B5: =B12+B19 -> 1076082 | C5: 106129 | D5: 6593 | E5: 11471 | F5: 67730 | G5: 45857 | H5: 36050 | I5: 421784 | J5: 27647 | K5: 172315 | L5: 107011 | M5: 0 | N5: 0 | O5: 73495 | P5: 0 | Q5: 30357 | R5: 4588 | S5: 10531 | T5: 7767 | U5: 13478 | V5: 11471 | W5: 54439 | X5: 36315 | Y5: 4433 | Z5: 4962 | AA5: 6830 | AB5: 65832 | AC5: 0 | AD5: 23088 | AE5: 67730 | AF5: 291581 | AG5: 19880 | AH5: 34829 | AI5: 8620 | AJ5: 1105 | AK5: 50912 | AL5: 110413 | AM5: 0 | AN5: 8525 | AO5: 50067 | AP5: 6593 | AQ5: 0 | AR5: 18902 | AS5: 61902 | AT5: 9291 | AU5: 34044 | AV5: 27597 | AW5: 5
A6: Q 2 | B6: =B13+B20 -> 1065342 | C6: 103370 | D6: 17468 | E6: 34938 | F6: 81378 | G6: 70392 | H6: 74134 | I6: 198325 | J6: 62172 | K6: 170175 | L6: 164673 | M6: 4526 | N6: 1368 | O6: 70570 | P6: 11853 | Q6: 41595 | R6: 21314 | S6: 20321 | T6: 14946 | U6: 9212 | V6: 34938 | W6: 31462 | X6: 38738 | Y6: 17407 | Z6: 20070 | AA6: 8135 | AB6: 68377 | AC6: 11853 | AD6: 42475 | AE6: 81378 | AF6: 107894 | AG6: 47226 | AH6: 12321 | AI6: 26488 | AJ6: 11225 | AK6: 30123 | AL6: 97135 | AM6: 4526 | AN6: 18787 | AO6: 27350 | AP6: 17468 | AQ6: 1368 | AR6: 34509 | AS6: 73040 | AT6: 18705 | AU6: 25218 | AV6: 49738 | AW6: 6
A7: Q 3 | B7: =B14+B21 -> 1073886 | C7: 57580 | D7: 34499 | E7: 58150 | F7: 73468 | G7: 57383 | H7: 126653 | I7: 158193 | J7: 106230 | K7: 140309 | L7: 160239 | M7: 4253 | N7: 9175 | O7: 72047 | P7: 15707 | Q7: 37758 | R7: 52614 | S7: 25793 | T7: 34195 | U7: 12628 | V7: 58150 | W7: 18149 | X7: 15518 | Y7: 8787 | Z7: 25848 | AA7: 7380 | AB7: 75036 | AC7: 15707 | AD7: 30589 | AE7: 73468 | AF7: 76891 | AG7: 72035 | AH7: 10511 | AI7: 17782 | AJ7: 36281 | AK7: 20236 | AL7: 62631 | AM7: 4253 | AN7: 28105 | AO7: 36484 | AP7: 34499 | AQ7: 9175 | AR7: 21826 | AS7: 77678 | AT7: 14166 | AU7: 18140 | AV7: 41573 | AW7: 7
A8: Q 4 | B8: 1063254 | C8: 57543 | D8: 48000 | E8: 35638 | F8: 67672 | G8: 65043 | H8: 153078 | I8: 152770 | J8: 95915 | K8: 92067 | L8: 149112 | M8: 12091 | N8: 11010 | O8: 123315 | P8: 0 | Q8: 26369 | R8: 93637 | S8: 43656 | T8: 21502 | U8: 8966 | V8: 35638 | W8: 19293 | X8: 17333 | Y8: 20805 | Z8: 32046 | AA8: 14942 | AB8: 72159 | AC8: 0 | AD8: 30686 | AE8: 67672 | AF8: 67014 | AG8: 74413 | AH8: 13214 | AI8: 16903 | AJ8: 33072 | AK8: 23990 | AL8: 39877 | AM8: 12091 | AN8: 60366 | AO8: 28647 | AP8: 48000 | AQ8: 11010 | AR8: 16220 | AS8: 52190 | AT8: 25391 | AU8: 8148 | AV8: 28004 | AW8: 8
A9: Q 5 | B9: =B16+B23 -> 1035036 | C9: 48568 | D9: 7150 | E9: 10633 | F9: 75972 | G9: 60425 | H9: 183505 | I9: 206248 | J9: 27846 | K9: 77364 | L9: 262685 | M9: 660 | N9: 1657 | O9: 72323 | P9: 0 | Q9: 88891 | R9: 83387 | S9: 15909 | T9: 8490 | U9: 6996 | V9: 10633 | W9: 24457 | X9: 14816 | Y9: 54448 | Z9: 17924 | AA9: 53743 | AB9: 201236 | AC9: 0 | AD9: 29962 | AE9: 75972 | AF9: 51700 | AG9: 19356 | AH9: 9805 | AI9: 14447 | AJ9: 11227 | AK9: 12299 | AL9: 27814 | AM9: 660 | AN9: 31957 | AO9: 31762 | AP9: 7150 | AQ9: =AQ16+AQ23 -> 1657 | AR9: 21453 | AS9: 49550 | AT9: 23467 | AU9: 4790 | AV9: 29078 | AW9: 9
A10: Males, by SIMD | AW10: 10
A11: Males | B11: =SUM(B25:B44) -> 2577140 | C11: =SUM(C25:C44) -> 178654 | D11: 55179 | E11: 73206 | F11: 177448 | G11: 145353 | H11: 283622 | I11: 546961 | J11: 156214 | K11: 314535 | L11: 410312 | M11: 10693 | N11: 11771 | O11: 199589 | P11: 13603 | Q11: 111301 | R11: 126725 | S11: 56456 | T11: 42184 | U11: 25093 | V11: 73206 | W11: 71096 | X11: 59419 | Y11: 51270 | Z11: 48315 | AA11: 43361 | AB11: 235183 | AC11: 13603 | AD11: 76547 | AE11: 177448 | AF11: 286906 | AG11: 114030 | AH11: 38580 | AI11: 40607 | AJ11: 45596 | AK11: 65417 | AL11: 163399 | AM11: 10693 | AN11: 72037 | AO11: 83793 | AP11: 55179 | AQ11: 11771 | AR11: 53818 | AS11: 151136 | AT11: 43713 | AU11: 43051 | AV11: 86207 | AW11: 11
A12: Q 1 | B12: =SUM(B66:B85) -> 514542 | C12: =SUM(C66:C85) -> 50443 | D12: 3158 | E12: 5523 | F12: 32711 | G12: 22080 | H12: 17755 | I12: 199875 | J12: 13455 | K12: 82410 | L12: 51725 | M12: 0 | N12: 0 | O12: 35407 | P12: 0 | Q12: 14810 | R12: 2384 | S12: 5048 | T12: 3794 | U12: 6487 | V12: 5523 | W12: 26226 | X12: 17382 | Y12: 2118 | Z12: 2396 | AA12: 3139 | AB12: 31941 | AC12: 0 | AD12: 11174 | AE12: 32711 | AF12: 138465 | AG12: 9661 | AH12: 16590 | AI12: 4134 | AJ12: 561 | AK12: 23997 | AL12: 53001 | AM12: 0 | AN12: 4133 | AO12: 23679 | AP12: 3158 | AQ12: 0 | AR12: 9064 | AS12: 29409 | AT12: 4419 | AU12: 15884 | AV12: 13254 | AW12: 12
A13: Q 2 | B13: =SUM(B107:B126) -> 514954 | C13: =SUM(C107:C126) -> 49006 | D13: 8428 | E13: 16775 | F13: 39383 | G13: 33898 | H13: 36286 | I13: 96493 | J13: 29904 | K13: 81719 | L13: 79787 | M13: 2245 | N13: 702 | O13: 34514 | P13: 5814 | Q13: 20619 | R13: 10424 | S13: 9753 | T13: 7109 | U13: 4445 | V13: 16775 | W13: 15304 | X13: 18559 | Y13: 8242 | Z13: 9458 | AA13: 3815 | AB13: 33503 | AC13: 5814 | AD13: 20518 | AE13: 39383 | AF13: 53444 | AG13: 22795 | AH13: 5977 | AI13: 12675 | AJ13: 5243 | AK13: 14149 | AL13: 46777 | AM13: 2245 | AN13: 9457 | AO13: 13009 | AP13: 8428 | AQ13: 702 | AR13: 16298 | AS13: 34942 | AT13: 8935 | AU13: 12006 | AV13: 24151 | AW13: 13
A14: Q 3 | B14: =SUM(B148:B167) -> 525433 | C14: =SUM(C148:C167) -> 28108 | D14: 16896 | E14: 28323 | F14: 35729 | G14: 28191 | H14: 62407 | I14: 77297 | J14: 52233 | K14: 67839 | L14: 78941 | M14: 2109 | N14: 4654 | O14: 34917 | P14: 7789 | Q14: 18800 | R14: 25883 | S14: 12583 | T14: 16498 | U14: 6429 | V14: 28323 | W14: 8732 | X14: 7836 | Y14: 4506 | Z14: 12241 | AA14: 3514 | AB14: 37550 | AC14: 7789 | AD14: 14958 | AE14: 35729 | AF14: 37737 | AG14: 35735 | AH14: 5008 | AI14: 8490 | AJ14: 17724 | AK14: 9685 | AL14: 30428 | AM14: 2109 | AN14: 13602 | AO14: 17728 | AP14: 16896 | AQ14: 4654 | AR14: 10587 | AS14: 37411 | AT14: 6804 | AU14: 8804 | AV14: 20660 | AW14: 14
A15: Q 4 | B15: =SUM(B189:B208) -> 518750 | C15: =SUM(C189:C208) -> 27723 | D15: 23238 | E15: 17459 | F15: 32779 | G15: 31613 | H15: 75845 | I15: 73566 | J15: 47055 | K15: 44906 | L15: 72686 | M15: 6015 | N15: 5575 | O15: 60290 | P15: 0 | Q15: 13023 | R15: 46578 | S15: 21482 | T15: 10487 | U15: 4375 | V15: 17459 | W15: 9210 | X15: 8439 | Y15: 9987 | Z15: 15579 | AA15: 7082 | AB15: 35200 | AC15: 0 | AD15: 14985 | AE15: 32779 | AF15: 32464 | AG15: 36568 | AH15: 6227 | AI15: 8261 | AJ15: 16244 | AK15: 11641 | AL15: 19491 | AM15: 6015 | AN15: 29598 | AO15: 13822 | AP15: 23238 | AQ15: 5575 | AR15: 7643 | AS15: 25415 | AT15: 12253 | AU15: 3984 | AV15: 13646 | AW15: 15
A16: Q 5 | B16: =SUM(B230:B249) -> 503461 | C16: =SUM(C230:C249) -> 23374 | D16: 3459 | E16: 5126 | F16: 36846 | G16: 29571 | H16: 91329 | I16: 99730 | J16: 13567 | K16: 37661 | L16: 127173 | M16: 324 | N16: 840 | O16: 34461 | P16: 0 | Q16: 44049 | R16: 41456 | S16: 7590 | T16: 4296 | U16: 3357 | V16: 5126 | W16: 11624 | X16: 7203 | Y16: 26417 | Z16: 8641 | AA16: 25811 | AB16: 96989 | AC16: 0 | AD16: 14912 | AE16: 36846 | AF16: 24796 | AG16: 9271 | AH16: 4778 | AI16: 7047 | AJ16: 5824 | AK16: 5945 | AL16: 13702 | AM16: 324 | AN16: 15247 | AO16: 15555 | AP16: 3459 | AQ16: 840 | AR16: 10226 | AS16: 23959 | AT16: 11302 | AU16: 2373 | AV16: 14496 | AW16: 16
A17: Females, by SIMD | AW17: 17
A18: Females | B18: =SUM(B45:B64) -> 2736460 | C18: =SUM(C45:C64) -> 194536 | D18: 58531 | E18: 77624 | F18: 188772 | G18: 153747 | H18: 289798 | I18: 590359 | J18: 163596 | K18: 337695 | L18: 433408 | M18: 10837 | N18: 11439 | O18: 212161 | P18: 13957 | Q18: 113669 | R18: 128815 | S18: 59754 | T18: 44716 | U18: 26187 | V18: 77624 | W18: 76704 | X18: 63301 | Y18: 54610 | Z18: 52535 | AA18: 47669 | AB18: 247457 | AC18: 13957 | AD18: 80253 | AE18: 188772 | AF18: 308174 | AG18: 118880 | AH18: 42100 | AI18: 43633 | AJ18: 47314 | AK18: 72143 | AL18: 174471 | AM18: 10837 | AN18: 75703 | AO18: 90517 | AP18: 58531 | AQ18: 11439 | AR18: 59092 | AS18: 163224 | AT18: 47307 | AU18: 47289 | AV18: 89783 | AW18: 18
A19: Q 1 | B19: =SUM(B86:B105) -> 561540 | C19: =SUM(C86:C105) -> 55686 | D19: 3435 | E19: 5948 | F19: 35019 | G19: 23777 | H19: 18295 | I19: 221909 | J19: 14192 | K19: 89905 | L19: 55286 | M19: 0 | N19: 0 | O19: 38088 | P19: 0 | Q19: 15547 | R19: 2204 | S19: 5483 | T19: 3973 | U19: 6991 | V19: 5948 | W19: 28213 | X19: 18933 | Y19: 2315 | Z19: 2566 | AA19: 3691 | AB19: 33891 | AC19: 0 | AD19: 11914 | AE19: 35019 | AF19: 153116 | AG19: 10219 | AH19: 18239 | AI19: 4486 | AJ19: 544 | AK19: 26915 | AL19: 57412 | AM19: 0 | AN19: 4392 | AO19: 26388 | AP19: 3435 | AQ19: 0 | AR19: 9838 | AS19: 32493 | AT19: 4872 | AU19: 18160 | AV19: 14343 | AW19: 19
A20: Q 2 | B20: =SUM(B127:B146) -> 550388 | C20: =SUM(C127:C146) -> 54364 | D20: 9040 | E20: 18163 | F20: 41995 | G20: 36494 | H20: 37848 | I20: 101832 | J20: 32268 | K20: 88456 | L20: 84886 | M20: 2281 | N20: 666 | O20: 36056 | P20: 6039 | Q20: 20976 | R20: 10890 | S20: 10568 | T20: 7837 | U20: 4767 | V20: 18163 | W20: 16158 | X20: 20179 | Y20: 9165 | Z20: 10612 | AA20: 4320 | AB20: 34874 | AC20: 6039 | AD20: 21957 | AE20: 41995 | AF20: 54450 | AG20: 24431 | AH20: 6344 | AI20: 13813 | AJ20: 5982 | AK20: 15974 | AL20: 50358 | AM20: 2281 | AN20: 9330 | AO20: 14341 | AP20: 9040 | AQ20: 666 | AR20: 18211 | AS20: 38098 | AT20: 9770 | AU20: 13212 | AV20: 25587 | AW20: 20
A21: Q 3 | B21: =SUM(B168:B187) -> 548453 | C21: =SUM(C168:C187) -> 29472 | D21: 17603 | E21: 29827 | F21: 37739 | G21: 29192 | H21: 64246 | I21: 80896 | J21: 53997 | K21: 72470 | L21: 81298 | M21: 2144 | N21: 4521 | O21: 37130 | P21: 7918 | Q21: 18958 | R21: 26731 | S21: 13210 | T21: 17697 | U21: 6199 | V21: 29827 | W21: 9417 | X21: 7682 | Y21: 4281 | Z21: 13607 | AA21: 3866 | AB21: 37486 | AC21: 7918 | AD21: 15631 | AE21: 37739 | AF21: 39154 | AG21: 36300 | AH21: 5503 | AI21: 9292 | AJ21: 18557 | AK21: 10551 | AL21: 32203 | AM21: 2144 | AN21: 14503 | AO21: 18756 | AP21: 17603 | AQ21: 4521 | AR21: 11239 | AS21: 40267 | AT21: 7362 | AU21: 9336 | AV21: 20913 | AW21: 21
A22: Q 4 | B22: =SUM(B209:B228) -> 544504 | C22: =SUM(C209:C228) -> 29820 | D22: 24762 | E22: 18179 | F22: 34893 | G22: 33430 | H22: 77233 | I22: 79204 | J22: 48860 | K22: 47161 | L22: 76426 | M22: 6076 | N22: 5435 | O22: 63025 | P22: 0 | Q22: 13346 | R22: 47059 | S22: 22174 | T22: 11015 | U22: 4591 | V22: 18179 | W22: 10083 | X22: 8894 | Y22: 10818 | Z22: 16467 | AA22: 7860 | AB22: 36959 | AC22: 0 | AD22: 15701 | AE22: 34893 | AF22: 34550 | AG22: 37845 | AH22: 6987 | AI22: 8642 | AJ22: 16828 | AK22: 12349 | AL22: 20386 | AM22: 6076 | AN22: 30768 | AO22: 14825 | AP22: 24762 | AQ22: 5435 | AR22: 8577 | AS22: 26775 | AT22: 13138 | AU22: 4164 | AV22: 14358 | AW22: 22
A23: Q 5 | B23: =SUM(B250:B269) -> 531575 | C23: =SUM(C250:C269) -> 25194 | D23: 3691 | E23: 5507 | F23: 39126 | G23: 30854 | H23: 92176 | I23: 106518 | J23: 14279 | K23: 39703 | L23: 135512 | M23: 336 | N23: 817 | O23: 37862 | P23: 0 | Q23: 44842 | R23: 41931 | S23: 8319 | T23: 4194 | U23: 3639 | V23: 5507 | W23: 12833 | X23: 7613 | Y23: 28031 | Z23: 9283 | AA23: 27932 | AB23: 104247 | AC23: 0 | AD23: 15050 | AE23: 39126 | AF23: 26904 | AG23: 10085 | AH23: 5027 | AI23: 7400 | AJ23: 5403 | AK23: 6354 | AL23: 14112 | AM23: 336 | AN23: 16710 | AO23: 16207 | AP23: 3691 | AQ23: 817 | AR23: 11227 | AS23: 25591 | AT23: 12165 | AU23: 2417 | AV23: 14582 | AW23: 23
A24: age/sex breakdown: All | AW24: 24
A25: Male 0 | B25: =B66+B107+B148+B189+B230 -> 30180 | C25: =C66+C107+C148+C189+C230 -> 1991 | D25: 572 | E25: 703 | F25: 2130 | G25: 1692 | H25: 3251 | I25: 6755 | J25: 1642 | K25: 3870 | L25: 4985 | M25: 122 | N25: 143 | O25: 2178 | P25: 146 | Q25: 1363 | R25: 1438 | S25: 582 | T25: 385 | U25: 324 | V25: 703 | W25: 890 | X25: 758 | Y25: 465 | Z25: 578 | AA25: 464 | AB25: 2762 | AC25: 146 | AD25: 949 | AE25: 2130 | AF25: 3896 | AG25: 1257 | AH25: 411 | AI25: 553 | AJ25: 450 | AK25: 732 | AL25: 2028 | AM25: 122 | AN25: 706 | AO25: 976 | AP25: 572 | AQ25: 143 | AR25: 501 | AS25: 1842 | AT25: 419 | AU25: 543 | AV25: 1092 | AW25: 25
A26: Male 1-4 | B26: =B67+B108+B149+B190+B231 -> 120848 | C26: =C67+C108+C149+C190+C231 -> 8069 | D26: 2330 | E26: 3081 | F26: 8713 | G26: 6727 | H26: 13448 | I26: 25647 | J26: 6903 | K26: 15379 | L26: 20193 | M26: 447 | N26: 597 | O26: 8743 | P26: 571 | Q26: 4886 | R26: 6402 | S26: 2365 | T26: 1678 | U26: 1138 | V26: 3081 | W26: 3302 | X26: 2784 | Y26: 2224 | Z26: 2456 | AA26: 2070 | AB26: 10889 | AC26: 571 | AD26: 3749 | AE26: 8713 | AF26: 13510 | AG26: 5225 | AH26: 1748 | AI26: 2037 | AJ26: 2160 | AK26: 3005 | AL26: 8333 | AM26: 447 | AN26: 3076 | AO26: 3893 | AP26: 2330 | AQ26: 597 | AR26: 2280 | AS26: 7046 | AT26: 1840 | AU26: 2202 | AV26: 4811 | AW26: 26
A27: Male 5-9 | B27: =B68+B109+B150+B191+B232 -> 141094 | C27: 9833 | D27: 3032 | E27: 3938 | F27: 9980 | G27: 8412 | H27: 14853 | I27: 29122 | J27: 8599 | K27: 18771 | L27: 22138 | M27: 546 | N27: 714 | O27: 10414 | P27: 742 | Q27: 4877 | R27: 7466 | S27: 3128 | T27: 2198 | U27: 1398 | V27: 3938 | W27: 3589 | X27: 3311 | Y27: 2934 | Z27: 2946 | AA27: 2814 | AB27: 11111 | AC27: 742 | AD27: 4492 | AE27: 9980 | AF27: 14124 | AG27: 6401 | AH27: 2141 | AI27: 2475 | AJ27: 2510 | AK27: 3748 | AL27: 10255 | AM27: 546 | AN27: 3697 | AO27: 4631 | AP27: 3032 | AQ27: 714 | AR27: 2774 | AS27: 8516 | AT27: 2522 | AU27: 2478 | AV27: 5606 | AW27: 27
A28: Male 10-14 | B28: 144077 | C28: 10371 | D28: 3087 | E28: 4060 | F28: 10067 | G28: 8616 | H28: 15218 | I28: 30070 | J28: 9174 | K28: 18877 | L28: 21293 | M28: 560 | N28: 701 | O28: 11268 | P28: 715 | Q28: 4772 | R28: 7640 | S28: 3375 | T28: 2408 | U28: 1481 | V28: 4060 | W28: 3595 | X28: 3395 | Y28: 3288 | Z28: 2867 | AA28: 3120 | AB28: 10600 | AC28: 715 | AD28: 4355 | AE28: 10067 | AF28: 14319 | AG28: 6766 | AH28: 2167 | AI28: 2476 | AJ28: 2806 | AK28: 3882 | AL28: 10048 | AM28: 560 | AN28: 4298 | AO28: 4785 | AP28: 3087 | AQ28: 701 | AR28: 3094 | AS28: 8829 | AT28: 2780 | AU28: 2391 | AV28: 5350 | AW28: 28
A29: Male 15-19 | B29: 163400 | C29: 11686 | D29: 3315 | E29: 4483 | F29: 11222 | G29: 9685 | H29: 17397 | I29: 35205 | J29: 9678 | K29: 20607 | L29: 24857 | M29: 687 | N29: 753 | O29: 13043 | P29: 782 | Q29: 6296 | R29: 7980 | S29: 3604 | T29: 2714 | U29: 1628 | V29: 4483 | W29: 4836 | X29: 3905 | Y29: 3573 | Z29: 3201 | AA29: 3161 | AB29: 13333 | AC29: 782 | AD29: 4900 | AE29: 11222 | AF29: 17695 | AG29: 6964 | AH29: 2471 | AI29: 2607 | AJ29: 3121 | AK29: 4525 | AL29: 10952 | AM29: 687 | AN29: 4603 | AO29: 5440 | AP29: 3315 | AQ29: 753 | AR29: 3256 | AS29: 9655 | AT29: 3157 | AU29: 2865 | AV29: 5716 | AW29: 29
A30: Male 20-24 | B30: 184447 | C30: 10758 | D30: 2640 | E30: 3839 | F30: 11911 | G30: 9716 | H30: 21333 | I30: 45388 | J30: 8360 | K30: 19844 | L30: 33660 | M30: 601 | N30: 649 | O30: 15074 | P30: 674 | Q30: 11664 | R30: 6964 | S30: 3226 | T30: 2302 | U30: 1455 | V30: 3839 | W30: 7764 | X30: 3742 | Y30: 3340 | Z30: 2681 | AA30: 2751 | AB30: 23278 | AC30: 674 | AD30: 4507 | AE30: 11911 | AF30: 28182 | AG30: 6058 | AH30: 2596 | AI30: 2492 | AJ30: 2705 | AK30: 3944 | AL30: 10702 | AM30: 601 | AN30: 4084 | AO30: 5610 | AP30: 2640 | AQ30: 649 | AR30: 3072 | AS30: 9142 | AT30: 3754 | AU30: 2909 | AV30: 5209 | AW30: 30
A31: Male 25-29 | B31: 170737 | C31: 9516 | D31: 2413 | E31: 3654 | F31: 9999 | G31: 8265 | H31: 20401 | I31: 42472 | J31: 8299 | K31: 18619 | L31: 32173 | M31: 558 | N31: 665 | O31: 13074 | P31: 629 | Q31: 11039 | R31: 6708 | S31: 2945 | T31: 2021 | U31: 1433 | V31: 3654 | W31: 6122 | X31: 3468 | Y31: 2478 | Z31: 2358 | AA31: 1811 | AB31: 22340 | AC31: 629 | AD31: 4409 | AE31: 9999 | AF31: 27678 | AG31: 6278 | AH31: 2346 | AI31: 2209 | AJ31: 2654 | AK31: 3379 | AL31: 10191 | AM31: 558 | AN31: 4007 | AO31: 5365 | AP31: 2413 | AQ31: 665 | AR31: 2669 | AS31: 8428 | AT31: 2423 | AU31: 2794 | AV31: 5266 | AW31: 31
A32: Male 30-34 | B32: 163281 | C32: 9372 | D32: 2472 | E32: 3278 | F32: 10234 | G32: 8491 | H32: 19323 | I32: 38169 | J32: 8342 | K32: 19830 | L32: 30283 | M32: 526 | N32: 687 | O32: 11609 | P32: 665 | Q32: 9493 | R32: 7327 | S32: 2966 | T32: 1900 | U32: 1496 | V32: 3278 | W32: 4642 | X32: 3307 | Y32: 2163 | Z32: 2381 | AA32: 1879 | AB32: 20191 | AC32: 665 | AD32: 4852 | AE32: 10234 | AF32: 24507 | AG32: 6442 | AH32: 2101 | AI32: 2283 | AJ32: 2503 | AK32: 3391 | AL32: 10679 | AM32: 526 | AN32: 4001 | AO32: 5014 | AP32: 2472 | AQ32: 687 | AR32: 2674 | AS32: 9151 | AT32: 2143 | AU32: 2505 | AV32: 5428 | AW32: 32
A33: Male 35-39 | B33: 158158 | C33: 9821 | D33: 2858 | E33: 3558 | F33: 10638 | G33: 8999 | H33: 18614 | I33: 33738 | J33: 8305 | K33: 20124 | L33: 28782 | M33: 546 | N33: 775 | O33: 10640 | P33: 760 | Q33: 7748 | R33: 8394 | S33: 3083 | T33: 2018 | U33: 1543 | V33: 3558 | W33: 3759 | X33: 3489 | Y33: 2586 | Z33: 2990 | AA33: 2358 | AB33: 17480 | AC33: 760 | AD33: 5117 | AE33: 10638 | AF33: 19435 | AG33: 6287 | AH33: =AH74+AH115+AH156+AH197+AH238 -> 2082 | AI33: 2452 | AJ33: 2472 | AK33: 3520 | AL33: 10629 | AM33: 546 | AN33: 3798 | AO33: 4854 | AP33: 2858 | AQ33: 775 | AR33: 2812 | AS33: 9495 | AT33: 2339 | AU33: 2423 | AV33: 5860 | AW33: 33
A34: Male 40-44 | B34: 186186 | C34: 12583 | D34: 4067 | E34: 4808 | F34: 12949 | G34: 11318 | H34: 20449 | I34: 38976 | J34: 10483 | K34: 24295 | L34: 30408 | M34: 719 | N34: 808 | O34: 13303 | P34: 1020 | Q34: 7482 | R34: 9587 | S34: 3902 | T34: 2700 | U34: 2011 | V34: 4808 | W34: 4471 | X34: 4441 | Y34: 3541 | Z34: 3648 | AA34: 3039 | AB34: 16730 | AC34: 1020 | AD34: 6165 | AE34: 12949 | AF34: 20659 | AG34: 7783 | AH34: 2630 | AI34: 2956 | AJ34: 3380 | AK34: 4539 | AL34: 12524 | AM34: 719 | AN34: 4930 | AO34: 6054 | AP34: 4067 | AQ34: 808 | AR34: 3603 | AS34: 11771 | AT34: 3142 | AU34: 3053 | AV34: 7074 | AW34: 34
A35: Male 45-49 | B35: 199540 | C35: 13868 | D35: 4547 | E35: 5778 | F35: 13722 | G35: 11831 | H35: 21336 | I35: 41923 | J35: 12272 | K35: 25296 | L35: 31011 | M35: 904 | N35: 949 | O35: 15072 | P35: 1031 | Q35: 7588 | R35: 10168 | S35: 4450 | T35: 3259 | U35: 2111 | V35: 5778 | W35: 4790 | X35: 4763 | Y35: 4148 | Z35: 4032 | AA35: 3591 | AB35: 16636 | AC35: 1031 | AD35: 6272 | AE35: 13722 | AF35: 20573 | AG35: 9013 | AH35: 3252 | AI35: 3174 | AJ35: 3580 | AK35: 5042 | AL35: 13118 | AM35: 904 | AN35: 5832 | AO35: 6810 | AP35: 4547 | AQ35: 949 | AR35: 4063 | AS35: 12178 | AT35: 3448 | AU35: 3549 | AV35: 7169 | AW35: 35
A36: Male 50-54 | B36: 188241 | C36: 13538 | D36: 4366 | E36: 5589 | F36: 13115 | G36: 10768 | H36: 20166 | I36: 39644 | J36: 11967 | K36: 23715 | L36: 28287 | M36: 834 | N36: 863 | O36: 14320 | P36: 1069 | Q36: 7248 | R36: 9611 | S36: 4213 | T36: 3231 | U36: 1898 | V36: 5589 | W36: 4761 | X36: 4424 | Y36: 4103 | Z36: 3795 | AA36: 3513 | AB36: 15100 | AC36: 1069 | AD36: 5697 | AE36: 13115 | AF36: 18842 | AG36: 8736 | AH36: 3184 | AI36: 3007 | AJ36: 3307 | AK36: 4922 | AL36: 11880 | AM36: 834 | AN36: 5346 | AO36: 6643 | AP36: 4366 | AQ36: 863 | AR36: 4192 | AS36: 11835 | AT36: 3173 | AU36: 3359 | AV36: 6385 | AW36: 36
A37: Male 55-59 | B37: 166198 | C37: 12207 | D37: 4031 | E37: 5250 | F37: 11560 | G37: 9129 | H37: 18536 | I37: 33871 | J37: 11366 | K37: 20620 | L37: 24112 | M37: 802 | N37: 782 | O37: 12931 | P37: 1001 | Q37: 6691 | R37: 8811 | S37: 3852 | T37: 3133 | U37: 1663 | V37: 5250 | W37: 4109 | X37: 3942 | Y37: 3697 | Z37: 3272 | AA37: 3053 | AB37: 13071 | AC37: 1001 | AD37: 4705 | AE37: 11560 | AF37: 16055 | AG37: 8233 | AH37: 2622 | AI37: 2705 | AJ37: 3034 | AK37: 4443 | AL37: 10197 | AM37: 802 | AN37: 4970 | AO37: 5499 | AP37: 4031 | AQ37: 782 | AR37: 3822 | AS37: 10423 | AT37: 2761 | AU37: 2945 | AV37: 5064 | AW37: 37
A38: Male 60-64 | B38: 157797 | C38: 12296 | D38: 4170 | E38: 5572 | F38: 11387 | G38: 9044 | H38: 17552 | I38: 29777 | J38: 11515 | K38: 18711 | L38: 22293 | M38: 756 | N38: 826 | O38: 12810 | P38: 1088 | Q38: 6031 | R38: 8550 | S38: 4043 | T38: 3238 | U38: 1668 | V38: 5572 | W38: 3836 | X38: 3846 | Y38: 3336 | Z38: 2931 | AA38: 2630 | AB38: 11805 | AC38: 1088 | AD38: 4695 | AE38: 11387 | AF38: 13647 | AG38: 8277 | AH38: 2496 | AI38: 2696 | AJ38: 2971 | AK38: 4525 | AL38: 9375 | AM38: 756 | AN38: 4931 | AO38: 5041 | AP38: 4170 | AQ38: 826 | AR38: 3925 | AS38: 9336 | AT38: 2681 | AU38: 2627 | AV38: 4861 | AW38: 38
A39: Male 65-69 | B39: 137334 | C39: 11350 | D39: 3870 | E39: 5102 | F39: 10484 | G39: 7941 | H39: 14197 | I39: 25389 | J39: 10312 | K39: 16132 | L39: 18831 | M39: 717 | N39: 681 | O39: 11415 | P39: 913 | Q39: 4578 | R39: 6990 | S39: 3587 | T39: 3163 | U39: 1436 | V39: 5102 | W39: 3343 | X39: 3483 | Y39: 2961 | Z39: 2718 | AA39: 2251 | AB39: 9633 | AC39: 913 | AD39: 4108 | AE39: 10484 | AF39: 11242 | AG39: 7149 | AH39: 2199 | AI39: 2314 | AJ39: 2629 | AK39: 4124 | AL39: 7968 | AM39: 717 | AN39: 4485 | AO39: 4493 | AP39: 3870 | AQ39: 681 | AR39: 3743 | AS39: 8164 | AT39: 2397 | AU39: 2243 | AV39: 4166 | AW39: 39
A40: Male 70-74 | B40: 101619 | C40: 8383 | D40: 2799 | E40: 3983 | F40: 7437 | G40: 5744 | H40: 10436 | I40: 19215 | J40: 7441 | K40: 11992 | L40: 13754 | M40: 576 | N40: 478 | O40: 8658 | P40: 723 | Q40: 3443 | R40: 4904 | S40: 2672 | T40: 2332 | U40: 981 | V40: 3983 | W40: 2607 | X40: 2519 | Y40: 2298 | Z40: 2035 | AA40: 1769 | AB40: 7006 | AC40: 723 | AD40: 2934 | AE40: 7437 | AF40: 8536 | AG40: 5109 | AH40: 1603 | AI40: 1656 | AJ40: 2089 | AK40: 3120 | AL40: 6011 | AM40: 576 | AN40: 3379 | AO40: 3392 | AP40: 2799 | AQ40: 478 | AR40: 2744 | AS40: 5981 | AT40: 1829 | AU40: 1617 | AV40: 3057 | AW40: 40
A41: Male 75-79 | B41: 78407 | C41: 6373 | D41: 2102 | E41: 3188 | F41: 5681 | G41: 4479 | H41: 8098 | I41: 15150 | J41: 5461 | K41: 8892 | L41: 10817 | M41: 359 | N41: 339 | O41: 6961 | P41: 507 | Q41: 2798 | R41: 3706 | S41: 2086 | T41: 1660 | U41: 723 | V41: 3188 | W41: 2152 | X41: 1915 | Y41: 1988 | Z41: 1551 | AA41: 1436 | AB41: 5943 | AC41: 507 | AD41: 2343 | AE41: 5681 | AF41: 6715 | AG41: =AG82+AG123+AG164+AG205+AG246 -> 3801 | AH41: 1218 | AI41: 1223 | AJ41: 1594 | AK41: 2252 | AL41: 4264 | AM41: 359 | AN41: 2723 | AO41: 2554 | AP41: 2102 | AQ41: 339 | AR41: 2206 | AS41: 4628 | AT41: 1413 | AU41: 1239 | AV41: 2100 | AW41: 41
A42: Male 80-84 | B42: 50919 | C42: 3981 | D42: 1494 | E42: 1968 | F42: 3656 | G42: 2697 | H42: 5219 | I42: 9924 | J42: 3663 | K42: 5533 | L42: 7202 | M42: 250 | N42: 211 | O42: 4785 | P42: 336 | Q42: 1924 | R42: 2331 | S42: 1425 | T42: 1109 | U42: 449 | V42: 1968 | W42: 1489 | X42: 1185 | Y42: 1297 | Z42: 1090 | AA42: 933 | AB42: 4098 | AC42: 336 | AD42: 1353 | AE42: 3656 | AF42: 4416 | AG42: 2554 | AH42: 788 | AI42: 779 | AJ42: 964 | AK42: 1430 | AL42: 2672 | AM42: 250 | AN42: 1871 | AO42: 1682 | AP42: 1494 | AQ42: 211 | AR42: 1366 | AS42: 2861 | AT42: 895 | AU42: 808 | AV42: 1235 | AW42: 42
A43: Male 85-89 | B43: =B84+B125+B166+B207+B248 -> 24838 | C43: 1943 | D43: 731 | E43: 989 | F43: 1839 | G43: 1282 | H43: 2680 | I43: 4663 | J43: 1763 | K43: 2495 | L43: 3715 | M43: 124 | N43: 106 | O43: 2332 | P43: 176 | Q43: 976 | R43: 1240 | S43: 659 | T43: 535 | U43: 174 | V43: 989 | W43: 746 | X43: 543 | Y43: 611 | Z43: 581 | AA43: 514 | AB43: 2215 | AC43: 176 | AD43: 686 | AE43: 1839 | AF43: 2068 | AG43: 1228 | AH43: 384 | AI43: 363 | AJ43: 464 | AK43: 659 | AL43: 1156 | AM43: 124 | AN43: 927 | AO43: 739 | AP43: 731 | AQ43: 106 | AR43: 741 | AS43: 1339 | AT43: 422 | AU43: 347 | AV43: 556 | AW43: 43
A44: Male 90+ | B44: 9839 | C44: 715 | D44: 283 | E44: 385 | F44: 724 | G44: 517 | H44: 1115 | I44: 1863 | J44: 669 | K44: 933 | L44: 1518 | M44: 59 | N44: 44 | O44: 959 | P44: 55 | Q44: 404 | R44: 508 | S44: 293 | T44: 200 | U44: 83 | V44: 385 | W44: 293 | X44: 199 | Y44: 239 | Z44: 204 | AA44: 204 | AB44: 962 | AC44: 55 | AD44: 259 | AE44: 724 | AF44: 807 | AG44: 469 | AH44: 141 | AI44: 150 | AJ44: 203 | AK44: 235 | AL44: 417 | AM44: 59 | AN44: 373 | AO44: 318 | AP44: 283 | AQ44: 44 | AR44: 281 | AS44: 516 | AT44: 175 | AU44: 154 | AV44: 202 | AW44: 44
A45: Female 0 | B45: =B86+B127+B168+B209+B250 -> 28511 | C45: 1902 | D45: 549 | E45: 664 | F45: 1960 | G45: 1622 | H45: 3135 | I45: 6403 | J45: 1590 | K45: 3471 | L45: 4768 | M45: 93 | N45: 115 | O45: 2139 | P45: 100 | Q45: 1314 | R45: 1362 | S45: 561 | T45: 425 | U45: 294 | V45: 664 | W45: 880 | X45: 681 | Y45: 428 | Z45: 570 | AA45: 417 | AB45: 2725 | AC45: 100 | AD45: 890 | AE45: 1960 | AF45: 3761 | AG45: 1165 | AH45: 354 | AI45: 500 | AJ45: 459 | AK45: 711 | AL45: 1857 | AM45: 93 | AN45: 698 | AO45: 932 | AP45: 549 | AQ45: 115 | AR45: 510 | AS45: 1614 | AT45: 438 | AU45: 511 | AV45: 973 | AW45: 45
A46: Female 1-4 | B46: =B87+B128+B169+B210+B251 -> 116332 | C46: =C87+C128+C169+C210+C251 -> 7798 | D46: 2270 | E46: 3034 | F46: 8204 | G46: 6625 | H46: 12764 | I46: 24652 | J46: 6512 | K46: 15057 | L46: 19612 | M46: 439 | N46: 498 | O46: 8384 | P46: 483 | Q46: 4626 | R46: 6112 | S46: 2424 | T46: 1639 | U46: 1175 | V46: 3034 | W46: 3077 | X46: 2666 | Y46: 2101 | Z46: 2436 | AA46: 2001 | AB46: 10681 | AC46: 483 | AD46: 3739 | AE46: 8204 | AF46: 13118 | AG46: 4873 | AH46: 1592 | AI46: 2052 | AJ46: 2026 | AK46: 2947 | AL46: 8088 | AM46: 439 | AN46: 2883 | AO46: 3809 | AP46: 2270 | AQ46: 498 | AR46: 2185 | AS46: 6969 | AT46: 1711 | AU46: 2031 | AV46: 4443 | AW46: 46
A47: Female 5-9 | B47: =B88+B129+B170+B211+B252 -> 134447 | C47: 9485 | D47: 2861 | E47: 3685 | F47: 9606 | G47: 7925 | H47: 14190 | I47: 27930 | J47: 8180 | K47: 17990 | L47: 20731 | M47: 540 | N47: 651 | O47: 9937 | P47: 736 | Q47: 4675 | R47: 7085 | S47: 2944 | T47: 2050 | U47: 1311 | V47: 3685 | W47: 3391 | X47: 3157 | Y47: 2719 | Z47: 2806 | AA47: 2764 | AB47: 10227 | AC47: 736 | AD47: 4268 | AE47: 9606 | AF47: 13594 | AG47: 6130 | AH47: 1976 | AI47: 2324 | AJ47: 2430 | AK47: 3602 | AL47: 9703 | AM47: 540 | AN47: 3602 | AO47: 4529 | AP47: 2861 | AQ47: 651 | AR47: 2726 | AS47: 8287 | AT47: 2346 | AU47: 2348 | AV47: 5374 | AW47: 47
A48: Female 10-14 | B48: 137520 | C48: 9945 | D48: 3086 | E48: 3736 | F48: 9471 | G48: 8212 | H48: 14121 | I48: 28752 | J48: 8529 | K48: 18274 | L48: 20730 | M48: 546 | N48: 695 | O48: 10680 | P48: 743 | Q48: 4419 | R48: 7135 | S48: 3139 | T48: 2232 | U48: 1419 | V48: 3736 | W48: 3413 | X48: 3322 | Y48: 3010 | Z48: 2853 | AA48: 2935 | AB48: 10083 | AC48: 743 | AD48: 4150 | AE48: 9471 | AF48: 13712 | AG48: 6297 | AH48: 2037 | AI48: 2474 | AJ48: 2567 | AK48: 3757 | AL48: 9767 | AM48: 546 | AN48: 4128 | AO48: 4691 | AP48: 3086 | AQ48: 695 | AR48: 2866 | AS48: 8507 | AT48: 2643 | AU48: 2367 | AV48: 5320 | AW48: 48
A49: Female 15-19 | B49: 156383 | C49: 11094 | D49: 3145 | E49: 4258 | F49: 11188 | G49: 9114 | H49: 16773 | I49: 33831 | J49: 8857 | K49: 19351 | L49: 23871 | M49: 624 | N49: 691 | O49: 12800 | P49: 786 | Q49: 6528 | R49: 7354 | S49: 3428 | T49: 2396 | U49: 1551 | V49: 4258 | W49: 5071 | X49: 3644 | Y49: 3203 | Z49: 3158 | AA49: 2950 | AB49: 12823 | AC49: 786 | AD49: 4390 | AE49: 11188 | AF49: 17549 | AG49: 6461 | AH49: 2420 | AI49: 2463 | AJ49: 2891 | AK49: 4250 | AL49: 10160 | AM49: 624 | AN49: 4301 | AO49: 5038 | AP49: 3145 | AQ49: 691 | AR49: 3200 | AS49: 9191 | AT49: 3173 | AU49: 2671 | AV49: 5427 | AW49: 49
A50: Female 20-24 | B50: 186192 | C50: 10743 | D50: 2613 | E50: 3791 | F50: 12448 | G50: 9838 | H50: 20816 | I50: 46867 | J50: 7403 | K50: 19475 | L50: 35828 | M50: 529 | N50: 607 | O50: 14699 | P50: 535 | Q50: 12364 | R50: 6173 | S50: 2819 | T50: 1902 | U50: 1380 | V50: 3791 | W50: 8282 | X50: 3688 | Y50: 2941 | Z50: 2952 | AA50: 2527 | AB50: 25356 | AC50: 535 | AD50: 4387 | AE50: 12448 | AF50: 30508 | AG50: 5501 | AH50: 2488 | AI50: 2474 | AJ50: 2279 | AK50: 3995 | AL50: 10568 | AM50: 529 | AN50: 3598 | AO50: 5445 | AP50: 2613 | AQ50: 607 | AR50: 3060 | AS50: 8907 | AT50: 4071 | AU50: 2958 | AV50: 5046 | AW50: 50
A51: Female 25-29 | B51: 176313 | C51: 10190 | D51: 2589 | E51: 3685 | F51: 10593 | G51: 8654 | H51: 20188 | I51: 42769 | J51: 8362 | K51: 20393 | L51: 34004 | M51: 586 | N51: 616 | O51: 13085 | P51: 599 | Q51: 10773 | R51: 6777 | S51: 3019 | T51: 1965 | U51: 1438 | V51: 3685 | W51: 6003 | X51: 3599 | Y51: 2105 | Z51: 2547 | AA51: 1843 | AB51: 23631 | AC51: 599 | AD51: 4665 | AE51: 10593 | AF51: 28322 | AG51: 6397 | AH51: 2321 | AI51: 2285 | AJ51: 2638 | AK51: 3684 | AL51: 11116 | AM51: 586 | AN51: 4063 | AO51: 5299 | AP51: 2589 | AQ51: 616 | AR51: 2907 | AS51: 9277 | AT51: 2551 | AU51: 2879 | AV51: 5541 | AW51: 51
A52: Female 30-34 | B52: 169681 | C52: 10283 | D52: 2617 | E52: 3727 | F52: 10904 | G52: 9104 | H52: 18718 | I52: 39381 | J52: 8511 | K52: 21125 | L52: 31470 | M52: 564 | N52: 668 | O52: 11907 | P52: 702 | Q52: 8582 | R52: 7622 | S52: 3180 | T52: 1918 | U52: 1527 | V52: 3727 | W52: 4856 | X52: 3592 | Y52: 2431 | Z52: 2705 | AA52: 2188 | AB52: 20480 | AC52: 702 | AD52: 5139 | AE52: 10904 | AF52: 24282 | AG52: 6593 | AH52: 2267 | AI52: 2572 | AJ52: 2514 | AK52: 3777 | AL52: 11270 | AM52: 564 | AN52: 3871 | AO52: 5375 | AP52: 2617 | AQ52: 668 | AR52: 2914 | AS52: 9855 | AT52: 2438 | AU52: 2838 | AV52: 5713 | AW52: 52
A53: Female 35-39 | B53: 163850 | C53: 10887 | D53: 3184 | E53: 3875 | F53: 11045 | G53: 9685 | H53: 18030 | I53: 35092 | J53: 9096 | K53: 20966 | L53: 28389 | M53: 603 | N53: 736 | O53: 11464 | P53: 798 | Q53: 6846 | R53: 8438 | S53: 3376 | T53: 2279 | U53: 1588 | V53: 3875 | W53: 3988 | X53: 3698 | Y53: 2926 | Z53: 3162 | AA53: 2698 | AB53: 16507 | AC53: 798 | AD53: 5406 | AE53: 11045 | AF53: 19093 | AG53: 6817 | AH53: =AH94+AH135+AH176+AH217+AH258 -> 2364 | AI53: 2604 | AJ53: 2746 | AK53: 4096 | AL53: 11042 | AM53: 603 | AN53: 4100 | AO53: 5276 | AP53: 3184 | AQ53: 736 | AR53: 3093 | AS53: 9924 | AT53: 2691 | AU53: 2735 | AV53: 6116 | AW53: 53
A54: Female 40-44 | B54: 199274 | C54: 14227 | D54: 4344 | E54: 5307 | F54: 13820 | G54: 11901 | H54: 20945 | I54: 42783 | J54: 11770 | K54: 25997 | L54: 31327 | M54: 765 | N54: 835 | O54: 14265 | P54: 988 | Q54: 7296 | R54: 10172 | S54: 4212 | T54: 3125 | U54: 2022 | V54: 5307 | W54: 4553 | X54: 4883 | Y54: 4023 | Z54: 4141 | AA54: 3630 | AB54: 16355 | AC54: 988 | AD54: 6371 | AE54: 13820 | AF54: 21499 | AG54: 8645 | AH54: 3111 | AI54: 3365 | AJ54: 3477 | AK54: 5222 | AL54: 13651 | AM54: 765 | AN54: 5500 | AO54: 7037 | AP54: 4344 | AQ54: 835 | AR54: 4122 | AS54: 12346 | AT54: 3508 | AU54: 3483 | AV54: 7466 | AW54: 54
A55: Female 45-49 | B55: 210765 | C55: 15476 | D55: 4797 | E55: 6135 | F55: 14417 | G55: 12233 | H55: 22033 | I55: 45684 | J55: 13019 | K55: 27047 | L55: 31560 | M55: 877 | N55: 875 | O55: 15590 | P55: 1022 | Q55: 7625 | R55: 10721 | S55: 4492 | T55: 3503 | U55: 2190 | V55: 6135 | W55: 5134 | X55: 5205 | Y55: 4593 | Z55: 4266 | AA55: 4044 | AB55: 16433 | AC55: 1022 | AD55: 6348 | AE55: 14417 | AF55: 22273 | AG55: 9516 | AH55: 3477 | AI55: 3432 | AJ55: 3687 | AK55: 5752 | AL55: 13842 | AM55: 877 | AN55: 5964 | AO55: 7394 | AP55: 4797 | AQ55: 875 | AR55: 4519 | AS55: 13205 | AT55: 3695 | AU55: 3903 | AV55: 7429 | AW55: 55
A56: Female 50-54 | B56: 196466 | C56: 14343 | D56: 4430 | E56: 5872 | F56: 13586 | G56: 11019 | H56: 20140 | I56: 42903 | J56: 12387 | K56: 24993 | L56: 29148 | M56: 753 | N56: 824 | O56: 15062 | P56: 1006 | Q56: 7325 | R56: 9482 | S56: 4450 | T56: 3416 | U56: 1955 | V56: 5872 | W56: 5163 | X56: 4576 | Y56: 4475 | Z56: 3945 | AA56: 3740 | AB56: 15519 | AC56: 1006 | AD56: 5757 | AE56: 13586 | AF56: 20696 | AG56: 8971 | AH56: 3321 | AI56: 3174 | AJ56: 3333 | AK56: 5283 | AL56: 12548 | AM56: 753 | AN56: 5449 | AO56: 7049 | AP56: 4430 | AQ56: 824 | AR56: 4484 | AS56: 12445 | AT56: 3307 | AU56: 3622 | AV56: 6510 | AW56: 56
A57: Female 55-59 | B57: 173090 | C57: 13268 | D57: 4151 | E57: 5550 | F57: 12010 | G57: 9549 | H57: 18379 | I57: 35586 | J57: 11675 | K57: 22099 | L57: 24790 | M57: 783 | N57: 790 | O57: 13495 | P57: 965 | Q57: 6358 | R57: 8889 | S57: 4051 | T57: 3205 | U57: 1711 | V57: 5550 | W57: 4238 | X57: 4151 | Y57: 3956 | Z57: 3358 | AA57: 3220 | AB57: 13172 | AC57: 965 | AD57: 4986 | AE57: 12010 | AF57: 16608 | AG57: 8470 | AH57: 2819 | AI57: 2864 | AJ57: 3132 | AK57: 4946 | AL57: 10954 | AM57: 783 | AN57: 5206 | AO57: 5811 | AP57: 4151 | AQ57: 790 | AR57: 4171 | AS57: 11145 | AT57: 2852 | AU57: 3172 | AV57: 5396 | AW57: 57
A58: Female 60-64 | B58: 164841 | C58: 13057 | D58: 4238 | E58: 5582 | F58: 12188 | G58: 9464 | H58: 17270 | I58: 31567 | J58: 11811 | K58: 20091 | L58: 23646 | M58: 770 | N58: 715 | O58: 13414 | P58: 1028 | Q58: 5895 | R58: 8249 | S58: 4147 | T58: 3505 | U58: 1741 | V58: 5582 | W58: 4142 | X58: 4041 | Y58: 3633 | Z58: 3250 | AA58: 2913 | AB58: 12434 | AC58: 1028 | AD58: 4980 | AE58: 12188 | AF58: 13985 | AG58: 8306 | AH58: 2685 | AI58: 2830 | AJ58: 3126 | AK58: 4859 | AL58: 10069 | AM58: 770 | AN58: 5125 | AO58: 5443 | AP58: 4238 | AQ58: 715 | AR58: 4157 | AS58: 10022 | AT58: 2743 | AU58: 2908 | AV58: 5132 | AW58: 58
A59: Female 65-69 | B59: 148398 | C59: 12251 | D59: 4043 | E59: 5476 | F59: 11182 | G59: 8530 | H59: 15017 | I59: 28073 | J59: 10565 | K59: 17901 | L59: 20678 | M59: 710 | N59: 635 | O59: 12398 | P59: 939 | Q59: 4956 | R59: 7101 | S59: 3899 | T59: 3259 | U59: 1608 | V59: 5476 | W59: 3664 | X59: 3692 | Y59: 3384 | Z59: 2929 | AA59: 2640 | AB59: 10651 | AC59: 939 | AD59: 4258 | AE59: 11182 | AF59: 12247 | AG59: 7306 | AH59: 2416 | AI59: 2566 | AJ59: 2960 | AK59: 4516 | AL59: 8964 | AM59: 710 | AN59: 4835 | AO59: 4925 | AP59: 4043 | AQ59: 635 | AR59: 4043 | AS59: 8937 | AT59: 2664 | AU59: 2461 | AV59: 4532 | AW59: 59
A60: Female 70-74 | B60: 119914 | C60: 9751 | D60: 3152 | E60: 4299 | F60: 8418 | G60: 6841 | H60: 11817 | I60: 24133 | J60: 8322 | K60: 14675 | L60: 16532 | M60: 598 | N60: 508 | O60: 10099 | P60: 769 | Q60: 4175 | R60: 5368 | S60: 2984 | T60: 2574 | U60: 1138 | V60: 4299 | W60: 3247 | X60: 2871 | Y60: 2828 | Z60: 2376 | AA60: 2103 | AB60: 8779 | AC60: 769 | AD60: 3571 | AE60: 8418 | AF60: 11086 | AG60: 5748 | AH60: 1980 | AI60: 1885 | AJ60: 2274 | AK60: 3682 | AL60: 7308 | AM60: 598 | AN60: 3868 | AO60: 4069 | AP60: 3152 | AQ60: 508 | AR60: 3198 | AS60: 7367 | AT60: 2132 | AU60: 2067 | AV60: 3492 | AW60: 60
A61: Female 75-79 | B61: 102204 | C61: 8075 | D61: 2588 | E61: 3611 | F61: 7162 | G61: 5592 | H61: 10004 | I61: 21773 | J61: 6792 | K61: 12339 | L61: 14053 | M61: 416 | N61: 387 | O61: 8731 | P61: 681 | Q61: 3793 | R61: 4252 | S61: 2536 | T61: 2126 | U61: 904 | V61: 3611 | W61: 2969 | X61: 2457 | Y61: 2432 | Z61: 2011 | AA61: 1929 | AB61: 7881 | AC61: 681 | AD61: 2913 | AE61: 7162 | AF61: 10328 | AG61: =AG102+AG143+AG184+AG225+AG266 -> 4666 | AH61: 1752 | AI61: 1601 | AJ61: 1959 | AK61: 2889 | AL61: 6069 | AM61: 416 | AN61: 3226 | AO61: 3584 | AP61: 2588 | AQ61: 387 | AR61: 2729 | AS61: 6270 | AT61: 1775 | AU61: 1748 | AV61: 2560 | AW61: 61
A62: Female 80-84 | B62: 77714 | C62: 5960 | D62: 1927 | E62: 2773 | F62: 5251 | G62: 4053 | H62: 7885 | I62: 16597 | J62: 5127 | K62: 8846 | L62: 11221 | M62: 316 | N62: 290 | O62: 6955 | P62: 513 | Q62: 3197 | R62: 3230 | S62: 2016 | T62: 1576 | U62: 643 | V62: 2773 | W62: 2380 | X62: 1756 | Y62: 1759 | Z62: 1550 | AA62: 1560 | AB62: 6771 | AC62: 513 | AD62: 2114 | AE62: 5251 | AF62: 7978 | AG62: 3551 | AH62: 1403 | AI62: 1125 | AJ62: 1458 | AK62: 2143 | AL62: 4095 | AM62: 316 | AN62: 2559 | AO62: 2534 | AP62: 1927 | AQ62: 290 | AR62: 2061 | AS62: 4751 | AT62: 1296 | AU62: 1363 | AV62: 1775 | AW62: 62
A63: Female 85-89 | B63: =B104+B145+B186+B227+B268 -> 47499 | C63: 3602 | D63: 1239 | E63: 1635 | F63: 3424 | G63: 2400 | H63: 4869 | I63: 9839 | J63: 3162 | K63: 4968 | L63: 7006 | M63: 189 | N63: 184 | O63: 4635 | P63: 347 | Q63: 1904 | R63: 2089 | S63: 1364 | T63: 973 | U63: 375 | V63: 1635 | W63: 1507 | X63: 1015 | Y63: 1093 | Z63: 956 | AA63: 953 | AB63: 4374 | AC63: 347 | AD63: 1226 | AE63: 3424 | AF63: 4732 | AG63: 2189 | AH63: 835 | AI63: 677 | AJ63: 876 | AK63: 1240 | AL63: 2281 | AM63: 189 | AN63: 1764 | AO63: 1441 | AP63: 1239 | AQ63: 184 | AR63: 1347 | AS63: 2687 | AT63: 799 | AU63: 785 | AV63: 999 | AW63: 63
A64: Female 90+ | B64: 27066 | C64: 2199 | D64: 708 | E64: 929 | F64: 1895 | G64: 1386 | H64: 2704 | I64: 5744 | J64: 1926 | K64: 2637 | L64: 4044 | M64: 136 | N64: 119 | O64: 2422 | P64: 217 | Q64: 1018 | R64: 1204 | S64: 713 | T64: 648 | U64: 217 | V64: 929 | W64: 746 | X64: 607 | Y64: 570 | Z64: 564 | AA64: 614 | AB64: 2575 | AC64: 217 | AD64: 695 | AE64: 1895 | AF64: 2803 | AG64: 1278 | AH64: 482 | AI64: 366 | AJ64: 482 | AK64: 792 | AL64: 1119 | AM64: 136 | AN64: 963 | AO64: 836 | AP64: 708 | AQ64: 119 | AR64: 800 | AS64: 1518 | AT64: 474 | AU64: 439 | AV64: 539 | AW64: 64
A65: age/sex breakdown: Q1 | AW65: 65
A66: Male 0 | B66: 7747 | C66: 750 | D66: 49 | E66: 87 | F66: 558 | G66: 354 | H66: 289 | I66: 2880 | J66: 197 | K66: 1152 | L66: 819 | O66: 612 | Q66: 239 | R66: 47 | S66: 93 | T66: 51 | U66: 121 | V66: 87 | W66: 438 | X66: 285 | Y66: 29 | Z66: 45 | AA66: 41 | AB66: 503 | AC66: 0 | AD66: 174 | AE66: 558 | AF66: 2061 | AG66: 146 | AH66: 193 | AI66: 90 | AJ66: 3 | AK66: 324 | AL66: 719 | AM66: 0 | AN66: 81 | AO66: 332 | AP66: 49 | AQ66: 0 | AR66: 141 | AS66: 433 | AT66: 59 | AU66: 224 | AV66: 181 | AW66: 66
A67: Male 1-4 | B67: 29238 | C67: 2712 | D67: 184 | E67: 341 | F67: 2075 | G67: 1279 | H67: 1125 | I67: 10860 | J67: 829 | K67: 4353 | L67: 3398 | O67: 2082 | Q67: 940 | R67: 153 | S67: 289 | T67: 199 | U67: 386 | V67: 341 | W67: 1534 | X67: 961 | Y67: 148 | Z67: 163 | AA67: 217 | AB67: 2151 | AC67: 0 | AD67: 666 | AE67: 2075 | AF67: 7404 | AG67: 630 | AH67: 837 | AI67: 242 | AJ67: 32 | AK67: 1313 | AL67: 2890 | AM67: 0 | AN67: 259 | AO67: 1260 | AP67: 184 | AQ67: 0 | AR67: 438 | AS67: 1463 | AT67: 227 | AU67: 994 | AV67: 842 | AW67: 67
A68: Male 5-9 | B68: 31097 | C68: 3004 | D68: 240 | E68: 380 | F68: 2045 | G68: 1381 | H68: 1017 | I68: 11586 | J68: 842 | K68: 5092 | L68: 3320 | O68: 2190 | Q68: 870 | R68: 129 | S68: 317 | T68: 206 | U68: 421 | V68: 380 | W68: 1644 | X68: 1063 | Y68: 153 | Z68: 136 | AA68: 199 | AB68: 1986 | AC68: 0 | AD68: 682 | AE68: 2045 | AF68: 7983 | AG68: 636 | AH68: 964 | AI68: 263 | AJ68: 18 | AK68: 1480 | AL68: 3378 | AM68: 0 | AN68: 229 | AO68: 1265 | AP68: 240 | AQ68: 0 | AR68: 461 | AS68: 1714 | AT68: 278 | AU68: 1022 | AV68: 935 | AW68: 68
A69: Male 10-14 | B69: 30405 | C69: 2919 | D69: 213 | E69: 297 | F69: 2036 | G69: 1353 | H69: 1005 | I69: 11479 | J69: 815 | K69: 5037 | L69: 3150 | O69: 2101 | Q69: 862 | R69: 107 | S69: 319 | T69: 222 | U69: 433 | V69: 297 | W69: 1536 | X69: 962 | Y69: 152 | Z69: 158 | AA69: 206 | AB69: 1928 | AC69: 0 | AD69: 620 | AE69: 2036 | AF69: 8000 | AG69: 593 | AH69: 911 | AI69: 276 | AJ69: 36 | AK69: 1465 | AL69: 3353 | AM69: 0 | AN69: 246 | AO69: 1243 | AP69: 213 | AQ69: 0 | AR69: 492 | AS69: 1684 | AT69: 300 | AU69: 967 | AV69: 788 | AW69: 69
A70: Male 15-19 | B70: 33526 | C70: 3517 | D70: 206 | E70: 377 | F70: 2094 | G70: 1429 | H70: 981 | I70: 12763 | J70: 976 | K70: 5514 | L70: 3380 | O70: 2289 | Q70: 791 | R70: 156 | S70: 381 | T70: 283 | U70: 454 | V70: 377 | W70: 1677 | X70: 1238 | Y70: 181 | Z70: 192 | AA70: 228 | AB70: 2006 | AC70: 0 | AD70: 657 | AE70: 2094 | AF70: 8745 | AG70: 693 | AH70: 1095 | AI70: 299 | AJ70: 34 | AK70: 1752 | AL70: 3638 | AM70: 0 | AN70: 231 | AO70: 1395 | AP70: 206 | AQ70: 0 | AR70: 527 | AS70: 1876 | AT70: 318 | AU70: 1119 | AV70: 883 | AW70: 70
A71: Male 20-24 | B71: 38154 | C71: 3650 | D71: 196 | E71: 439 | F71: 2128 | G71: 1601 | H71: 1484 | I71: 15516 | J71: 942 | K71: 5581 | L71: 3697 | O71: 2920 | Q71: 1278 | R71: 168 | S71: 333 | T71: 282 | U71: 428 | V71: 439 | W71: 2223 | X71: 1250 | Y71: 143 | Z71: 167 | AA71: 216 | AB71: 2337 | AC71: 0 | AD71: 800 | AE71: 2128 | AF71: 11199 | AG71: 660 | AH71: 1120 | AI71: 285 | AJ71: 38 | AK71: 1704 | AL71: 3674 | AM71: 0 | AN71: 364 | AO71: 1719 | AP71: 196 | AQ71: 0 | AR71: 696 | AS71: 1907 | AT71: 373 | AU71: 1119 | AV71: 908 | AW71: 71
A72: Male 25-29 | B72: 38609 | C72: 3254 | D72: 164 | E72: 337 | F72: 2161 | G72: 1479 | H72: 1557 | I72: 15963 | J72: 1020 | K72: 5536 | L72: 4069 | O72: 3069 | Q72: 1295 | R72: 229 | S72: 394 | T72: 255 | U72: 410 | V72: 337 | W72: 2349 | X72: 1067 | Y72: 105 | Z72: 166 | AA72: 230 | AB72: 2678 | AC72: 0 | AD72: 727 | AE72: 2161 | AF72: 11470 | AG72: 765 | AH72: 1153 | AI72: 295 | AJ72: 33 | AK72: 1495 | AL72: 3626 | AM72: 0 | AN72: 326 | AO72: 1866 | AP72: 164 | AQ72: 0 | AR72: 692 | AS72: 1910 | AT72: 342 | AU72: 1139 | AV72: 930 | AW72: 72
A73: Male 30-34 | B73: 36193 | C73: 3066 | D73: 216 | E73: 305 | F73: 2066 | G73: 1398 | H73: 1581 | I73: 14711 | J73: 822 | K73: 5532 | L73: 3984 | O73: 2512 | Q73: 1325 | R73: 224 | S73: 379 | T73: 202 | U73: 430 | V73: 305 | W73: 1759 | X73: 987 | Y73: 141 | Z73: 140 | AA73: 193 | AB73: 2708 | AC73: 0 | AD73: 723 | AE73: 2066 | AF73: 10655 | AG73: 620 | AH73: 978 | AI73: 249 | AJ73: 32 | AK73: 1472 | AL73: 3446 | AM73: 0 | AN73: 374 | AO73: 1766 | AP73: 216 | AQ73: 0 | AR73: 607 | AS73: 2086 | AT73: 245 | AU73: 978 | AV73: 887 | AW73: 73
A74: Male 35-39 | B74: 32115 | C74: 2894 | D74: 186 | E74: 307 | F74: 1982 | G74: 1276 | H74: 1333 | I74: 12405 | J74: 760 | K74: 5246 | L74: 3726 | O74: 2000 | Q74: 1096 | R74: 194 | S74: 301 | T74: 180 | U74: 386 | V74: 307 | W74: 1451 | X74: 976 | Y74: 109 | Z74: 142 | AA74: 180 | AB74: 2440 | AC74: 0 | AD74: 681 | AE74: 1982 | AF74: 8908 | AG74: 580 | AH74: 883 | AI74: 260 | AJ74: 43 | AK74: 1319 | AL74: 3282 | AM74: 0 | AN74: 248 | AO74: 1396 | AP74: 186 | AQ74: 0 | AR74: 599 | AS74: 1964 | AT74: 209 | AU74: 929 | AV74: 884 | AW74: 74
A75: Male 40-44 | B75: 36315 | C75: 3384 | D75: 227 | E75: 352 | F75: 2326 | G75: 1578 | H75: 1217 | I75: 14280 | J75: 874 | K75: 5959 | L75: 3787 | O75: 2331 | Q75: 1016 | R75: 166 | S75: 327 | T75: 243 | U75: 454 | V75: 352 | W75: 1720 | X75: 1234 | Y75: 154 | Z75: 180 | AA75: 219 | AB75: 2327 | AC75: 0 | AD75: 847 | AE75: 2326 | AF75: 9901 | AG75: 631 | AH75: 1146 | AI75: 300 | AJ75: 35 | AK75: 1613 | AL75: 3798 | AM75: 0 | AN75: 284 | AO75: 1792 | AP75: 227 | AQ75: 0 | AR75: 537 | AS75: 2161 | AT75: 277 | AU75: 1068 | AV75: 980 | AW75: 75
A76: Male 45-49 | B76: 38167 | C76: 3640 | D76: 265 | E76: 425 | F76: 2379 | G76: 1650 | H76: 1217 | I76: 15132 | J76: 988 | K76: 6202 | L76: 3819 | O76: 2450 | Q76: 1020 | R76: 149 | S76: 353 | T76: 297 | U76: 503 | V76: 425 | W76: 1788 | X76: 1310 | Y76: 151 | Z76: 180 | AA76: 267 | AB76: 2396 | AC76: 0 | AD76: 818 | AE76: 2379 | AF76: 10255 | AG76: 691 | AH76: 1358 | AI76: 268 | AJ76: 48 | AK76: 1733 | AL76: 4094 | AM76: 0 | AN76: 309 | AO76: 1811 | AP76: 265 | AQ76: 0 | AR76: 597 | AS76: 2108 | AT76: 329 | AU76: 1290 | AV76: 975 | AW76: 76
A77: Male 50-54 | B77: 35452 | C77: 3583 | D77: 199 | E77: 370 | F77: 2355 | G77: 1554 | H77: 1174 | I77: 13975 | J77: 928 | K77: 5803 | L77: 3270 | O77: 2241 | Q77: 960 | R77: 167 | S77: 296 | T77: 268 | U77: 460 | V77: 370 | W77: 1684 | X77: 1238 | Y77: 164 | Z77: 188 | AA77: 237 | AB77: 1949 | AC77: 0 | AD77: 792 | AE77: 2355 | AF77: 9380 | AG77: 660 | AH77: 1252 | AI77: 282 | AJ77: 47 | AK77: 1713 | AL77: 3725 | AM77: 0 | AN77: 261 | AO77: 1835 | AP77: 199 | AQ77: 0 | AR77: 632 | AS77: 2078 | AT77: 302 | AU77: 1107 | AV77: 851 | AW77: 77
A78: Male 55-59 | B78: 30023 | C78: 3169 | D78: 157 | E78: 328 | F78: 1926 | G78: 1300 | H78: 972 | I78: 11576 | J78: 834 | K78: 5021 | L78: 2731 | O78: 2009 | Q78: 820 | R78: 120 | S78: 272 | T78: 248 | U78: 405 | V78: 328 | W78: 1522 | X78: 1064 | Y78: 133 | Z78: 127 | AA78: 161 | AB78: 1685 | AC78: 0 | AD78: 615 | AE78: 1926 | AF78: 7881 | AG78: 586 | AH78: 1019 | AI78: 244 | AJ78: 32 | AK78: 1476 | AL78: 3073 | AM78: 0 | AN78: 215 | AO78: 1379 | AP78: 157 | AQ78: 0 | AR78: 629 | AS78: 1948 | AT78: 280 | AU78: 1003 | AV78: 675 | AW78: 78
A79: Male 60-64 | B79: 27632 | C79: 2972 | D79: 197 | E79: 355 | F79: 1863 | G79: 1279 | H79: 924 | I79: 10223 | J79: 769 | K79: 4645 | L79: 2517 | O79: 1888 | Q79: 769 | R79: 112 | S79: 297 | T79: 242 | U79: 369 | V79: 355 | W79: 1382 | X79: 1001 | Y79: 110 | Z79: 124 | AA79: 158 | AB79: 1483 | AC79: 0 | AD79: 643 | AE79: 1863 | AF79: 6780 | AG79: 527 | AH79: 1075 | AI79: 212 | AJ79: 43 | AK79: 1436 | AL79: 2933 | AM79: 0 | AN79: 209 | AO79: 1240 | AP79: 197 | AQ79: 0 | AR79: 535 | AS79: 1712 | AT79: 267 | AU79: 860 | AV79: 698 | AW79: 79
A80: Male 65-69 | B80: 23363 | C80: 2604 | D80: 185 | E80: 284 | F80: 1634 | G80: 1094 | H80: 632 | I80: 8623 | J80: 653 | K80: 4052 | L80: 2033 | O80: 1569 | Q80: 528 | R80: 84 | S80: 217 | T80: 217 | U80: 302 | V80: 284 | W80: 1198 | X80: 876 | Y80: 90 | Z80: 95 | AA80: 114 | AB80: 1144 | AC80: 0 | AD80: 572 | AE80: 1634 | AF80: 5858 | AG80: 436 | AH80: 871 | AI80: 176 | AJ80: 20 | AK80: 1258 | AL80: 2505 | AM80: 0 | AN80: 154 | AO80: 999 | AP80: 185 | AQ80: 0 | AR80: 470 | AS80: 1547 | AT80: 220 | AU80: 691 | AV80: 618 | AW80: 80
A81: Male 70-74 | B81: 18365 | C81: 2133 | D81: 96 | E81: 228 | F81: 1198 | G81: 806 | H81: 444 | I81: 7014 | J81: 502 | K81: 3174 | L81: 1533 | O81: 1237 | Q81: 362 | R81: 60 | S81: 182 | T81: 169 | U81: 228 | V81: 228 | W81: 911 | X81: 742 | Y81: 70 | Z81: 86 | AA81: 121 | AB81: 810 | AC81: 0 | AD81: 400 | AE81: 1198 | AF81: 4691 | AG81: 333 | AH81: 689 | AI81: 144 | AJ81: 22 | AK81: 1009 | AL81: 2016 | AM81: 0 | AN81: 144 | AO81: 926 | AP81: 96 | AQ81: 0 | AR81: 382 | AS81: 1158 | AT81: 178 | AU81: 517 | AV81: 493 | AW81: 81
A82: Male 75-79 | B82: 13854 | C82: 1570 | D82: 81 | E82: 148 | F82: 847 | G82: 630 | H82: 393 | I82: 5348 | J82: 334 | K82: 2337 | L82: 1238 | O82: 928 | Q82: 311 | R82: 57 | S82: 150 | T82: 97 | U82: 143 | V82: 148 | W82: 697 | X82: 552 | Y82: 43 | Z82: 57 | AA82: 89 | AB82: 691 | AC82: 0 | AD82: 371 | AE82: 847 | AF82: 3588 | AG82: 237 | AH82: 509 | AI82: 107 | AJ82: 25 | AK82: 713 | AL82: 1450 | AM82: 0 | AN82: 81 | AO82: 730 | AP82: 81 | AQ82: 0 | AR82: 305 | AS82: 887 | AT82: 116 | AU82: 389 | AV82: 383 | AW82: 82
A83: Male 80-84 | B83: 8729 | C83: 989 | D83: 48 | E83: 94 | F83: 593 | G83: 386 | H83: 232 | I83: 3443 | J83: 222 | K83: 1369 | L83: 763 | O83: 590 | Q83: 187 | R83: 33 | S83: 94 | T83: 87 | U83: 96 | V83: 94 | W83: 417 | X83: 359 | Y83: 27 | Z83: 33 | AA83: 38 | AB83: 438 | AC83: 0 | AD83: 229 | AE83: 593 | AF83: 2318 | AG83: 135 | AH83: 342 | AI83: 84 | AJ83: 12 | AK83: 444 | AL83: 867 | AM83: 0 | AN83: 79 | AO83: 458 | AP83: 48 | AQ83: 0 | AR83: 186 | AS83: 502 | AT83: 61 | AU83: 260 | AV83: 208 | AW83: 83
A84: Male 85-89 | B84: 4001 | C84: 455 | D84: 36 | E84: 43 | F84: 320 | G84: 185 | H84: 129 | I84: 1496 | J84: 113 | K84: 595 | L84: 352 | O84: 277 | Q84: 103 | R84: 22 | S84: 36 | T84: 33 | U84: 38 | V84: 43 | W84: 213 | X84: 155 | Y84: 8 | Z84: 11 | AA84: 19 | AB84: 201 | AC84: 0 | AD84: 122 | AE84: 320 | AF84: 993 | AG84: 80 | AH84: 144 | AI84: 39 | AJ84: 4 | AK84: 199 | AL84: 399 | AM84: 0 | AN84: 28 | AO84: 196 | AP84: 36 | AQ84: 0 | AR84: 101 | AS84: 196 | AT84: 25 | AU84: 136 | AV84: 101 | AW84: 84
A85: Male 90+ | B85: 1557 | C85: 178 | D85: 13 | E85: 26 | F85: 125 | G85: 68 | H85: 49 | I85: 602 | J85: 35 | K85: 210 | L85: 139 | O85: 112 | Q85: 38 | R85: 7 | S85: 18 | T85: 13 | U85: 20 | V85: 26 | W85: 83 | X85: 62 | Y85: 7 | Z85: 6 | AA85: 6 | AB85: 80 | AC85: 0 | AD85: 35 | AE85: 125 | AF85: 395 | AG85: 22 | AH85: 51 | AI85: 19 | AJ85: 4 | AK85: 79 | AL85: 135 | AM85: 0 | AN85: 11 | AO85: 71 | AP85: 13 | AQ85: 0 | AR85: 37 | AS85: 75 | AT85: 13 | AU85: 72 | AV85: 34 | AW85: 85
A86: Female 0 | B86: 7441 | C86: 704 | D86: 64 | E86: 85 | F86: 519 | G86: 340 | H86: 304 | I86: 2812 | J86: 189 | K86: 1041 | L86: 828 | O86: 555 | Q86: 265 | R86: 33 | S86: 71 | T86: 56 | U86: 113 | V86: 85 | W86: 418 | X86: 242 | Y86: 28 | Z86: 35 | AA86: 43 | AB86: 529 | AC86: 0 | AD86: 175 | AE86: 519 | AF86: 1991 | AG86: 133 | AH86: 170 | AI86: 73 | AJ86: 6 | AK86: 346 | AL86: 649 | AM86: 0 | AN86: 66 | AO86: 336 | AP86: 64 | AQ86: 0 | AR86: 116 | AS86: 392 | AT86: 52 | AU86: 244 | AV86: 191 | AW86: 86
A87: Female 1-4 | B87: 28152 | C87: 2637 | D87: 212 | E87: 319 | F87: 1836 | G87: 1183 | H87: 1054 | I87: 10584 | J87: 755 | K87: 4294 | L87: 3315 | O87: 1963 | Q87: 888 | R87: 144 | S87: 297 | T87: 205 | U87: 369 | V87: 319 | W87: 1411 | X87: 862 | Y87: 153 | Z87: 138 | AA87: 189 | AB87: 2147 | AC87: 0 | AD87: 609 | AE87: 1836 | AF87: 7312 | AG87: 550 | AH87: 727 | AI87: 246 | AJ87: 22 | AK87: 1280 | AL87: 2788 | AM87: 0 | AN87: 255 | AO87: 1265 | AP87: 212 | AQ87: 0 | AR87: 495 | AS87: 1506 | AT87: 205 | AU87: 938 | AV87: 784 | AW87: 87
A88: Female 5-9 | B88: 30018 | C88: 2941 | D88: 200 | E88: 375 | F88: 1963 | G88: 1292 | H88: 963 | I88: 11286 | J88: 785 | K88: 4954 | L88: 3156 | O88: 2103 | Q88: 841 | R88: 97 | S88: 296 | T88: 219 | U88: 389 | V88: 375 | W88: 1579 | X88: 1026 | Y88: 142 | Z88: 152 | AA88: 241 | AB88: 1917 | AC88: 0 | AD88: 625 | AE88: 1963 | AF88: 7639 | AG88: 566 | AH88: 887 | AI88: 221 | AJ88: 25 | AK88: 1443 | AL88: 3242 | AM88: 0 | AN88: 228 | AO88: 1353 | AP88: 200 | AQ88: 0 | AR88: 472 | AS88: 1712 | AT88: 278 | AU88: 1024 | AV88: 866 | AW88: 88
A89: Female 10-14 | B89: 29394 | C89: 2909 | D89: 218 | E89: 319 | F89: 1912 | G89: 1276 | H89: 902 | I89: 11050 | J89: 770 | K89: 4930 | L89: 3053 | O89: 2055 | Q89: 778 | R89: 87 | S89: 328 | T89: 191 | U89: 377 | V89: 319 | W89: 1497 | X89: 975 | Y89: 127 | Z89: 160 | AA89: 213 | AB89: 1806 | AC89: 0 | AD89: 622 | AE89: 1912 | AF89: 7571 | AG89: 579 | AH89: 831 | AI89: 256 | AJ89: 37 | AK89: 1438 | AL89: 3246 | AM89: 0 | AN89: 230 | AO89: 1332 | AP89: 218 | AQ89: 0 | AR89: 496 | AS89: 1684 | AT89: 277 | AU89: 976 | AV89: 831 | AW89: 89
A90: Female 15-19 | B90: 33041 | C90: 3557 | D90: 215 | E90: 366 | F90: 2172 | G90: 1462 | H90: 1035 | I90: 12420 | J90: 843 | K90: 5382 | L90: 3295 | O90: 2294 | Q90: 876 | R90: 124 | S90: 358 | T90: 240 | U90: 458 | V90: 366 | W90: 1660 | X90: 1205 | Y90: 145 | Z90: 193 | AA90: 242 | AB90: 1905 | AC90: 0 | AD90: 673 | AE90: 2172 | AF90: 8475 | AG90: 603 | AH90: 1040 | AI90: 292 | AJ90: 35 | AK90: 1726 | AL90: 3526 | AM90: 0 | AN90: 276 | AO90: 1435 | AP90: 215 | AQ90: 0 | AR90: 626 | AS90: 1856 | AT90: 331 | AU90: 1083 | AV90: 905 | AW90: 90
A91: Female 20-24 | B91: 41964 | C91: 3863 | D91: 245 | E91: 515 | F91: 2428 | G91: 1861 | H91: 1765 | I91: 16949 | J91: 991 | K91: 5836 | L91: 4277 | O91: 3234 | Q91: 1506 | R91: 216 | S91: 400 | T91: 239 | U91: 499 | V91: 515 | W91: 2459 | X91: 1282 | Y91: 149 | Z91: 173 | AA91: 270 | AB91: 2784 | AC91: 0 | AD91: 914 | AE91: 2428 | AF91: 12147 | AG91: 752 | AH91: 1214 | AI91: 340 | AJ91: 43 | AK91: 1807 | AL91: 3841 | AM91: 0 | AN91: 375 | AO91: 1881 | AP91: 245 | AQ91: 0 | AR91: 774 | AS91: 1995 | AT91: 448 | AU91: 1288 | AV91: 980 | AW91: 91
A92: Female 25-29 | B92: 43616 | C92: 3720 | D92: 247 | E92: 408 | F92: 2510 | G92: 1672 | H92: 1773 | I92: 17673 | J92: 1077 | K92: 6455 | L92: 4808 | O92: 3273 | Q92: 1521 | R92: 227 | S92: 448 | T92: 256 | U92: 484 | V92: 408 | W92: 2405 | X92: 1313 | Y92: 151 | Z92: 161 | AA92: 247 | AB92: 3210 | AC92: 0 | AD92: 832 | AE92: 2510 | AF92: 12734 | AG92: 821 | AH92: 1222 | AI92: 301 | AJ92: 25 | AK92: 1641 | AL92: 4162 | AM92: 0 | AN92: 420 | AO92: 1995 | AP92: 247 | AQ92: 0 | AR92: 766 | AS92: 2293 | AT92: 356 | AU92: 1324 | AV92: 1136 | AW92: 92
A93: Female 30-34 | B93: 39128 | C93: 3276 | D93: 219 | E93: 415 | F93: 2243 | G93: 1527 | H93: 1422 | I93: 15870 | J93: 927 | K93: 5960 | L93: 4469 | O93: 2800 | Q93: 1232 | R93: 165 | S93: 417 | T93: 203 | U93: 452 | V93: 415 | W93: 2037 | X93: 1096 | Y93: 152 | Z93: 176 | AA93: 271 | AB93: 3006 | AC93: 0 | AD93: 788 | AE93: 2243 | AF93: 11278 | AG93: 724 | AH93: 1088 | AI93: 288 | AJ93: 25 | AK93: 1587 | AL93: 3720 | AM93: 0 | AN93: 346 | AO93: 1877 | AP93: 219 | AQ93: 0 | AR93: 593 | AS93: 2240 | AT93: 287 | AU93: 1204 | AV93: 999 | AW93: 93
A94: Female 35-39 | B94: 33576 | C94: 3212 | D94: 225 | E94: 323 | F94: 1932 | G94: 1472 | H94: 1209 | I94: 13183 | J94: 817 | K94: 5454 | L94: 3568 | O94: 2181 | Q94: 1050 | R94: 133 | S94: 300 | T94: 210 | U94: 452 | V94: 323 | W94: 1610 | X94: 1081 | Y94: 135 | Z94: 165 | AA94: 227 | AB94: 2230 | AC94: 0 | AD94: 731 | AE94: 1932 | AF94: 9236 | AG94: 607 | AH94: 989 | AI94: 264 | AJ94: 26 | AK94: 1587 | AL94: 3454 | AM94: 0 | AN94: 271 | AO94: 1521 | AP94: 225 | AQ94: 0 | AR94: 544 | AS94: 2000 | AT94: 289 | AU94: 1075 | AV94: 909 | AW94: 94
A95: Female 40-44 | B95: 39423 | C95: 3943 | D95: 230 | E95: 385 | F95: 2513 | G95: 1654 | H95: 1217 | I95: 15931 | J95: 960 | K95: 6422 | L95: 3772 | O95: 2396 | Q95: 1038 | R95: 143 | S95: 357 | T95: 263 | U95: 504 | V95: 385 | W95: 1755 | X95: 1374 | Y95: 168 | Z95: 169 | AA95: 272 | AB95: 2309 | AC95: 0 | AD95: 784 | AE95: 2513 | AF95: 10906 | AG95: 697 | AH95: 1358 | AI95: 314 | AJ95: 36 | AK95: 1881 | AL95: 4181 | AM95: 0 | AN95: 284 | AO95: 1937 | AP95: 230 | AQ95: 0 | AR95: 688 | AS95: 2241 | AT95: 366 | AU95: 1290 | AV95: 980 | AW95: 95
A96: Female 45-49 | B96: 40563 | C96: 4178 | D96: 214 | E96: 432 | F96: 2589 | G96: 1738 | H96: 1224 | I96: 16547 | J96: 972 | K96: 6529 | L96: 3631 | O96: 2509 | Q96: 1020 | R96: 161 | S96: 339 | T96: 261 | U96: 521 | V96: 432 | W96: 1872 | X96: 1490 | Y96: 187 | Z96: 212 | AA96: 295 | AB96: 2109 | AC96: 0 | AD96: 856 | AE96: 2589 | AF96: 11376 | AG96: 711 | AH96: 1378 | AI96: 307 | AJ96: 43 | AK96: 2065 | AL96: 4208 | AM96: 0 | AN96: 298 | AO96: 1915 | AP96: 214 | AQ96: 0 | AR96: 623 | AS96: 2321 | AT96: 361 | AU96: 1396 | AV96: 1003 | AW96: 96
A97: Female 50-54 | B97: 37487 | C97: 3817 | D97: 202 | E97: 368 | F97: 2291 | G97: 1588 | H97: 1101 | I97: 15201 | J97: 928 | K97: 6024 | L97: 3496 | O97: 2471 | Q97: 920 | R97: 149 | S97: 381 | T97: 275 | U97: 470 | V97: 368 | W97: 1838 | X97: 1271 | Y97: 172 | Z97: 189 | AA97: 250 | AB97: 2090 | AC97: 0 | AD97: 789 | AE97: 2291 | AF97: 10386 | AG97: 653 | AH97: 1321 | AI97: 309 | AJ97: 32 | AK97: 1887 | AL97: 3807 | AM97: 0 | AN97: 252 | AO97: 1840 | AP97: 202 | AQ97: 0 | AR97: 659 | AS97: 2217 | AT97: 329 | AU97: 1232 | AV97: 908 | AW97: 97
A98: Female 55-59 | B98: 31645 | C98: 3455 | D98: 195 | E98: 333 | F98: 1945 | G98: 1357 | H98: 970 | I98: 12165 | J98: 853 | K98: 5466 | L98: 2853 | O98: 2053 | Q98: 812 | R98: 127 | S98: 290 | T98: 249 | U98: 418 | V98: 333 | W98: 1519 | X98: 1134 | Y98: 140 | Z98: 154 | AA98: 187 | AB98: 1663 | AC98: 0 | AD98: 638 | AE98: 1945 | AF98: 8195 | AG98: 604 | AH98: 1137 | AI98: 243 | AJ98: 31 | AK98: 1693 | AL98: 3378 | AM98: 0 | AN98: 244 | AO98: 1432 | AP98: 195 | AQ98: 0 | AR98: 628 | AS98: 2088 | AT98: 301 | AU98: 1074 | AV98: 793 | AW98: 98
A99: Female 60-64 | B99: 28929 | C99: 3178 | D99: 191 | E99: 290 | F99: 1951 | G99: 1237 | H99: 818 | I99: 10733 | J99: 796 | K99: 5148 | L99: 2671 | O99: 1916 | Q99: 690 | R99: 98 | S99: 251 | T99: 260 | U99: 380 | V99: 290 | W99: 1450 | X99: 1079 | Y99: 109 | Z99: 152 | AA99: 194 | AB99: 1501 | AC99: 0 | AD99: 625 | AE99: 1951 | AF99: 7120 | AG99: 536 | AH99: 1086 | AI99: 251 | AJ99: 30 | AK99: 1561 | AL99: 3202 | AM99: 0 | AN99: 215 | AO99: 1264 | AP99: 191 | AQ99: 0 | AR99: 538 | AS99: 1946 | AT99: 232 | AU99: 960 | AV99: 767 | AW99: 99
A100: Female 65-69 | B100: 25631 | C100: 2787 | D100: 173 | E100: 308 | F100: 1737 | G100: 1098 | H100: 658 | I100: 9752 | J100: 687 | K100: 4499 | L100: 2228 | O100: 1704 | Q100: 540 | R100: 81 | S100: 274 | T100: 214 | U100: 355 | V100: 308 | W100: 1261 | X100: 931 | Y100: 99 | Z100: 97 | AA100: 148 | AB100: 1253 | AC100: 0 | AD100: 541 | AE100: 1737 | AF100: 6567 | AG100: 473 | AH100: 968 | AI100: 213 | AJ100: 37 | AK100: 1389 | AL100: 2805 | AM100: 0 | AN100: 169 | AO100: 1173 | AP100: 173 | AQ100: 0 | AR100: 467 | AS100: 1694 | AT100: 202 | AU100: 797 | AV100: 665 | AW100: 100
A101: Female 70-74 | B101: 22967 | C101: 2549 | D101: 129 | E101: 247 | F101: 1422 | G101: 986 | H101: 556 | I101: 9292 | J101: 580 | K101: 3927 | L101: 1865 | O101: 1414 | Q101: 460 | R101: 59 | S101: 211 | T101: 184 | U101: 256 | V101: 247 | W101: 1063 | X101: 812 | Y101: 87 | Z101: 80 | AA101: 142 | AB101: 1061 | AC101: 0 | AD101: 551 | AE101: 1422 | AF101: 6289 | AG101: 396 | AH101: 883 | AI101: 169 | AJ101: 37 | AK101: 1277 | AL101: 2451 | AM101: 0 | AN101: 140 | AO101: 1213 | AP101: 129 | AQ101: 0 | AR101: 460 | AS101: 1476 | AT101: 179 | AU101: 678 | AV101: 555 | AW101: 101
A102: Female 75-79 | B102: 20241 | C102: 2065 | D102: 99 | E102: 196 | F102: 1216 | G102: 884 | H102: 550 | I102: 8488 | J102: 474 | K102: 3338 | L102: 1675 | O102: 1256 | Q102: 448 | R102: 71 | S102: 182 | T102: 142 | U102: 202 | V102: 196 | W102: 941 | X102: 732 | Y102: 58 | Z102: 74 | AA102: 118 | AB102: 976 | AC102: 0 | AD102: 505 | AE102: 1216 | AF102: 5754 | AG102: 332 | AH102: 834 | AI102: 146 | AJ102: 31 | AK102: 974 | AL102: 2102 | AM102: 0 | AN102: 133 | AO102: 1105 | AP102: 99 | AQ102: 0 | AR102: 359 | AS102: 1236 | AT102: 177 | AU102: 619 | AV102: 479 | AW102: 102
A103: Female 80-84 | B103: 15085 | C103: 1545 | D103: 91 | E103: 157 | F103: 932 | G103: 618 | H103: 426 | I103: 6305 | J103: 409 | K103: 2332 | L103: 1243 | O103: 1027 | Q103: 366 | R103: 48 | S103: 160 | T103: 159 | U103: 150 | V103: 157 | W103: 765 | X103: 555 | Y103: 51 | Z103: 52 | AA103: 74 | AB103: 765 | AC103: 0 | AD103: 355 | AE103: 932 | AF103: 4321 | AG103: 250 | AH103: 599 | AI103: 123 | AJ103: 12 | AK103: 717 | AL103: 1465 | AM103: 0 | AN103: 102 | AO103: 785 | AP103: 91 | AQ103: 0 | AR103: 273 | AS103: 867 | AT103: 113 | AU103: 475 | AV103: 303 | AW103: 103
A104: Female 85-89 | B104: 8509 | C104: 832 | D104: 45 | E104: 80 | F104: 596 | G104: 340 | H104: 238 | I104: 3556 | J104: 253 | K104: 1254 | L104: 706 | O104: 609 | Q104: 198 | R104: 31 | S104: 91 | T104: 97 | U104: 95 | V104: 80 | W104: 470 | X104: 285 | Y104: 39 | Z104: 23 | AA104: 43 | AB104: 420 | AC104: 0 | AD104: 196 | AE104: 596 | AF104: 2381 | AG104: 156 | AH104: 327 | AI104: 91 | AJ104: 9 | AK104: 379 | AL104: 807 | AM104: 0 | AN104: 48 | AO104: 457 | AP104: 45 | AQ104: 0 | AR104: 168 | AS104: 447 | AT104: 49 | AU104: 309 | AV104: 172 | AW104: 104
A105: Female 90+ | B105: 4730 | C105: 518 | D105: 21 | E105: 27 | F105: 312 | G105: 192 | H105: 110 | I105: 2112 | J105: 126 | K105: 660 | L105: 377 | O105: 275 | Q105: 98 | R105: 10 | S105: 32 | T105: 50 | U105: 47 | V105: 27 | W105: 203 | X105: 188 | Y105: 23 | Z105: 11 | AA105: 25 | AB105: 210 | AC105: 0 | AD105: 105 | AE105: 312 | AF105: 1438 | AG105: 76 | AH105: 180 | AI105: 39 | AJ105: 2 | AK105: 237 | AL105: 378 | AM105: 0 | AN105: 40 | AO105: 272 | AP105: 21 | AQ105: 0 | AR105: 93 | AS105: 282 | AT105: 40 | AU105: 174 | AV105: 117 | AW105: 105
A106: age/sex breakdown: Q2 | AW106: 106
A107: Male 0 | B107: 6416 | C107: 530 | D107: 107 | E107: 190 | F107: 487 | G107: 426 | H107: 481 | I107: 1182 | J107: 384 | K107: 1027 | L107: 1078 | M107: 20 | N107: 17 | O107: 429 | P107: 58 | Q107: 275 | R107: 141 | S107: 142 | T107: 84 | U107: 65 | V107: 190 | W107: 180 | X107: 216 | Y107: 86 | Z107: 115 | AA107: 36 | AB107: 444 | AC107: 58 | AD107: 259 | AE107: 487 | AF107: 699 | AG107: 300 | AH107: 57 | AI107: 173 | AJ107: 65 | AK107: 158 | AL107: 615 | AM107: 20 | AN107: 107 | AO107: 156 | AP107: 107 | AQ107: 17 | AR107: 156 | AS107: 412 | AT107: 102 | AU107: 148 | AV107: 346 | AW107: 107
A108: Male 1-4 | B108: 24399 | C108: 2151 | D108: 388 | E108: 777 | F108: 1976 | G108: 1560 | H108: 1814 | I108: 4339 | J108: 1532 | K108: 3991 | L108: 4004 | M108: 100 | N108: 38 | O108: 1492 | P108: 237 | Q108: 931 | R108: 591 | S108: 470 | T108: 348 | U108: 184 | V108: 777 | W108: 601 | X108: 821 | Y108: 435 | Z108: 480 | AA108: 177 | AB108: 1490 | AC108: 237 | AD108: 952 | AE108: 1976 | AF108: 2348 | AG108: 1184 | AH108: 284 | AI108: 710 | AJ108: 292 | AK108: 619 | AL108: 2402 | AM108: 100 | AN108: 421 | AO108: 563 | AP108: 388 | AQ108: 38 | AR108: 711 | AS108: 1589 | AT108: 424 | AU108: 532 | AV108: 1324 | AW108: 108
A109: Male 5-9 | B109: 27132 | C109: 2624 | D109: 412 | E109: 936 | F109: 2218 | G109: 1895 | H109: 1688 | I109: 4529 | J109: 1794 | K109: 4739 | L109: 4324 | M109: 95 | N109: 47 | O109: 1565 | P109: 266 | Q109: 837 | R109: 587 | S109: 502 | T109: 438 | U109: 237 | V109: 936 | W109: 599 | X109: 972 | Y109: 457 | Z109: 579 | AA109: 233 | AB109: 1425 | AC109: 266 | AD109: 1128 | AE109: 2218 | AF109: 2189 | AG109: 1356 | AH109: 305 | AI109: 791 | AJ109: 264 | AK109: 782 | AL109: 2881 | AM109: 95 | AN109: 464 | AO109: 707 | AP109: 412 | AQ109: 47 | AR109: 870 | AS109: 1858 | AT109: 530 | AU109: 638 | AV109: 1529 | AW109: 109
A110: Male 10-14 | B110: 27129 | C110: 2902 | D110: 381 | E110: 951 | F110: 2170 | G110: 1890 | H110: 1586 | I110: 4797 | J110: 1645 | K110: 4646 | L110: 4135 | M110: 106 | N110: 28 | O110: 1598 | P110: 294 | Q110: 782 | R110: 539 | S110: 525 | T110: 397 | U110: 232 | V110: 951 | W110: 602 | X110: 1074 | Y110: 506 | Z110: 504 | AA110: 244 | AB110: 1354 | AC110: 294 | AD110: 1120 | AE110: 2170 | AF110: 2374 | AG110: 1248 | AH110: 322 | AI110: 753 | AJ110: 265 | AK110: 861 | AL110: 2747 | AM110: 106 | AN110: 471 | AO110: 705 | AP110: 381 | AQ110: 28 | AR110: 967 | AS110: 1899 | AT110: 538 | AU110: 646 | AV110: 1524 | AW110: 110
A111: Male 15-19 | B111: 31657 | C111: 3146 | D111: 501 | E111: 1084 | F111: 2407 | G111: 2139 | H111: 2034 | I111: 5941 | J111: 1873 | K111: 5136 | L111: 4712 | M111: 140 | N111: 51 | O111: 2196 | P111: 297 | Q111: 1112 | R111: 615 | S111: 629 | T111: 458 | U111: 272 | V111: 1084 | W111: 1068 | X111: 1173 | Y111: 555 | Z111: 580 | AA111: 294 | AB111: 1714 | AC111: 297 | AD111: 1319 | AE111: 2407 | AF111: 3126 | AG111: 1415 | AH111: 379 | AI111: 832 | AJ111: 307 | AK111: 969 | AL111: 2985 | AM111: 140 | AN111: 499 | AO111: 828 | AP111: 501 | AQ111: 51 | AR111: 1004 | AS111: 2151 | AT111: 548 | AU111: 759 | AV111: 1586 | AW111: 111
A112: Male 20-24 | B112: 38654 | C112: 2903 | D112: 518 | E112: 956 | F112: 2502 | G112: 2265 | H112: 3317 | I112: 8740 | J112: 1726 | K112: 5179 | L112: 6306 | M112: 147 | N112: 52 | O112: 3744 | P112: 299 | Q112: 2280 | R112: 707 | S112: 640 | T112: 407 | U112: 230 | V112: 956 | W112: 2224 | X112: 1132 | Y112: 593 | Z112: 567 | AA112: 255 | AB112: 3367 | AC112: 299 | AD112: 1192 | AE112: 2502 | AF112: 5671 | AG112: 1319 | AH112: 483 | AI112: 848 | AJ112: 330 | AK112: 846 | AL112: 3003 | AM112: 147 | AN112: 880 | AO112: 923 | AP112: 518 | AQ112: 52 | AR112: 925 | AS112: 2176 | AT112: 843 | AU112: 815 | AV112: 1524 | AW112: 112
A113: Male 25-29 | B113: 38727 | C113: 2938 | D113: 497 | E113: 914 | F113: 2406 | G113: 2254 | H113: 3450 | I113: 9010 | J113: 1797 | K113: 5163 | L113: 6610 | M113: 156 | N113: 44 | O113: 3233 | P113: 255 | Q113: 2384 | R113: 710 | S113: 646 | T113: 395 | U113: 275 | V113: 914 | W113: 1608 | X113: 1179 | Y113: 512 | Z113: 558 | AA113: 206 | AB113: 3638 | AC113: 255 | AD113: 1314 | AE113: 2406 | AF113: 6060 | AG113: 1402 | AH113: 416 | AI113: 740 | AJ113: 356 | AK113: 831 | AL113: 3041 | AM113: 156 | AN113: 979 | AO113: 1022 | AP113: 497 | AQ113: 44 | AR113: 928 | AS113: 2122 | AT113: 665 | AU113: 794 | AV113: 1674 | AW113: 113
A114: Male 30-34 | B114: 35787 | C114: 2653 | D114: 481 | E114: 828 | F114: 2483 | G114: 2218 | H114: 2846 | I114: 7883 | J114: 1805 | K114: 5304 | L114: 6154 | M114: 120 | N114: 47 | O114: 2697 | P114: 268 | Q114: 1844 | R114: 674 | S114: 676 | T114: 362 | U114: 255 | V114: 828 | W114: 1172 | X114: 1071 | Y114: 463 | Z114: 533 | AA114: 218 | AB114: 3376 | AC114: 268 | AD114: 1386 | AE114: 2483 | AF114: 5192 | AG114: 1443 | AH114: 427 | AI114: 707 | AJ114: 328 | AK114: 702 | AL114: 3180 | AM114: 120 | AN114: 849 | AO114: 838 | AP114: 481 | AQ114: 47 | AR114: 880 | AS114: 2124 | AT114: 577 | AU114: 745 | AV114: 1538 | AW114: 114
A115: Male 35-39 | B115: 32305 | C115: 2674 | D115: 459 | E115: 878 | F115: 2363 | G115: 2117 | H115: 2380 | I115: 6368 | J115: 1647 | K115: 5237 | L115: 5610 | M115: 125 | N115: 50 | O115: 2064 | P115: 333 | Q115: 1418 | R115: 672 | S115: 590 | T115: 372 | U115: 265 | V115: 878 | W115: 837 | X115: 1051 | Y115: 477 | Z115: 540 | AA115: 220 | AB115: 2666 | AC115: 333 | AD115: 1313 | AE115: 2363 | AF115: 3892 | AG115: 1275 | AH115: 353 | AI115: 743 | AJ115: 290 | AK115: 772 | AL115: 3115 | AM115: 125 | AN115: 637 | AO115: 778 | AP115: 459 | AQ115: 50 | AR115: 851 | AS115: 2122 | AT115: 539 | AU115: 648 | AV115: 1661 | AW115: 115
A116: Male 40-44 | B116: 36351 | C116: 3509 | D116: 581 | E116: 1136 | F116: 2882 | G116: 2605 | H116: 2403 | I116: 6755 | J116: 1932 | K116: 6064 | L116: 5752 | M116: 131 | N116: 26 | O116: 2149 | P116: 426 | Q116: 1337 | R116: 689 | S116: 663 | T116: 449 | U116: 385 | V116: 1136 | W116: 837 | X116: 1340 | Y116: 546 | Z116: 627 | AA116: 251 | AB116: 2465 | AC116: 426 | AD116: 1529 | AE116: 2882 | AF116: 3807 | AG116: 1483 | AH116: 374 | AI116: 794 | AJ116: 377 | AK116: 987 | AL116: 3470 | AM116: 131 | AN116: 649 | AO116: 916 | AP116: 581 | AQ116: 26 | AR116: 1182 | AS116: 2594 | AT116: 691 | AU116: 861 | AV116: 1866 | AW116: 116
A117: Male 45-49 | B117: 38035 | C117: 3819 | D117: 628 | E117: 1259 | F117: 3003 | G117: 2678 | H117: 2348 | I117: 7048 | J117: 2213 | K117: 6223 | L117: 5848 | M117: 168 | N117: 63 | O117: 2301 | P117: 436 | Q117: 1295 | R117: 670 | S117: 718 | T117: 524 | U117: 380 | V117: 1259 | W117: 931 | X117: 1468 | Y117: 678 | Z117: 771 | AA117: 327 | AB117: 2238 | AC117: 436 | AD117: 1615 | AE117: 3003 | AF117: 3604 | AG117: 1689 | AH117: 488 | AI117: 995 | AJ117: 383 | AK117: 1139 | AL117: 3506 | AM117: 168 | AN117: 652 | AO117: 994 | AP117: 628 | AQ117: 63 | AR117: 1212 | AS117: 2717 | AT117: 683 | AU117: 957 | AV117: 1844 | AW117: 117
A118: Male 50-54 | B118: 35899 | C118: 3569 | D118: 641 | E118: 1206 | F118: 2774 | G118: 2417 | H118: 2371 | I118: 6613 | J118: 2226 | K118: 5889 | L118: 5299 | M118: 144 | N118: 48 | O118: 2236 | P118: 466 | Q118: 1279 | R118: 716 | S118: 672 | T118: 519 | U118: 330 | V118: 1206 | W118: 909 | X118: 1313 | Y118: 635 | Z118: 683 | AA118: 321 | AB118: 2072 | AC118: 466 | AD118: 1432 | AE118: 2774 | AF118: 3362 | AG118: 1707 | AH118: 459 | AI118: 914 | AJ118: 376 | AK118: 1064 | AL118: 3215 | AM118: 144 | AN118: 655 | AO118: 912 | AP118: 641 | AQ118: 48 | AR118: 1192 | AS118: 2674 | AT118: 655 | AU118: 924 | AV118: 1630 | AW118: 118
A119: Male 55-59 | B119: 31719 | C119: 3203 | D119: 595 | E119: 1151 | F119: 2662 | G119: 1984 | H119: 2140 | I119: 5548 | J119: 2061 | K119: 5342 | L119: 4497 | M119: 162 | N119: 45 | O119: 1872 | P119: 457 | Q119: 1178 | R119: 614 | S119: 586 | T119: 517 | U119: 281 | V119: 1151 | W119: 710 | X119: 1187 | Y119: 521 | Z119: 583 | AA119: 256 | AB119: 1731 | AC119: 457 | AD119: 1252 | AE119: 2662 | AF119: 2810 | AG119: 1544 | AH119: 382 | AI119: 838 | AJ119: 348 | AK119: 958 | AL119: 2969 | AM119: 162 | AN119: 576 | AO119: 750 | AP119: 595 | AQ119: 45 | AR119: 1058 | AS119: 2373 | AT119: 451 | AU119: 829 | AV119: 1345 | AW119: 119
A120: Male 60-64 | B120: 30376 | C120: 3344 | D120: 569 | E120: 1183 | F120: 2479 | G120: 2127 | H120: 2089 | I120: 4799 | J120: 2063 | K120: 4848 | L120: 4313 | M120: 150 | N120: 43 | O120: 1877 | P120: 492 | Q120: 1039 | R120: 694 | S120: 631 | T120: 470 | U120: 280 | V120: 1183 | W120: 776 | X120: 1241 | Y120: 438 | Z120: 562 | AA120: 236 | AB120: 1579 | AC120: 492 | AD120: 1365 | AE120: 2479 | AF120: 2313 | AG120: 1593 | AH120: 372 | AI120: 800 | AJ120: 356 | AK120: 988 | AL120: 2641 | AM120: 150 | AN120: 470 | AO120: 704 | AP120: 569 | AQ120: 43 | AR120: 1115 | AS120: 2207 | AT120: 482 | AU120: 736 | AV120: 1372 | AW120: 120
A121: Male 65-69 | B121: 26690 | C121: 3075 | D121: 496 | E121: 1085 | F121: 2256 | G121: 1807 | H121: 1654 | I121: 4182 | J121: 1813 | K121: 4416 | L121: 3685 | M121: 166 | N121: 45 | O121: 1598 | P121: 412 | Q121: 774 | R121: 603 | S121: 527 | T121: 460 | U121: 287 | V121: 1085 | W121: 676 | X121: 1122 | Y121: 386 | Z121: 529 | AA121: 164 | AB121: 1266 | AC121: 412 | AD121: 1146 | AE121: 2256 | AF121: 1891 | AG121: 1353 | AH121: 311 | AI121: 691 | AJ121: 277 | AK121: 833 | AL121: 2437 | AM121: 166 | AN121: 395 | AO121: 702 | AP121: 496 | AQ121: 45 | AR121: 1120 | AS121: 1979 | AT121: 374 | AU121: 728 | AV121: 1199 | AW121: 121
A122: Male 70-74 | B122: 20368 | C122: 2275 | D122: 385 | E122: 874 | F122: 1607 | G122: 1368 | H122: 1314 | I122: 3278 | J122: 1356 | K122: 3337 | L122: 2838 | M122: 130 | N122: 21 | O122: 1267 | P122: 318 | Q122: 629 | R122: 434 | S122: 419 | T122: 378 | U122: 197 | V122: 874 | W122: 560 | X122: 796 | Y122: 334 | Z122: 450 | AA122: 130 | AB122: 964 | AC122: 318 | AD122: 861 | AE122: 1607 | AF122: 1447 | AG122: 978 | AH122: 227 | AI122: 542 | AJ122: 251 | AK122: 676 | AL122: 1872 | AM122: 130 | AN122: 288 | AO122: 619 | AP122: 385 | AQ122: 21 | AR122: 803 | AS122: 1465 | AT122: 310 | AU122: 521 | AV122: 882 | AW122: 122
A123: Male 75-79 | B123: 15971 | C123: 1793 | D123: 319 | E123: 691 | F123: 1318 | G123: 1079 | H123: 1152 | I123: 2623 | J123: 985 | K123: 2508 | L123: 2201 | M123: 84 | N123: 15 | O123: 968 | P123: 235 | Q123: 579 | R123: 380 | S123: 305 | T123: 263 | U123: 144 | V123: 691 | W123: 450 | X123: 684 | Y123: 285 | Z123: 373 | AA123: 126 | AB123: 797 | AC123: 235 | AD123: 666 | AE123: 1318 | AF123: 1210 | AG123: 722 | AH123: 173 | AI123: 372 | AJ123: 193 | AK123: 487 | AL123: 1342 | AM123: 84 | AN123: 213 | AO123: 475 | AP123: 319 | AQ123: 15 | AR123: 622 | AS123: 1166 | AT123: 269 | AU123: 354 | AV123: 659 | AW123: 123
A124: Male 80-84 | B124: 10257 | C124: 1138 | D124: 278 | E124: 405 | F124: 823 | G124: 636 | H124: 733 | I124: 1698 | J124: 606 | K124: 1625 | L124: 1419 | M124: 49 | N124: 11 | O124: 681 | P124: 155 | Q124: 394 | R124: 223 | S124: 207 | T124: 162 | U124: 102 | V124: 405 | W124: 338 | X124: 440 | Y124: 179 | Z124: 251 | AA124: 76 | AB124: 492 | AC124: 155 | AD124: 385 | AE124: 823 | AF124: 855 | AG124: 444 | AH124: 90 | AI124: 259 | AJ124: 116 | AK124: 296 | AL124: 872 | AM124: 49 | AN124: 136 | AO124: 267 | AP124: 278 | AQ124: 11 | AR124: 402 | AS124: 753 | AT124: 149 | AU124: 231 | AV124: 417 | AW124: 124
A125: Male 85-89 | B125: 5089 | C125: 553 | D125: 135 | E125: 192 | F125: 415 | G125: 315 | H125: 336 | I125: 851 | J125: 326 | K125: 750 | L125: 718 | M125: 32 | N125: 9 | O125: 376 | P125: 81 | Q125: 174 | R125: 119 | S125: 134 | T125: 79 | U125: 39 | V125: 192 | W125: 153 | X125: 209 | Y125: 110 | Z125: 130 | AA125: 39 | AB125: 298 | AC125: 81 | AD125: 198 | AE125: 415 | AF125: 426 | AG125: 247 | AH125: 60 | AI125: 127 | AJ125: 43 | AK125: 134 | AL125: 352 | AM125: 32 | AN125: 89 | AO125: 108 | AP125: 135 | AQ125: 9 | AR125: 210 | AS125: 398 | AT125: 78 | AU125: 108 | AV125: 163 | AW125: 125
A126: Male 90+ | B126: 1993 | C126: 207 | D126: 57 | E126: 79 | F126: 152 | G126: 118 | H126: 150 | I126: 309 | J126: 120 | K126: 295 | L126: 284 | M126: 20 | N126: 2 | O126: 171 | P126: 29 | Q126: 78 | R126: 46 | S126: 71 | T126: 27 | U126: 5 | V126: 79 | W126: 73 | X126: 70 | Y126: 46 | Z126: 43 | AA126: 6 | AB126: 127 | AC126: 29 | AD126: 86 | AE126: 152 | AF126: 168 | AG126: 93 | AH126: 15 | AI126: 46 | AJ126: 26 | AK126: 47 | AL126: 132 | AM126: 20 | AN126: 27 | AO126: 42 | AP126: 57 | AQ126: 2 | AR126: 90 | AS126: 163 | AT126: 27 | AU126: 32 | AV126: 68 | AW126: 126
A127: Female 0 | B127: 5999 | C127: 531 | D127: 113 | E127: 177 | F127: 450 | G127: 396 | H127: 485 | I127: 1130 | J127: 376 | K127: 882 | L127: 964 | M127: 22 | N127: 8 | O127: 425 | P127: 40 | Q127: 288 | R127: 131 | S127: 128 | T127: 83 | U127: 44 | V127: 177 | W127: 187 | X127: 220 | Y127: 91 | Z127: 139 | AA127: 36 | AB127: 403 | AC127: 40 | AD127: 250 | AE127: 450 | AF127: 675 | AG127: 293 | AH127: 61 | AI127: 151 | AJ127: 66 | AK127: 148 | AL127: 521 | AM127: 22 | AN127: 110 | AO127: 142 | AP127: 113 | AQ127: 8 | AR127: 163 | AS127: 361 | AT127: 102 | AU127: 125 | AV127: 271 | AW127: 127
A128: Female 1-4 | B128: 23206 | C128: 2150 | D128: 344 | E128: 810 | F128: 1800 | G128: 1592 | H128: 1646 | I128: 4024 | J128: 1368 | K128: 3776 | L128: 3879 | M128: 88 | N128: 32 | O128: 1488 | P128: 209 | Q128: 886 | R128: 512 | S128: 519 | T128: 331 | U128: 210 | V128: 810 | W128: 569 | X128: 826 | Y128: 339 | Z128: 454 | AA128: 178 | AB128: 1533 | AC128: 209 | AD128: 972 | AE128: 1800 | AF128: 2141 | AG128: 1037 | AH128: 256 | AI128: 646 | AJ128: 248 | AK128: 613 | AL128: 2277 | AM128: 88 | AN128: 400 | AO128: 602 | AP128: 344 | AQ128: 32 | AR128: 711 | AS128: 1499 | AT128: 410 | AU128: 508 | AV128: 1246 | AW128: 128
A129: Female 5-9 | B129: 25324 | C129: 2497 | D129: 378 | E129: 858 | F129: 2073 | G129: 1784 | H129: 1645 | I129: 4245 | J129: 1641 | K129: 4412 | L129: 3853 | M129: 120 | N129: 29 | O129: 1529 | P129: 260 | Q129: 825 | R129: 506 | S129: 475 | T129: 389 | U129: 193 | V129: 858 | W129: 611 | X129: 928 | Y129: 405 | Z129: 486 | AA129: 195 | AB129: 1224 | AC129: 260 | AD129: 1105 | AE129: 2073 | AF129: 2095 | AG129: 1252 | AH129: 279 | AI129: 699 | AJ129: 314 | AK129: 782 | AL129: 2710 | AM129: 120 | AN129: 443 | AO129: 653 | AP129: 378 | AQ129: 29 | AR129: 787 | AS129: 1702 | AT129: 486 | AU129: 618 | AV129: 1444 | AW129: 129
A130: Female 10-14 | B130: 25891 | C130: 2711 | D130: 346 | E130: 919 | F130: 2110 | G130: 1830 | H130: 1498 | I130: 4449 | J130: 1630 | K130: 4448 | L130: 3925 | M130: 123 | N130: 33 | O130: 1552 | P130: 317 | Q130: 750 | R130: 512 | S130: 534 | T130: 344 | U130: 226 | V130: 919 | W130: 553 | X130: 1042 | Y130: 451 | Z130: 511 | AA130: 252 | AB130: 1184 | AC130: 317 | AD130: 1073 | AE130: 2110 | AF130: 2160 | AG130: 1286 | AH130: 292 | AI130: 755 | AJ130: 236 | AK130: 842 | AL130: 2610 | AM130: 123 | AN130: 465 | AO130: 702 | AP130: 346 | AQ130: 33 | AR130: 827 | AS130: 1838 | AT130: 531 | AU130: 592 | AV130: 1475 | AW130: 130
A131: Female 15-19 | B131: 30623 | C131: 2989 | D131: 454 | E131: 978 | F131: 2283 | G131: 2031 | H131: 2030 | I131: 5755 | J131: 1765 | K131: 4811 | L131: 4780 | M131: 138 | N131: 25 | O131: 2266 | P131: 318 | Q131: 1065 | R131: 617 | S131: 660 | T131: 396 | U131: 252 | V131: 978 | W131: 1081 | X131: 1108 | Y131: 483 | Z131: 602 | AA131: 291 | AB131: 1834 | AC131: 318 | AD131: 1214 | AE131: 2283 | AF131: 3196 | AG131: 1369 | AH131: 352 | AI131: 802 | AJ131: 348 | AK131: 939 | AL131: 2748 | AM131: 138 | AN131: 525 | AO131: 721 | AP131: 454 | AQ131: 25 | AR131: 942 | AS131: 2063 | AT131: 565 | AU131: 712 | AV131: 1542 | AW131: 131
A132: Female 20-24 | B132: 39463 | C132: 3116 | D132: 657 | E132: 957 | F132: 2566 | G132: 2416 | H132: 3433 | I132: 8306 | J132: 1706 | K132: 5207 | L132: 7047 | M132: 123 | N132: 59 | O132: 3636 | P132: 234 | Q132: 2410 | R132: 671 | S132: 613 | T132: 423 | U132: 289 | V132: 957 | W132: 2301 | X132: 1169 | Y132: 577 | Z132: 676 | AA132: 260 | AB132: 3958 | AC132: 234 | AD132: 1242 | AE132: 2566 | AF132: 5414 | AG132: 1283 | AH132: 393 | AI132: 857 | AJ132: 352 | AK132: 905 | AL132: 3030 | AM132: 123 | AN132: 722 | AO132: 890 | AP132: 657 | AQ132: 59 | AR132: 1042 | AS132: 2177 | AT132: 885 | AU132: 772 | AV132: 1556 | AW132: 132
A133: Female 25-29 | B133: 39452 | C133: 3069 | D133: 557 | E133: 996 | F133: 2633 | G133: 2342 | H133: 3302 | I133: 8267 | J133: 1948 | K133: 5680 | L133: 7139 | M133: 122 | N133: 33 | O133: 3103 | P133: 261 | Q133: 2199 | R133: 725 | S133: 704 | T133: 437 | U133: 269 | V133: 996 | W133: 1557 | X133: 1164 | Y133: 534 | Z133: 652 | AA133: 227 | AB133: 3993 | AC133: 261 | AD133: 1380 | AE133: 2633 | AF133: 5429 | AG133: 1511 | AH133: 402 | AI133: 763 | AJ133: 378 | AK133: 880 | AL133: 3342 | AM133: 122 | AN133: 842 | AO133: 914 | AP133: 557 | AQ133: 33 | AR133: 1025 | AS133: 2338 | AT133: 693 | AU133: 761 | AV133: 1731 | AW133: 133
A134: Female 30-34 | B134: 36523 | C134: 3141 | D134: 457 | E134: 1020 | F134: 2596 | G134: 2394 | H134: 2545 | I134: 7542 | J134: 1850 | K134: 5678 | L134: 6427 | M134: 103 | N134: 46 | O134: 2422 | P134: 302 | Q134: 1586 | R134: 651 | S134: 662 | T134: 403 | U134: 297 | V134: 1020 | W134: 1072 | X134: 1210 | Y134: 536 | Z134: 616 | AA134: 255 | AB134: 3310 | AC134: 302 | AD134: 1390 | AE134: 2596 | AF134: 4755 | AG134: 1447 | AH134: 353 | AI134: 843 | AJ134: 308 | AK134: 870 | AL134: 3386 | AM134: 103 | AN134: 688 | AO134: 872 | AP134: 457 | AQ134: 46 | AR134: 1061 | AS134: 2292 | AT134: 707 | AU134: 771 | AV134: 1658 | AW134: 134
A135: Female 35-39 | B135: 32575 | C135: 2997 | D135: 456 | E135: 913 | F135: 2421 | G135: 2305 | H135: 2165 | I135: 6286 | J135: 1892 | K135: 5342 | L135: 5402 | M135: 130 | N135: 40 | O135: 1888 | P135: 338 | Q135: 1195 | R135: 644 | S135: 637 | T135: 473 | U135: 283 | V135: 913 | W135: 718 | X135: 1107 | Y135: 537 | Z135: 583 | AA135: 238 | AB135: 2397 | AC135: 338 | AD135: 1376 | AE135: 2421 | AF135: 3505 | AG135: 1419 | AH135: 394 | AI135: 805 | AJ135: 326 | AK135: 931 | AL135: 3167 | AM135: 130 | AN135: 533 | AO135: 844 | AP135: 456 | AQ135: 40 | AR135: 959 | AS135: 2175 | AT135: 646 | AU135: 768 | AV135: 1617 | AW135: 135
A136: Female 40-44 | B136: 38713 | C136: 4013 | D136: 566 | E136: 1302 | F136: 2981 | G136: 2715 | H136: 2430 | I136: 7129 | J136: 2286 | K136: 6575 | L136: 5970 | M136: 140 | N136: 49 | O136: 2170 | P136: 387 | Q136: 1254 | R136: 757 | S136: 695 | T136: 557 | U136: 356 | V136: 1302 | W136: 834 | X136: 1545 | Y136: 698 | Z136: 739 | AA136: 335 | AB136: 2197 | AC136: 387 | AD136: 1594 | AE136: 2981 | AF136: 3646 | AG136: 1729 | AH136: 436 | AI136: 997 | AJ136: 419 | AK136: 1215 | AL136: 3795 | AM136: 140 | AN136: 641 | AO136: 1072 | AP136: 566 | AQ136: 49 | AR136: 1253 | AS136: 2780 | AT136: 765 | AU136: 942 | AV136: 2037 | AW136: 136
A137: Female 45-49 | B137: 40145 | C137: 4277 | D137: 667 | E137: 1331 | F137: 3161 | G137: 2807 | H137: 2442 | I137: 7559 | J137: 2472 | K137: 6676 | L137: 5827 | M137: 177 | N137: 44 | O137: 2258 | P137: 447 | Q137: 1287 | R137: 776 | S137: 668 | T137: 568 | U137: 411 | V137: 1331 | W137: 963 | X137: 1591 | Y137: 726 | Z137: 826 | AA137: 374 | AB137: 2073 | AC137: 447 | AD137: 1658 | AE137: 3161 | AF137: 3689 | AG137: 1904 | AH137: 564 | AI137: 1017 | AJ137: 379 | AK137: 1292 | AL137: 3756 | AM137: 177 | AN137: 627 | AO137: 1118 | AP137: 667 | AQ137: 44 | AR137: 1394 | AS137: 2920 | AT137: 738 | AU137: 1088 | AV137: 1911 | AW137: 137
A138: Female 50-54 | B138: 37880 | C138: 3845 | D138: 613 | E138: 1378 | F138: 3028 | G138: 2547 | H138: 2350 | I138: 7222 | J138: 2301 | K138: 6274 | L138: 5443 | M138: 150 | N138: 37 | O138: 2264 | P138: 428 | Q138: 1280 | R138: 677 | S138: 693 | T138: 559 | U138: 342 | V138: 1378 | W138: 965 | X138: 1397 | Y138: 714 | Z138: 755 | AA138: 324 | AB138: 1936 | AC138: 428 | AD138: 1549 | AE138: 3028 | AF138: 3586 | AG138: 1742 | AH138: 508 | AI138: 1009 | AJ138: 393 | AK138: 1133 | AL138: 3516 | AM138: 150 | AN138: 606 | AO138: 1071 | AP138: 613 | AQ138: 37 | AR138: 1315 | AS138: 2758 | AT138: 656 | AU138: 1019 | AV138: 1743 | AW138: 138
A139: Female 55-59 | B139: 33208 | C139: 3457 | D139: 600 | E139: 1212 | F139: 2727 | G139: 2127 | H139: 2200 | I139: 5762 | J139: 2139 | K139: 5693 | L139: 4683 | M139: 159 | N139: 55 | O139: 1984 | P139: 410 | Q139: 1114 | R139: 662 | S139: 618 | T139: 492 | U139: 263 | V139: 1212 | W139: 809 | X139: 1270 | Y139: 573 | Z139: 642 | AA139: 268 | AB139: 1655 | AC139: 410 | AD139: 1387 | AE139: 2727 | AF139: 2773 | AG139: 1647 | AH139: 417 | AI139: 882 | AJ139: 424 | AK139: 1004 | AL139: 3129 | AM139: 159 | AN139: 557 | AO139: 817 | AP139: 600 | AQ139: 55 | AR139: 1183 | AS139: 2564 | AT139: 477 | AU139: 914 | AV139: 1504 | AW139: 139
A140: Female 60-64 | B140: 32038 | C140: 3526 | D140: 558 | E140: 1188 | F140: 2648 | G140: 2230 | H140: 2252 | I140: 5186 | J140: 2135 | K140: 5280 | L140: 4539 | M140: 155 | N140: 43 | O140: 1825 | P140: 473 | Q140: 1065 | R140: 767 | S140: 593 | T140: 535 | U140: 337 | V140: 1188 | W140: 783 | X140: 1230 | Y140: 504 | Z140: 610 | AA140: 250 | AB140: 1572 | AC140: 473 | AD140: 1401 | AE140: 2648 | AF140: 2338 | AG140: 1600 | AH140: 409 | AI140: 883 | AJ140: 420 | AK140: 1105 | AL140: 2915 | AM140: 155 | AN140: 449 | AO140: 837 | AP140: 558 | AQ140: 43 | AR140: 1191 | AS140: 2365 | AT140: 492 | AU140: 848 | AV140: 1474 | AW140: 140
A141: Female 65-69 | B141: 29567 | C141: 3402 | D141: 631 | E141: 1162 | F141: 2407 | G141: 2019 | H141: 1861 | I141: 4761 | J141: 1887 | K141: 4961 | L141: 4137 | M141: 156 | N141: 35 | O141: 1758 | P141: 390 | Q141: 882 | R141: 649 | S141: 556 | T141: 512 | U141: 326 | V141: 1162 | W141: 739 | X141: 1238 | Y141: 527 | Z141: 589 | AA141: 201 | AB141: 1395 | AC141: 390 | AD141: 1240 | AE141: 2407 | AF141: 2069 | AG141: 1375 | AH141: 358 | AI141: 786 | AJ141: 330 | AK141: 965 | AL141: 2824 | AM141: 156 | AN141: 463 | AO141: 831 | AP141: 631 | AQ141: 35 | AR141: 1199 | AS141: 2137 | AT141: 453 | AU141: 775 | AV141: 1367 | AW141: 141
A142: Female 70-74 | B142: 24832 | C142: 2716 | D142: 469 | E142: 949 | F142: 1888 | G142: 1676 | H142: 1653 | I142: 4163 | J142: 1596 | K142: 4129 | L142: 3461 | M142: 122 | N142: 28 | O142: 1633 | P142: 349 | Q142: 822 | R142: 514 | S142: 513 | T142: 438 | U142: 235 | V142: 949 | W142: 788 | X142: 982 | Y142: 442 | Z142: 540 | AA142: 192 | AB142: 1232 | AC142: 349 | AD142: 1032 | AE142: 1888 | AF142: 1893 | AG142: 1158 | AH142: 265 | AI142: 598 | AJ142: 317 | AK142: 808 | AL142: 2304 | AM142: 122 | AN142: 332 | AO142: 720 | AP142: 469 | AQ142: 28 | AR142: 926 | AS142: 1825 | AT142: 409 | AU142: 651 | AV142: 1091 | AW142: 142
A143: Female 75-79 | B143: 22083 | C143: 2396 | D143: 433 | E143: 839 | F143: 1706 | G143: 1362 | H143: 1520 | I143: 4051 | J143: 1327 | K143: 3588 | L143: 3002 | M143: 88 | N143: 22 | O143: 1415 | P143: 334 | Q143: 804 | R143: 439 | S143: 436 | T143: 385 | U143: 180 | V143: 839 | W143: 675 | X143: 895 | Y143: 403 | Z143: 484 | AA143: 205 | AB143: 1121 | AC143: 334 | AD143: 851 | AE143: 1706 | AF143: 1928 | AG143: 942 | AH143: 273 | AI143: 538 | AJ143: 277 | AK143: 658 | AL143: 1948 | AM143: 88 | AN143: 304 | AO143: 718 | AP143: 433 | AQ143: 22 | AR143: 843 | AS143: 1640 | AT143: 331 | AU143: 524 | AV143: 859 | AW143: 143
A144: Female 80-84 | B144: 16804 | C144: 1766 | D144: 353 | E144: 603 | F144: 1297 | G144: 970 | H144: 1240 | I144: 3193 | J144: 996 | K144: 2659 | L144: 2233 | M144: 72 | N144: 24 | O144: 1155 | P144: 243 | Q144: 671 | R144: 335 | S144: 379 | T144: 244 | U144: 129 | V144: 603 | W144: 489 | X144: 643 | Y144: 318 | Z144: 348 | AA144: 138 | AB144: 917 | AC144: 243 | AD144: 622 | AE144: 1297 | AF144: 1588 | AG144: 752 | AH144: 199 | AI144: 404 | AJ144: 234 | AK144: 465 | AL144: 1276 | AM144: 72 | AN144: 287 | AO144: 497 | AP144: 353 | AQ144: 24 | AR144: 658 | AS144: 1383 | AT144: 219 | AU144: 453 | AV144: 564 | AW144: 144
A145: Female 85-89 | B145: 10292 | C145: 1096 | D145: 254 | E145: 358 | F145: 783 | G145: 601 | H145: 751 | I145: 1809 | J145: 579 | K145: 1598 | L145: 1391 | M145: 55 | N145: 13 | O145: 828 | P145: 176 | Q145: 391 | R145: 225 | S145: 310 | T145: 149 | U145: 80 | V145: 358 | W145: 311 | X145: 393 | Y145: 182 | Z145: 240 | AA145: 72 | AB145: 604 | AC145: 176 | AD145: 386 | AE145: 783 | AF145: 1009 | AG145: 430 | AH145: 80 | AI145: 233 | AJ145: 135 | AK145: 253 | AL145: 769 | AM145: 55 | AN145: 207 | AO145: 224 | AP145: 254 | AQ145: 13 | AR145: 450 | AS145: 829 | AT145: 135 | AU145: 242 | AV145: 314 | AW145: 145
A146: Female 90+ | B146: 5770 | C146: 669 | D146: 134 | E146: 213 | F146: 437 | G146: 350 | H146: 400 | I146: 993 | J146: 374 | K146: 787 | L146: 784 | M146: 38 | N146: 11 | O146: 457 | P146: 123 | Q146: 202 | R146: 120 | S146: 175 | T146: 119 | U146: 45 | V146: 213 | W146: 153 | X146: 221 | Y146: 125 | Z146: 120 | AA146: 29 | AB146: 336 | AC146: 123 | AD146: 235 | AE146: 437 | AF146: 561 | AG146: 255 | AH146: 53 | AI146: 145 | AJ146: 78 | AK146: 166 | AL146: 335 | AM146: 38 | AN146: 129 | AO146: 96 | AP146: 134 | AQ146: 11 | AR146: 282 | AS146: 452 | AT146: 70 | AU146: 129 | AV146: 183 | AW146: 146
A147: age/sex breakdown: Q3 | AW147: 147
A148: Male 0 | B148: 5844 | C148: 238 | D148: 176 | E148: 246 | F148: 416 | G148: 329 | H148: 684 | I148: 907 | J148: 490 | K148: 817 | L148: 1030 | M148: 27 | N148: 50 | O148: 346 | P148: 88 | Q148: 210 | R148: 281 | S148: 122 | T148: 133 | U148: 70 | V148: 246 | W148: 94 | X148: 49 | Y148: 41 | Z148: 160 | AA148: 40 | AB148: 472 | AC148: 88 | AD148: 185 | AE148: 416 | AF148: 445 | AG148: 357 | AH148: 50 | AI148: 114 | AJ148: 193 | AK148: 94 | AL148: 357 | AM148: 27 | AN148: 130 | AO148: 215 | AP148: 176 | AQ148: 50 | AR148: 95 | AS148: 460 | AT148: 74 | AU148: 116 | AV148: 284 | AW148: 148
A149: Male 1-4 | B149: 23267 | C149: 1184 | D149: 671 | E149: 1144 | F149: 1678 | G149: 1262 | H149: 2769 | I149: 3303 | J149: 2006 | K149: 3310 | L149: 3878 | M149: 69 | N149: 222 | O149: 1437 | P149: 334 | Q149: 656 | R149: 1166 | S149: 517 | T149: 613 | U149: 271 | V149: 1144 | W149: 334 | X149: 303 | Y149: 184 | Z149: 639 | AA149: 163 | AB149: 1603 | AC149: 334 | AD149: 716 | AE149: 1678 | AF149: 1514 | AG149: 1393 | AH149: 190 | AI149: 398 | AJ149: 947 | AK149: 421 | AL149: 1512 | AM149: 69 | AN149: 586 | AO149: 849 | AP149: 671 | AQ149: 222 | AR149: 460 | AS149: 1798 | AT149: 275 | AU149: 403 | AV149: 1238 | AW149: 149
A150: Male 5-9 | B150: 27180 | C150: 1481 | D150: 863 | E150: 1437 | F150: 1929 | G150: 1557 | H150: 3137 | I150: 3616 | J150: 2681 | K150: 3999 | L150: 3951 | M150: 98 | N150: 240 | O150: 1715 | P150: 476 | Q150: 656 | R150: 1403 | S150: 669 | T150: 813 | U150: 307 | V150: 1437 | W150: 391 | X150: 373 | Y150: 240 | Z150: 687 | AA150: 196 | AB150: 1416 | AC150: 476 | AD150: 887 | AE150: 1929 | AF150: 1445 | AG150: 1868 | AH150: 271 | AI150: 481 | AJ150: 1078 | AK150: 518 | AL150: 1910 | AM150: 98 | AN150: 655 | AO150: 984 | AP150: 863 | AQ150: 240 | AR150: 590 | AS150: 2089 | AT150: 363 | AU150: 480 | AV150: 1367 | AW150: 150
A151: Male 10-14 | B151: 27773 | C151: 1597 | D151: 845 | E151: 1611 | F151: 1936 | G151: 1528 | H151: 3313 | I151: 3555 | J151: 3080 | K151: 4052 | L151: 3565 | M151: 82 | N151: 281 | O151: 1907 | P151: 421 | Q151: 666 | R151: 1532 | S151: 743 | T151: 969 | U151: 357 | V151: 1611 | W151: 356 | X151: 426 | Y151: 249 | Z151: 687 | AA151: 210 | AB151: 1221 | AC151: 421 | AD151: 837 | AE151: 1936 | AF151: 1401 | AG151: 2111 | AH151: 254 | AI151: 474 | AJ151: 1115 | AK151: 540 | AL151: 1840 | AM151: 82 | AN151: 808 | AO151: 1023 | AP151: 845 | AQ151: 281 | AR151: 631 | AS151: 2212 | AT151: 334 | AU151: 418 | AV151: 1183 | AW151: 151
A152: Male 15-19 | B152: 31773 | C152: 1844 | D152: 1051 | E152: 1740 | F152: 2007 | G152: 1764 | H152: 3700 | I152: 4737 | J152: 3073 | K152: 4334 | L152: 4308 | M152: 118 | N152: 291 | O152: 2321 | P152: 485 | Q152: 928 | R152: 1591 | S152: 794 | T152: 982 | U152: 388 | V152: 1740 | W152: 654 | X152: 515 | Y152: 256 | Z152: 886 | AA152: 240 | AB152: 1607 | AC152: 485 | AD152: 944 | AE152: 2007 | AF152: 2222 | AG152: 2091 | AH152: 355 | AI152: 505 | AJ152: 1181 | AK152: 671 | AL152: 1969 | AM152: 118 | AN152: 873 | AO152: 1099 | AP152: 1051 | AQ152: 291 | AR152: 658 | AS152: 2365 | AT152: 432 | AU152: 565 | AV152: 1310 | AW152: 152
A153: Male 20-24 | B153: 37024 | C153: 1603 | D153: 901 | E153: 1372 | F153: 2133 | G153: 2037 | H153: 4924 | I153: 7428 | J153: 2553 | K153: 4076 | L153: 6554 | M153: 111 | N153: 245 | O153: 2712 | P153: 375 | Q153: 2449 | R153: 1487 | S153: 733 | T153: 736 | U153: 447 | V153: 1372 | W153: 1260 | X153: 529 | Y153: 361 | Z153: 753 | AA153: 244 | AB153: 4036 | AC153: 375 | AD153: 808 | AE153: 2133 | AF153: 4776 | AG153: 1817 | AH153: 381 | AI153: 494 | AJ153: 988 | AK153: 494 | AL153: 1904 | AM153: 111 | AN153: 719 | AO153: 1115 | AP153: 901 | AQ153: 245 | AR153: 580 | AS153: 2172 | AT153: 782 | AU153: 551 | AV153: 1271 | AW153: 153
A154: Male 25-29 | B154: 36157 | C154: 1294 | D154: 833 | E154: 1325 | F154: 2138 | G154: 1793 | H154: 4597 | I154: 7339 | J154: 2439 | K154: 3917 | L154: 7535 | M154: 120 | N154: 240 | O154: 2213 | P154: 374 | Q154: 2158 | R154: 1408 | S154: 647 | T154: 677 | U154: 447 | V154: 1325 | W154: 858 | X154: 463 | Y154: 390 | Z154: 692 | AA154: 158 | AB154: 5053 | AC154: 374 | AD154: 889 | AE154: 2138 | AF154: 4783 | AG154: 1762 | AH154: 281 | AI154: 433 | AJ154: 1031 | AK154: 366 | AL154: 1804 | AM154: 120 | AN154: 708 | AO154: 1174 | AP154: 833 | AQ154: 240 | AR154: 465 | AS154: 2113 | AT154: 457 | AU154: 553 | AV154: 1357 | AW154: 154
A155: Male 30-34 | B155: 34981 | C155: 1419 | D155: 801 | E155: 1201 | F155: 2162 | G155: 1858 | H155: 4205 | I155: 6546 | J155: 2530 | K155: 4464 | L155: 7140 | M155: 101 | N155: 279 | O155: 1878 | P155: 397 | Q155: 1729 | R155: 1462 | S155: 661 | T155: 727 | U155: 453 | V155: 1201 | W155: 563 | X155: 467 | Y155: 312 | Z155: 675 | AA155: 173 | AB155: 4449 | AC155: 397 | AD155: 1003 | AE155: 2162 | AF155: 4107 | AG155: 1803 | AH155: 269 | AI155: 462 | AJ155: 1014 | AK155: 435 | AL155: 2119 | AM155: 101 | AN155: 654 | AO155: 1177 | AP155: 801 | AQ155: 279 | AR155: 517 | AS155: 2345 | AT155: 402 | AU155: 508 | AV155: 1554 | AW155: 155
A156: Male 35-39 | B156: 32896 | C156: 1534 | D156: 900 | E156: 1338 | F156: 2266 | G156: 1856 | H156: 3814 | I156: 5263 | J156: 2589 | K156: 4543 | L156: 6193 | M156: 109 | N156: 257 | O156: 1807 | P156: 427 | Q156: 1296 | R156: 1550 | S156: 707 | T156: 786 | U156: 447 | V156: 1338 | W156: 445 | X156: 487 | Y156: 293 | Z156: 814 | AA156: 199 | AB156: 3346 | AC156: 427 | AD156: 992 | AE156: 2266 | AF156: 2854 | AG156: 1803 | AH156: 282 | AI156: 515 | AJ156: 968 | AK156: 511 | AL156: 2146 | AM156: 109 | AN156: 655 | AO156: 1095 | AP156: 900 | AQ156: 257 | AR156: 536 | AS156: 2397 | AT156: 417 | AU156: 540 | AV156: 1518 | AW156: 156
A157: Male 40-44 | B157: 38508 | C157: 2001 | D157: 1207 | E157: 1814 | F157: 2704 | G157: 2262 | H157: 4380 | I157: 5629 | J157: 3413 | K157: 5501 | L157: 6158 | M157: 123 | N157: 310 | O157: 2412 | P157: 594 | Q157: 1158 | R157: 1857 | S157: 905 | T157: 1053 | U157: 569 | V157: 1814 | W157: 552 | X157: 602 | Y157: 391 | Z157: 949 | AA157: 246 | AB157: 2808 | AC157: 594 | AD157: 1205 | AE157: 2704 | AF157: 2725 | AG157: 2360 | AH157: 329 | AI157: 635 | AJ157: 1365 | AK157: 706 | AL157: 2469 | AM157: 123 | AN157: 955 | AO157: 1285 | AP157: 1207 | AQ157: 310 | AR157: 693 | AS157: 3032 | AT157: 488 | AU157: 653 | AV157: 1766 | AW157: 157
A158: Male 45-49 | B158: 41010 | C158: 2371 | D158: 1381 | E158: 2219 | F158: 2815 | G158: 2263 | H158: 4650 | I158: 5834 | J158: 4161 | K158: 5695 | L158: 5787 | M158: 174 | N158: 352 | O158: 2713 | P158: 595 | Q158: 1223 | R158: 1995 | S158: 993 | T158: 1258 | U158: 565 | V158: 2219 | W158: 594 | X158: 682 | Y158: 395 | Z158: 913 | AA158: 278 | AB158: 2517 | AC158: 595 | AD158: 1198 | AE158: 2815 | AF158: 2500 | AG158: 2903 | AH158: 459 | AI158: 650 | AJ158: 1432 | AK158: 802 | AL158: 2586 | AM158: 174 | AN158: 1126 | AO158: 1476 | AP158: 1381 | AQ158: 352 | AR158: 887 | AS158: 3109 | AT158: 500 | AU158: 726 | AV158: 1707 | AW158: 158
A159: Male 50-54 | B159: 38342 | C159: 2228 | D159: 1336 | E159: 2224 | F159: 2717 | G159: 2129 | H159: 4207 | I159: 5314 | J159: 4071 | K159: 5187 | L159: 5181 | M159: 198 | N159: 341 | O159: 2606 | P159: 603 | Q159: 1068 | R159: 1879 | S159: 1002 | T159: 1244 | U159: 485 | V159: 2224 | W159: 549 | X159: 590 | Y159: 328 | Z159: 925 | AA159: 262 | AB159: 2187 | AC159: 603 | AD159: 1169 | AE159: 2717 | AF159: 2227 | AG159: 2827 | AH159: 449 | AI159: 629 | AJ159: 1260 | AK159: 781 | AL159: 2200 | AM159: 198 | AN159: 1055 | AO159: 1307 | AP159: 1336 | AQ159: 341 | AR159: 857 | AS159: 2987 | AT159: 475 | AU159: 741 | AV159: 1440 | AW159: 159
A160: Male 55-59 | B160: 33598 | C160: 2000 | D160: 1180 | E160: 2067 | F160: 2276 | G160: 1677 | H160: 3958 | I160: 4441 | J160: 4027 | K160: 4308 | L160: 4301 | M160: 177 | N160: 332 | O160: 2310 | P160: 544 | Q160: 1039 | R160: 1807 | S160: 878 | T160: 1252 | U160: 381 | V160: 2067 | W160: 464 | X160: 530 | Y160: 265 | Z160: 818 | AA160: 250 | AB160: 1769 | AC160: 544 | AD160: 916 | AE160: 2276 | AF160: 1880 | AG160: 2775 | AH160: 364 | AI160: 618 | AJ160: 1112 | AK160: 691 | AL160: 1814 | AM160: 177 | AN160: 968 | AO160: 1081 | AP160: 1180 | AQ160: 332 | AR160: 779 | AS160: 2494 | AT160: 380 | AU160: 601 | AV160: 1096 | AW160: 160
A161: Male 60-64 | B161: 32642 | C161: 2003 | D161: 1289 | E161: 2193 | F161: 2293 | G161: 1678 | H161: 3899 | I161: 3847 | J161: 4280 | K161: 3866 | L161: 3900 | M161: 158 | N161: 354 | O161: 2286 | P161: 596 | Q161: 984 | R161: 1829 | S161: 921 | T161: 1397 | U161: 406 | V161: 2193 | W161: 427 | X161: 490 | Y161: 258 | Z161: 716 | AA161: 211 | AB161: 1486 | AC161: 596 | AD161: 876 | AE161: 2293 | AF161: 1475 | AG161: 2883 | AH161: 304 | AI161: 622 | AJ161: 1086 | AK161: 727 | AL161: 1719 | AM161: 158 | AN161: 938 | AO161: 1040 | AP161: 1289 | AQ161: 354 | AR161: 786 | AS161: 2147 | AT161: 396 | AU161: 559 | AV161: 1076 | AW161: 161
A162: Male 65-69 | B162: 28874 | C162: 1857 | D162: 1218 | E162: 2123 | F162: 2141 | G162: 1484 | H162: 3407 | I162: 3245 | J162: 3850 | K162: 3336 | L162: 3272 | M162: 145 | N162: 300 | O162: 1995 | P162: 501 | Q162: 794 | R162: 1615 | S162: 789 | T162: 1341 | U162: 319 | V162: 2123 | W162: 328 | X162: 488 | Y162: 200 | Z162: 628 | AA162: 187 | AB162: 1213 | AC162: 501 | AD162: 815 | AE162: 2141 | AF162: 1212 | AG162: 2509 | AH162: 284 | AI162: 524 | AJ162: 998 | AK162: 667 | AL162: 1452 | AM162: 145 | AN162: 878 | AO162: 915 | AP162: 1218 | AQ162: 300 | AR162: 702 | AS162: 1884 | AT162: 350 | AU162: 447 | AV162: 907 | AW162: 162
A163: Male 70-74 | B163: 21485 | C163: 1475 | D163: 884 | E163: 1637 | F163: 1604 | G163: 1073 | H163: 2565 | I163: 2296 | J163: 2828 | K163: 2519 | L163: 2353 | M163: 128 | N163: 225 | O163: 1493 | P163: 405 | Q163: 643 | R163: 1136 | S163: 554 | T163: 1018 | U163: 212 | V163: 1637 | W163: 279 | X163: 382 | Y163: 124 | Z163: 479 | AA163: 147 | AB163: 817 | AC163: 405 | AD163: 607 | AE163: 1604 | AF163: 855 | AG163: 1810 | AH163: 176 | AI163: 353 | AJ163: 786 | AK163: 537 | AL163: 1016 | AM163: 128 | AN163: 660 | AO163: 642 | AP163: 884 | AQ163: 225 | AR163: 556 | AS163: 1503 | AT163: 254 | AU163: 352 | AV163: 704 | AW163: 163
A164: Male 75-79 | B164: 16448 | C164: 1004 | D164: 636 | E164: 1295 | F164: 1225 | G164: 810 | H164: 2019 | I164: 1881 | J164: 2002 | K164: 1942 | L164: 1831 | M164: 80 | N164: 159 | O164: 1292 | P164: 272 | Q164: 534 | R164: 900 | S164: 455 | T164: 712 | U164: 150 | V164: 1295 | W164: 264 | X164: 244 | Y164: 106 | Z164: 367 | AA164: 153 | AB164: 732 | AC164: 272 | AD164: 459 | AE164: 1225 | AF164: 653 | AG164: 1290 | AH164: 151 | AI164: 280 | AJ164: 585 | AK164: 358 | AL164: 781 | AM164: 80 | AN164: 573 | AO164: 514 | AP164: 636 | AQ164: 159 | AR164: 402 | AS164: 1161 | AT164: 201 | AU164: 304 | AV164: 452 | AW164: 164
A165: Male 80-84 | B165: 10484 | C165: 606 | D165: 433 | E165: 783 | F165: 752 | G165: 499 | H165: 1247 | I165: 1248 | J165: 1336 | K165: 1207 | L165: 1163 | M165: 53 | N165: 99 | O165: 877 | P165: 181 | Q165: 355 | R165: 552 | S165: 296 | T165: 458 | U165: 89 | V165: 783 | W165: 185 | X165: 138 | Y165: 66 | Z165: 264 | AA165: 85 | AB165: 442 | AC165: 181 | AD165: 281 | AE165: 752 | AF165: 415 | AG165: 878 | AH165: 101 | AI165: 190 | AJ165: 340 | AK165: 235 | AL165: 524 | AM165: 53 | AN165: 396 | AO165: 388 | AP165: 433 | AQ165: 99 | AR165: 233 | AS165: 683 | AT165: 129 | AU165: 193 | AV165: 267 | AW165: 165
A166: Male 85-89 | B166: 5117 | C166: 269 | D166: 205 | E166: 398 | F166: 376 | G166: 239 | H166: 678 | I166: 588 | J166: 611 | K166: 558 | L166: 598 | M166: 26 | N166: 51 | O166: 425 | P166: 95 | Q166: 188 | R166: 316 | S166: 144 | T166: 244 | U166: 37 | V166: 398 | W166: 103 | X166: 61 | Y166: 32 | Z166: 142 | AA166: 48 | AB166: 260 | AC166: 95 | AD166: 133 | AE166: 376 | AF166: 186 | AG166: 367 | AH166: 43 | AI166: 74 | AJ166: 174 | AK166: 89 | AL166: 221 | AM166: 26 | AN166: 178 | AO166: 219 | AP166: 205 | AQ166: 51 | AR166: 119 | AS166: 337 | AT166: 69 | AU166: 60 | AV166: 122 | AW166: 166
A167: Male 90+ | B167: 2030 | C167: 100 | D167: 86 | E167: 156 | F167: 161 | G167: 93 | H167: 254 | I167: 280 | J167: 213 | K167: 208 | L167: 243 | M167: 12 | N167: 26 | O167: 172 | P167: 26 | Q167: 66 | R167: 117 | S167: 53 | T167: 85 | U167: 29 | V167: 156 | W167: 32 | X167: 17 | Y167: 15 | Z167: 47 | AA167: 24 | AB167: 116 | AC167: 26 | AD167: 38 | AE167: 161 | AF167: 62 | AG167: 128 | AH167: 15 | AI167: 39 | AJ167: 71 | AK167: 42 | AL167: 85 | AM167: 12 | AN167: 87 | AO167: 130 | AP167: 86 | AQ167: 26 | AR167: 41 | AS167: 123 | AT167: 26 | AU167: 34 | AV167: 41 | AW167: 167
A168: Female 0 | B168: 5452 | C168: 244 | D168: 172 | E168: 238 | F168: 358 | G168: 321 | H168: 669 | I168: 845 | J168: 459 | K168: 748 | L168: 952 | M168: 17 | N168: 43 | O168: 326 | P168: 60 | Q168: 200 | R168: 281 | S168: 122 | T168: 158 | U168: 79 | V168: 238 | W168: 74 | X168: 67 | Y168: 39 | Z168: 151 | AA168: 35 | AB168: 433 | AC168: 60 | AD168: 155 | AE168: 358 | AF168: 454 | AG168: 301 | AH168: 38 | AI168: 106 | AJ168: 188 | AK168: 83 | AL168: 350 | AM168: 17 | AN168: 130 | AO168: 196 | AP168: 172 | AQ168: 43 | AR168: 94 | AS168: 398 | AT168: 87 | AU168: 83 | AV168: 262 | AW168: 168
A169: Female 1-4 | B169: 22313 | C169: 1069 | D169: 655 | E169: 1089 | F169: 1614 | G169: 1274 | H169: 2755 | I169: 3062 | J169: 1924 | K169: 3267 | L169: 3690 | M169: 83 | N169: 187 | O169: 1370 | P169: 274 | Q169: 689 | R169: 1197 | S169: 510 | T169: 592 | U169: 277 | V169: 1089 | W169: 336 | X169: 280 | Y169: 192 | Z169: 611 | AA169: 149 | AB169: 1571 | AC169: 274 | AD169: 730 | AE169: 1614 | AF169: 1385 | AG169: 1332 | AH169: 193 | AI169: 423 | AJ169: 869 | AK169: 392 | AL169: 1526 | AM169: 83 | AN169: 524 | AO169: 779 | AP169: 655 | AQ169: 187 | AR169: 397 | AS169: 1741 | AT169: 267 | AU169: 364 | AV169: 1085 | AW169: 169
A170: Female 5-9 | B170: 26138 | C170: 1479 | D170: 782 | E170: 1448 | F170: 1904 | G170: 1500 | H170: 2989 | I170: 3474 | J170: 2586 | K170: 3828 | L170: 3751 | M170: 90 | N170: 230 | O170: 1601 | P170: 476 | Q170: 641 | R170: 1354 | S170: 635 | T170: 786 | U170: 334 | V170: 1448 | W170: 325 | X170: 387 | Y170: 249 | Z170: 618 | AA170: 210 | AB170: 1348 | AC170: 476 | AD170: 823 | AE170: 1904 | AF170: 1406 | AG170: 1800 | AH170: 280 | AI170: 513 | AJ170: 994 | AK170: 523 | AL170: 1761 | AM170: 90 | AN170: 641 | AO170: 923 | AP170: 782 | AQ170: 230 | AR170: 569 | AS170: 2067 | AT170: 343 | AU170: 406 | AV170: 1272 | AW170: 170
A171: Female 10-14 | B171: 26417 | C171: 1491 | D171: 979 | E171: 1424 | F171: 1729 | G171: 1483 | H171: 3010 | I171: 3539 | J171: 2800 | K171: 3907 | L171: 3538 | M171: 81 | N171: 253 | O171: 1757 | P171: 426 | Q171: 538 | R171: 1418 | S171: 669 | T171: 919 | U171: 356 | V171: 1424 | W171: 364 | X171: 400 | Y171: 235 | Z171: 681 | AA171: 192 | AB171: 1185 | AC171: 426 | AD171: 774 | AE171: 1729 | AF171: 1447 | AG171: 1881 | AH171: 317 | AI171: 505 | AJ171: 1054 | AK171: 528 | AL171: 1836 | AM171: 81 | AN171: 724 | AO171: 916 | AP171: 979 | AQ171: 253 | AR171: 563 | AS171: 2071 | AT171: 353 | AU171: 432 | AV171: 1167 | AW171: 171
A172: Female 15-19 | B172: 30251 | C172: 1681 | D172: 958 | E172: 1635 | F172: 2038 | G172: 1592 | H172: 3713 | I172: 4573 | J172: 2822 | K172: 3999 | L172: 4152 | M172: 104 | N172: 299 | O172: 2217 | P172: 468 | Q172: 1099 | R172: 1466 | S172: 719 | T172: 947 | U172: 381 | V172: 1635 | W172: 757 | X172: 455 | Y172: 263 | Z172: 987 | AA172: 218 | AB172: 1397 | AC172: 468 | AD172: 810 | AE172: 2038 | AF172: 2291 | AG172: 1875 | AH172: 307 | AI172: 504 | AJ172: 1148 | AK172: 590 | AL172: 1824 | AM172: 104 | AN172: 741 | AO172: 1014 | AP172: 958 | AQ172: 299 | AR172: 636 | AS172: 2175 | AT172: 401 | AU172: 480 | AV172: 1264 | AW172: 172
A173: Female 20-24 | B173: 36234 | C173: 1334 | D173: 733 | E173: 1322 | F173: 2083 | G173: 1965 | H173: 4724 | I173: 7741 | J173: 2102 | K173: 3923 | L173: 7146 | M173: 106 | N173: 219 | O173: 2535 | P173: 301 | Q173: 2408 | R173: 1382 | S173: 608 | T173: 600 | U173: 305 | V173: 1322 | W173: 1279 | X173: 374 | Y173: 273 | Z173: 999 | AA173: 198 | AB173: 4511 | AC173: 301 | AD173: 805 | AE173: 2083 | AF173: 5357 | AG173: 1502 | AH173: 331 | AI173: 446 | AJ173: 934 | AK173: 467 | AL173: 1752 | AM173: 106 | AN173: 648 | AO173: 1046 | AP173: 733 | AQ173: 219 | AR173: 493 | AS173: 2171 | AT173: 855 | AU173: 536 | AV173: 1190 | AW173: 173
A174: Female 25-29 | B174: 36373 | C174: 1219 | D174: 795 | E174: 1316 | F174: 2213 | G174: 1793 | H174: 4584 | I174: 7124 | J174: 2375 | K174: 4242 | L174: 7832 | M174: 125 | N174: 228 | O174: 2189 | P174: 338 | Q174: 2092 | R174: 1426 | S174: 693 | T174: 716 | U174: 381 | V174: 1316 | W174: 742 | X174: 315 | Y174: 189 | Z174: 748 | AA174: 175 | AB174: 5206 | AC174: 338 | AD174: 939 | AE174: 2213 | AF174: 4807 | AG174: 1659 | AH174: 254 | AI174: 471 | AJ174: 1066 | AK174: 425 | AL174: 1898 | AM174: 125 | AN174: 754 | AO174: 1180 | AP174: 795 | AQ174: 228 | AR174: 479 | AS174: 2344 | AT174: 473 | AU174: 519 | AV174: 1407 | AW174: 174
A175: Female 30-34 | B175: 34895 | C175: 1429 | D175: 827 | E175: 1304 | F175: 2349 | G175: 1887 | H175: 4024 | I175: 6180 | J175: 2566 | K175: 4648 | L175: 6894 | M175: 110 | N175: 254 | O175: 2023 | P175: 400 | Q175: 1460 | R175: 1501 | S175: 750 | T175: 747 | U175: 396 | V175: 1304 | W175: 546 | X175: 389 | Y175: 224 | Z175: 743 | AA175: 191 | AB175: 4129 | AC175: 400 | AD175: 1061 | AE175: 2349 | AF175: 3688 | AG175: 1819 | AH175: 292 | AI175: 556 | AJ175: 1063 | AK175: 488 | AL175: 2158 | AM175: 110 | AN175: 727 | AO175: 1237 | AP175: 827 | AQ175: 254 | AR175: 552 | AS175: 2490 | AT175: 430 | AU175: 548 | AV175: 1466 | AW175: 175
A176: Female 35-39 | B176: 33095 | C176: 1711 | D176: 935 | E176: 1528 | F176: 2325 | G176: 1887 | H176: 3748 | I176: 4978 | J176: 2852 | K176: 4555 | L176: 5791 | M176: 100 | N176: 263 | O176: 1962 | P176: 460 | Q176: 1030 | R176: 1560 | S176: 754 | T176: 881 | U176: 404 | V176: 1528 | W176: 482 | X176: 464 | Y176: 248 | Z176: 795 | AA176: 202 | AB176: 2925 | AC176: 460 | AD176: 1033 | AE176: 2325 | AF176: 2577 | AG176: 1971 | AH176: 285 | AI176: 550 | AJ176: 1158 | AK176: 605 | AL176: 2137 | AM176: 100 | AN176: 726 | AO176: 1116 | AP176: 935 | AQ176: 263 | AR176: 642 | AS176: 2418 | AT176: 450 | AU176: 550 | AV176: 1521 | AW176: 176
A177: Female 40-44 | B177: 40181 | C177: 2247 | D177: 1357 | E177: 2005 | F177: 2787 | G177: 2236 | H177: 4460 | I177: 6040 | J177: 3779 | K177: 5743 | L177: 5927 | M177: 136 | N177: 324 | O177: 2539 | P177: 601 | Q177: 1098 | R177: 1945 | S177: 958 | T177: 1198 | U177: 498 | V177: 2005 | W177: 516 | X177: 625 | Y177: 384 | Z177: 1046 | AA177: 290 | AB177: 2403 | AC177: 601 | AD177: 1260 | AE177: 2787 | AF177: 2668 | AG177: 2581 | AH177: 419 | AI177: 691 | AJ177: 1417 | AK177: 778 | AL177: 2600 | AM177: 136 | AN177: 1065 | AO177: 1545 | AP177: 1357 | AQ177: 324 | AR177: 844 | AS177: 3143 | AT177: 478 | AU177: 734 | AV177: 1787 | AW177: 177
A178: Female 45-49 | B178: 42149 | C178: 2459 | D178: 1400 | E178: 2422 | F178: 2945 | G178: 2295 | H178: 4756 | I178: 5977 | J178: 4444 | K178: 5875 | L178: 5687 | M178: 190 | N178: 337 | O178: 2787 | P178: 575 | Q178: 1145 | R178: 2123 | S178: 1012 | T178: 1435 | U178: 523 | V178: 2422 | W178: 605 | X178: 656 | Y178: 320 | Z178: 979 | AA178: 287 | AB178: 2284 | AC178: 575 | AD178: 1216 | AE178: 2945 | AF178: 2570 | AG178: 3009 | AH178: 486 | AI178: 733 | AJ178: 1488 | AK178: 869 | AL178: 2615 | AM178: 190 | AN178: 1170 | AO178: 1543 | AP178: 1400 | AQ178: 337 | AR178: 934 | AS178: 3260 | AT178: 556 | AU178: 771 | AV178: 1691 | AW178: 178
A179: Female 50-54 | B179: 39397 | C179: 2347 | D179: 1385 | E179: 2252 | F179: 2732 | G179: 2027 | H179: 4245 | I179: 5607 | J179: 4292 | K179: 5495 | L179: 5216 | M179: 147 | N179: 335 | O179: 2739 | P179: 578 | Q179: 1078 | R179: 1900 | S179: 1052 | T179: 1348 | U179: 451 | V179: 2252 | W179: 602 | X179: 608 | Y179: 325 | Z179: 944 | AA179: 305 | AB179: 2117 | AC179: 578 | AD179: 1111 | AE179: 2732 | AF179: 2391 | AG179: 2944 | AH179: 505 | AI179: 659 | AJ179: 1267 | AK179: 813 | AL179: 2338 | AM179: 147 | AN179: 1085 | AO179: 1325 | AP179: 1385 | AQ179: 335 | AR179: 926 | AS179: 3157 | AT179: 465 | AU179: 756 | AV179: 1496 | AW179: 179
A180: Female 55-59 | B180: 34971 | C180: 2163 | D180: 1245 | E180: 2190 | F180: 2488 | G180: 1772 | H180: 4040 | I180: 4661 | J180: 4113 | K180: 4659 | L180: 4226 | M180: 148 | N180: 317 | O180: 2394 | P180: 555 | Q180: 1040 | R180: 1881 | S180: 948 | T180: 1315 | U180: 402 | V180: 2190 | W180: 475 | X180: 552 | Y180: 310 | Z180: 811 | AA180: 242 | AB180: 1666 | AC180: 555 | AD180: 959 | AE180: 2488 | AF180: 1907 | AG180: 2798 | AH180: 388 | AI180: 599 | AJ180: 1119 | AK180: 809 | AL180: 2032 | AM180: 148 | AN180: 971 | AO180: 1142 | AP180: 1245 | AQ180: 317 | AR180: 802 | AS180: 2627 | AT180: 411 | AU180: 672 | AV180: 1150 | AW180: 180
A181: Female 60-64 | B181: 33802 | C181: 2041 | D181: 1333 | E181: 2286 | F181: 2440 | G181: 1789 | H181: 3918 | I181: 4110 | J181: 4269 | K181: 4101 | L181: 4117 | M181: 158 | N181: 298 | O181: 2387 | P181: 555 | Q181: 1015 | R181: 1766 | S181: 931 | T181: 1470 | U181: 378 | V181: 2286 | W181: 469 | X181: 514 | Y181: 273 | Z181: 792 | AA181: 266 | AB181: 1489 | AC181: 555 | AD181: 1012 | AE181: 2440 | AF181: 1491 | AG181: 2799 | AH181: 345 | AI181: 672 | AJ181: 1137 | AK181: 728 | AL181: 1822 | AM181: 158 | AN181: 987 | AO181: 1116 | AP181: 1333 | AQ181: 298 | AR181: 799 | AS181: 2279 | AT181: 399 | AU181: 619 | AV181: 1164 | AW181: 181
A182: Female 65-69 | B182: 30988 | C182: 2096 | D182: 1213 | E182: 2211 | F182: 2281 | G182: 1572 | H182: 3602 | I182: 3522 | J182: 3824 | K182: 3868 | L182: 3533 | M182: 158 | N182: 303 | O182: 2256 | P182: 549 | Q182: 860 | R182: 1599 | S182: 874 | T182: 1314 | U182: 347 | V182: 2211 | W182: 409 | X182: 556 | Y182: 238 | Z182: 699 | AA182: 204 | AB182: 1268 | AC182: 549 | AD182: 830 | AE182: 2281 | AF182: 1263 | AG182: 2510 | AH182: 317 | AI182: 561 | AJ182: 1143 | AK182: 752 | AL182: 1653 | AM182: 158 | AN182: 973 | AO182: 1003 | AP182: 1213 | AQ182: 303 | AR182: 788 | AS182: 2215 | AT182: 395 | AU182: 497 | AV182: 1005 | AW182: 182
A183: Female 70-74 | B183: 24726 | C183: 1599 | D183: 935 | E183: 1690 | F183: 1764 | G183: 1332 | H183: 2843 | I183: 2939 | J183: 3007 | K183: 3132 | L183: 2909 | M183: 151 | N183: 217 | O183: 1788 | P183: 420 | Q183: 697 | R183: 1284 | S183: 597 | T183: 1092 | U183: 233 | V183: 1690 | W183: 387 | X183: 395 | Y183: 158 | Z183: 608 | AA183: 200 | AB183: 1077 | AC183: 420 | AD183: 764 | AE183: 1764 | AF183: 1049 | AG183: 1915 | AH183: 265 | AI183: 433 | AJ183: 862 | AK183: 593 | AL183: 1306 | AM183: 151 | AN183: 804 | AO183: 831 | AP183: 935 | AQ183: 217 | AR183: 611 | AS183: 1826 | AT183: 335 | AU183: 436 | AV183: 791 | AW183: 183
A184: Female 75-79 | B184: 20451 | C184: 1218 | D184: 790 | E184: 1383 | F184: 1452 | G184: 1036 | H184: 2474 | I184: 2588 | J184: 2348 | K184: 2648 | L184: 2314 | M184: 91 | N184: 186 | O184: 1576 | P184: 347 | Q184: 727 | R184: 1036 | S184: 518 | T184: 876 | U184: 181 | V184: 1383 | W184: 376 | X184: 304 | Y184: 135 | Z184: 515 | AA184: 191 | AB184: 913 | AC184: 347 | AD184: 590 | AE184: 1452 | AF184: 973 | AG184: 1472 | AH184: 191 | AI184: 373 | AJ184: 711 | AK184: 440 | AL184: 1088 | AM184: 91 | AN184: 682 | AO184: 710 | AP184: 790 | AQ184: 186 | AR184: 474 | AS184: 1560 | AT184: 265 | AU184: 388 | AV184: 513 | AW184: 184
A185: Female 80-84 | B185: 15443 | C185: 849 | D185: 571 | E185: 1071 | F185: 1074 | G185: 756 | H185: 1889 | I185: 1931 | J185: 1737 | K185: 1972 | L185: 1844 | M185: 71 | N185: 107 | O185: 1301 | P185: 270 | Q185: 592 | R185: 789 | S185: 428 | T185: 657 | U185: 127 | V185: 1071 | W185: 304 | X185: 174 | Y185: 104 | Z185: 449 | AA185: 136 | AB185: 767 | AC185: 270 | AD185: 427 | AE185: 1074 | AF185: 742 | AG185: 1080 | AH185: 159 | AI185: 255 | AJ185: 508 | AK185: 331 | AL185: 819 | AM185: 71 | AN185: 569 | AO185: 501 | AP185: 571 | AQ185: 107 | AR185: 344 | AS185: 1153 | AT185: 202 | AU185: 289 | AV185: 373 | AW185: 185
A186: Female 85-89 | B186: 9694 | C186: 498 | D186: 349 | E186: 651 | F186: 746 | G186: 432 | H186: 1169 | I186: 1243 | J186: 1077 | K186: 1184 | L186: 1171 | M186: 42 | N186: 70 | O186: 891 | P186: 171 | Q186: 368 | R186: 521 | S186: 283 | T186: 383 | U186: 93 | V186: 651 | W186: 237 | X186: 107 | Y186: 79 | Z186: 265 | AA186: 102 | AB186: 522 | AC186: 171 | AD186: 221 | AE186: 746 | AF186: 448 | AG186: 694 | AH186: 90 | AI186: 161 | AJ186: 280 | AK186: 195 | AL186: 430 | AM186: 42 | AN186: 371 | AO186: 358 | AP186: 349 | AQ186: 70 | AR186: 196 | AS186: 754 | AT186: 118 | AU186: 166 | AV186: 223 | AW186: 186
A187: Female 90+ | B187: 5483 | C187: 298 | D187: 189 | E187: 362 | F187: 417 | G187: 243 | H187: 634 | I187: 762 | J187: 621 | K187: 676 | L187: 608 | M187: 36 | N187: 51 | O187: 492 | P187: 94 | Q187: 181 | R187: 302 | S187: 149 | T187: 263 | U187: 53 | V187: 362 | W187: 132 | X187: 60 | Y187: 43 | Z187: 166 | AA187: 73 | AB187: 275 | AC187: 94 | AD187: 111 | AE187: 417 | AF187: 240 | AG187: 358 | AH187: 41 | AI187: 81 | AJ187: 151 | AK187: 142 | AL187: 258 | AM187: 36 | AN187: 211 | AO187: 275 | AP187: 189 | AQ187: 51 | AR187: 96 | AS187: 418 | AT187: 79 | AU187: 90 | AV187: 86 | AW187: 187
A188: age/sex breakdown: Q4 | AW188: 188
A189: Male 0 | B189: 5433 | C189: 299 | D189: 202 | E189: 134 | F189: 340 | G189: 320 | H189: 842 | I189: 788 | J189: 471 | K189: 544 | L189: 818 | M189: 70 | N189: 69 | O189: 536 | Q189: 152 | R189: 542 | S189: 178 | T189: 90 | U189: 43 | V189: 134 | W189: 92 | X189: 122 | Y189: 92 | Z189: 194 | AA189: 80 | AB189: 385 | AC189: 0 | AD189: 171 | AE189: 340 | AF189: 383 | AG189: 381 | AH189: 70 | AI189: 91 | AJ189: 148 | AK189: 131 | AL189: 225 | AM189: 70 | AN189: 266 | AO189: 130 | AP189: 202 | AQ189: 69 | AR189: 46 | AS189: 319 | AT189: 106 | AU189: 33 | AV189: 148 | AW189: 189
A190: Male 1-4 | B190: 22890 | C190: 1157 | D190: 954 | E190: 641 | F190: 1398 | G190: 1397 | H190: 3600 | I190: 3086 | J190: 2050 | K190: 2169 | L190: 3413 | M190: 266 | N190: 285 | O190: 2474 | Q190: 477 | R190: 2473 | S190: 847 | T190: 371 | U190: 200 | V190: 641 | W190: 377 | X190: 377 | Y190: 381 | Z190: 806 | AA190: 344 | AB190: 1529 | AC190: 0 | AD190: 707 | AE190: 1398 | AF190: 1270 | AG190: 1679 | AH190: 242 | AI190: 363 | AJ190: 650 | AK190: 485 | AL190: 957 | AM190: 266 | AN190: 1250 | AO190: 660 | AP190: 954 | AQ190: 285 | AR190: 295 | AS190: 1212 | AT190: 490 | AU190: 189 | AV190: 715 | AW190: 190
A191: Male 5-9 | B191: 28329 | C191: 1555 | D191: 1283 | E191: 912 | F191: 1724 | G191: 1860 | H191: 4178 | I191: 3727 | J191: 2591 | K191: 2702 | L191: 3867 | M191: 328 | N191: 341 | O191: 3261 | Q191: 437 | R191: 2850 | S191: 1269 | T191: 526 | U191: 255 | V191: 912 | W191: 422 | X191: 510 | Y191: 547 | Z191: 1056 | AA191: 493 | AB191: 1497 | AC191: 0 | AD191: 932 | AE191: 1724 | AF191: 1388 | AG191: 2065 | AH191: 293 | AI191: 466 | AJ191: 891 | AK191: 710 | AL191: 1191 | AM191: 328 | AN191: 1570 | AO191: 813 | AP191: 1283 | AQ191: 341 | AR191: 335 | AS191: 1511 | AT191: 673 | AU191: 193 | AV191: 848 | AW191: 191
A192: Male 10-14 | B192: 29518 | C192: 1597 | D192: 1420 | E192: 920 | F192: 1897 | G192: 1964 | H192: 4260 | I192: 3823 | J192: 2839 | K192: 2765 | L192: 3674 | M192: 361 | N192: 326 | O192: 3672 | Q192: 415 | R192: 2861 | S192: 1349 | T192: 596 | U192: 245 | V192: 920 | W192: 493 | X192: 469 | Y192: 631 | Z192: 977 | AA192: 520 | AB192: 1378 | AC192: 0 | AD192: 883 | AE192: 1897 | AF192: 1356 | AG192: 2243 | AH192: 344 | AI192: 501 | AJ192: 984 | AK192: 700 | AL192: 1189 | AM192: 361 | AN192: 1830 | AO192: 780 | AP192: 1420 | AQ192: 326 | AR192: 428 | AS192: 1576 | AT192: 836 | AU192: 192 | AV192: 818 | AW192: 192
A193: Male 15-19 | B193: 31769 | C193: 1683 | D193: 1323 | E193: 968 | F193: 2037 | G193: 1963 | H193: 4659 | I193: 4883 | J193: 2842 | K193: 2916 | L193: 3996 | M193: 404 | N193: 354 | O193: 3741 | Q193: 708 | R193: 2910 | S193: 1299 | T193: 651 | U193: 266 | V193: 968 | W193: 509 | X193: 521 | Y193: 704 | Z193: 932 | AA193: 485 | AB193: 1701 | AC193: 0 | AD193: 848 | AE193: 2037 | AF193: 2137 | AG193: 2191 | AH193: 341 | AI193: 521 | AJ193: 1041 | AK193: 752 | AL193: 1331 | AM193: 404 | AN193: 1933 | AO193: 957 | AP193: 1323 | AQ193: 354 | AR193: 410 | AS193: 1585 | AT193: 849 | AU193: 259 | AV193: 842 | AW193: 193
A194: Male 20-24 | B194: 32672 | C194: 1441 | D194: 908 | E194: 844 | F194: 1738 | G194: 1715 | H194: 4932 | I194: 6685 | J194: 2301 | K194: 2621 | L194: 5333 | M194: 323 | N194: 323 | O194: 3508 | Q194: 1695 | R194: 2356 | S194: 1128 | T194: 466 | U194: 223 | V194: 844 | W194: 968 | X194: 459 | Y194: 639 | Z194: 761 | AA194: 457 | AB194: 3387 | AC194: 0 | AD194: 785 | AE194: 1738 | AF194: 4082 | AG194: 1835 | AH194: 369 | AI194: 506 | AJ194: 881 | AK194: 606 | AL194: 1188 | AM194: 323 | AN194: 1412 | AO194: 885 | AP194: 908 | AQ194: 323 | AR194: 376 | AS194: 1433 | AT194: 707 | AU194: 253 | AV194: 679 | AW194: 194
A195: Male 25-29 | B195: 29473 | C195: 1188 | D195: 808 | E195: 846 | F195: 1500 | G195: 1555 | H195: 4671 | I195: 5157 | J195: 2371 | K195: 2404 | L195: 5380 | M195: 274 | N195: 357 | O195: 2962 | Q195: 1513 | R195: 2335 | S195: 998 | T195: 426 | U195: 201 | V195: 846 | W195: 618 | X195: 443 | Y195: 431 | Z195: 625 | AA195: 317 | AB195: 3640 | AC195: 0 | AD195: 771 | AE195: 1500 | AF195: 3212 | AG195: 1945 | AH195: 324 | AI195: 402 | AJ195: 823 | AK195: 480 | AL195: 1081 | AM195: 274 | AN195: 1346 | AO195: 666 | AP195: 808 | AQ195: 357 | AR195: 265 | AS195: 1323 | AT195: 583 | AU195: 207 | AV195: 713 | AW195: 195
A196: Male 30-34 | B196: 29808 | C196: 1332 | D196: 845 | E196: 726 | F196: 1651 | G196: 1762 | H196: 4797 | I196: 4455 | J196: 2567 | K196: 2780 | L196: 5223 | M196: 294 | N196: 323 | O196: 3053 | Q196: 1264 | R196: 2719 | S196: 1001 | T196: 425 | U196: 235 | V196: 726 | W196: 549 | X196: 436 | Y196: 370 | Z196: 755 | AA196: 323 | AB196: 3197 | AC196: 0 | AD196: 952 | AE196: 1651 | AF196: 2680 | AG196: 2142 | AH196: 264 | AI196: 481 | AJ196: 814 | AK196: 573 | AL196: 1237 | AM196: 294 | AN196: 1503 | AO196: 639 | AP196: 845 | AQ196: 323 | AR196: 323 | AS196: 1543 | AT196: 575 | AU196: 179 | AV196: 790 | AW196: 196
A197: Male 35-39 | B197: 31521 | C197: 1597 | D197: 1157 | E197: 805 | F197: 1863 | G197: 2014 | H197: 5109 | I197: 4294 | J197: 2645 | K197: 3048 | L197: 5150 | M197: 295 | N197: 402 | O197: 3142 | Q197: 947 | R197: 3266 | S197: 1137 | T197: 487 | U197: 299 | V197: 805 | W197: 471 | X197: 549 | Y197: 490 | Z197: 1045 | AA197: 403 | AB197: 2705 | AC197: 0 | AD197: 1066 | AE197: 1863 | AF197: 2108 | AG197: 2158 | AH197: 313 | AI197: 532 | AJ197: 896 | AK197: 686 | AL197: 1305 | AM197: 295 | AN197: 1534 | AO197: 792 | AP197: 1157 | AQ197: 402 | AR197: 362 | AS197: 1743 | AT197: 649 | AU197: 188 | AV197: 868 | AW197: 197
A198: Male 40-44 | B198: 38841 | C198: 2090 | D198: 1788 | E198: 1155 | F198: 2384 | G198: 2564 | H198: 5680 | I198: 5236 | J198: 3356 | K198: 3890 | L198: 5618 | M198: 450 | N198: 377 | O198: 4253 | Q198: 835 | R198: 3654 | S198: 1567 | T198: 689 | U198: 362 | V198: 1155 | W198: 606 | X198: 683 | Y198: 675 | Z198: 1310 | AA198: 533 | AB198: 2468 | AC198: 0 | AD198: 1293 | AE198: 2384 | AF198: 2348 | AG198: 2667 | AH198: 430 | AI198: 624 | AJ198: 1191 | AK198: 852 | AL198: 1701 | AM198: 450 | AN198: 2080 | AO198: 976 | AP198: 1788 | AQ198: 377 | AR198: 555 | AS198: 2189 | AT198: 909 | AU198: 274 | AV198: 1216 | AW198: 198
A199: Male 45-49 | B199: 41914 | C199: 2194 | D199: 1984 | E199: 1446 | F199: 2782 | G199: 2680 | H199: 5986 | I199: 5620 | J199: 3784 | K199: 3863 | L199: 5695 | M199: 523 | N199: 452 | O199: 4905 | Q199: 809 | R199: 3888 | S199: 1775 | T199: 877 | U199: 360 | V199: 1446 | W199: 667 | X199: 692 | Y199: 798 | Z199: 1339 | AA199: 541 | AB199: 2489 | AC199: 0 | AD199: 1292 | AE199: 2782 | AF199: 2295 | AG199: 2907 | AH199: 526 | AI199: 646 | AJ199: 1289 | AK199: 914 | AL199: 1683 | AM199: 523 | AN199: 2463 | AO199: 1130 | AP199: 1984 | AQ199: 452 | AR199: 588 | AS199: 2180 | AT199: 1028 | AU199: 330 | AV199: 1221 | AW199: 199
A200: Male 50-54 | B200: 39765 | C200: 2235 | D200: 1921 | E200: 1345 | F200: 2650 | G200: 2458 | H200: 5531 | I200: 5735 | J200: 3661 | K200: 3479 | L200: 5344 | M200: 459 | N200: 422 | O200: 4525 | Q200: 783 | R200: 3518 | S200: 1659 | T200: 855 | U200: 351 | V200: 1345 | W200: 688 | X200: 697 | Y200: 865 | Z200: 1246 | AA200: 593 | AB200: 2311 | AC200: 0 | AD200: 1154 | AE200: 2650 | AF200: 2142 | AG200: 2806 | AH200: 581 | AI200: 630 | AJ200: 1230 | AK200: 908 | AL200: 1506 | AM200: 459 | AN200: 2178 | AO200: 1179 | AP200: 1921 | AQ200: 422 | AR200: 630 | AS200: 1973 | AT200: 953 | AU200: 375 | AV200: 1157 | AW200: 200
... 80 more rows

Sheet Calculations
A1: USING Scotland AS EXAMPLE. NEED TO ADD LOOKUP FOR MORTALITY WHEN UPDATE | B1: YEAR START | C1: 2012 | D1: AGE GROUP | E1: 16+ | I1: Cumulative incidence: years 2, 5, 10 and 20 | Q1: Years of life lost: years 2,5,10 and 20 | AC1: Hospitalisations: years 2,5,10 and 20
A2: Population Group | B2: mid-age | C2: Sex | D2: SIMD | E2: Prevalence exposure | F2: TOTAL POPULATION 2007-11 (annual average - '0s) | G2: Number treated at base | H2: Additional number treated under policy | I2: Baseline-2 | J2: Policy-2 | K2: Baseline-5 | L2: Policy-5 | M2: Baseline-10 | N2: Policy-10 | O2: Baseline-20 | P2: Policy-20 | Q2: Baseline-2 | R2: Policy-2 | S2: Diff YLL-2 | T2: Baseline-5 | U2: Policy-5 | V2: Diff YLL-5 | W2: Baseline-10 | X2: Policy-10 | Y2: Diff YLL-10 | Z2: Baseline-20 | AA2: Policy-20 | AB2: Diff YLL-20 | AC2: Baseline-2 | AD2: Policy-2 | AE2: Diff hosp-2 years | AF2: Baseline-5 | AG2: Policy-5 | AH2: Diff hosp - 5 years | AI2: Baseline-10 | AJ2: Policy-10 | AK2: Diff hosp - 10 years | AL2: Baseline-20 | AM2: Policy-20 | AN2: Diff hosp - 20 years
A3: All, by SIMD
A4: Total | F4: =SUM(F5:F9) -> 2024.8 | G4: =SUM(G5:G9) -> 0 | H4: 2024.8 | I4: 173.6774296 | J4: 172.2335104 | K4: 717.7488287 | L4: 712.1826362 | M4: 1695.097558 | N4: 1683.440155 | O4: 3868.773972 | P4: 3847.940171 | Q4: =SUM(Q5:Q9) -> 4567.360208 | R4: 4529.421283 | S4: 37.93892506 | T4: 18304.11346 | U4: 18157.21888 | V4: 146.894573 | W4: 41090.44917 | X4: 40776.7257 | Y4: 313.7234663 | Z4: 84645.07935 | AA4: 84045.18688 | AB4: 599.8924709 | AC4: 4318.771337 | AD4: 4291.115032 | AE4: 27.65630497 | AF4: 17598.33036 | AG4: 17490.06221 | AH4: 108.268153 | AI4: 40717.72404 | AJ4: 40483.62522 | AK4: 234.0988229 | AL4: 89884.52221 | AM4: 89433.78162 | AN4: 450.7405897
A5: Q 1 | B5: n/a | C5: both | D5: 1 | E5: 1 | F5: =F12+F19 -> 0 | G5: =G12+G19 -> 0 | H5: =H12+H19 -> 0 | I5: =I12+I19 -> 0 | J5: 0 | K5: 0 | L5: 0 | M5: 0 | N5: 0 | O5: 0 | P5: 0 | Q5: 0 | R5: 0 | S5: =S12+S19 -> 0 | T5: 0 | U5: 0 | V5: 0 | W5: 0 | X5: 0 | Y5: 0 | Z5: 0 | AA5: 0 | AB5: 0 | AC5: 0 | AD5: 0 | AE5: 0 | AF5: 0 | AG5: 0 | AH5: 0 | AI5: 0 | AJ5: 0 | AK5: 0 | AL5: 0 | AM5: 0 | AN5: 0
A6: Q 2 | B6: n/a | C6: both | D6: 2 | E6: 1 | F6: =F13+F20 -> 435.6 | G6: 0 | H6: 435.6 | I6: 51.2333886 | J6: 50.73350459 | K6: 207.9753987 | L6: 206.1042635 | M6: 476.8787727 | N6: 473.1354374 | O6: 1031.036586 | P6: 1024.845033 | Q6: 1319.317615 | R6: 1306.356556 | S6: 12.96105915 | T6: 5230.748128 | U6: 5181.379313 | V6: 49.36881573 | W6: 11557.32788 | X6: 11454.37257 | Y6: 102.9553065 | Z6: 23218.08885 | AA6: 23029.18854 | AB6: 188.9003047 | AC6: 1133.30271 | AD6: 1124.517946 | AE6: 8.784764631 | AF6: 4574.264681 | AG6: 4540.477751 | AH6: 33.78693013 | AI6: 10418.69039 | AJ6: 10347.5948 | AK6: 71.09558282 | AL6: 22323.87413 | AM6: 22193.12081 | AN6: 130.7533122
A7: Q 3 | B7: n/a | C7: both | D7: 3 | E7: 1 | F7: 415.34 | G7: 0 | H7: 415.34 | I7: 41.14530189 | J7: 40.69831912 | K7: 169.4797322 | L7: 167.7594459 | M7: 397.6410442 | N7: 394.0556086 | O7: 893.9894835 | P7: 887.65444 | Q7: 1062.818185 | R7: 1051.21439 | S7: 11.60379439 | T7: 4248.179924 | U7: 4203.282623 | V7: 44.89730156 | W7: 9495.691726 | X7: 9399.916393 | Y7: 95.77533248 | Z7: 19412.99707 | AA7: 19230.44414 | AB7: 182.55293 | AC7: 954.6899756 | AD7: 946.4768208 | AE7: 8.213154774 | AF7: 3879.896607 | AG7: 3847.817016 | AH7: 32.07959112 | AI7: 8934.31779 | AJ7: 8865.264425 | AK7: 69.05336493 | AL7: 19519.90959 | AM7: 19388.33947 | AN7: 131.5701234
A8: Q 4 | B8: n/a | C8: both | D8: 4 | E8: 1 | F8: 1111.64 | G8: 0 | H8: 1111.64 | I8: 78.07024212 | J8: 77.58003344 | K8: 326.6470454 | L8: 324.7004258 | M8: 787.099394 | N8: 782.8362044 | O8: 1861.475556 | P8: 1853.307637 | Q8: 2099.82901 | R8: 2086.64988 | S8: 13.17913008 | T8: 8478.375797 | U8: 8426.526683 | V8: 51.84911469 | W8: 19242.622 | X8: 19129.36938 | Y8: 113.2526248 | Z8: 40314.98163 | AA8: 40090.12304 | AB8: 224.8585841 | AC8: 2124.604393 | AD8: 2114.135403 | AE8: 10.46899033 | AF8: 8706.514114 | AG8: 8664.878263 | AH8: 41.63585147 | AI8: 20331.96813 | AJ8: 20239.75977 | AK8: 92.20835896 | AL8: 45667.45554 | AM8: 45482.69603 | AN8: 184.7595058
A9: Q 5 | B9: n/a | C9: both | D9: 5 | E9: 1 | F9: 62.22 | G9: 0 | H9: 62.22 | I9: 3.228497002 | J9: 3.221653286 | K9: 13.64665241 | L9: 13.61850101 | M9: 33.47834723 | N9: 33.41290494 | O9: 82.27234696 | P9: 82.13306098 | Q9: 85.39539807 | R9: 85.20045663 | S9: 0.1949414421 | T9: 346.8096062 | U9: 346.0302652 | V9: 0.7793410539 | W9: 794.8075615 | X9: 793.0673589 | Y9: 1.740202588 | Z9: 1699.011812 | AA9: 1695.43116 | AB9: 3.58065214 | AC9: 106.1742579 | AD9: 105.9848627 | AE9: 0.1893952282 | AF9: 437.6549606 | AG9: 436.8891804 | AH9: 0.7657802592 | AI9: 1032.747733 | AJ9: 1031.006216 | AK9: 1.741516158 | AL9: 2373.28296 | AM9: 2369.625312 | AN9: 3.657648285
A10: Males, by SIMD
A11: Males | F11: =SUM(F12:F16) -> 998.3 | G11: =SUM(G12:G16) -> 0 | H11: 998.3 | I11: 90.08991386 | J11: 89.3360033 | K11: 372.1896057 | L11: 369.2689731 | M11: 879.1826858 | N11: 873.0079742 | O11: 2005.8745 | P11: 1994.725687 | Q11: 2658.398784 | R11: 2636.296163 | S11: 22.10262133 | T11: 10661.50703 | U11: 10575.91841 | V11: 85.58861314 | W11: 23945.97266 | X11: 23763.78047 | Y11: 182.1921894 | Z11: 49228.42015 | AA11: 48885.38853 | AB11: 343.0316216 | AC11: 2090.814694 | AD11: 2077.380653 | AE11: 13.43404065 | AF11: 8562.971915 | AG11: 8510.383048 | AH11: 52.58886799 | AI11: 19972.49928 | AJ11: 19859.01776 | AK11: 113.4815173 | AL11: 44712.41803 | AM11: 44496.73464 | AN11: 215.6833897
A12: Q 1 | B12: n/a | C12: male | D12: 1 | E12: 1 | F12: =F86 -> 0 | G12: =G86 -> 0 | H12: =H86 -> 0 | I12: =I86 -> 0 | J12: =J86 -> 0 | K12: 0 | L12: 0 | M12: 0 | N12: 0 | O12: 0 | P12: 0 | Q12: 0 | R12: 0 | S12: 0 | T12: 0 | U12: 0 | V12: 0 | W12: 0 | X12: 0 | Y12: 0 | Z12: 0 | AA12: 0 | AB12: 0 | AC12: 0 | AD12: 0 | AE12: 0 | AF12: 0 | AG12: 0 | AH12: 0 | AI12: 0 | AJ12: 0 | AK12: 0 | AL12: 0 | AM12: 0 | AN12: 0
A13: Q 2 | B13: n/a | C13: male | D13: 2 | E13: 1 | F13: =F129 -> 213.18 | G13: =G129 -> 0 | H13: =H129 -> 213.18 | I13: =I129 -> 26.38728058 | J13: 26.12621209 | K13: 107.1555383 | L13: 106.1742051 | M13: 245.9011291 | N13: 243.9241402 | O13: 530.7117931 | P13: 527.4312376 | Q13: 761.118531 | R13: 753.6165214 | S13: 7.502009599 | T13: 3018.398464 | U13: 2989.859283 | V13: 28.5391805 | W13: 6664.069903 | X13: 6604.875359 | Y13: 59.19454478 | Z13: 13329.93969 | AA13: 13223.04087 | AB13: 106.8988205 | AC13: 545.7676599 | AD13: 541.512686 | AE13: 4.254973991 | AF13: 2211.215574 | AG13: 2194.90626 | AH13: 16.30931395 | AI13: 5065.376747 | AJ13: 5031.327643 | AK13: 34.04910373 | AL13: 10952.95011 | AM13: 10891.82288 | AN13: 61.12723273
A14: Q 3 | B14: n/a | C14: male | D14: 3 | E14: 1 | F14: =F172 -> 203.08 | G14: =G172 -> 0 | H14: =H172 -> 203.08 | I14: 20.42283733 | J14: 20.19638861 | K14: 84.26160598 | L14: 83.3826171 | M14: 198.5297498 | N14: 196.666781 | O14: 450.1612496 | P14: 446.7917439 | Q14: 606.5665679 | R14: 599.8794955 | S14: 6.687072467 | T14: 2431.705713 | U14: 2405.763284 | V14: 25.94242903 | W14: 5457.699799 | X14: 5402.365898 | Y14: 55.33390138 | Z14: 11197.54426 | AA14: 11093.48012 | AB14: 104.064133 | AC14: 455.9821788 | AD14: 452.0210001 | AE14: 3.961178735 | AF14: 1864.715051 | AG14: 1849.208468 | AH14: 15.50658343 | AI14: 4337.147662 | AJ14: 4303.716516 | AK14: 33.43114621 | AL14: 9643.560543 | AM14: 9580.400232 | AN14: 63.16031101
A15: Q 4 | B15: n/a | C15: male | D15: 4 | E15: 1 | F15: =F215 -> 551.74 | G15: =G215 -> 0 | H15: =H215 -> 551.74 | I15: 41.50260823 | J15: 41.24062594 | K15: 173.2739926 | L15: 172.2314617 | M15: 416.4020468 | N15: 414.1070593 | O15: 980.1857539 | P15: 975.7645735 | Q15: 1238.969926 | R15: 1231.175891 | S15: 7.794035204 | T15: 5001.523315 | U15: 4970.886441 | V15: 30.63687366 | W15: 11344.67905 | X15: 11278.0393 | Y15: 66.63975291 | Z15: 23687.48084 | AA15: 23557.45366 | AB15: 130.0271834 | AC15: 1036.822469 | AD15: 1031.699707 | AE15: 5.122762023 | AF15: 4270.575604 | AG15: 4250.184035 | AH15: 20.39156921 | AI15: 10054.97563 | AJ15: 10009.8279 | AK15: 45.14772847 | AL15: 22915.85068 | AM15: 22826.18552 | AN15: 89.6651522
A16: Q 5 | B16: n/a | C16: male | D16: 5 | E16: 1 | F16: =F258 -> 30.3 | G16: =G258 -> 0 | H16: =H258 -> 30.3 | I16: 1.777187716 | J16: 1.772776657 | K16: 7.498468822 | L16: 7.480689179 | M16: 18.34976016 | N16: 18.30999361 | O16: 44.81570362 | P16: 44.7381324 | Q16: 51.74375938 | R16: 51.62425532 | S16: 0.1195040618 | T16: 209.8795353 | U16: 209.4094053 | V16: 0.470129949 | W16: 479.5238989 | X16: 478.4999086 | Y16: 1.02399035 | Z16: 1013.455359 | AA16: 1011.413874 | AB16: 2.041484675 | AC16: 52.24238638 | AD16: 52.14726048 | AE16: 0.09512589948 | AF16: 216.4656865 | AG16: 216.0842851 | AH16: 0.3814014048 | AI16: 514.9992387 | AJ16: 514.1456999 | AK16: 0.8535388684 | AL16: 1200.056704 | AM16: 1198.32601 | AN16: 1.730693813
A17: Females, by SIMD
A18: Females | F18: =SUM(F19:F23) -> 1026.5 | G18: =SUM(G19:G23) -> 0 | H18: 1026.5 | I18: 83.58751575 | J18: 82.89750714 | K18: 345.5592231 | L18: 342.9136631 | M18: 815.9148723 | N18: 810.4321811 | O18: 1862.899472 | P18: 1853.214484 | Q18: =SUM(Q19:Q23) -> 1908.961424 | R18: 1893.12512 | S18: 15.83630373 | T18: 7642.60643 | U18: 7581.30047 | V18: 61.30595989 | W18: 17144.47651 | X18: 17012.94523 | Y18: 131.5312769 | Z18: 35416.6592 | AA18: 35159.79835 | AB18: 256.8608494 | AC18: 2227.956643 | AD18: 2213.734379 | AE18: 14.22226432 | AF18: 9035.358447 | AG18: 8979.679162 | AH18: 55.67928499 | AI18: 20745.22476 | AJ18: 20624.60746 | AK18: 120.6173056 | AL18: 45172.10418 | AM18: 44937.04698 | AN18: 235.0571999
A19: Q 1 | B19: n/a | C19: female | D19: 1 | E19: 1 | F19: =F107 -> 0 | G19: =G107 -> 0 | H19: =H107 -> 0 | I19: =I107 -> 0 | J19: 0 | K19: 0 | L19: =L107 -> 0 | M19: 0 | N19: 0 | O19: 0 | P19: 0 | Q19: 0 | R19: 0 | S19: 0 | T19: 0 | U19: 0 | V19: 0 | W19: 0 | X19: 0 | Y19: 0 | Z19: 0 | AA19: 0 | AB19: 0 | AC19: 0 | AD19: 0 | AE19: 0 | AF19: 0 | AG19: 0 | AH19: 0 | AI19: 0 | AJ19: 0 | AK19: 0 | AL19: 0 | AM19: 0 | AN19: 0
A20: Q 2 | B20: n/a | C20: female | D20: 2 | E20: 1 | F20: =F150 -> 222.42 | G20: =G150 -> 0 | H20: =H150 -> 222.42 | I20: 24.84610803 | J20: 24.60729251 | K20: 100.8198605 | L20: 99.9300584 | M20: 230.9776436 | N20: 229.2112971 | O20: 500.3247928 | P20: 497.4137957 | Q20: 558.1990844 | R20: 552.7400349 | S20: 5.459049547 | T20: 2212.349664 | U20: 2191.520029 | V20: 20.82963523 | W20: 4893.257974 | X20: 4849.497213 | Y20: 43.76076168 | Z20: 9888.149153 | AA20: 9806.147669 | AB20: 82.00148418 | AC20: 587.5350503 | AD20: 583.0052596 | AE20: 4.52979064 | AF20: 2363.049107 | AG20: 2345.571491 | AH20: 17.47761618 | AI20: 5353.313639 | AJ20: 5316.26716 | AK20: 37.0464791 | AL20: 11370.92401 | AM20: 11301.29793 | AN20: 69.62607951
A21: Q 3 | B21: n/a | C21: female | D21: 3 | E21: 1 | F21: =F193 -> 212.26 | G21: =G193 -> 0 | H21: =H193 -> 212.26 | I21: 20.72246455 | J21: 20.5019305 | K21: 85.21812618 | L21: 84.37682883 | M21: 199.1112944 | N21: 197.3888276 | O21: 443.8282339 | P21: 440.8626961 | Q21: 456.2516169 | R21: 451.334895 | S21: 4.916721924 | T21: 1816.474212 | U21: 1797.519339 | V21: 18.95487254 | W21: 4037.991927 | X21: 3997.550495 | Y21: 40.4414311 | Z21: 8215.452812 | AA21: 8136.964015 | AB21: 78.48879696 | AC21: 498.7077968 | AD21: 494.4558208 | AE21: 4.251976039 | AF21: 2015.181556 | AG21: 1998.608548 | AH21: 16.5730077 | AI21: 4597.170128 | AJ21: 4561.547909 | AK21: 35.62221873 | AL21: 9876.349046 | AM21: 9807.939233 | AN21: 68.40981237
A22: Q 4 | B22: n/a | C22: female | D22: 4 | E22: 1 | F22: =F236 -> 559.9 | G22: =G236 -> 0 | H22: =H236 -> 559.9 | I22: 36.56763389 | J22: 36.3394075 | K22: 153.3730528 | L22: 152.468964 | M22: 370.6973472 | N22: 368.7291451 | O22: 881.289802 | P22: 877.5430632 | Q22: 860.8590839 | R22: 855.4739891 | S22: 5.385094879 | T22: 3476.852483 | U22: 3455.640242 | V22: 21.21224102 | W22: 7897.942947 | X22: 7851.330075 | Y22: 46.61287191 | Z22: 16627.50078 | AA22: 16532.66938 | AB22: 94.83140074 | AC22: 1087.781924 | AD22: 1082.435696 | AE22: 5.346228309 | AF22: 4435.93851 | AG22: 4414.694228 | AH22: 21.24428226 | AI22: 10276.9925 | AJ22: 10229.93187 | AK22: 47.06063049 | AL22: 22751.60486 | AM22: 22656.51051 | AN22: 95.09435359
A23: Q 5 | B23: n/a | C23: female | D23: 5 | E23: 1 | F23: =F279 -> 31.92 | G23: =G279 -> 0 | H23: =H279 -> 31.92 | I23: 1.451309286 | J23: 1.448876629 | K23: 6.148183593 | L23: 6.137811829 | M23: 15.12858707 | N23: 15.10291133 | O23: 37.45664333 | P23: 37.39492858 | Q23: 33.6516387 | R23: 33.57620132 | S23: 0.07543738033 | T23: 136.930071 | U23: 136.6208599 | V23: 0.3092111049 | W23: 315.2836626 | X23: 314.5674504 | Y23: 0.716212238 | Z23: 685.5564527 | AA23: 684.0172852 | AB23: 1.539167466 | AC23: 53.9318715 | AD23: 53.83760218 | AE23: 0.09426932871 | AF23: 221.1892742 | AG23: 220.8048953 | AH23: 0.3843788544 | AI23: 517.7484938 | AJ23: 516.8605165 | AK23: 0.8879772894 | AL23: 1173.226257 | AM23: 1171.299302 | AN23: 1.926954472
A24: age/sex breakdown: All
A25: Male <1 | B25: 0.5 | C25: male | D25: all | E25: 1 | F25: =F66+F109+F152+F195+F238 -> 10.78 | G25: =G66+G109+G152+G195+G238 -> 0 | H25: =H66+H109+H152+H195+H238 -> 10.78 | I25: =I66+I109+I152+I195+I238 -> 0.01496378533 | J25: =J66+J109+J152+J195+J238 -> 0.01484818874 | K25: =K66+K109+K152+K195+K238 -> 0.06545951724 | L25: 0.06495396811 | M25: 0.1719306459 | N25: =N66+N109+N152+N195+N238 -> 0.1706035404 | O25: 0.5047519346 | P25: 0.50086253 | Q25: 1.481414748 | R25: 1.469970685 | S25: 0.01144406233 | T25: 6.377540977 | U25: 6.328286607 | V25: 0.04925437021 | W25: 16.26697973 | X25: 16.14141576 | Y25: 0.1255639763 | Z25: 44.56460336 | AA25: 44.2211766 | AB25: 0.3434267597 | AC25: 3.852944393 | AD25: 3.830229529 | AE25: 0.02271486378 | AF25: 16.28974991 | AG25: 16.19374456 | AH25: 0.09600534501 | AI25: 40.28335897 | AJ25: 40.04609795 | AK25: 0.2372610211 | AL25: 103.5342576 | AM25: 102.9256397 | AN25: 0.608617857
A26: Male 1-4 | B26: 2.5 | C26: male | D26: all | E26: 1 | F26: 41.54 | G26: =G67+G110+G153+G196+G239 -> 0 | H26: 41.54 | I26: 0.06714618536 | J26: 0.0666166124 | K26: =K67+K110+K153+K196+K239 -> 0.2937212537 | L26: 0.2914054197 | M26: 0.7713995388 | N26: 0.7653213804 | O26: 2.264069996 | P26: 2.246266431 | Q26: 6.513179979 | R26: 6.461811403 | S26: 0.05136857662 | T26: 28.02902198 | U26: 27.80802766 | V26: 0.220994322 | W26: 71.4422526 | X26: 70.8793219 | Y26: 0.5629306914 | Z26: 195.3695869 | AA26: 193.8331285 | AB26: 1.536458381 | AC26: 15.98757499 | AD26: 15.89123706 | AE26: 0.09633792446 | AF26: 67.59085907 | AG26: 67.18371955 | AH26: 0.4071395228 | AI26: 167.1343592 | AJ26: 166.1283696 | AK26: 1.00598963 | AL26: 429.4611647 | AM26: 426.8820546 | AN26: 2.579110018
A27: Male 5-9 | B27: 7.5 | C27: male | D27: all | E27: 1 | F27: 48.82 | G27: =G68+G111+G154+G197+G240 -> 0 | H27: 48.82 | I27: 0.119442277 | J27: 0.1184996916 | K27: =K68+K111+K154+K197+K240 -> 0.5224074477 | L27: 0.5182867446 | M27: 1.371579621 | N27: 1.360771268 | O27: 4.021771868 | P27: 3.990176107 | Q27: 10.86924721 | R27: 10.78347194 | S27: 0.08577527028 | T27: 46.71754108 | U27: 46.34903576 | V27: 0.3685053193 | W27: 118.7987313 | X27: 117.8625459 | Y27: 0.9361854661 | Z27: 322.9310217 | AA27: 320.3935724 | AB27: 2.537449343 | AC27: 22.8780327 | AD27: 22.74008966 | AE27: 0.1379430418 | AF27: 96.70856788 | AG27: 96.1257877 | AH27: 0.5827801789 | AI27: 239.0679542 | AJ27: 237.6289393 | AK27: 1.439014924 | AL27: 613.7850954 | AM27: 610.1031822 | AN27: 3.681913184
A28: Male 10-14 | B28: 12.5 | C28: male | D28: all | E28: 1 | F28: 64.8 | G28: =G69+G112+G155+G198+G241 -> 0 | H28: 64.8 | I28: 0.2155788311 | J28: 0.2138078562 | K28: =K69+K112+K155+K198+K241 -> 0.9427352889 | L28: 0.9349956423 | M28: 2.474336711 | N28: 2.45405008 | O28: 7.247849675 | P28: 7.188674207 | Q28: 18.7553583 | R28: 18.60128349 | S28: 0.1540748132 | T28: 80.53554565 | U28: 79.87436281 | V28: 0.6611828422 | W28: 204.4181039 | X28: 202.7420532 | Y28: 1.676050735 | Z28: 553.0141208 | AA28: 548.497862 | AB28: 4.516258755 | AC28: 35.30817277 | AD28: 35.08683726 | AE28: 0.2213355086 | AF28: 149.2306917 | AG28: 148.2959244 | AH28: 0.9347672373 | AI28: 368.7945195 | AJ28: 366.4880352 | AK28: 2.306484223 | AL28: 945.9981725 | AM28: 940.1094746 | AN28: 5.888697954
A29: Male 15-19 | B29: 17.5 | C29: male | D29: all | E29: 1 | F29: 63.38 | G29: =G70+G113+G156+G199+G242 -> 0 | H29: 63.38 | I29: 0.323306021 | J29: 0.3207340596 | K29: =K70+K113+K156+K199+K242 -> 1.413390138 | L29: 1.402157206 | M29: 3.707196982 | N29: 3.677794017 | O29: 10.83687713 | P29: 10.75147417 | Q29: 26.1877877 | R29: 25.97945883 | S29: 0.2083288761 | T29: 112.2624416 | U29: 111.3702259 | V29: 0.8922156652 | W29: 284.0338388 | X29: 281.7809332 | Y29: 2.252905613 | Z29: 761.9398904 | AA29: 755.932687 | AB29: 6.007203381 | AC29: 42.40729363 | AD29: 42.14982145 | AE29: 0.2574721801 | AF29: 179.1828433 | AG29: 178.0962144 | AH29: 1.086628839 | AI29: 442.549604 | AJ29: 439.8722317 | AK29: 2.677372216 | AL29: 1133.15285 | AM29: 1126.346392 | AN29: 6.806458739
A30: Male 20-24 | B30: 22.5 | C30: male | D30: all | E30: 1 | F30: 51.76 | G30: =G71+G114+G157+G200+G243 -> 0 | H30: 51.76 | I30: 0.3567529411 | J30: 0.3537509287 | K30: =K71+K114+K157+K200+K243 -> 1.559124072 | L30: 1.546021387 | M30: 4.086763016 | N30: 4.052512608 | O30: 11.92199072 | P30: 11.8229321 | Q30: 27.46997647 | R30: 27.23882151 | S30: 0.2311549535 | T30: 117.6016607 | U30: 116.6133371 | V30: 0.9883235683 | W30: 296.7743094 | X30: 294.2868749 | Y30: 2.487434505 | Z30: 790.658942 | AA30: 784.0854718 | AB30: 6.573470209 | AC30: 40.06638243 | AD30: 39.80892074 | AE30: 0.2574616827 | AF30: 169.2421362 | AG30: 168.1563106 | AH30: 1.085825578 | AI30: 417.7461054 | AJ30: 415.0745513 | AK30: 2.6715541 | AL30: 1067.721349 | AM30: 1060.958846 | AN30: 6.762502222
A31: Male 25-29 | B31: 27.5 | C31: male | D31: all | E31: 1 | F31: 48.1 | G31: =G72+G115+G158+G201+G244 -> 0 | H31: 48.1 | I31: 0.517674452 | J31: 0.5132300637 | K31: =K72+K115+K158+K201+K244 -> 2.260866914 | L31: 2.241496061 | M31: 5.917697505 | N31: 5.867212186 | O31: 17.18647481 | P31: 17.04181188 | Q31: 36.75488609 | R31: 36.43933452 | S31: 0.3155515646 | T31: 156.9687826 | U31: 155.62386 | V31: 1.344922632 | W31: 394.247807 | X31: 390.8838676 | Y31: 3.363939372 | Z31: 1037.032106 | AA31: 1028.294054 | AB31: 8.738052018 | AC31: 46.22894032 | AD31: 45.9254608 | AE31: 0.3034795241 | AF31: 195.148413 | AG31: 193.870448 | AH31: 1.277964955 | AI31: 481.0611939 | AJ31: 477.9266766 | AK31: 3.1345173 | AL31: 1224.761345 | AM31: 1216.900636 | AN31: 7.860708646
A32: Male 30-34 | B32: 32.5 | C32: male | D32: all | E32: 1 | F32: 47.1 | G32: =G73+G116+G159+G202+G245 -> 0 | H32: 47.1 | I32: 0.6805290187 | J32: 0.6746712072 | K32: =K73+K116+K159+K202+K245 -> 2.970193312 | L32: 2.944695984 | M32: 7.763772117 | N32: 7.697505769 | O32: 22.45293663 | P32: 22.2647129 | Q32: 45.59544426 | R32: 45.20297088 | S32: 0.3924733766 | T32: 194.3370859 | U32: 192.6687626 | V32: 1.668323363 | W32: 486.2066424 | X32: 482.0558026 | Y32: 4.1508398 | Z32: 1265.439327 | AA32: 1254.815189 | AB32: 10.62413799 | AC32: 52.20775211 | AD32: 51.86374206 | AE32: 0.3440100474 | AF32: 220.2533159 | AG32: 218.8067491 | AH32: 1.446566842 | AI32: 542.2724965 | AJ32: 538.7348756 | AK32: 3.537620876 | AL32: 1375.507107 | AM32: 1366.713464 | AN32: 8.793642534
A33: Male 35-39 | B33: 37.5 | C33: male | D33: all | E33: 1 | F33: 59.12 | G33: =G74+G117+G160+G203+G246 -> 0 | H33: 59.12 | I33: 1.289870659 | J33: 1.279326875 | K33: =K74+K117+K160+K203+K246 -> 5.622409842 | L33: 5.576638676 | M33: 14.65648333 | N33: 14.53819652 | O33: 42.03111487 | P33: 41.7010153 | Q33: 78.68211018 | R33: 78.03893937 | S33: 0.6431708152 | T33: 334.1406657 | U33: 331.4203261 | V33: 2.720339613 | W33: 830.0190472 | X33: 823.3178307 | Y33: 6.701216539 | Z33: 2118.32567 | AA33: 2101.646269 | AB33: 16.67940176 | AC33: 79.74443259 | AD33: 79.24561113 | AE33: 0.4988214589 | AF33: 336.0165042 | AG33: 333.9249908 | AH33: 2.091513341 | AI33: 825.2332597 | AJ33: 820.1486275 | AK33: 5.084632259 | AL33: 2077.904753 | AM33: 2065.488184 | AN33: 12.4165688
A34: Male 40-44 | B34: 42.5 | C34: male | D34: all | E34: 1 | F34: 81.04 | G34: =G75+G118+G161+G204+G247 -> 0 | H34: 81.04 | I34: 2.340457393 | J34: 2.321433371 | K34: =K75+K118+K161+K204+K247 -> 10.18926116 | L34: 10.10689095 | M34: 26.49282919 | N34: 26.28112108 | O34: 75.37166192 | P34: 74.79086983 | Q34: 133.4060714 | R34: 132.3217022 | S34: 1.084369223 | T34: 564.8024435 | U34: 560.2362022 | V34: 4.566241337 | W34: 1394.521371 | X34: 1383.371667 | Y34: 11.1497034 | Z34: 3499.992642 | AA34: 3472.921297 | AB34: 27.07134581 | AC34: 124.9826223 | AD34: 124.2053831 | AE34: 0.7772391806 | AF34: 526.0251582 | AG34: 522.7753526 | AH34: 3.249805595 | AI34: 1288.825139 | AJ34: 1280.969852 | AK34: 7.855286761 | AL34: 3222.620993 | AM34: 3203.766001 | AN34: 18.85499269
A35: Male 45-49 | B35: 47.5 | C35: male | D35: all | E35: 1 | F35: 81.94 | G35: =G76+G119+G162+G205+G248 -> 0 | H35: 81.94 | I35: 3.647100384 | J35: 3.616925472 | K35: =K76+K119+K162+K205+K248 -> 15.83451715 | L35: 15.70460445 | M35: 40.93637399 | N35: 40.60643787 | O35: 114.4414097 | P35: 113.5694116 | Q35: 186.0021196 | R35: 184.4631991 | S35: 1.538920514 | T35: 782.7534039 | U35: 776.330492 | V35: 6.422911893 | W35: 1909.737955 | X35: 1894.331772 | Y35: 15.40618341 | Z35: 4637.12058 | AA35: 4601.546852 | AB35: 35.57372771 | AC35: 155.6723715 | AD35: 154.6861617 | AE35: 0.9862097847 | AF35: 653.5118537 | AG35: 649.4134112 | AH35: 4.09844247 | AI35: 1592.824384 | AJ35: 1583.041574 | AK35: 9.78281043 | AL35: 3922.173877 | AM35: 3899.561515 | AN35: 22.61236169
A36: Male 50-54 | B36: 52.5 | C36: male | D36: all | E36: 1 | F36: 75.44 | G36: =G77+G120+G163+G206+G249 -> 0 | H36: 75.44 | I36: 4.52425721 | J36: 4.487017974 | K36: =K77+K120+K163+K206+K249 -> 19.58930226 | L36: 19.42988365 | M36: 50.35582601 | N36: 49.95577042 | O36: 138.3611594 | P36: 137.3425461 | Q36: 212.6400889 | R36: 210.8898448 | S36: 1.750244059 | T36: 890.0512797 | U36: 882.8065226 | V36: 7.244757182 | W36: 2148.434914 | X36: 2131.34303 | Y36: 17.09188411 | Z36: 5064.409046 | AA36: 5026.734478 | AB36: 37.67456811 | AC36: 165.8116839 | AD36: 164.7667588 | AE36: 1.044925112 | AF36: 694.2981003 | AG36: 689.982128 | AH36: 4.315972247 | AI36: 1683.461305 | AJ36: 1673.28819 | AK36: 10.17311441 | AL36: 4083.388056 | AM36: 4060.746088 | AN36: 22.64196808
A37: Male 55-59 | B37: 57.5 | C37: male | D37: all | E37: 1 | F37: 74.04 | G37: =G78+G121+G164+G207+G250 -> 0 | H37: 74.04 | I37: 6.842681569 | J37: 6.78579565 | K37: =K78+K121+K164+K207+K250 -> 29.459024 | L37: 29.21842984 | M37: 74.83441729 | N37: 74.24584133 | O37: 198.4595049 | P37: 197.0749656 | Q37: 280.5499443 | R37: 278.2176217 | S37: 2.332322666 | T37: 1161.870603 | U37: 1152.378001 | V37: 9.492602476 | W37: 2745.957793 | X37: 2724.305719 | Y37: 21.6520742 | Z37: 6107.987563 | AA37: 6064.497474 | AB37: 43.49008905 | AC37: 200.6732291 | AD37: 199.3964885 | AE37: 1.276740606 | AF37: 835.7821988 | AG37: 830.5769299 | AH37: 5.205268994 | AI37: 2004.689177 | AJ37: 1992.744732 | AK37: 11.94444467 | AL37: 4714.627846 | AM37: 4690.103388 | AN37: 24.52445774
A38: Male 60-64 | B38: 62.5 | C38: male | D38: all | E38: 1 | F38: 74.4 | G38: =G79+G122+G165+G208+G251 -> 0 | H38: 74.4 | I38: 9.269066658 | J38: 9.191239415 | K38: =K79+K122+K165+K208+K251 -> 39.681926 | L38: 39.35654787 | M38: 99.64463844 | N38: 98.86777131 | O38: 255.4451713 | P38: 253.7503083 | Q38: 342.9554664 | R38: 340.0758583 | S38: 2.879608011 | T38: 1406.518212 | U38: 1394.978861 | V38: 11.53935074 | W38: 3260.577302 | X38: 3235.057931 | Y38: 25.51937141 | Z38: 6883.803337 | AA38: 6836.612366 | AB38: 47.19097117 | AC38: 233.2445621 | AD38: 231.7382373 | AE38: 1.506324799 | AF38: 966.3127357 | AG38: 960.2473943 | AH38: 6.065341422 | AI38: 2293.292734 | AJ38: 2279.727685 | AK38: 13.56504949 | AL38: 5235.64572 | AM38: 5209.869033 | AN38: 25.7766872
A39: Male 65-69 | B39: 67.5 | C39: male | D39: all | E39: 1 | F39: 62.42 | G39: =G80+G123+G166+G209+G252 -> 0 | H39: 62.42 | I39: 12.00976645 | J39: 11.90978292 | K39: =K80+K123+K166+K209+K252 -> 50.8099488 | L39: 50.40216845 | M39: 124.5430701 | N39: 123.6187851 | O39: 298.1033032 | P39: 296.3856164 | Q39: 372.3027599 | R39: 369.2032705 | S39: 3.099489323 | T39: 1496.582842 | U39: 1484.55934 | V39: 12.0235016 | W39: 3335.508502 | X39: 3310.565942 | Y39: 24.94255996 | Z39: 6352.35397 | AA39: 6313.079809 | AB39: 39.27416067 | AC39: 241.7398205 | AD39: 240.1845308 | AE39: 1.555289646 | AF39: 990.3944284 | AG39: 984.2965604 | AH39: 6.097868048 | AI39: 2298.937503 | AJ39: 2286.031427 | AK39: 12.90607564 | AL39: 4943.48264 | AM39: 4922.735161 | AN39: 20.74747882
A40: Male 70-74 | B40: 72.5 | C40: male | D40: all | E40: 1 | F40: 46.9 | G40: =G81+G124+G167+G210+G253 -> 0 | H40: 46.9 | I40: =I81+I124+I167+I210+I253 -> 12.07403667 | J40: 11.97077824 | K40: =K81+K124+K167+K210+K253 -> 50.50009081 | L40: 50.08911216 | M40: 120.9681287 | N40: 120.082993 | O40: 272.0334029 | P40: 270.6264411 | Q40: 325.9989901 | R40: 323.2110125 | S40: 2.787977633 | T40: 1285.933367 | U40: 1275.450911 | V40: 10.48245599 | W40: 2762.927075 | X40: 2742.457186 | Y40: 20.46988981 | Z40: 4802.789745 | AA40: 4774.636618 | AB40: 28.15312615 | AC40: 209.5753754 | AD40: 208.1863552 | AE40: 1.389020206 | AF40: 849.424239 | AG40: 844.1189129 | AH40: 5.305326131 | AI40: 1930.646131 | AJ40: 1920.011038 | AK40: 10.63509298 | AL40: 3932.490354 | AM40: 3918.010452 | AN40: 14.47990222
A41: Male 75-79 | B41: 77.5 | C41: male | D41: all | E41: 1 | F41: 31.7 | G41: =G82+G125+G168+G211+G254 -> 0 | H41: 31.7 | I41: 12.14592398 | J41: 12.04656357 | K41: =K82+K125+K168+K211+K254 -> 49.70163684 | L41: 49.32447836 | M41: 114.0427841 | N41: 113.306939 | O41: 229.8882463 | P41: 229.0216053 | Q41: 255.0644036 | R41: 252.9778349 | S41: 2.086568662 | T41: 968.2974658 | U41: 960.9249518 | V41: 7.372514001 | W41: 1933.231572 | X41: 1920.415662 | Y41: 12.81591029 | Z41: 2828.983184 | AA41: 2814.489187 | AB41: 14.49399761 | AC41: 171.4310184 | AD41: 170.3382988 | AE41: 1.092719598 | AF41: 680.6350491 | AG41: 676.6679164 | AH41: 3.967132683 | AI41: 1487.101933 | AJ41: 1479.948726 | AK41: 7.153207222 | AL41: 2754.011217 | AM41: 2747.029889 | AN41: 6.981328279
A42: Male 80-84 | B42: 82.5 | C42: male | D42: all | E42: 1 | F42: =F83+F126+F169+F212+F255 -> 21.22 | G42: 0 | H42: 21.22 | I42: 10.98220956 | J42: 10.89229002 | K42: =K83+K126+K169+K212+K255 -> 43.88577624 | L42: 43.56122016 | M42: 96.25076165 | N42: 95.68022384 | O42: 174.9051245 | P42: 174.4117381 | Q42: 186.6975625 | R42: 185.1689303 | S42: 1.528632223 | T42: 680.326665 | U42: 675.2658592 | V42: 5.06080584 | W42: 1258.320339 | X42: 1250.474575 | Y42: 7.845763973 | Z42: 1570.715575 | AA42: 1562.597861 | AB42: 8.117713668 | AC42: 133.4953739 | AD42: 132.6345298 | AE42: 0.8608441494 | AF42: 518.3217223 | AG42: 515.3593455 | AH42: 2.962376832 | AI42: 1086.60802 | AJ42: 1081.833677 | AK42: 4.774343319 | AL42: 1839.582097 | AM42: 1836.359553 | AN42: 3.22254484
A43: Male 85-89 | B43: 87.5 | C43: male | D43: all | E43: 1 | F43: 10.56 | G43: 0 | H43: 10.56 | I43: 8.542196194 | J43: 8.473723024 | K43: =K84+K127+K170+K213+K256 -> 32.42514732 | L43: 32.20398357 | M43: 64.81962839 | N43: 64.51015053 | O43: 98.43455778 | P43: 98.29607955 | Q43: 93.96415813 | R43: 93.21095327 | S43: 0.7532048631 | T43: 309.5439976 | U43: 307.3989432 | V43: 2.145054337 | W43: 475.6086379 | X43: 472.945567 | Y43: 2.663070811 | Z43: 423.7715562 | AA43: 420.514644 | AB43: 3.25691218 | AC43: 83.41752262 | AD43: 82.88051823 | AE43: 0.5370043991 | AF43: 308.5914561 | AG43: 306.9483481 | AH43: 1.643107996 | AI43: 594.2988184 | AJ43: 592.2358472 | AK43: 2.062971241 | AL43: 861.6923895 | AM43: 861.1803066 | AN43: 0.5120828794
A44: Male 90+ | B44: 95 | C44: female | D44: all | E44: 1 | F44: 3.24 | G44: 0 | H44: 3.24 | I44: 4.126953623 | J44: 4.084968162 | K44: =K85+K128+K171+K214+K257 -> 14.46266731 | L44: 14.35100252 | M44: 25.37306851 | N44: 25.26797337 | O44: 31.96312061 | P44: 31.94817987 | Q44: 16.50781449 | R44: 16.33987265 | S44: 0.167941844 | T44: 37.8564611 | U44: 37.53210504 | V44: 0.3243560549 | W44: 18.93948308 | X44: 18.56077175 | Y44: 0.3787113251 | Z44: -32.78231759 | AA44: -33.96146844 | AB44: 1.179150847 | AC44: 32.08958806 | AD44: 31.82144113 | AE44: 0.2681469378 | AF44: 110.0118928 | AG44: 109.3428591 | AH44: 0.6690337315 | AI44: 187.6712805 | AJ44: 187.136606 | AK44: 0.5346745529 | AL44: 230.8767503 | AM44: 230.9453849 | AN44: -0.06863463847
A45: Female <1 | B45: 0.5 | C45: female | D45: all | E45: 1 | F45: =F87+F130+F173+F216+F259 -> 10.02 | G45: =G86+G129+G172+G215+G258 -> 0 | H45: =H87+H130+H173+H216+H259 -> 10.02 | I45: 0.004850189569 | J45: 0.004810254931 | K45: =K87+K130+K173+K216+K259 -> 0.02154224413 | L45: 0.02136488952 | M45: 0.05815175915 | N45: 0.05767309846 | O45: 0.1816859602 | P45: 0.180191468 | Q45: 0.4801687673 | R45: 0.4762152382 | S45: 0.003953529147 | T45: 2.098543263 | U45: 2.081266204 | V45: 0.01727705833 | W45: 5.498269242 | X45: 5.453011483 | Y45: 0.04525775844 | Z45: 15.99186402 | AA45: 15.86031549 | AB45: 0.1315485318 | AC45: 6.240415401 | AD45: 6.201043124 | AE45: 0.03937227695 | AF45: 25.97469901 | AG45: 25.81083604 | AH45: 0.1638629697 | AI45: 62.51919717 | AJ45: 62.12487944 | AK45: 0.3943177253 | AL45: 151.6609794 | AM45: 150.7050952 | AN45: 0.9558842023
A46: Female 1-4 | B46: 2.5 | C46: female | D46: all | E46: 1 | F46: =F88+F131+F174+F217+F260 -> 40.22 | G46: =G87+G130+G173+G216+G259 -> 0 | H46: =H88+H131+H174+H217+H260 -> 40.22 | I46: 0.02283104089 | J46: 0.02264515676 | K46: =K88+K131+K174+K217+K260 -> 0.1014031729 | L46: 0.1005776651 | M46: 0.2737218236 | N46: 0.2714940243 | O46: 0.8551071911 | P46: 0.8481531173 | Q46: 2.214610966 | R46: 2.196580205 | S46: 0.01803076089 | T46: 9.675411074 | U46: 9.59664495 | V46: 0.07876612462 | W46: 25.33307141 | X46: 25.12688641 | Y46: 0.2061850075 | Z46: 73.5560994 | AA46: 72.95788725 | AB46: 0.5982121498 | AC46: 26.2290011 | AD46: 26.06556485 | AE46: 0.1634362477 | AF46: 109.1723998 | AG46: 108.4922194 | AH46: 0.6801803726 | AI46: 262.762506 | AJ46: 261.1258432 | AK46: 1.636662749 | AL46: 637.3613233 | AM46: 633.3946707 | AN46: 3.966652574
A47: Female 5-9 | B47: 7.5 | C47: female | D47: all | E47: 1 | F47: 49.18 | G47: =G88+G131+G174+G217+G260 -> 0 | H47: =H89+H132+H175+H218+H261 -> 49.18 | I47: 0.04587984437 | J47: 0.0455021946 | K47: =K89+K132+K175+K218+K261 -> 0.2037601301 | L47: 0.2020832274 | M47: 0.5499389063 | N47: 0.5454148226 | O47: 1.717173293 | P47: 1.703065871 | Q47: 4.175065838 | R47: 4.140699708 | S47: 0.03436612978 | T47: 18.21927773 | U47: 18.06933668 | V47: 0.1499410474 | W47: 47.59763097 | X47: 47.20606391 | Y47: 0.3915670648 | Z47: 137.411442 | AA47: 136.2824561 | AB47: 1.128985895 | AC47: 37.33116611 | AD47: 37.09675834 | AE47: 0.2344077699 | AF47: 155.3733234 | AG47: 154.3979199 | AH47: 0.9754035355 | AI47: 373.9145741 | AJ47: 371.5682537 | AK47: 2.346320476 | AL47: 906.6210393 | AM47: 900.9397951 | AN47: 5.681244248
A48: Female 10-14 | B48: 12.5 | C48: female | D48: all | E48: 1 | F48: 58.16 | G48: =G89+G132+G175+G218+G261 -> 0 | H48: =H90+H133+H176+H219+H262 -> 58.16 | I48: 0.07440942905 | J48: 0.07379493827 | K48: =K90+K133+K176+K219+K262 -> 0.3304444875 | L48: 0.3277162713 | M48: 0.8917335602 | N48: 0.8843752116 | O48: 2.783151906 | P48: 2.76022802 | Q48: 6.473620327 | R48: 6.420159629 | S48: 0.05346069816 | T48: 28.22503879 | U48: 27.99200664 | V48: 0.2330321459 | W48: 73.61356397 | X48: 73.00611513 | Y48: 0.6074488452 | Z48: 211.5860336 | AA48: 209.843086 | AB48: 1.742947618 | AC48: 48.3531279 | AD48: 48.04823546 | AE48: 0.3048924314 | AF48: 201.2356104 | AG48: 199.9670805 | AH48: 1.268529908 | AI48: 484.2274958 | AJ48: 481.1769165 | AK48: 3.050579307 | AL48: 1173.664867 | AM48: 1166.284758 | AN48: 7.380108569
A49: Female 15-19 | B49: 17.5 | C49: female | D49: all | E49: 1 | F49: 62.82 | G49: =G90+G133+G176+G219+G262 -> 0 | H49: 62.82 | I49: 0.1321824487 | J49: 0.1310946913 | K49: =K91+K134+K177+K220+K263 -> 0.5869214511 | L49: 0.5820935234 | M49: 1.583344666 | N49: 1.570331983 | O49: 4.936296229 | P49: 4.895850089 | Q49: 10.70677834 | R49: 10.61867 | S49: 0.08810834506 | T49: 46.61065525 | U49: 46.22724142 | V49: 0.3834138314 | W49: 121.2079319 | X49: 120.2117601 | Y49: 0.9961718434 | Z49: 345.6824966 | AA49: 342.8495646 | AB49: 2.832932047 | AC49: 60.7990939 | AD49: 60.41769746 | AE49: 0.3813964458 | AF49: 252.9987054 | AG49: 251.4123927 | AH49: 1.586312777 | AI49: 608.6110952 | AJ49: 604.7989033 | AK49: 3.812191919 | AL49: 1473.852929 | AM49: 1464.649701 | AN49: 9.203228712
A50: Female 20-24 | B50: 22.5 | C50: female | D50: all | E50: 1 | F50: 45.04 | G50: =G91+G134+G177+G220+G263 -> 0 | H50: 45.04 | I50: 0.1329125661 | J50: 0.1317935291 | K50: =K92+K135+K178+K221+K264 -> 0.5900748479 | L50: 0.5851096141 | M50: 1.591328273 | N50: 1.577954528 | O50: 4.955688999 | P50: 4.914215109 | Q50: 10.23426759 | R50: 10.14810174 | S50: 0.0861658478 | T50: 44.5008556 | U50: 44.12639719 | V50: 0.3744584059 | W50: 115.4549949 | X50: 114.4846564 | Y50: 0.9703385302 | Z50: 327.2420125 | AA50: 324.5025728 | AB50: 2.739439704 | AC50: 48.3747299 | AD50: 48.06348678 | AE50: 0.3112431148 | AF50: 201.2702339 | AG50: 199.9761253 | AH50: 1.294108682 | AI50: 484.033874 | AJ50: 480.9260066 | AK50: 3.107867312 | AL50: 1171.123598 | AM50: 1163.63643 | AN50: 7.487167499
A51: Female 25-29 | B51: 27.5 | C51: female | D51: all | E51: 1 | F51: 46.8 | G51: =G92+G135+G178+G221+G264 -> 0 | H51: 46.8 | I51: 0.2264061759 | J51: 0.2245079795 | K51: =K93+K136+K179+K222+K265 -> 1.004805694 | L51: 0.9963892076 | M51: 2.707771513 | N51: 2.685136863 | O51: 8.41141615 | P51: 8.341587671 | Q51: 16.07483849 | R51: 15.94006654 | S51: 0.1347719472 | T51: 69.74947591 | U51: 69.16523179 | V51: 0.5842441245 | W51: 180.2138992 | X51: 178.7073578 | Y51: 1.506541413 | Z51: 505.0605922 | AA51: 500.8656277 | AB51: 4.194964513 | AC51: 58.4139904 | AD51: 58.03996693 | AE51: 0.3740234757 | AF51: 242.9644209 | AG51: 241.410432 | AH51: 1.553988871 | AI51: 583.9254733 | AJ51: 580.1992517 | AK51: 3.726221621 | AL51: 1409.989085 | AM51: 1401.055039 | AN51: 8.934046731
A52: Female 30-34 | B52: 32.5 | C52: female | D52: all | E52: 1 | F52: 51.86 | G52: =G93+G136+G179+G222+G265 -> 0 | H52: 51.86 | I52: 0.3448835008 | J52: 0.3419824985 | K52: =K94+K137+K180+K223+K266 -> 1.530119423 | L52: 1.517265294 | M52: 4.120467754 | N52: 4.085950321 | O52: 12.76923723 | P52: 12.66328422 | Q52: 23.10719456 | R52: 22.9128274 | S52: 0.1943671533 | T52: 100.0945148 | U52: 99.25363392 | V52: 0.8408809028 | W52: 257.7598857 | X52: 255.600387 | Y52: 2.159498716 | Z52: 715.7825808 | AA52: 709.8388635 | AB52: 5.943717241 | AC52: 71.03242032 | AD52: 70.57629633 | AE52: 0.4561239867 | AF52: 295.360822 | AG52: 293.4670773 | AH52: 1.893744656 | AI52: 709.4112403 | AJ52: 704.877099 | AK52: 4.534141315 | AL52: 1709.722599 | AM52: 1698.901451 | AN52: 10.82114788
A53: Female 35-39 | B53: 37.5 | C53: female | D53: all | E53: 1 | F53: 65.8 | G53: =G94+G137+G180+G223+G266 -> 0 | H53: 65.8 | I53: 0.7134740004 | J53: 0.707517561 | K53: =K95+K138+K181+K224+K267 -> 3.163049879 | L53: 3.136698461 | M53: 8.503849467 | N53: 8.433329124 | O53: 26.20864074 | P53: 25.99465829 | Q53: 43.52191403 | R53: 43.15857122 | S53: 0.3633428024 | T53: 187.9381371 | U53: 186.372377 | V53: 1.565760126 | W53: 480.9759696 | X53: 476.9865953 | Y53: 3.98937431 | Z53: 1312.519335 | AA53: 1301.788238 | AB53: 10.73109632 | AC53: 104.3054361 | AD53: 103.6401758 | AE53: 0.6652603084 | AF53: 433.4150062 | AG53: 430.6574996 | AH53: 2.75750666 | AI53: 1039.505373 | AJ53: 1032.925718 | AK53: 6.579654802 | AL53: 2494.253543 | AM53: 2478.715912 | AN53: 15.53763055
A54: Female 40-44 | B54: 42.5 | C54: female | D54: all | E54: 1 | F54: 79.56 | G54: =G95+G138+G181+G224+G267 -> 0 | H54: 79.56 | I54: 1.178887609 | J54: 1.169422044 | K54: =K96+K139+K182+K225+K268 -> 5.222677991 | L54: 5.180863006 | M54: 14.01945274 | N54: 13.90790603 | O54: 42.98437506 | P54: 42.64952701 | Q54: 67.19659369 | R54: 66.65705648 | S54: 0.539537214 | T54: 289.4268023 | U54: 287.1094321 | V54: 2.317370187 | W54: 736.9101064 | X54: 731.045201 | Y54: 5.864905359 | Z54: 1981.696258 | AA54: 1966.226904 | AB54: 15.46935415 | AC54: 137.8947168 | AD54: 137.0484616 | AE54: 0.8462552079 | AF54: 572.6140321 | AG54: 569.1116834 | AH54: 3.502348695 | AI54: 1371.505422 | AJ54: 1363.175214 | AK54: 8.330208063 | AL54: 3277.262139 | AM54: 3257.784203 | AN54: 19.47793659
A55: Female 45-49 | B55: 47.5 | C55: female | D55: all | E55: 1 | F55: 79.08 | G55: =G96+G139+G182+G225+G268 -> 0 | H55: 79.08 | I55: 1.931171285 | J55: 1.915339896 | K55: =K97+K140+K183+K226+K269 -> 8.540735337 | L55: 8.471050236 | M55: 22.84034785 | N55: 22.65591633 | O55: 69.15884567 | P55: 68.61974445 | Q55: 98.48973554 | R55: 97.68233469 | S55: 0.8074008473 | T55: 422.0720525 | U55: 418.628039 | V55: 3.444013444 | W55: 1063.724629 | X55: 1055.130745 | Y55: 8.59388445 | Z55: 2777.338133 | AA55: 2755.601322 | AB55: 21.73681118 | AC55: 159.7447668 | AD55: 158.7444897 | AE55: 1.000277054 | AF55: 662.2997308 | AG55: 658.1756232 | AH55: 4.124107588 | AI55: 1581.124974 | AJ55: 1571.393232 | AK55: 9.731742244 | AL55: 3740.56973 | AM55: 3718.36349 | AN55: 22.20624
A56: Female 50-54 | B56: 52.5 | C56: female | D56: all | E56: 1 | F56: 76.56 | G56: =G97+G140+G183+G226+G269 -> 0 | H56: 76.56 | I56: 2.603664523 | J56: 2.582310744 | K56: =K98+K141+K184+K227+K270 -> 11.49513565 | L56: 11.40147523 | M56: 30.62646159 | N56: 30.38049404 | O56: 91.59278246 | P56: 90.89236018 | Q56: 122.3722326 | R56: 121.3686049 | S56: 1.003627626 | T56: 522.1100488 | U56: 517.8554872 | V56: 4.254561668 | W56: 1304.103555 | X56: 1293.621642 | Y56: 10.48191254 | Z56: 3317.024937 | AA56: 3291.499234 | AB56: 25.52570324 | AC56: 171.1004391 | AD56: 170.0266748 | AE56: 1.073764343 | AF56: 708.2612931 | AG56: 703.8506925 | AH56: 4.410600572 | AI56: 1685.33477 | AJ56: 1675.007649 | AK56: 10.32712106 | AL56: 3947.869727 | AM56: 3924.863113 | AN56: 23.00661389
A57: Female 55-59 | B57: 57.5 | C57: female | D57: all | E57: 1 | F57: 72.48 | G57: =G98+G141+G184+G227+G270 -> 0 | H57: 72.48 | I57: 4.032466737 | J57: 3.998681535 | K57: =K99+K142+K185+K228+K271 -> 17.73480927 | L57: 17.58781129 | M57: 46.85697164 | N57: 46.47767879 | O57: 136.3404615 | P57: 135.322528 | Q57: 165.3311362 | R57: 163.9459429 | S57: 1.385193304 | T57: 699.1628952 | U57: 693.3664799 | V57: 5.796415293 | W57: 1714.995719 | X57: 1701.091881 | Y57: 13.90383817 | Z57: 4136.708946 | AA57: 4105.425892 | AB57: 31.28305461 | AC57: 187.9348056 | AD57: 186.7292495 | AE57: 1.205556064 | AF57: 775.1893115 | AG57: 770.2792436 | AH57: 4.910067905 | AI57: 1831.135692 | AJ57: 1819.840946 | AK57: 11.29474641 | AL57: 4196.483052 | AM57: 4172.654645 | AN57: 23.82840681
A58: Female 60-64 | B58: 62.5 | C58: female | D58: all | E58: 1 | F58: 72.44 | G58: =G99+G142+G185+G228+G271 -> 0 | H58: 72.44 | I58: 5.63989672 | J58: 5.593268867 | K58: =K100+K143+K186+K229+K272 -> 24.70541244 | L58: 24.50421011 | M58: 64.71280995 | N58: 64.20298146 | O58: 183.1221382 | P58: 181.8345352 | Q58: 208.6761787 | R58: 206.9509481 | S58: 1.725230582 | T58: 875.2245867 | U58: 868.0942357 | V58: 7.130351056 | W58: 2111.00439 | X58: 2094.332311 | Y58: 16.67207873 | Z58: 4847.579082 | AA58: 4812.758287 | AB58: 34.8207946 | AC58: 208.5826717 | AD58: 207.2603872 | AE58: 1.322284563 | AF58: 857.206853 | AG58: 851.8681188 | AH58: 5.338734193 | AI58: 2009.694093 | AJ58: 1997.634629 | AK58: 12.05946382 | AL58: 4504.944932 | AM58: 4480.882422 | AN58: 24.06251058
A59: Female 65-69 | B59: 67.5 | C59: female | D59: all | E59: 1 | F59: 65.54 | G59: =G100+G143+G186+G229+G272 -> 0 | H59: 65.54 | I59: 8.367084629 | J59: 8.296613805 | K59: =K101+K144+K187+K230+K273 -> 36.32869456 | L59: 36.03017567 | M59: 93.3687618 | N59: 92.64228313 | O59: 248.87711 | P59: 247.2738208 | Q59: 259.3796235 | R59: 257.1950279 | S59: 2.184595554 | T59: 1069.285078 | U59: 1060.492518 | V59: 8.792560269 | W59: 2489.830494 | X59: 2470.359378 | Y59: 19.47111648 | Z59: 5167.249571 | AA59: 5132.307476 | AB59: 34.94209448 | AC59: 219.3967216 | AD59: 217.9736102 | AE59: 1.423111398 | AF59: 894.3108976 | AG59: 888.6758044 | AH59: 5.635093226 | AI59: 2062.106953 | AJ59: 2049.88478 | AK59: 12.22217304 | AL59: 4407.851456 | AM59: 4386.305641 | AN59: 21.54581511
A60: Female 70-74 | B60: 72.5 | C60: female | D60: all | E60: 1 | F60: 50.52 | G60: =G101+G144+G187+G230+G273 -> 0 | H60: 50.52 | I60: 8.933490381 | J60: 8.859021388 | K60: =K102+K145+K188+K231+K274 -> 38.44813032 | L60: 38.13850314 | M60: 96.98973802 | N60: 96.26626388 | O60: 244.2959835 | P60: 242.9010138 | Q60: 241.2042403 | R60: 239.1935775 | S60: 2.010662816 | T60: 978.1513259 | U60: 970.2652701 | V60: 7.886055833 | W60: 2202.832334 | X60: 2186.259674 | Y60: 16.57265958 | Z60: 4165.234635 | AA60: 4139.234363 | AB60: 26.0002717 | AC60: 186.7592135 | AD60: 185.5585362 | AE60: 1.200677247 | AF60: 755.1320539 | AG60: 750.4700588 | AH60: 4.661995146 | AI60: 1713.065226 | AJ60: 1703.359557 | AK60: 9.705669065 | AL60: 3501.758538 | AM60: 3486.644902 | AN60: 15.1136364
A61: Female 75-79 | B61: 77.5 | C61: female | D61: all | E61: 1 | F61: 39.48 | G61: =G102+G145+G188+G231+G274 -> 0 | H61: 39.48 | I61: 11.39010182 | J61: 11.29626159 | K61: =K103+K146+K189+K232+K275 -> 48.05323122 | L61: 47.67929199 | M61: 116.2943041 | N61: 115.4976524 | O61: 260.1824196 | P61: 259.0484096 | Q61: 239.1921382 | R61: 237.2214933 | S61: 1.97064494 | T61: 934.9813683 | U61: 927.6874145 | V61: 7.293953798 | W61: 1955.532339 | X61: 1941.862121 | Y61: 13.6702184 | Z61: 3042.831031 | AA61: 3025.880555 | AB61: 16.95047606 | AC61: 169.6128712 | AD61: 168.5281545 | AE61: 1.084716685 | AF61: 673.3132182 | AG61: 669.2849829 | AH61: 4.028235333 | AI61: 1473.093734 | AJ61: 1465.453613 | AK61: 7.640121465 | AL61: 2743.826513 | AM61: 2734.824134 | AN61: 9.002379073
A62: Female 80-84 | B62: 82.5 | C62: female | D62: all | E62: 1 | F62: =F104+F147+F190+F233+F276 -> 29.22 | G62: =G103+G146+G189+G232+G275 -> 0 | H62: 29.22 | I62: 11.65481608 | J62: 11.55607496 | K62: =K104+K147+K190+K233+K276 -> 48.21561748 | L62: 47.83795505 | M62: 112.1421124 | N62: 111.4059369 | O62: 226.0962108 | P62: 225.3114518 | Q62: 198.1318733 | R62: 196.4532743 | S62: 1.678598996 | T62: 746.0640513 | U62: 740.1945576 | V62: 5.869493714 | W62: 1448.612262 | X62: 1438.730952 | Y62: 9.881310022 | Z62: 1879.732772 | AA62: 1868.880673 | AB62: 10.85209871 | AC62: 138.6740612 | AD62: 137.7541235 | AE62: 0.9199376526 | AF62: 540.6140253 | AG62: 537.3413232 | AH62: 3.272702141 | AI62: 1142.370577 | AJ62: 1136.698321 | AK62: 5.672256102 | AL62: 1962.053364 | AM62: 1956.936969 | AN62: 5.116394399
A63: Female 85-89 | B63: 87.5 | C63: female | D63: all | E63: 1 | F63: 19.42 | G63: =G104+G147+G190+G233+G276 -> 0 | H63: 19.42 | I63: 12.48096943 | J63: 12.37964492 | K63: =K105+K148+K191+K234+K277 -> 49.45238441 | L63: 49.09904144 | M63: 105.7786365 | N63: 105.2142772 | O63: 176.4900432 | P63: 176.1728191 | Q63: 137.2906637 | R63: 136.1760941 | S63: 1.114569615 | T63: 470.2909343 | U63: 466.889548 | V63: 3.40138634 | W63: 755.712298 | X63: 751.1449129 | Y63: 4.567385096 | Z63: 632.8181968 | AA63: 627.1426186 | AB63: 5.675578228 | AC63: 106.704268 | AD63: 106.0155272 | AE63: 0.6887408104 | AF63: 399.685894 | AG63: 397.4609289 | AH63: 2.224965144 | AI63: 784.8883665 | AJ63: 781.7420284 | AK63: 3.146338104 | AL63: 1164.724632 | AM63: 1163.169682 | AN63: 1.554950311
A64: Female 90+ | B64: 95 | C64: female | D64: all | E64: 1 | F64: 12.3 | G64: =G105+G148+G191+G234+G277 -> 0 | H64: 12.3 | I64: 13.67713735 | J64: 13.56721859 | K64: =K106+K149+K192+K235+K278 -> 49.83027307 | L64: 49.51398778 | M64: 92.00496795 | N64: 91.66913104 | O64: 120.9407044 | P64: 120.8870395 | Q64: 54.7085494 | R64: 54.26887437 | S64: 0.4396750221 | T64: 128.7253767 | U64: 127.8333522 | V64: 0.8920245211 | W64: 53.56316684 | X64: 52.58358222 | Y64: 0.9795846186 | Z64: -176.3868163 | AA64: -179.9475847 | AB64: 3.560768388 | AC64: 80.47272641 | AD64: 79.94593918 | AE64: 0.526787232 | AF64: 278.9659162 | AG64: 277.5691196 | AH64: 1.396796619 | AI64: 481.9941271 | AJ64: 480.6946181 | AK64: 1.299509015 | AL64: 596.5101324 | AM64: 596.3349266 | AN64: 0.1752057989
A65: age/sex breakdown: Q1
A66: Male <1 | B66: 0.5 | C66: male | D66: 1 | E66: 1 | F66: =HLOOKUP('III Tool Overview'!$H$6,LookUpData_Pop!$B$1:$AV$269,LookUpData_Pop!BB67,FALSE)/50 -> 0 | G66: ='III Tool Overview'!$H$9/110 -> 0 | H66: =F66 -> 0 | I66: =IF('III Tool Overview'!$H$6="Orkney Health Board",0,IF('III Tool Overview'!$H$6="Shetland Health Board",0,IF('III Tool Overview'!$H$6="Western Isles Health Board",0,IF('III Tool Overview'!$H$6="Orkney Islands Local Authority",0,IF('III Tool Overview'!$H$6="Shetland Islands Local Authority",0,IF('III Tool Overview'!$H$6="Eilean Siar Local Authority",0,new_ci(2,B66,C66,D66,$C$1,G66,1,F66,F66,SIMDrateratios,RateRatios!$B$3)*10)))))) -> 0 | J66: =IF('III Tool Overview'!$H$6="Orkney Health Board",0,IF('III Tool Overview'!$H$6="Shetland Health Board",0,IF('III Tool Overview'!$H$6="Western Isles Health Board",0,IF('III Tool Overview'!$H$6="Orkney Islands Local Authority",0,IF('III Tool Overview'!$H$6="Shetland Islands Local Authority",0,IF('III Tool Overview'!$H$6="Eilean Siar Local Authority",0,new_ci(2,B66,C66,D66,$C$1,G66+H66,1,H66,H66,SIMDrateratios,RateRatios!$B$3)*10)))))) -> 0 | K66: =IF('III Tool Overview'!$H$6="Orkney Health Board",0,IF('III Tool Overview'!$H$6="Shetland Health Board",0,IF('III Tool Overview'!$H$6="Western Isles Health Board",0,IF('III Tool Overview'!$H$6="Orkney Islands Local Authority",0,IF('III Tool Overview'!$H$6="Shetland Islands Local Authority",0,IF('III Tool Overview'!$H$6="Eilean Siar Local Authority",0,new_ci(5,B66,C66,D66,$C$1,G66,1,F66,F66,SIMDrateratios,RateRatios!$B$3)*10)))))) -> 0 | L66: =IF('III Tool Overview'!$H$6="Orkney Health Board",0,IF('III Tool Overview'!$H$6="Shetland Health Board",0,IF('III Tool Overview'!$H$6="Western Isles Health Board",0,IF('III Tool Overview'!$H$6="Orkney Islands Local Authority",0,IF('III Tool Overview'!$H$6="Shetland Islands Local Authority",0,IF('III Tool Overview'!$H$6="Eilean Siar Local Authority",0,new_ci(5,B66,C66,D66,$C$1,G66+H66,1,F66,F66,SIMDrateratios,RateRatios!$B$3)*10)))))) -> 0 | M66: =IF('III Tool Overview'!$H$6="Orkney Health Board",0,IF('III Tool Overview'!$H$6="Shetland Health Board",0,IF('III Tool Overview'!$H$6="Western Isles Health Board",0,IF('III Tool Overview'!$H$6="Orkney Islands Local Authority",0,IF('III Tool Overview'!$H$6="Shetland Islands Local Authority",0,IF('III Tool Overview'!$H$6="Eilean Siar Local Authority",0,new_ci(10,B66,C66,D66,$C$1,G66,1,F66,F66,SIMDrateratios,RateRatios!$B$3)*10)))))) -> 0 | N66: =IF('III Tool Overview'!$H$6="Orkney Health Board",0,IF('III Tool Overview'!$H$6="Shetland Health Board",0,IF('III Tool Overview'!$H$6="Western Isles Health Board",0,IF('III Tool Overview'!$H$6="Orkney Islands Local Authority",0,IF('III Tool Overview'!$H$6="Shetland Islands Local Authority",0,IF('III Tool Overview'!$H$6="Eilean Siar Local Authority",0,new_ci(10,B66,C66,D66,$C$1,G66+H66,1,F66,F66,SIMDrateratios,RateRatios!$B$3)*10)))))) -> 0 | O66: =IF('III Tool Overview'!$H$6="Orkney Health Board",0,IF('III Tool Overview'!$H$6="Shetland Health Board",0,IF('III Tool Overview'!$H$6="Western Isles Health Board",0,IF('III Tool Overview'!$H$6="Orkney Islands Local Authority",0,IF('III Tool Overview'!$H$6="Shetland Islands Local Authority",0,IF('III Tool Overview'!$H$6="Eilean Siar Local Authority",0,new_ci(20,B66,C66,D66,$C$1,G66,1,F66,F66,SIMDrateratios,RateRatios!$B$3)*10)))))) -> 0 | P66: =IF('III Tool Overview'!$H$6="Orkney Health Board",0,IF('III Tool Overview'!$H$6="Shetland Health Board",0,IF('III Tool Overview'!$H$6="Western Isles Health Board",0,IF('III Tool Overview'!$H$6="Orkney Islands Local Authority",0,IF('III Tool Overview'!$H$6="Shetland Islands Local Authority",0,IF('III Tool Overview'!$H$6="Eilean Siar Local Authority",0,new_ci(20,B66,C66,D66,$C$1,G66+H66,1,F66,F66,SIMDrateratios,RateRatios!$B$3)*10)))))) -> 0 | Q66: =IF('III Tool Overview'!$H$6="Orkney Health Board",0,IF('III Tool Overview'!$H$6="Shetland Health Board",0,IF('III Tool Overview'!$H$6="Western Isles Health Board",0,IF('III Tool Overview'!$H$6="Orkney Islands Local Authority",0,IF('III Tool Overview'!$H$6="Shetland Islands Local Authority",0,IF('III Tool Overview'!$H$6="Eilean Siar Local Authority",0,new_yll(2,B66,C66,D66,$C$1,G66,1,F66,F66,SIMDrateratios,RateRatios!$B$3)*10)))))) -> 0 | R66: =IF('III Tool Overview'!$H$6="Orkney Health Board",0,IF('III Tool Overview'!$H$6="Shetland Health Board",0,IF('III Tool Overview'!$H$6="Western Isles Health Board",0,IF('III Tool Overview'!$H$6="Orkney Islands Local Authority",0,IF('III Tool Overview'!$H$6="Shetland Islands Local Authority",0,IF('III Tool Overview'!$H$6="Eilean Siar Local Authority",0,new_yll(2,B66,C66,D66,$C$1,G66+H66,1,F66,F66,SIMDrateratios,RateRatios!$B$3)*10)))))) -> 0 | S66: =Q66-R66 -> 0 | T66: =IF('III Tool Overview'!$H$6="Orkney Health Board",0,IF('III Tool Overview'!$H$6="Shetland Health Board",0,IF('III Tool Overview'!$H$6="Western Isles Health Board",0,IF('III Tool Overview'!$H$6="Orkney Islands Local Authority",0,IF('III Tool Overview'!$H$6="Shetland Islands Local Authority",0,IF('III Tool Overview'!$H$6="Eilean Siar Local Authority",0,new_yll(5,B66,C66,D66,$C$1,G66,1,F66,F66,SIMDrateratios,RateRatios!$B$3)*10)))))) -> 0 | U66: =IF('III Tool Overview'!$H$6="Orkney Health Board",0,IF('III Tool Overview'!$H$6="Shetland Health Board",0,IF('III Tool Overview'!$H$6="Western Isles Health Board",0,IF('III Tool Overview'!$H$6="Orkney Islands Local Authority",0,IF('III Tool Overview'!$H$6="Shetland Islands Local Authority",0,IF('III Tool Overview'!$H$6="Eilean Siar Local Authority",0,new_yll(5,B66,C66,D66,$C$1,G66+H66,1,F66,F66,SIMDrateratios,RateRatios!$B$3)*10)))))) -> 0 | V66: =T66-U66 -> 0 | W66: =IF('III Tool Overview'!$H$6="Orkney Health Board",0,IF('III Tool Overview'!$H$6="Shetland Health Board",0,IF('III Tool Overview'!$H$6="Western Isles Health Board",0,IF('III Tool Overview'!$H$6="Orkney Islands Local Authority",0,IF('III Tool Overview'!$H$6="Shetland Islands Local Authority",0,IF('III Tool Overview'!$H$6="Eilean Siar Local Authority",0,new_yll(10,B66,C66,D66,$C$1,G66,1,F66,F66,SIMDrateratios,RateRatios!$B$3)*10)))))) -> 0 | X66: =IF('III Tool Overview'!$H$6="Orkney Health Board",0,IF('III Tool Overview'!$H$6="Shetland Health Board",0,IF('III Tool Overview'!$H$6="Western Isles Health Board",0,IF('III Tool Overview'!$H$6="Orkney Islands Local Authority",0,IF('III Tool Overview'!$H$6="Shetland Islands Local Authority",0,IF('III Tool Overview'!$H$6="Eilean Siar Local Authority",0,new_yll(10,B66,C66,D66,$C$1,G66+H66,1,F66,F66,SIMDrateratios,RateRatios!$B$3)*10)))))) -> 0 | Y66: =W66-X66 -> 0 | Z66: =IF('III Tool Overview'!$H$6="Orkney Health Board",0,IF('III Tool Overview'!$H$6="Shetland Health Board",0,IF('III Tool Overview'!$H$6="Western Isles Health Board",0,IF('III Tool Overview'!$H$6="Orkney Islands Local Authority",0,IF('III Tool Overview'!$H$6="Shetland Islands Local Authority",0,IF('III Tool Overview'!$H$6="Eilean Siar Local Authority",0,new_yll(20,B66,C66,D66,$C$1,G66,1,F66,F66,SIMDrateratios,RateRatios!$B$3)*10)))))) -> 0 | AA66: =IF('III Tool Overview'!$H$6="Orkney Health Board",0,IF('III Tool Overview'!$H$6="Shetland Health Board",0,IF('III Tool Overview'!$H$6="Western Isles Health Board",0,IF('III Tool Overview'!$H$6="Orkney Islands Local Authority",0,IF('III Tool Overview'!$H$6="Shetland Islands Local Authority",0,IF('III Tool Overview'!$H$6="Eilean Siar Local Authority",0,new_yll(20,B66,C66,D66,$C$1,G66+H66,1,F66,F66,SIMDrateratios,RateRatios!$B$3)*10)))))) -> 0 | AB66: =Z66-AA66 -> 0 | AC66: =IF('III Tool Overview'!$H$6="Orkney Health Board",0,IF('III Tool Overview'!$H$6="Shetland Health Board",0,IF('III Tool Overview'!$H$6="Western Isles Health Board",0,IF('III Tool Overview'!$H$6="Orkney Islands Local Authority",0,IF('III Tool Overview'!$H$6="Shetland Islands Local Authority",0,IF('III Tool Overview'!$H$6="Eilean Siar Local Authority",0,hosp_count(2,B66,C66,D66,$C$1,G66,1,F66,F66,SIMDRateRatios_hosp,SIMDrateratios,RateRatios!$B$3)*10)))))) -> 0 | AD66: =IF('III Tool Overview'!$H$6="Orkney Health Board",0,IF('III Tool Overview'!$H$6="Shetland Health Board",0,IF('III Tool Overview'!$H$6="Western Isles Health Board",0,IF('III Tool Overview'!$H$6="Orkney Islands Local Authority",0,IF('III Tool Overview'!$H$6="Shetland Islands Local Authority",0,IF('III Tool Overview'!$H$6="Eilean Siar Local Authority",0,hosp_count(2,B66,C66,D66,$C$1,G66+H66,1,F66,F66,SIMDRateRatios_hosp,SIMDrateratios,RateRatios!$B$3)*10)))))) -> 0 | AE66: =AC66-AD66 -> 0 | AF66: =IF('III Tool Overview'!$H$6="Orkney Health Board",0,IF('III Tool Overview'!$H$6="Shetland Health Board",0,IF('III Tool Overview'!$H$6="Western Isles Health Board",0,IF('III Tool Overview'!$H$6="Orkney Islands Local Authority",0,IF('III Tool Overview'!$H$6="Shetland Islands Local Authority",0,IF('III Tool Overview'!$H$6="Eilean Siar Local Authority",0,hosp_count(5,B66,C66,D66,$C$1,G66,1,F66,F66,SIMDRateRatios_hosp,SIMDrateratios,RateRatios!$B$3)*10)))))) -> 0 | AG66: =IF('III Tool Overview'!$H$6="Orkney Health Board",0,IF('III Tool Overview'!$H$6="Shetland Health Board",0,IF('III Tool Overview'!$H$6="Western Isles Health Board",0,IF('III Tool Overview'!$H$6="Orkney Islands Local Authority",0,IF('III Tool Overview'!$H$6="Shetland Islands Local Authority",0,IF('III Tool Overview'!$H$6="Eilean Siar Local Authority",0,hosp_count(5,B66,C66,D66,$C$1,G66+H66,1,F66,F66,SIMDRateRatios_hosp,SIMDrateratios,RateRatios!$B$3)*10)))))) -> 0 | AH66: =AF66-AG66 -> 0 | AI66: =IF('III Tool Overview'!$H$6="Orkney Health Board",0,IF('III Tool Overview'!$H$6="Shetland Health Board",0,IF('III Tool Overview'!$H$6="Western Isles Health Board",0,IF('III Tool Overview'!$H$6="Orkney Islands Local Authority",0,IF('III Tool Overview'!$H$6="Shetland Islands Local Authority",0,IF('III Tool Overview'!$H$6="Eilean Siar Local Authority",0,hosp_count(10,B66,C66,D66,$C$1,G66,1,F66,F66,SIMDRateRatios_hosp,SIMDrateratios,RateRatios!$B$3)*10)))))) -> 0 | AJ66: =IF('III Tool Overview'!$H$6="Orkney Health Board",0,IF('III Tool Overview'!$H$6="Shetland Health Board",0,IF('III Tool Overview'!$H$6="Western Isles Health Board",0,IF('III Tool Overview'!$H$6="Orkney Islands Local Authority",0,IF('III Tool Overview'!$H$6="Shetland Islands Local Authority",0,IF('III Tool Overview'!$H$6="Eilean Siar Local Authority",0,hosp_count(10,B66,C66,D66,$C$1,G66+H66,1,F66,F66,SIMDRateRatios_hosp,SIMDrateratios,RateRatios!$B$3)*10)))))) -> 0 | AK66: =AI66-AJ66 -> 0 | AL66: =IF('III Tool Overview'!$H$6="Orkney Health Board",0,IF('III Tool Overview'!$H$6="Shetland Health Board",0,IF('III Tool Overview'!$H$6="Western Isles Health Board",0,IF('III Tool Overview'!$H$6="Orkney Islands Local Authority",0,IF('III Tool Overview'!$H$6="Shetland Islands Local Authority",0,IF('III Tool Overview'!$H$6="Eilean Siar Local Authority",0,hosp_count(20,B66,C66,D66,$C$1,G66,1,F66,F66,SIMDRateRatios_hosp,SIMDrateratios,RateRatios!$B$3)*10)))))) -> 0 | AM66: =IF('III Tool Overview'!$H$6="Orkney Health Board",0,IF('III Tool Overview'!$H$6="Shetland Health Board",0,IF('III Tool Overview'!$H$6="Western Isles Health Board",0,IF('III Tool Overview'!$H$6="Orkney Islands Local Authority",0,IF('III Tool Overview'!$H$6="Shetland Islands Local Authority",0,IF('III Tool Overview'!$H$6="Eilean Siar Local Authority",0,hosp_count(20,B66,C66,D66,$C$1,G66+H66,1,F66,F66,SIMDRateRatios_hosp,SIMDrateratios,RateRatios!$B$3)*10)))))) -> 0 | AN66: =AL66-AM66 -> 0
A67: Male 1-4 | B67: 2.5 | C67: male | D67: 1 | E67: 1 | F67: =HLOOKUP('III Tool Overview'!$H$6,LookUpData_Pop!$B$1:$AV$269,LookUpData_Pop!BB68,FALSE)/50 -> 0 | G67: ='III Tool Overview'!$H$9/110 -> 0 | H67: =F67 -> 0 | I67: =IF('III Tool Overview'!$H$6="Orkney Health Board",0,IF('III Tool Overview'!$H$6="Shetland Health Board",0,IF('III Tool Overview'!$H$6="Western Isles Health Board",0,IF('III Tool Overview'!$H$6="Orkney Islands Local Authority",0,IF('III Tool Overview'!$H$6="Shetland Islands Local Authority",0,IF('III Tool Overview'!$H$6="Eilean Siar Local Authority",0,new_ci(2,B67,C67,D67,$C$1,G67,1,F67,F67,SIMDrateratios,RateRatios!$B$3)*10)))))) -> 0 | J67: =IF('III Tool Overview'!$H$6="Orkney Health Board",0,IF('III Tool Overview'!$H$6="Shetland Health Board",0,IF('III Tool Overview'!$H$6="Western Isles Health Board",0,IF('III Tool Overview'!$H$6="Orkney Islands Local Authority",0,IF('III Tool Overview'!$H$6="Shetland Islands Local Authority",0,IF('III Tool Overview'!$H$6="Eilean Siar Local Authority",0,new_ci(2,B67,C67,D67,$C$1,G67+H67,1,H67,H67,SIMDrateratios,RateRatios!$B$3)*10)))))) -> 0 | K67: =IF('III Tool Overview'!$H$6="Orkney Health Board",0,IF('III Tool Overview'!$H$6="Shetland Health Board",0,IF('III Tool Overview'!$H$6="Western Isles Health Board",0,IF('III Tool Overview'!$H$6="Orkney Islands Local Authority",0,IF('III Tool Overview'!$H$6="Shetland Islands Local Authority",0,IF('III Tool Overview'!$H$6="Eilean Siar Local Authority",0,new_ci(5,B67,C67,D67,$C$1,G67,1,F67,F67,SIMDrateratios,RateRatios!$B$3)*10)))))) -> 0 | L67: =IF('III Tool Overview'!$H$6="Orkney Health Board",0,IF('III Tool Overview'!$H$6="Shetland Health Board",0,IF('III Tool Overview'!$H$6="Western Isles Health Board",0,IF('III Tool Overview'!$H$6="Orkney Islands Local Authority",0,IF('III Tool Overview'!$H$6="Shetland Islands Local Authority",0,IF('III Tool Overview'!$H$6="Eilean Siar Local Authority",0,new_ci(5,B67,C67,D67,$C$1,G67+H67,1,F67,F67,SIMDrateratios,RateRatios!$B$3)*10)))))) -> 0 | M67: =IF('III Tool Overview'!$H$6="Orkney Health Board",0,IF('III Tool Overview'!$H$6="Shetland Health Board",0,IF('III Tool Overview'!$H$6="Western Isles Health Board",0,IF('III Tool Overview'!$H$6="Orkney Islands Local Authority",0,IF('III Tool Overview'!$H$6="Shetland Islands Local Authority",0,IF('III Tool Overview'!$H$6="Eilean Siar Local Authority",0,new_ci(10,B67,C67,D67,$C$1,G67,1,F67,F67,SIMDrateratios,RateRatios!$B$3)*10)))))) -> 0 | N67: =IF('III Tool Overview'!$H$6="Orkney Health Board",0,IF('III Tool Overview'!$H$6="Shetland Health Board",0,IF('III Tool Overview'!$H$6="Western Isles Health Board",0,IF('III Tool Overview'!$H$6="Orkney Islands Local Authority",0,IF('III Tool Overview'!$H$6="Shetland Islands Local Authority",0,IF('III Tool Overview'!$H$6="Eilean Siar Local Authority",0,new_ci(10,B67,C67,D67,$C$1,G67+H67,1,F67,F67,SIMDrateratios,RateRatios!$B$3)*10)))))) -> 0 | O67: =IF('III Tool Overview'!$H$6="Orkney Health Board",0,IF('III Tool Overview'!$H$6="Shetland Health Board",0,IF('III Tool Overview'!$H$6="Western Isles Health Board",0,IF('III Tool Overview'!$H$6="Orkney Islands Local Authority",0,IF('III Tool Overview'!$H$6="Shetland Islands Local Authority",0,IF('III Tool Overview'!$H$6="Eilean Siar Local Authority",0,new_ci(20,B67,C67,D67,$C$1,G67,1,F67,F67,SIMDrateratios,RateRatios!$B$3)*10)))))) -> 0 | P67: =IF('III Tool Overview'!$H$6="Orkney Health Board",0,IF('III Tool Overview'!$H$6="Shetland Health Board",0,IF('III Tool Overview'!$H$6="Western Isles Health Board",0,IF('III Tool Overview'!$H$6="Orkney Islands Local Authority",0,IF('III Tool Overview'!$H$6="Shetland Islands Local Authority",0,IF('III Tool Overview'!$H$6="Eilean Siar Local Authority",0,new_ci(20,B67,C67,D67,$C$1,G67+H67,1,F67,F67,SIMDrateratios,RateRatios!$B$3)*10)))))) -> 0 | Q67: =IF('III Tool Overview'!$H$6="Orkney Health Board",0,IF('III Tool Overview'!$H$6="Shetland Health Board",0,IF('III Tool Overview'!$H$6="Western Isles Health Board",0,IF('III Tool Overview'!$H$6="Orkney Islands Local Authority",0,IF('III Tool Overview'!$H$6="Shetland Islands Local Authority",0,IF('III Tool Overview'!$H$6="Eilean Siar Local Authority",0,new_yll(2,B67,C67,D67,$C$1,G67,1,F67,F67,SIMDrateratios,RateRatios!$B$3)*10)))))) -> 0 | R67: =IF('III Tool Overview'!$H$6="Orkney Health Board",0,IF('III Tool Overview'!$H$6="Shetland Health Board",0,IF('III Tool Overview'!$H$6="Western Isles Health Board",0,IF('III Tool Overview'!$H$6="Orkney Islands Local Authority",0,IF('III Tool Overview'!$H$6="Shetland Islands Local Authority",0,IF('III Tool Overview'!$H$6="Eilean Siar Local Authority",0,new_yll(2,B67,C67,D67,$C$1,G67+H67,1,F67,F67,SIMDrateratios,RateRatios!$B$3)*10)))))) -> 0 | S67: =Q67-R67 -> 0 | T67: =IF('III Tool Overview'!$H$6="Orkney Health Board",0,IF('III Tool Overview'!$H$6="Shetland Health Board",0,IF('III Tool Overview'!$H$6="Western Isles Health Board",0,IF('III Tool Overview'!$H$6="Orkney Islands Local Authority",0,IF('III Tool Overview'!$H$6="Shetland Islands Local Authority",0,IF('III Tool Overview'!$H$6="Eilean Siar Local Authority",0,new_yll(5,B67,C67,D67,$C$1,G67,1,F67,F67,SIMDrateratios,RateRatios!$B$3)*10)))))) -> 0 | U67: =IF('III Tool Overview'!$H$6="Orkney Health Board",0,IF('III Tool Overview'!$H$6="Shetland Health Board",0,IF('III Tool Overview'!$H$6="Western Isles Health Board",0,IF('III Tool Overview'!$H$6="Orkney Islands Local Authority",0,IF('III Tool Overview'!$H$6="Shetland Islands Local Authority",0,IF('III Tool Overview'!$H$6="Eilean Siar Local Authority",0,new_yll(5,B67,C67,D67,$C$1,G67+H67,1,F67,F67,SIMDrateratios,RateRatios!$B$3)*10)))))) -> 0 | V67: =T67-U67 -> 0 | W67: =IF('III Tool Overview'!$H$6="Orkney Health Board",0,IF('III Tool Overview'!$H$6="Shetland Health Board",0,IF('III Tool Overview'!$H$6="Western Isles Health Board",0,IF('III Tool Overview'!$H$6="Orkney Islands Local Authority",0,IF('III Tool Overview'!$H$6="Shetland Islands Local Authority",0,IF('III Tool Overview'!$H$6="Eilean Siar Local Authority",0,new_yll(10,B67,C67,D67,$C$1,G67,1,F67,F67,SIMDrateratios,RateRatios!$B$3)*10)))))) -> 0 | X67: =IF('III Tool Overview'!$H$6="Orkney Health Board",0,IF('III Tool Overview'!$H$6="Shetland Health Board",0,IF('III Tool Overview'!$H$6="Western Isles Health Board",0,IF('III Tool Overview'!$H$6="Orkney Islands Local Authority",0,IF('III Tool Overview'!$H$6="Shetland Islands Local Authority",0,IF('III Tool Overview'!$H$6="Eilean Siar Local Authority",0,new_yll(10,B67,C67,D67,$C$1,G67+H67,1,F67,F67,SIMDrateratios,RateRatios!$B$3)*10)))))) -> 0 | Y67: =W67-X67 -> 0 | Z67: =IF('III Tool Overview'!$H$6="Orkney Health Board",0,IF('III Tool Overview'!$H$6="Shetland Health Board",0,IF('III Tool Overview'!$H$6="Western Isles Health Board",0,IF('III Tool Overview'!$H$6="Orkney Islands Local Authority",0,IF('III Tool Overview'!$H$6="Shetland Islands Local Authority",0,IF('III Tool Overview'!$H$6="Eilean Siar Local Authority",0,new_yll(20,B67,C67,D67,$C$1,G67,1,F67,F67,SIMDrateratios,RateRatios!$B$3)*10)))))) -> 0 | AA67: =IF('III Tool Overview'!$H$6="Orkney Health Board",0,IF('III Tool Overview'!$H$6="Shetland Health Board",0,IF('III Tool Overview'!$H$6="Western Isles Health Board",0,IF('III Tool Overview'!$H$6="Orkney Islands Local Authority",0,IF('III Tool Overview'!$H$6="Shetland Islands Local Authority",0,IF('III Tool Overview'!$H$6="Eilean Siar Local Authority",0,new_yll(20,B67,C67,D67,$C$1,G67+H67,1,F67,F67,SIMDrateratios,RateRatios!$B$3)*10)))))) -> 0 | AB67: =Z67-AA67 -> 0 | AC67: =IF('III Tool Overview'!$H$6="Orkney Health Board",0,IF('III Tool Overview'!$H$6="Shetland Health Board",0,IF('III Tool Overview'!$H$6="Western Isles Health Board",0,IF('III Tool Overview'!$H$6="Orkney Islands Local Authority",0,IF('III Tool Overview'!$H$6="Shetland Islands Local Authority",0,IF('III Tool Overview'!$H$6="Eilean Siar Local Authority",0,hosp_count(2,B67,C67,D67,$C$1,G67,1,F67,F67,SIMDRateRatios_hosp,SIMDrateratios,RateRatios!$B$3)*10)))))) -> 0 | AD67: =IF('III Tool Overview'!$H$6="Orkney Health Board",0,IF('III Tool Overview'!$H$6="Shetland Health Board",0,IF('III Tool Overview'!$H$6="Western Isles Health Board",0,IF('III Tool Overview'!$H$6="Orkney Islands Local Authority",0,IF('III Tool Overview'!$H$6="Shetland Islands Local Authority",0,IF('III Tool Overview'!$H$6="Eilean Siar Local Authority",0,hosp_count(2,B67,C67,D67,$C$1,G67+H67,1,F67,F67,SIMDRateRatios_hosp,SIMDrateratios,RateRatios!$B$3)*10)))))) -> 0 | AE67: =AC67-AD67 -> 0 | AF67: =IF('III Tool Overview'!$H$6="Orkney Health Board",0,IF('III Tool Overview'!$H$6="Shetland Health Board",0,IF('III Tool Overview'!$H$6="Western Isles Health Board",0,IF('III Tool Overview'!$H$6="Orkney Islands Local Authority",0,IF('III Tool Overview'!$H$6="Shetland Islands Local Authority",0,IF('III Tool Overview'!$H$6="Eilean Siar Local Authority",0,hosp_count(5,B67,C67,D67,$C$1,G67,1,F67,F67,SIMDRateRatios_hosp,SIMDrateratios,RateRatios!$B$3)*10)))))) -> 0 | AG67: =IF('III Tool Overview'!$H$6="Orkney Health Board",0,IF('III Tool Overview'!$H$6="Shetland Health Board",0,IF('III Tool Overview'!$H$6="Western Isles Health Board",0,IF('III Tool Overview'!$H$6="Orkney Islands Local Authority",0,IF('III Tool Overview'!$H$6="Shetland Islands Local Authority",0,IF('III Tool Overview'!$H$6="Eilean Siar Local Authority",0,hosp_count(5,B67,C67,D67,$C$1,G67+H67,1,F67,F67,SIMDRateRatios_hosp,SIMDrateratios,RateRatios!$B$3)*10)))))) -> 0 | AH67: =AF67-AG67 -> 0 | AI67: =IF('III Tool Overview'!$H$6="Orkney Health Board",0,IF('III Tool Overview'!$H$6="Shetland Health Board",0,IF('III Tool Overview'!$H$6="Western Isles Health Board",0,IF('III Tool Overview'!$H$6="Orkney Islands Local Authority",0,IF('III Tool Overview'!$H$6="Shetland Islands Local Authority",0,IF('III Tool Overview'!$H$6="Eilean Siar Local Authority",0,hosp_count(10,B67,C67,D67,$C$1,G67,1,F67,F67,SIMDRateRatios_hosp,SIMDrateratios,RateRatios!$B$3)*10)))))) -> 0 | AJ67: =IF('III Tool Overview'!$H$6="Orkney Health Board",0,IF('III Tool Overview'!$H$6="Shetland Health Board",0,IF('III Tool Overview'!$H$6="Western Isles Health Board",0,IF('III Tool Overview'!$H$6="Orkney Islands Local Authority",0,IF('III Tool Overview'!$H$6="Shetland Islands Local Authority",0,IF('III Tool Overview'!$H$6="Eilean Siar Local Authority",0,hosp_count(10,B67,C67,D67,$C$1,G67+H67,1,F67,F67,SIMDRateRatios_hosp,SIMDrateratios,RateRatios!$B$3)*10)))))) -> 0 | AK67: =AI67-AJ67 -> 0 | AL67: =IF('III Tool Overview'!$H$6="Orkney Health Board",0,IF('III Tool Overview'!$H$6="Shetland Health Board",0,IF('III Tool Overview'!$H$6="Western Isles Health Board",0,IF('III Tool Overview'!$H$6="Orkney Islands Local Authority",0,IF('III Tool Overview'!$H$6="Shetland Islands Local Authority",0,IF('III Tool Overview'!$H$6="Eilean Siar Local Authority",0,hosp_count(20,B67,C67,D67,$C$1,G67,1,F67,F67,SIMDRateRatios_hosp,SIMDrateratios,RateRatios!$B$3)*10)))))) -> 0 | AM67: =IF('III Tool Overview'!$H$6="Orkney Health Board",0,IF('III Tool Overview'!$H$6="Shetland Health Board",0,IF('III Tool Overview'!$H$6="Western Isles Health Board",0,IF('III Tool Overview'!$H$6="Orkney Islands Local Authority",0,IF('III Tool Overview'!$H$6="Shetland Islands Local Authority",0,IF('III Tool Overview'!$H$6="Eilean Siar Local Authority",0,hosp_count(20,B67,C67,D67,$C$1,G67+H67,1,F67,F67,SIMDRateRatios_hosp,SIMDrateratios,RateRatios!$B$3)*10)))))) -> 0 | AN67: =AL67-AM67 -> 0
A68: Male 5-9 | B68: 7.5 | C68: male | D68: 1 | E68: 1 | F68: =HLOOKUP('III Tool Overview'!$H$6,LookUpData_Pop!$B$1:$AV$269,LookUpData_Pop!BB69,FALSE)/50 -> 0 | G68: ='III Tool Overview'!$H$9/110 -> 0 | H68: 0 | I68: =IF('III Tool Overview'!$H$6="Orkney Health Board",0,IF('III Tool Overview'!$H$6="Shetland Health Board",0,IF('III Tool Overview'!$H$6="Western Isles Health Board",0,IF('III Tool Overview'!$H$6="Orkney Islands Local Authority",0,IF('III Tool Overview'!$H$6="Shetland Islands Local Authority",0,IF('III Tool Overview'!$H$6="Eilean Siar Local Authority",0,new_ci(2,B68,C68,D68,$C$1,G68,1,F68,F68,SIMDrateratios,RateRatios!$B$3)*10)))))) -> 0 | J68: =IF('III Tool Overview'!$H$6="Orkney Health Board",0,IF('III Tool Overview'!$H$6="Shetland Health Board",0,IF('III Tool Overview'!$H$6="Western Isles Health Board",0,IF('III Tool Overview'!$H$6="Orkney Islands Local Authority",0,IF('III Tool Overview'!$H$6="Shetland Islands Local Authority",0,IF('III Tool Overview'!$H$6="Eilean Siar Local Authority",0,new_ci(2,B68,C68,D68,$C$1,G68+H68,1,H68,H68,SIMDrateratios,RateRatios!$B$3)*10)))))) -> 0 | K68: =IF('III Tool Overview'!$H$6="Orkney Health Board",0,IF('III Tool Overview'!$H$6="Shetland Health Board",0,IF('III Tool Overview'!$H$6="Western Isles Health Board",0,IF('III Tool Overview'!$H$6="Orkney Islands Local Authority",0,IF('III Tool Overview'!$H$6="Shetland Islands Local Authority",0,IF('III Tool Overview'!$H$6="Eilean Siar Local Authority",0,new_ci(5,B68,C68,D68,$C$1,G68,1,F68,F68,SIMDrateratios,RateRatios!$B$3)*10)))))) -> 0 | L68: =IF('III Tool Overview'!$H$6="Orkney Health Board",0,IF('III Tool Overview'!$H$6="Shetland Health Board",0,IF('III Tool Overview'!$H$6="Western Isles Health Board",0,IF('III Tool Overview'!$H$6="Orkney Islands Local Authority",0,IF('III Tool Overview'!$H$6="Shetland Islands Local Authority",0,IF('III Tool Overview'!$H$6="Eilean Siar Local Authority",0,new_ci(5,B68,C68,D68,$C$1,G68+H68,1,F68,F68,SIMDrateratios,RateRatios!$B$3)*10)))))) -> 0 | M68: =IF('III Tool Overview'!$H$6="Orkney Health Board",0,IF('III Tool Overview'!$H$6="Shetland Health Board",0,IF('III Tool Overview'!$H$6="Western Isles Health Board",0,IF('III Tool Overview'!$H$6="Orkney Islands Local Authority",0,IF('III Tool Overview'!$H$6="Shetland Islands Local Authority",0,IF('III Tool Overview'!$H$6="Eilean Siar Local Authority",0,new_ci(10,B68,C68,D68,$C$1,G68,1,F68,F68,SIMDrateratios,RateRatios!$B$3)*10)))))) -> 0 | N68: =IF('III Tool Overview'!$H$6="Orkney Health Board",0,IF('III Tool Overview'!$H$6="Shetland Health Board",0,IF('III Tool Overview'!$H$6="Western Isles Health Board",0,IF('III Tool Overview'!$H$6="Orkney Islands Local Authority",0,IF('III Tool Overview'!$H$6="Shetland Islands Local Authority",0,IF('III Tool Overview'!$H$6="Eilean Siar Local Authority",0,new_ci(10,B68,C68,D68,$C$1,G68+H68,1,F68,F68,SIMDrateratios,RateRatios!$B$3)*10)))))) -> 0 | O68: =IF('III Tool Overview'!$H$6="Orkney Health Board",0,IF('III Tool Overview'!$H$6="Shetland Health Board",0,IF('III Tool Overview'!$H$6="Western Isles Health Board",0,IF('III Tool Overview'!$H$6="Orkney Islands Local Authority",0,IF('III Tool Overview'!$H$6="Shetland Islands Local Authority",0,IF('III Tool Overview'!$H$6="Eilean Siar Local Authority",0,new_ci(20,B68,C68,D68,$C$1,G68,1,F68,F68,SIMDrateratios,RateRatios!$B$3)*10)))))) -> 0 | P68: =IF('III Tool Overview'!$H$6="Orkney Health Board",0,IF('III Tool Overview'!$H$6="Shetland Health Board",0,IF('III Tool Overview'!$H$6="Western Isles Health Board",0,IF('III Tool Overview'!$H$6="Orkney Islands Local Authority",0,IF('III Tool Overview'!$H$6="Shetland Islands Local Authority",0,IF('III Tool Overview'!$H$6="Eilean Siar Local Authority",0,new_ci(20,B68,C68,D68,$C$1,G68+H68,1,F68,F68,SIMDrateratios,RateRatios!$B$3)*10)))))) -> 0 | Q68: =IF('III Tool Overview'!$H$6="Orkney Health Board",0,IF('III Tool Overview'!$H$6="Shetland Health Board",0,IF('III Tool Overview'!$H$6="Western Isles Health Board",0,IF('III Tool Overview'!$H$6="Orkney Islands Local Authority",0,IF('III Tool Overview'!$H$6="Shetland Islands Local Authority",0,IF('III Tool Overview'!$H$6="Eilean Siar Local Authority",0,new_yll(2,B68,C68,D68,$C$1,G68,1,F68,F68,SIMDrateratios,RateRatios!$B$3)*10)))))) -> 0 | R68: =IF('III Tool Overview'!$H$6="Orkney Health Board",0,IF('III Tool Overview'!$H$6="Shetland Health Board",0,IF('III Tool Overview'!$H$6="Western Isles Health Board",0,IF('III Tool Overview'!$H$6="Orkney Islands Local Authority",0,IF('III Tool Overview'!$H$6="Shetland Islands Local Authority",0,IF('III Tool Overview'!$H$6="Eilean Siar Local Authority",0,new_yll(2,B68,C68,D68,$C$1,G68+H68,1,F68,F68,SIMDrateratios,RateRatios!$B$3)*10)))))) -> 0 | S68: 0 | T68: =IF('III Tool Overview'!$H$6="Orkney Health Board",0,IF('III Tool Overview'!$H$6="Shetland Health Board",0,IF('III Tool Overview'!$H$6="Western Isles Health Board",0,IF('III Tool Overview'!$H$6="Orkney Islands Local Authority",0,IF('III Tool Overview'!$H$6="Shetland Islands Local Authority",0,IF('III Tool Overview'!$H$6="Eilean Siar Local Authority",0,new_yll(5,B68,C68,D68,$C$1,G68,1,F68,F68,SIMDrateratios,RateRatios!$B$3)*10)))))) -> 0 | U68: =IF('III Tool Overview'!$H$6="Orkney Health Board",0,IF('III Tool Overview'!$H$6="Shetland Health Board",0,IF('III Tool Overview'!$H$6="Western Isles Health Board",0,IF('III Tool Overview'!$H$6="Orkney Islands Local Authority",0,IF('III Tool Overview'!$H$6="Shetland Islands Local Authority",0,IF('III Tool Overview'!$H$6="Eilean Siar Local Authority",0,new_yll(5,B68,C68,D68,$C$1,G68+H68,1,F68,F68,SIMDrateratios,RateRatios!$B$3)*10)))))) -> 0 | V68: 0 | W68: =IF('III Tool Overview'!$H$6="Orkney Health Board",0,IF('III Tool Overview'!$H$6="Shetland Health Board",0,IF('III Tool Overview'!$H$6="Western Isles Health Board",0,IF('III Tool Overview'!$H$6="Orkney Islands Local Authority",0,IF('III Tool Overview'!$H$6="Shetland Islands Local Authority",0,IF('III Tool Overview'!$H$6="Eilean Siar Local Authority",0,new_yll(10,B68,C68,D68,$C$1,G68,1,F68,F68,SIMDrateratios,RateRatios!$B$3)*10)))))) -> 0 | X68: =IF('III Tool Overview'!$H$6="Orkney Health Board",0,IF('III Tool Overview'!$H$6="Shetland Health Board",0,IF('III Tool Overview'!$H$6="Western Isles Health Board",0,IF('III Tool Overview'!$H$6="Orkney Islands Local Authority",0,IF('III Tool Overview'!$H$6="Shetland Islands Local Authority",0,IF('III Tool Overview'!$H$6="Eilean Siar Local Authority",0,new_yll(10,B68,C68,D68,$C$1,G68+H68,1,F68,F68,SIMDrateratios,RateRatios!$B$3)*10)))))) -> 0 | Y68: 0 | Z68: =IF('III Tool Overview'!$H$6="Orkney Health Board",0,IF('III Tool Overview'!$H$6="Shetland Health Board",0,IF('III Tool Overview'!$H$6="Western Isles Health Board",0,IF('III Tool Overview'!$H$6="Orkney Islands Local Authority",0,IF('III Tool Overview'!$H$6="Shetland Islands Local Authority",0,IF('III Tool Overview'!$H$6="Eilean Siar Local Authority",0,new_yll(20,B68,C68,D68,$C$1,G68,1,F68,F68,SIMDrateratios,RateRatios!$B$3)*10)))))) -> 0 | AA68: =IF('III Tool Overview'!$H$6="Orkney Health Board",0,IF('III Tool Overview'!$H$6="Shetland Health Board",0,IF('III Tool Overview'!$H$6="Western Isles Health Board",0,IF('III Tool Overview'!$H$6="Orkney Islands Local Authority",0,IF('III Tool Overview'!$H$6="Shetland Islands Local Authority",0,IF('III Tool Overview'!$H$6="Eilean Siar Local Authority",0,new_yll(20,B68,C68,D68,$C$1,G68+H68,1,F68,F68,SIMDrateratios,RateRatios!$B$3)*10)))))) -> 0 | AB68: 0 | AC68: =IF('III Tool Overview'!$H$6="Orkney Health Board",0,IF('III Tool Overview'!$H$6="Shetland Health Board",0,IF('III Tool Overview'!$H$6="Western Isles Health Board",0,IF('III Tool Overview'!$H$6="Orkney Islands Local Authority",0,IF('III Tool Overview'!$H$6="Shetland Islands Local Authority",0,IF('III Tool Overview'!$H$6="Eilean Siar Local Authority",0,hosp_count(2,B68,C68,D68,$C$1,G68,1,F68,F68,SIMDRateRatios_hosp,SIMDrateratios,RateRatios!$B$3)*10)))))) -> 0 | AD68: =IF('III Tool Overview'!$H$6="Orkney Health Board",0,IF('III Tool Overview'!$H$6="Shetland Health Board",0,IF('III Tool Overview'!$H$6="Western Isles Health Board",0,IF('III Tool Overview'!$H$6="Orkney Islands Local Authority",0,IF('III Tool Overview'!$H$6="Shetland Islands Local Authority",0,IF('III Tool Overview'!$H$6="Eilean Siar Local Authority",0,hosp_count(2,B68,C68,D68,$C$1,G68+H68,1,F68,F68,SIMDRateRatios_hosp,SIMDrateratios,RateRatios!$B$3)*10)))))) -> 0 | AE68: 0 | AF68: =IF('III Tool Overview'!$H$6="Orkney Health Board",0,IF('III Tool Overview'!$H$6="Shetland Health Board",0,IF('III Tool Overview'!$H$6="Western Isles Health Board",0,IF('III Tool Overview'!$H$6="Orkney Islands Local Authority",0,IF('III Tool Overview'!$H$6="Shetland Islands Local Authority",0,IF('III Tool Overview'!$H$6="Eilean Siar Local Authority",0,hosp_count(5,B68,C68,D68,$C$1,G68,1,F68,F68,SIMDRateRatios_hosp,SIMDrateratios,RateRatios!$B$3)*10)))))) -> 0 | AG68: =IF('III Tool Overview'!$H$6="Orkney Health Board",0,IF('III Tool Overview'!$H$6="Shetland Health Board",0,IF('III Tool Overview'!$H$6="Western Isles Health Board",0,IF('III Tool Overview'!$H$6="Orkney Islands Local Authority",0,IF('III Tool Overview'!$H$6="Shetland Islands Local Authority",0,IF('III Tool Overview'!$H$6="Eilean Siar Local Authority",0,hosp_count(5,B68,C68,D68,$C$1,G68+H68,1,F68,F68,SIMDRateRatios_hosp,SIMDrateratios,RateRatios!$B$3)*10)))))) -> 0 | AH68: 0 | AI68: =IF('III Tool Overview'!$H$6="Orkney Health Board",0,IF('III Tool Overview'!$H$6="Shetland Health Board",0,IF('III Tool Overview'!$H$6="Western Isles Health Board",0,IF('III Tool Overview'!$H$6="Orkney Islands Local Authority",0,IF('III Tool Overview'!$H$6="Shetland Islands Local Authority",0,IF('III Tool Overview'!$H$6="Eilean Siar Local Authority",0,hosp_count(10,B68,C68,D68,$C$1,G68,1,F68,F68,SIMDRateRatios_hosp,SIMDrateratios,RateRatios!$B$3)*10)))))) -> 0 | AJ68: =IF('III Tool Overview'!$H$6="Orkney Health Board",0,IF('III Tool Overview'!$H$6="Shetland Health Board",0,IF('III Tool Overview'!$H$6="Western Isles Health Board",0,IF('III Tool Overview'!$H$6="Orkney Islands Local Authority",0,IF('III Tool Overview'!$H$6="Shetland Islands Local Authority",0,IF('III Tool Overview'!$H$6="Eilean Siar Local Authority",0,hosp_count(10,B68,C68,D68,$C$1,G68+H68,1,F68,F68,SIMDRateRatios_hosp,SIMDrateratios,RateRatios!$B$3)*10)))))) -> 0 | AK68: 0 | AL68: =IF('III Tool Overview'!$H$6="Orkney Health Board",0,IF('III Tool Overview'!$H$6="Shetland Health Board",0,IF('III Tool Overview'!$H$6="Western Isles Health Board",0,IF('III Tool Overview'!$H$6="Orkney Islands Local Authority",0,IF('III Tool Overview'!$H$6="Shetland Islands Local Authority",0,IF('III Tool Overview'!$H$6="Eilean Siar Local Authority",0,hosp_count(20,B68,C68,D68,$C$1,G68,1,F68,F68,SIMDRateRatios_hosp,SIMDrateratios,RateRatios!$B$3)*10)))))) -> 0 | AM68: =IF('III Tool Overview'!$H$6="Orkney Health Board",0,IF('III Tool Overview'!$H$6="Shetland Health Board",0,IF('III Tool Overview'!$H$6="Western Isles Health Board",0,IF('III Tool Overview'!$H$6="Orkney Islands Local Authority",0,IF('III Tool Overview'!$H$6="Shetland Islands Local Authority",0,IF('III Tool Overview'!$H$6="Eilean Siar Local Authority",0,hosp_count(20,B68,C68,D68,$C$1,G68+H68,1,F68,F68,SIMDRateRatios_hosp,SIMDrateratios,RateRatios!$B$3)*10)))))) -> 0 | AN68: 0
A69: Male 10-14 | B69: 12.5 | C69: male | D69: 1 | E69: 1 | F69: =HLOOKUP('III Tool Overview'!$H$6,LookUpData_Pop!$B$1:$AV$269,LookUpData_Pop!BB70,FALSE)/50 -> 0 | G69: ='III Tool Overview'!$H$9/110 -> 0 | H69: 0 | I69: =IF('III Tool Overview'!$H$6="Orkney Health Board",0,IF('III Tool Overview'!$H$6="Shetland Health Board",0,IF('III Tool Overview'!$H$6="Western Isles Health Board",0,IF('III Tool Overview'!$H$6="Orkney Islands Local Authority",0,IF('III Tool Overview'!$H$6="Shetland Islands Local Authority",0,IF('III Tool Overview'!$H$6="Eilean Siar Local Authority",0,new_ci(2,B69,C69,D69,$C$1,G69,1,F69,F69,SIMDrateratios,RateRatios!$B$3)*10)))))) -> 0 | J69: =IF('III Tool Overview'!$H$6="Orkney Health Board",0,IF('III Tool Overview'!$H$6="Shetland Health Board",0,IF('III Tool Overview'!$H$6="Western Isles Health Board",0,IF('III Tool Overview'!$H$6="Orkney Islands Local Authority",0,IF('III Tool Overview'!$H$6="Shetland Islands Local Authority",0,IF('III Tool Overview'!$H$6="Eilean Siar Local Authority",0,new_ci(2,B69,C69,D69,$C$1,G69+H69,1,H69,H69,SIMDrateratios,RateRatios!$B$3)*10)))))) -> 0 | K69: =IF('III Tool Overview'!$H$6="Orkney Health Board",0,IF('III Tool Overview'!$H$6="Shetland Health Board",0,IF('III Tool Overview'!$H$6="Western Isles Health Board",0,IF('III Tool Overview'!$H$6="Orkney Islands Local Authority",0,IF('III Tool Overview'!$H$6="Shetland Islands Local Authority",0,IF('III Tool Overview'!$H$6="Eilean Siar Local Authority",0,new_ci(5,B69,C69,D69,$C$1,G69,1,F69,F69,SIMDrateratios,RateRatios!$B$3)*10)))))) -> 0 | L69: =IF('III Tool Overview'!$H$6="Orkney Health Board",0,IF('III Tool Overview'!$H$6="Shetland Health Board",0,IF('III Tool Overview'!$H$6="Western Isles Health Board",0,IF('III Tool Overview'!$H$6="Orkney Islands Local Authority",0,IF('III Tool Overview'!$H$6="Shetland Islands Local Authority",0,IF('III Tool Overview'!$H$6="Eilean Siar Local Authority",0,new_ci(5,B69,C69,D69,$C$1,G69+H69,1,F69,F69,SIMDrateratios,RateRatios!$B$3)*10)))))) -> 0 | M69: =IF('III Tool Overview'!$H$6="Orkney Health Board",0,IF('III Tool Overview'!$H$6="Shetland Health Board",0,IF('III Tool Overview'!$H$6="Western Isles Health Board",0,IF('III Tool Overview'!$H$6="Orkney Islands Local Authority",0,IF('III Tool Overview'!$H$6="Shetland Islands Local Authority",0,IF('III Tool Overview'!$H$6="Eilean Siar Local Authority",0,new_ci(10,B69,C69,D69,$C$1,G69,1,F69,F69,SIMDrateratios,RateRatios!$B$3)*10)))))) -> 0 | N69: =IF('III Tool Overview'!$H$6="Orkney Health Board",0,IF('III Tool Overview'!$H$6="Shetland Health Board",0,IF('III Tool Overview'!$H$6="Western Isles Health Board",0,IF('III Tool Overview'!$H$6="Orkney Islands Local Authority",0,IF('III Tool Overview'!$H$6="Shetland Islands Local Authority",0,IF('III Tool Overview'!$H$6="Eilean Siar Local Authority",0,new_ci(10,B69,C69,D69,$C$1,G69+H69,1,F69,F69,SIMDrateratios,RateRatios!$B$3)*10)))))) -> 0 | O69: =IF('III Tool Overview'!$H$6="Orkney Health Board",0,IF('III Tool Overview'!$H$6="Shetland Health Board",0,IF('III Tool Overview'!$H$6="Western Isles Health Board",0,IF('III Tool Overview'!$H$6="Orkney Islands Local Authority",0,IF('III Tool Overview'!$H$6="Shetland Islands Local Authority",0,IF('III Tool Overview'!$H$6="Eilean Siar Local Authority",0,new_ci(20,B69,C69,D69,$C$1,G69,1,F69,F69,SIMDrateratios,RateRatios!$B$3)*10)))))) -> 0 | P69: =IF('III Tool Overview'!$H$6="Orkney Health Board",0,IF('III Tool Overview'!$H$6="Shetland Health Board",0,IF('III Tool Overview'!$H$6="Western Isles Health Board",0,IF('III Tool Overview'!$H$6="Orkney Islands Local Authority",0,IF('III Tool Overview'!$H$6="Shetland Islands Local Authority",0,IF('III Tool Overview'!$H$6="Eilean Siar Local Authority",0,new_ci(20,B69,C69,D69,$C$1,G69+H69,1,F69,F69,SIMDrateratios,RateRatios!$B$3)*10)))))) -> 0 | Q69: =IF('III Tool Overview'!$H$6="Orkney Health Board",0,IF('III Tool Overview'!$H$6="Shetland Health Board",0,IF('III Tool Overview'!$H$6="Western Isles Health Board",0,IF('III Tool Overview'!$H$6="Orkney Islands Local Authority",0,IF('III Tool Overview'!$H$6="Shetland Islands Local Authority",0,IF('III Tool Overview'!$H$6="Eilean Siar Local Authority",0,new_yll(2,B69,C69,D69,$C$1,G69,1,F69,F69,SIMDrateratios,RateRatios!$B$3)*10)))))) -> 0 | R69: =IF('III Tool Overview'!$H$6="Orkney Health Board",0,IF('III Tool Overview'!$H$6="Shetland Health Board",0,IF('III Tool Overview'!$H$6="Western Isles Health Board",0,IF('III Tool Overview'!$H$6="Orkney Islands Local Authority",0,IF('III Tool Overview'!$H$6="Shetland Islands Local Authority",0,IF('III Tool Overview'!$H$6="Eilean Siar Local Authority",0,new_yll(2,B69,C69,D69,$C$1,G69+H69,1,F69,F69,SIMDrateratios,RateRatios!$B$3)*10)))))) -> 0 | S69: 0 | T69: =IF('III Tool Overview'!$H$6="Orkney Health Board",0,IF('III Tool Overview'!$H$6="Shetland Health Board",0,IF('III Tool Overview'!$H$6="Western Isles Health Board",0,IF('III Tool Overview'!$H$6="Orkney Islands Local Authority",0,IF('III Tool Overview'!$H$6="Shetland Islands Local Authority",0,IF('III Tool Overview'!$H$6="Eilean Siar Local Authority",0,new_yll(5,B69,C69,D69,$C$1,G69,1,F69,F69,SIMDrateratios,RateRatios!$B$3)*10)))))) -> 0 | U69: =IF('III Tool Overview'!$H$6="Orkney Health Board",0,IF('III Tool Overview'!$H$6="Shetland Health Board",0,IF('III Tool Overview'!$H$6="Western Isles Health Board",0,IF('III Tool Overview'!$H$6="Orkney Islands Local Authority",0,IF('III Tool Overview'!$H$6="Shetland Islands Local Authority",0,IF('III Tool Overview'!$H$6="Eilean Siar Local Authority",0,new_yll(5,B69,C69,D69,$C$1,G69+H69,1,F69,F69,SIMDrateratios,RateRatios!$B$3)*10)))))) -> 0 | V69: 0 | W69: =IF('III Tool Overview'!$H$6="Orkney Health Board",0,IF('III Tool Overview'!$H$6="Shetland Health Board",0,IF('III Tool Overview'!$H$6="Western Isles Health Board",0,IF('III Tool Overview'!$H$6="Orkney Islands Local Authority",0,IF('III Tool Overview'!$H$6="Shetland Islands Local Authority",0,IF('III Tool Overview'!$H$6="Eilean Siar Local Authority",0,new_yll(10,B69,C69,D69,$C$1,G69,1,F69,F69,SIMDrateratios,RateRatios!$B$3)*10)))))) -> 0 | X69: =IF('III Tool Overview'!$H$6="Orkney Health Board",0,IF('III Tool Overview'!$H$6="Shetland Health Board",0,IF('III Tool Overview'!$H$6="Western Isles Health Board",0,IF('III Tool Overview'!$H$6="Orkney Islands Local Authority",0,IF('III Tool Overview'!$H$6="Shetland Islands Local Authority",0,IF('III Tool Overview'!$H$6="Eilean Siar Local Authority",0,new_yll(10,B69,C69,D69,$C$1,G69+H69,1,F69,F69,SIMDrateratios,RateRatios!$B$3)*10)))))) -> 0 | Y69: 0 | Z69: =IF('III Tool Overview'!$H$6="Orkney Health Board",0,IF('III Tool Overview'!$H$6="Shetland Health Board",0,IF('III Tool Overview'!$H$6="Western Isles Health Board",0,IF('III Tool Overview'!$H$6="Orkney Islands Local Authority",0,IF('III Tool Overview'!$H$6="Shetland Islands Local Authority",0,IF('III Tool Overview'!$H$6="Eilean Siar Local Authority",0,new_yll(20,B69,C69,D69,$C$1,G69,1,F69,F69,SIMDrateratios,RateRatios!$B$3)*10)))))) -> 0 | AA69: =IF('III Tool Overview'!$H$6="Orkney Health Board",0,IF('III Tool Overview'!$H$6="Shetland Health Board",0,IF('III Tool Overview'!$H$6="Western Isles Health Board",0,IF('III Tool Overview'!$H$6="Orkney Islands Local Authority",0,IF('III Tool Overview'!$H$6="Shetland Islands Local Authority",0,IF('III Tool Overview'!$H$6="Eilean Siar Local Authority",0,new_yll(20,B69,C69,D69,$C$1,G69+H69,1,F69,F69,SIMDrateratios,RateRatios!$B$3)*10)))))) -> 0 | AB69: 0 | AC69: =IF('III Tool Overview'!$H$6="Orkney Health Board",0,IF('III Tool Overview'!$H$6="Shetland Health Board",0,IF('III Tool Overview'!$H$6="Western Isles Health Board",0,IF('III Tool Overview'!$H$6="Orkney Islands Local Authority",0,IF('III Tool Overview'!$H$6="Shetland Islands Local Authority",0,IF('III Tool Overview'!$H$6="Eilean Siar Local Authority",0,hosp_count(2,B69,C69,D69,$C$1,G69,1,F69,F69,SIMDRateRatios_hosp,SIMDrateratios,RateRatios!$B$3)*10)))))) -> 0 | AD69: =IF('III Tool Overview'!$H$6="Orkney Health Board",0,IF('III Tool Overview'!$H$6="Shetland Health Board",0,IF('III Tool Overview'!$H$6="Western Isles Health Board",0,IF('III Tool Overview'!$H$6="Orkney Islands Local Authority",0,IF('III Tool Overview'!$H$6="Shetland Islands Local Authority",0,IF('III Tool Overview'!$H$6="Eilean Siar Local Authority",0,hosp_count(2,B69,C69,D69,$C$1,G69+H69,1,F69,F69,SIMDRateRatios_hosp,SIMDrateratios,RateRatios!$B$3)*10)))))) -> 0 | AE69: 0 | AF69: =IF('III Tool Overview'!$H$6="Orkney Health Board",0,IF('III Tool Overview'!$H$6="Shetland Health Board",0,IF('III Tool Overview'!$H$6="Western Isles Health Board",0,IF('III Tool Overview'!$H$6="Orkney Islands Local Authority",0,IF('III Tool Overview'!$H$6="Shetland Islands Local Authority",0,IF('III Tool Overview'!$H$6="Eilean Siar Local Authority",0,hosp_count(5,B69,C69,D69,$C$1,G69,1,F69,F69,SIMDRateRatios_hosp,SIMDrateratios,RateRatios!$B$3)*10)))))) -> 0 | AG69: =IF('III Tool Overview'!$H$6="Orkney Health Board",0,IF('III Tool Overview'!$H$6="Shetland Health Board",0,IF('III Tool Overview'!$H$6="Western Isles Health Board",0,IF('III Tool Overview'!$H$6="Orkney Islands Local Authority",0,IF('III Tool Overview'!$H$6="Shetland Islands Local Authority",0,IF('III Tool Overview'!$H$6="Eilean Siar Local Authority",0,hosp_count(5,B69,C69,D69,$C$1,G69+H69,1,F69,F69,SIMDRateRatios_hosp,SIMDrateratios,RateRatios!$B$3)*10)))))) -> 0 | AH69: 0 | AI69: =IF('III Tool Overview'!$H$6="Orkney Health Board",0,IF('III Tool Overview'!$H$6="Shetland Health Board",0,IF('III Tool Overview'!$H$6="Western Isles Health Board",0,IF('III Tool Overview'!$H$6="Orkney Islands Local Authority",0,IF('III Tool Overview'!$H$6="Shetland Islands Local Authority",0,IF('III Tool Overview'!$H$6="Eilean Siar Local Authority",0,hosp_count(10,B69,C69,D69,$C$1,G69,1,F69,F69,SIMDRateRatios_hosp,SIMDrateratios,RateRatios!$B$3)*10)))))) -> 0 | AJ69: =IF('III Tool Overview'!$H$6="Orkney Health Board",0,IF('III Tool Overview'!$H$6="Shetland Health Board",0,IF('III Tool Overview'!$H$6="Western Isles Health Board",0,IF('III Tool Overview'!$H$6="Orkney Islands Local Authority",0,IF('III Tool Overview'!$H$6="Shetland Islands Local Authority",0,IF('III Tool Overview'!$H$6="Eilean Siar Local Authority",0,hosp_count(10,B69,C69,D69,$C$1,G69+H69,1,F69,F69,SIMDRateRatios_hosp,SIMDrateratios,RateRatios!$B$3)*10)))))) -> 0 | AK69: 0 | AL69: =IF('III Tool Overview'!$H$6="Orkney Health Board",0,IF('III Tool Overview'!$H$6="Shetland Health Board",0,IF('III Tool Overview'!$H$6="Western Isles Health Board",0,IF('III Tool Overview'!$H$6="Orkney Islands Local Authority",0,IF('III Tool Overview'!$H$6="Shetland Islands Local Authority",0,IF('III Tool Overview'!$H$6="Eilean Siar Local Authority",0,hosp_count(20,B69,C69,D69,$C$1,G69,1,F69,F69,SIMDRateRatios_hosp,SIMDrateratios,RateRatios!$B$3)*10)))))) -> 0 | AM69: =IF('III Tool Overview'!$H$6="Orkney Health Board",0,IF('III Tool Overview'!$H$6="Shetland Health Board",0,IF('III Tool Overview'!$H$6="Western Isles Health Board",0,IF('III Tool Overview'!$H$6="Orkney Islands Local Authority",0,IF('III Tool Overview'!$H$6="Shetland Islands Local Authority",0,IF('III Tool Overview'!$H$6="Eilean Siar Local Authority",0,hosp_count(20,B69,C69,D69,$C$1,G69+H69,1,F69,F69,SIMDRateRatios_hosp,SIMDrateratios,RateRatios!$B$3)*10)))))) -> 0 | AN69: 0
A70: Male 15-19 | B70: 17.5 | C70: male | D70: 1 | E70: 1 | F70: =HLOOKUP('III Tool Overview'!$H$6,LookUpData_Pop!$B$1:$AV$269,LookUpData_Pop!BB71,FALSE)/50 -> 0 | G70: ='III Tool Overview'!$H$9/110 -> 0 | H70: 0 | I70: =IF('III Tool Overview'!$H$6="Orkney Health Board",0,IF('III Tool Overview'!$H$6="Shetland Health Board",0,IF('III Tool Overview'!$H$6="Western Isles Health Board",0,IF('III Tool Overview'!$H$6="Orkney Islands Local Authority",0,IF('III Tool Overview'!$H$6="Shetland Islands Local Authority",0,IF('III Tool Overview'!$H$6="Eilean Siar Local Authority",0,new_ci(2,B70,C70,D70,$C$1,G70,1,F70,F70,SIMDrateratios,RateRatios!$B$3)*10)))))) -> 0 | J70: =IF('III Tool Overview'!$H$6="Orkney Health Board",0,IF('III Tool Overview'!$H$6="Shetland Health Board",0,IF('III Tool Overview'!$H$6="Western Isles Health Board",0,IF('III Tool Overview'!$H$6="Orkney Islands Local Authority",0,IF('III Tool Overview'!$H$6="Shetland Islands Local Authority",0,IF('III Tool Overview'!$H$6="Eilean Siar Local Authority",0,new_ci(2,B70,C70,D70,$C$1,G70+H70,1,H70,H70,SIMDrateratios,RateRatios!$B$3)*10)))))) -> 0 | K70: =IF('III Tool Overview'!$H$6="Orkney Health Board",0,IF('III Tool Overview'!$H$6="Shetland Health Board",0,IF('III Tool Overview'!$H$6="Western Isles Health Board",0,IF('III Tool Overview'!$H$6="Orkney Islands Local Authority",0,IF('III Tool Overview'!$H$6="Shetland Islands Local Authority",0,IF('III Tool Overview'!$H$6="Eilean Siar Local Authority",0,new_ci(5,B70,C70,D70,$C$1,G70,1,F70,F70,SIMDrateratios,RateRatios!$B$3)*10)))))) -> 0 | L70: =IF('III Tool Overview'!$H$6="Orkney Health Board",0,IF('III Tool Overview'!$H$6="Shetland Health Board",0,IF('III Tool Overview'!$H$6="Western Isles Health Board",0,IF('III Tool Overview'!$H$6="Orkney Islands Local Authority",0,IF('III Tool Overview'!$H$6="Shetland Islands Local Authority",0,IF('III Tool Overview'!$H$6="Eilean Siar Local Authority",0,new_ci(5,B70,C70,D70,$C$1,G70+H70,1,F70,F70,SIMDrateratios,RateRatios!$B$3)*10)))))) -> 0 | M70: =IF('III Tool Overview'!$H$6="Orkney Health Board",0,IF('III Tool Overview'!$H$6="Shetland Health Board",0,IF('III Tool Overview'!$H$6="Western Isles Health Board",0,IF('III Tool Overview'!$H$6="Orkney Islands Local Authority",0,IF('III Tool Overview'!$H$6="Shetland Islands Local Authority",0,IF('III Tool Overview'!$H$6="Eilean Siar Local Authority",0,new_ci(10,B70,C70,D70,$C$1,G70,1,F70,F70,SIMDrateratios,RateRatios!$B$3)*10)))))) -> 0 | N70: =IF('III Tool Overview'!$H$6="Orkney Health Board",0,IF('III Tool Overview'!$H$6="Shetland Health Board",0,IF('III Tool Overview'!$H$6="Western Isles Health Board",0,IF('III Tool Overview'!$H$6="Orkney Islands Local Authority",0,IF('III Tool Overview'!$H$6="Shetland Islands Local Authority",0,IF('III Tool Overview'!$H$6="Eilean Siar Local Authority",0,new_ci(10,B70,C70,D70,$C$1,G70+H70,1,F70,F70,SIMDrateratios,RateRatios!$B$3)*10)))))) -> 0 | O70: =IF('III Tool Overview'!$H$6="Orkney Health Board",0,IF('III Tool Overview'!$H$6="Shetland Health Board",0,IF('III Tool Overview'!$H$6="Western Isles Health Board",0,IF('III Tool Overview'!$H$6="Orkney Islands Local Authority",0,IF('III Tool Overview'!$H$6="Shetland Islands Local Authority",0,IF('III Tool Overview'!$H$6="Eilean Siar Local Authority",0,new_ci(20,B70,C70,D70,$C$1,G70,1,F70,F70,SIMDrateratios,RateRatios!$B$3)*10)))))) -> 0 | P70: =IF('III Tool Overview'!$H$6="Orkney Health Board",0,IF('III Tool Overview'!$H$6="Shetland Health Board",0,IF('III Tool Overview'!$H$6="Western Isles Health Board",0,IF('III Tool Overview'!$H$6="Orkney Islands Local Authority",0,IF('III Tool Overview'!$H$6="Shetland Islands Local Authority",0,IF('III Tool Overview'!$H$6="Eilean Siar Local Authority",0,new_ci(20,B70,C70,D70,$C$1,G70+H70,1,F70,F70,SIMDrateratios,RateRatios!$B$3)*10)))))) -> 0 | Q70: =IF('III Tool Overview'!$H$6="Orkney Health Board",0,IF('III Tool Overview'!$H$6="Shetland Health Board",0,IF('III Tool Overview'!$H$6="Western Isles Health Board",0,IF('III Tool Overview'!$H$6="Orkney Islands Local Authority",0,IF('III Tool Overview'!$H$6="Shetland Islands Local Authority",0,IF('III Tool Overview'!$H$6="Eilean Siar Local Authority",0,new_yll(2,B70,C70,D70,$C$1,G70,1,F70,F70,SIMDrateratios,RateRatios!$B$3)*10)))))) -> 0 | R70: =IF('III Tool Overview'!$H$6="Orkney Health Board",0,IF('III Tool Overview'!$H$6="Shetland Health Board",0,IF('III Tool Overview'!$H$6="Western Isles Health Board",0,IF('III Tool Overview'!$H$6="Orkney Islands Local Authority",0,IF('III Tool Overview'!$H$6="Shetland Islands Local Authority",0,IF('III Tool Overview'!$H$6="Eilean Siar Local Authority",0,new_yll(2,B70,C70,D70,$C$1,G70+H70,1,F70,F70,SIMDrateratios,RateRatios!$B$3)*10)))))) -> 0 | S70: 0 | T70: =IF('III Tool Overview'!$H$6="Orkney Health Board",0,IF('III Tool Overview'!$H$6="Shetland Health Board",0,IF('III Tool Overview'!$H$6="Western Isles Health Board",0,IF('III Tool Overview'!$H$6="Orkney Islands Local Authority",0,IF('III Tool Overview'!$H$6="Shetland Islands Local Authority",0,IF('III Tool Overview'!$H$6="Eilean Siar Local Authority",0,new_yll(5,B70,C70,D70,$C$1,G70,1,F70,F70,SIMDrateratios,RateRatios!$B$3)*10)))))) -> 0 | U70: =IF('III Tool Overview'!$H$6="Orkney Health Board",0,IF('III Tool Overview'!$H$6="Shetland Health Board",0,IF('III Tool Overview'!$H$6="Western Isles Health Board",0,IF('III Tool Overview'!$H$6="Orkney Islands Local Authority",0,IF('III Tool Overview'!$H$6="Shetland Islands Local Authority",0,IF('III Tool Overview'!$H$6="Eilean Siar Local Authority",0,new_yll(5,B70,C70,D70,$C$1,G70+H70,1,F70,F70,SIMDrateratios,RateRatios!$B$3)*10)))))) -> 0 | V70: 0 | W70: =IF('III Tool Overview'!$H$6="Orkney Health Board",0,IF('III Tool Overview'!$H$6="Shetland Health Board",0,IF('III Tool Overview'!$H$6="Western Isles Health Board",0,IF('III Tool Overview'!$H$6="Orkney Islands Local Authority",0,IF('III Tool Overview'!$H$6="Shetland Islands Local Authority",0,IF('III Tool Overview'!$H$6="Eilean Siar Local Authority",0,new_yll(10,B70,C70,D70,$C$1,G70,1,F70,F70,SIMDrateratios,RateRatios!$B$3)*10)))))) -> 0 | X70: =IF('III Tool Overview'!$H$6="Orkney Health Board",0,IF('III Tool Overview'!$H$6="Shetland Health Board",0,IF('III Tool Overview'!$H$6="Western Isles Health Board",0,IF('III Tool Overview'!$H$6="Orkney Islands Local Authority",0,IF('III Tool Overview'!$H$6="Shetland Islands Local Authority",0,IF('III Tool Overview'!$H$6="Eilean Siar Local Authority",0,new_yll(10,B70,C70,D70,$C$1,G70+H70,1,F70,F70,SIMDrateratios,RateRatios!$B$3)*10)))))) -> 0 | Y70: 0 | Z70: =IF('III Tool Overview'!$H$6="Orkney Health Board",0,IF('III Tool Overview'!$H$6="Shetland Health Board",0,IF('III Tool Overview'!$H$6="Western Isles Health Board",0,IF('III Tool Overview'!$H$6="Orkney Islands Local Authority",0,IF('III Tool Overview'!$H$6="Shetland Islands Local Authority",0,IF('III Tool Overview'!$H$6="Eilean Siar Local Authority",0,new_yll(20,B70,C70,D70,$C$1,G70,1,F70,F70,SIMDrateratios,RateRatios!$B$3)*10)))))) -> 0 | AA70: =IF('III Tool Overview'!$H$6="Orkney Health Board",0,IF('III Tool Overview'!$H$6="Shetland Health Board",0,IF('III Tool Overview'!$H$6="Western Isles Health Board",0,IF('III Tool Overview'!$H$6="Orkney Islands Local Authority",0,IF('III Tool Overview'!$H$6="Shetland Islands Local Authority",0,IF('III Tool Overview'!$H$6="Eilean Siar Local Authority",0,new_yll(20,B70,C70,D70,$C$1,G70+H70,1,F70,F70,SIMDrateratios,RateRatios!$B$3)*10)))))) -> 0 | AB70: 0 | AC70: =IF('III Tool Overview'!$H$6="Orkney Health Board",0,IF('III Tool Overview'!$H$6="Shetland Health Board",0,IF('III Tool Overview'!$H$6="Western Isles Health Board",0,IF('III Tool Overview'!$H$6="Orkney Islands Local Authority",0,IF('III Tool Overview'!$H$6="Shetland Islands Local Authority",0,IF('III Tool Overview'!$H$6="Eilean Siar Local Authority",0,hosp_count(2,B70,C70,D70,$C$1,G70,1,F70,F70,SIMDRateRatios_hosp,SIMDrateratios,RateRatios!$B$3)*10)))))) -> 0 | AD70: =IF('III Tool Overview'!$H$6="Orkney Health Board",0,IF('III Tool Overview'!$H$6="Shetland Health Board",0,IF('III Tool Overview'!$H$6="Western Isles Health Board",0,IF('III Tool Overview'!$H$6="Orkney Islands Local Authority",0,IF('III Tool Overview'!$H$6="Shetland Islands Local Authority",0,IF('III Tool Overview'!$H$6="Eilean Siar Local Authority",0,hosp_count(2,B70,C70,D70,$C$1,G70+H70,1,F70,F70,SIMDRateRatios_hosp,SIMDrateratios,RateRatios!$B$3)*10)))))) -> 0 | AE70: 0 | AF70: =IF('III Tool Overview'!$H$6="Orkney Health Board",0,IF('III Tool Overview'!$H$6="Shetland Health Board",0,IF('III Tool Overview'!$H$6="Western Isles Health Board",0,IF('III Tool Overview'!$H$6="Orkney Islands Local Authority",0,IF('III Tool Overview'!$H$6="Shetland Islands Local Authority",0,IF('III Tool Overview'!$H$6="Eilean Siar Local Authority",0,hosp_count(5,B70,C70,D70,$C$1,G70,1,F70,F70,SIMDRateRatios_hosp,SIMDrateratios,RateRatios!$B$3)*10)))))) -> 0 | AG70: =IF('III Tool Overview'!$H$6="Orkney Health Board",0,IF('III Tool Overview'!$H$6="Shetland Health Board",0,IF('III Tool Overview'!$H$6="Western Isles Health Board",0,IF('III Tool Overview'!$H$6="Orkney Islands Local Authority",0,IF('III Tool Overview'!$H$6="Shetland Islands Local Authority",0,IF('III Tool Overview'!$H$6="Eilean Siar Local Authority",0,hosp_count(5,B70,C70,D70,$C$1,G70+H70,1,F70,F70,SIMDRateRatios_hosp,SIMDrateratios,RateRatios!$B$3)*10)))))) -> 0 | AH70: 0 | AI70: =IF('III Tool Overview'!$H$6="Orkney Health Board",0,IF('III Tool Overview'!$H$6="Shetland Health Board",0,IF('III Tool Overview'!$H$6="Western Isles Health Board",0,IF('III Tool Overview'!$H$6="Orkney Islands Local Authority",0,IF('III Tool Overview'!$H$6="Shetland Islands Local Authority",0,IF('III Tool Overview'!$H$6="Eilean Siar Local Authority",0,hosp_count(10,B70,C70,D70,$C$1,G70,1,F70,F70,SIMDRateRatios_hosp,SIMDrateratios,RateRatios!$B$3)*10)))))) -> 0 | AJ70: =IF('III Tool Overview'!$H$6="Orkney Health Board",0,IF('III Tool Overview'!$H$6="Shetland Health Board",0,IF('III Tool Overview'!$H$6="Western Isles Health Board",0,IF('III Tool Overview'!$H$6="Orkney Islands Local Authority",0,IF('III Tool Overview'!$H$6="Shetland Islands Local Authority",0,IF('III Tool Overview'!$H$6="Eilean Siar Local Authority",0,hosp_count(10,B70,C70,D70,$C$1,G70+H70,1,F70,F70,SIMDRateRatios_hosp,SIMDrateratios,RateRatios!$B$3)*10)))))) -> 0 | AK70: 0 | AL70: =IF('III Tool Overview'!$H$6="Orkney Health Board",0,IF('III Tool Overview'!$H$6="Shetland Health Board",0,IF('III Tool Overview'!$H$6="Western Isles Health Board",0,IF('III Tool Overview'!$H$6="Orkney Islands Local Authority",0,IF('III Tool Overview'!$H$6="Shetland Islands Local Authority",0,IF('III Tool Overview'!$H$6="Eilean Siar Local Authority",0,hosp_count(20,B70,C70,D70,$C$1,G70,1,F70,F70,SIMDRateRatios_hosp,SIMDrateratios,RateRatios!$B$3)*10)))))) -> 0 | AM70: =IF('III Tool Overview'!$H$6="Orkney Health Board",0,IF('III Tool Overview'!$H$6="Shetland Health Board",0,IF('III Tool Overview'!$H$6="Western Isles Health Board",0,IF('III Tool Overview'!$H$6="Orkney Islands Local Authority",0,IF('III Tool Overview'!$H$6="Shetland Islands Local Authority",0,IF('III Tool Overview'!$H$6="Eilean Siar Local Authority",0,hosp_count(20,B70,C70,D70,$C$1,G70+H70,1,F70,F70,SIMDRateRatios_hosp,SIMDrateratios,RateRatios!$B$3)*10)))))) -> 0 | AN70: 0
A71: Male 20-24 | B71: 22.5 | C71: male | D71: 1 | E71: 1 | F71: =HLOOKUP('III Tool Overview'!$H$6,LookUpData_Pop!$B$1:$AV$269,LookUpData_Pop!BB72,FALSE)/50 -> 0 | G71: ='III Tool Overview'!$H$9/110 -> 0 | H71: 0 | I71: =IF('III Tool Overview'!$H$6="Orkney Health Board",0,IF('III Tool Overview'!$H$6="Shetland Health Board",0,IF('III Tool Overview'!$H$6="Western Isles Health Board",0,IF('III Tool Overview'!$H$6="Orkney Islands Local Authority",0,IF('III Tool Overview'!$H$6="Shetland Islands Local Authority",0,IF('III Tool Overview'!$H$6="Eilean Siar Local Authority",0,new_ci(2,B71,C71,D71,$C$1,G71,1,F71,F71,SIMDrateratios,RateRatios!$B$3)*10)))))) -> 0 | J71: =IF('III Tool Overview'!$H$6="Orkney Health Board",0,IF('III Tool Overview'!$H$6="Shetland Health Board",0,IF('III Tool Overview'!$H$6="Western Isles Health Board",0,IF('III Tool Overview'!$H$6="Orkney Islands Local Authority",0,IF('III Tool Overview'!$H$6="Shetland Islands Local Authority",0,IF('III Tool Overview'!$H$6="Eilean Siar Local Authority",0,new_ci(2,B71,C71,D71,$C$1,G71+H71,1,H71,H71,SIMDrateratios,RateRatios!$B$3)*10)))))) -> 0 | K71: =IF('III Tool Overview'!$H$6="Orkney Health Board",0,IF('III Tool Overview'!$H$6="Shetland Health Board",0,IF('III Tool Overview'!$H$6="Western Isles Health Board",0,IF('III Tool Overview'!$H$6="Orkney Islands Local Authority",0,IF('III Tool Overview'!$H$6="Shetland Islands Local Authority",0,IF('III Tool Overview'!$H$6="Eilean Siar Local Authority",0,new_ci(5,B71,C71,D71,$C$1,G71,1,F71,F71,SIMDrateratios,RateRatios!$B$3)*10)))))) -> 0 | L71: =IF('III Tool Overview'!$H$6="Orkney Health Board",0,IF('III Tool Overview'!$H$6="Shetland Health Board",0,IF('III Tool Overview'!$H$6="Western Isles Health Board",0,IF('III Tool Overview'!$H$6="Orkney Islands Local Authority",0,IF('III Tool Overview'!$H$6="Shetland Islands Local Authority",0,IF('III Tool Overview'!$H$6="Eilean Siar Local Authority",0,new_ci(5,B71,C71,D71,$C$1,G71+H71,1,F71,F71,SIMDrateratios,RateRatios!$B$3)*10)))))) -> 0 | M71: =IF('III Tool Overview'!$H$6="Orkney Health Board",0,IF('III Tool Overview'!$H$6="Shetland Health Board",0,IF('III Tool Overview'!$H$6="Western Isles Health Board",0,IF('III Tool Overview'!$H$6="Orkney Islands Local Authority",0,IF('III Tool Overview'!$H$6="Shetland Islands Local Authority",0,IF('III Tool Overview'!$H$6="Eilean Siar Local Authority",0,new_ci(10,B71,C71,D71,$C$1,G71,1,F71,F71,SIMDrateratios,RateRatios!$B$3)*10)))))) -> 0 | N71: =IF('III Tool Overview'!$H$6="Orkney Health Board",0,IF('III Tool Overview'!$H$6="Shetland Health Board",0,IF('III Tool Overview'!$H$6="Western Isles Health Board",0,IF('III Tool Overview'!$H$6="Orkney Islands Local Authority",0,IF('III Tool Overview'!$H$6="Shetland Islands Local Authority",0,IF('III Tool Overview'!$H$6="Eilean Siar Local Authority",0,new_ci(10,B71,C71,D71,$C$1,G71+H71,1,F71,F71,SIMDrateratios,RateRatios!$B$3)*10)))))) -> 0 | O71: =IF('III Tool Overview'!$H$6="Orkney Health Board",0,IF('III Tool Overview'!$H$6="Shetland Health Board",0,IF('III Tool Overview'!$H$6="Western Isles Health Board",0,IF('III Tool Overview'!$H$6="Orkney Islands Local Authority",0,IF('III Tool Overview'!$H$6="Shetland Islands Local Authority",0,IF('III Tool Overview'!$H$6="Eilean Siar Local Authority",0,new_ci(20,B71,C71,D71,$C$1,G71,1,F71,F71,SIMDrateratios,RateRatios!$B$3)*10)))))) -> 0 | P71: =IF('III Tool Overview'!$H$6="Orkney Health Board",0,IF('III Tool Overview'!$H$6="Shetland Health Board",0,IF('III Tool Overview'!$H$6="Western Isles Health Board",0,IF('III Tool Overview'!$H$6="Orkney Islands Local Authority",0,IF('III Tool Overview'!$H$6="Shetland Islands Local Authority",0,IF('III Tool Overview'!$H$6="Eilean Siar Local Authority",0,new_ci(20,B71,C71,D71,$C$1,G71+H71,1,F71,F71,SIMDrateratios,RateRatios!$B$3)*10)))))) -> 0 | Q71: =IF('III Tool Overview'!$H$6="Orkney Health Board",0,IF('III Tool Overview'!$H$6="Shetland Health Board",0,IF('III Tool Overview'!$H$6="Western Isles Health Board",0,IF('III Tool Overview'!$H$6="Orkney Islands Local Authority",0,IF('III Tool Overview'!$H$6="Shetland Islands Local Authority",0,IF('III Tool Overview'!$H$6="Eilean Siar Local Authority",0,new_yll(2,B71,C71,D71,$C$1,G71,1,F71,F71,SIMDrateratios,RateRatios!$B$3)*10)))))) -> 0 | R71: =IF('III Tool Overview'!$H$6="Orkney Health Board",0,IF('III Tool Overview'!$H$6="Shetland Health Board",0,IF('III Tool Overview'!$H$6="Western Isles Health Board",0,IF('III Tool Overview'!$H$6="Orkney Islands Local Authority",0,IF('III Tool Overview'!$H$6="Shetland Islands Local Authority",0,IF('III Tool Overview'!$H$6="Eilean Siar Local Authority",0,new_yll(2,B71,C71,D71,$C$1,G71+H71,1,F71,F71,SIMDrateratios,RateRatios!$B$3)*10)))))) -> 0 | S71: 0 | T71: =IF('III Tool Overview'!$H$6="Orkney Health Board",0,IF('III Tool Overview'!$H$6="Shetland Health Board",0,IF('III Tool Overview'!$H$6="Western Isles Health Board",0,IF('III Tool Overview'!$H$6="Orkney Islands Local Authority",0,IF('III Tool Overview'!$H$6="Shetland Islands Local Authority",0,IF('III Tool Overview'!$H$6="Eilean Siar Local Authority",0,new_yll(5,B71,C71,D71,$C$1,G71,1,F71,F71,SIMDrateratios,RateRatios!$B$3)*10)))))) -> 0 | U71: =IF('III Tool Overview'!$H$6="Orkney Health Board",0,IF('III Tool Overview'!$H$6="Shetland Health Board",0,IF('III Tool Overview'!$H$6="Western Isles Health Board",0,IF('III Tool Overview'!$H$6="Orkney Islands Local Authority",0,IF('III Tool Overview'!$H$6="Shetland Islands Local Authority",0,IF('III Tool Overview'!$H$6="Eilean Siar Local Authority",0,new_yll(5,B71,C71,D71,$C$1,G71+H71,1,F71,F71,SIMDrateratios,RateRatios!$B$3)*10)))))) -> 0 | V71: 0 | W71: =IF('III Tool Overview'!$H$6="Orkney Health Board",0,IF('III Tool Overview'!$H$6="Shetland Health Board",0,IF('III Tool Overview'!$H$6="Western Isles Health Board",0,IF('III Tool Overview'!$H$6="Orkney Islands Local Authority",0,IF('III Tool Overview'!$H$6="Shetland Islands Local Authority",0,IF('III Tool Overview'!$H$6="Eilean Siar Local Authority",0,new_yll(10,B71,C71,D71,$C$1,G71,1,F71,F71,SIMDrateratios,RateRatios!$B$3)*10)))))) -> 0 | X71: =IF('III Tool Overview'!$H$6="Orkney Health Board",0,IF('III Tool Overview'!$H$6="Shetland Health Board",0,IF('III Tool Overview'!$H$6="Western Isles Health Board",0,IF('III Tool Overview'!$H$6="Orkney Islands Local Authority",0,IF('III Tool Overview'!$H$6="Shetland Islands Local Authority",0,IF('III Tool Overview'!$H$6="Eilean Siar Local Authority",0,new_yll(10,B71,C71,D71,$C$1,G71+H71,1,F71,F71,SIMDrateratios,RateRatios!$B$3)*10)))))) -> 0 | Y71: 0 | Z71: =IF('III Tool Overview'!$H$6="Orkney Health Board",0,IF('III Tool Overview'!$H$6="Shetland Health Board",0,IF('III Tool Overview'!$H$6="Western Isles Health Board",0,IF('III Tool Overview'!$H$6="Orkney Islands Local Authority",0,IF('III Tool Overview'!$H$6="Shetland Islands Local Authority",0,IF('III Tool Overview'!$H$6="Eilean Siar Local Authority",0,new_yll(20,B71,C71,D71,$C$1,G71,1,F71,F71,SIMDrateratios,RateRatios!$B$3)*10)))))) -> 0 | AA71: =IF('III Tool Overview'!$H$6="Orkney Health Board",0,IF('III Tool Overview'!$H$6="Shetland Health Board",0,IF('III Tool Overview'!$H$6="Western Isles Health Board",0,IF('III Tool Overview'!$H$6="Orkney Islands Local Authority",0,IF('III Tool Overview'!$H$6="Shetland Islands Local Authority",0,IF('III Tool Overview'!$H$6="Eilean Siar Local Authority",0,new_yll(20,B71,C71,D71,$C$1,G71+H71,1,F71,F71,SIMDrateratios,RateRatios!$B$3)*10)))))) -> 0 | AB71: 0 | AC71: =IF('III Tool Overview'!$H$6="Orkney Health Board",0,IF('III Tool Overview'!$H$6="Shetland Health Board",0,IF('III Tool Overview'!$H$6="Western Isles Health Board",0,IF('III Tool Overview'!$H$6="Orkney Islands Local Authority",0,IF('III Tool Overview'!$H$6="Shetland Islands Local Authority",0,IF('III Tool Overview'!$H$6="Eilean Siar Local Authority",0,hosp_count(2,B71,C71,D71,$C$1,G71,1,F71,F71,SIMDRateRatios_hosp,SIMDrateratios,RateRatios!$B$3)*10)))))) -> 0 | AD71: =IF('III Tool Overview'!$H$6="Orkney Health Board",0,IF('III Tool Overview'!$H$6="Shetland Health Board",0,IF('III Tool Overview'!$H$6="Western Isles Health Board",0,IF('III Tool Overview'!$H$6="Orkney Islands Local Authority",0,IF('III Tool Overview'!$H$6="Shetland Islands Local Authority",0,IF('III Tool Overview'!$H$6="Eilean Siar Local Authority",0,hosp_count(2,B71,C71,D71,$C$1,G71+H71,1,F71,F71,SIMDRateRatios_hosp,SIMDrateratios,RateRatios!$B$3)*10)))))) -> 0 | AE71: 0 | AF71: =IF('III Tool Overview'!$H$6="Orkney Health Board",0,IF('III Tool Overview'!$H$6="Shetland Health Board",0,IF('III Tool Overview'!$H$6="Western Isles Health Board",0,IF('III Tool Overview'!$H$6="Orkney Islands Local Authority",0,IF('III Tool Overview'!$H$6="Shetland Islands Local Authority",0,IF('III Tool Overview'!$H$6="Eilean Siar Local Authority",0,hosp_count(5,B71,C71,D71,$C$1,G71,1,F71,F71,SIMDRateRatios_hosp,SIMDrateratios,RateRatios!$B$3)*10)))))) -> 0 | AG71: =IF('III Tool Overview'!$H$6="Orkney Health Board",0,IF('III Tool Overview'!$H$6="Shetland Health Board",0,IF('III Tool Overview'!$H$6="Western Isles Health Board",0,IF('III Tool Overview'!$H$6="Orkney Islands Local Authority",0,IF('III Tool Overview'!$H$6="Shetland Islands Local Authority",0,IF('III Tool Overview'!$H$6="Eilean Siar Local Authority",0,hosp_count(5,B71,C71,D71,$C$1,G71+H71,1,F71,F71,SIMDRateRatios_hosp,SIMDrateratios,RateRatios!$B$3)*10)))))) -> 0 | AH71: 0 | AI71: =IF('III Tool Overview'!$H$6="Orkney Health Board",0,IF('III Tool Overview'!$H$6="Shetland Health Board",0,IF('III Tool Overview'!$H$6="Western Isles Health Board",0,IF('III Tool Overview'!$H$6="Orkney Islands Local Authority",0,IF('III Tool Overview'!$H$6="Shetland Islands Local Authority",0,IF('III Tool Overview'!$H$6="Eilean Siar Local Authority",0,hosp_count(10,B71,C71,D71,$C$1,G71,1,F71,F71,SIMDRateRatios_hosp,SIMDrateratios,RateRatios!$B$3)*10)))))) -> 0 | AJ71: =IF('III Tool Overview'!$H$6="Orkney Health Board",0,IF('III Tool Overview'!$H$6="Shetland Health Board",0,IF('III Tool Overview'!$H$6="Western Isles Health Board",0,IF('III Tool Overview'!$H$6="Orkney Islands Local Authority",0,IF('III Tool Overview'!$H$6="Shetland Islands Local Authority",0,IF('III Tool Overview'!$H$6="Eilean Siar Local Authority",0,hosp_count(10,B71,C71,D71,$C$1,G71+H71,1,F71,F71,SIMDRateRatios_hosp,SIMDrateratios,RateRatios!$B$3)*10)))))) -> 0 | AK71: 0 | AL71: =IF('III Tool Overview'!$H$6="Orkney Health Board",0,IF('III Tool Overview'!$H$6="Shetland Health Board",0,IF('III Tool Overview'!$H$6="Western Isles Health Board",0,IF('III Tool Overview'!$H$6="Orkney Islands Local Authority",0,IF('III Tool Overview'!$H$6="Shetland Islands Local Authority",0,IF('III Tool Overview'!$H$6="Eilean Siar Local Authority",0,hosp_count(20,B71,C71,D71,$C$1,G71,1,F71,F71,SIMDRateRatios_hosp,SIMDrateratios,RateRatios!$B$3)*10)))))) -> 0 | AM71: =IF('III Tool Overview'!$H$6="Orkney Health Board",0,IF('III Tool Overview'!$H$6="Shetland Health Board",0,IF('III Tool Overview'!$H$6="Western Isles Health Board",0,IF('III Tool Overview'!$H$6="Orkney Islands Local Authority",0,IF('III Tool Overview'!$H$6="Shetland Islands Local Authority",0,IF('III Tool Overview'!$H$6="Eilean Siar Local Authority",0,hosp_count(20,B71,C71,D71,$C$1,G71+H71,1,F71,F71,SIMDRateRatios_hosp,SIMDrateratios,RateRatios!$B$3)*10)))))) -> 0 | AN71: 0
A72: Male 25-29 | B72: 27.5 | C72: male | D72: 1 | E72: 1 | F72: =HLOOKUP('III Tool Overview'!$H$6,LookUpData_Pop!$B$1:$AV$269,LookUpData_Pop!BB73,FALSE)/50 -> 0 | G72: ='III Tool Overview'!$H$9/110 -> 0 | H72: 0 | I72: =IF('III Tool Overview'!$H$6="Orkney Health Board",0,IF('III Tool Overview'!$H$6="Shetland Health Board",0,IF('III Tool Overview'!$H$6="Western Isles Health Board",0,IF('III Tool Overview'!$H$6="Orkney Islands Local Authority",0,IF('III Tool Overview'!$H$6="Shetland Islands Local Authority",0,IF('III Tool Overview'!$H$6="Eilean Siar Local Authority",0,new_ci(2,B72,C72,D72,$C$1,G72,1,F72,F72,SIMDrateratios,RateRatios!$B$3)*10)))))) -> 0 | J72: =IF('III Tool Overview'!$H$6="Orkney Health Board",0,IF('III Tool Overview'!$H$6="Shetland Health Board",0,IF('III Tool Overview'!$H$6="Western Isles Health Board",0,IF('III Tool Overview'!$H$6="Orkney Islands Local Authority",0,IF('III Tool Overview'!$H$6="Shetland Islands Local Authority",0,IF('III Tool Overview'!$H$6="Eilean Siar Local Authority",0,new_ci(2,B72,C72,D72,$C$1,G72+H72,1,H72,H72,SIMDrateratios,RateRatios!$B$3)*10)))))) -> 0 | K72: =IF('III Tool Overview'!$H$6="Orkney Health Board",0,IF('III Tool Overview'!$H$6="Shetland Health Board",0,IF('III Tool Overview'!$H$6="Western Isles Health Board",0,IF('III Tool Overview'!$H$6="Orkney Islands Local Authority",0,IF('III Tool Overview'!$H$6="Shetland Islands Local Authority",0,IF('III Tool Overview'!$H$6="Eilean Siar Local Authority",0,new_ci(5,B72,C72,D72,$C$1,G72,1,F72,F72,SIMDrateratios,RateRatios!$B$3)*10)))))) -> 0 | L72: =IF('III Tool Overview'!$H$6="Orkney Health Board",0,IF('III Tool Overview'!$H$6="Shetland Health Board",0,IF('III Tool Overview'!$H$6="Western Isles Health Board",0,IF('III Tool Overview'!$H$6="Orkney Islands Local Authority",0,IF('III Tool Overview'!$H$6="Shetland Islands Local Authority",0,IF('III Tool Overview'!$H$6="Eilean Siar Local Authority",0,new_ci(5,B72,C72,D72,$C$1,G72+H72,1,F72,F72,SIMDrateratios,RateRatios!$B$3)*10)))))) -> 0 | M72: =IF('III Tool Overview'!$H$6="Orkney Health Board",0,IF('III Tool Overview'!$H$6="Shetland Health Board",0,IF('III Tool Overview'!$H$6="Western Isles Health Board",0,IF('III Tool Overview'!$H$6="Orkney Islands Local Authority",0,IF('III Tool Overview'!$H$6="Shetland Islands Local Authority",0,IF('III Tool Overview'!$H$6="Eilean Siar Local Authority",0,new_ci(10,B72,C72,D72,$C$1,G72,1,F72,F72,SIMDrateratios,RateRatios!$B$3)*10)))))) -> 0 | N72: =IF('III Tool Overview'!$H$6="Orkney Health Board",0,IF('III Tool Overview'!$H$6="Shetland Health Board",0,IF('III Tool Overview'!$H$6="Western Isles Health Board",0,IF('III Tool Overview'!$H$6="Orkney Islands Local Authority",0,IF('III Tool Overview'!$H$6="Shetland Islands Local Authority",0,IF('III Tool Overview'!$H$6="Eilean Siar Local Authority",0,new_ci(10,B72,C72,D72,$C$1,G72+H72,1,F72,F72,SIMDrateratios,RateRatios!$B$3)*10)))))) -> 0 | O72: =IF('III Tool Overview'!$H$6="Orkney Health Board",0,IF('III Tool Overview'!$H$6="Shetland Health Board",0,IF('III Tool Overview'!$H$6="Western Isles Health Board",0,IF('III Tool Overview'!$H$6="Orkney Islands Local Authority",0,IF('III Tool Overview'!$H$6="Shetland Islands Local Authority",0,IF('III Tool Overview'!$H$6="Eilean Siar Local Authority",0,new_ci(20,B72,C72,D72,$C$1,G72,1,F72,F72,SIMDrateratios,RateRatios!$B$3)*10)))))) -> 0 | P72: =IF('III Tool Overview'!$H$6="Orkney Health Board",0,IF('III Tool Overview'!$H$6="Shetland Health Board",0,IF('III Tool Overview'!$H$6="Western Isles Health Board",0,IF('III Tool Overview'!$H$6="Orkney Islands Local Authority",0,IF('III Tool Overview'!$H$6="Shetland Islands Local Authority",0,IF('III Tool Overview'!$H$6="Eilean Siar Local Authority",0,new_ci(20,B72,C72,D72,$C$1,G72+H72,1,F72,F72,SIMDrateratios,RateRatios!$B$3)*10)))))) -> 0 | Q72: =IF('III Tool Overview'!$H$6="Orkney Health Board",0,IF('III Tool Overview'!$H$6="Shetland Health Board",0,IF('III Tool Overview'!$H$6="Western Isles Health Board",0,IF('III Tool Overview'!$H$6="Orkney Islands Local Authority",0,IF('III Tool Overview'!$H$6="Shetland Islands Local Authority",0,IF('III Tool Overview'!$H$6="Eilean Siar Local Authority",0,new_yll(2,B72,C72,D72,$C$1,G72,1,F72,F72,SIMDrateratios,RateRatios!$B$3)*10)))))) -> 0 | R72: =IF('III Tool Overview'!$H$6="Orkney Health Board",0,IF('III Tool Overview'!$H$6="Shetland Health Board",0,IF('III Tool Overview'!$H$6="Western Isles Health Board",0,IF('III Tool Overview'!$H$6="Orkney Islands Local Authority",0,IF('III Tool Overview'!$H$6="Shetland Islands Local Authority",0,IF('III Tool Overview'!$H$6="Eilean Siar Local Authority",0,new_yll(2,B72,C72,D72,$C$1,G72+H72,1,F72,F72,SIMDrateratios,RateRatios!$B$3)*10)))))) -> 0 | S72: 0 | T72: =IF('III Tool Overview'!$H$6="Orkney Health Board",0,IF('III Tool Overview'!$H$6="Shetland Health Board",0,IF('III Tool Overview'!$H$6="Western Isles Health Board",0,IF('III Tool Overview'!$H$6="Orkney Islands Local Authority",0,IF('III Tool Overview'!$H$6="Shetland Islands Local Authority",0,IF('III Tool Overview'!$H$6="Eilean Siar Local Authority",0,new_yll(5,B72,C72,D72,$C$1,G72,1,F72,F72,SIMDrateratios,RateRatios!$B$3)*10)))))) -> 0 | U72: =IF('III Tool Overview'!$H$6="Orkney Health Board",0,IF('III Tool Overview'!$H$6="Shetland Health Board",0,IF('III Tool Overview'!$H$6="Western Isles Health Board",0,IF('III Tool Overview'!$H$6="Orkney Islands Local Authority",0,IF('III Tool Overview'!$H$6="Shetland Islands Local Authority",0,IF('III Tool Overview'!$H$6="Eilean Siar Local Authority",0,new_yll(5,B72,C72,D72,$C$1,G72+H72,1,F72,F72,SIMDrateratios,RateRatios!$B$3)*10)))))) -> 0 | V72: 0 | W72: =IF('III Tool Overview'!$H$6="Orkney Health Board",0,IF('III Tool Overview'!$H$6="Shetland Health Board",0,IF('III Tool Overview'!$H$6="Western Isles Health Board",0,IF('III Tool Overview'!$H$6="Orkney Islands Local Authority",0,IF('III Tool Overview'!$H$6="Shetland Islands Local Authority",0,IF('III Tool Overview'!$H$6="Eilean Siar Local Authority",0,new_yll(10,B72,C72,D72,$C$1,G72,1,F72,F72,SIMDrateratios,RateRatios!$B$3)*10)))))) -> 0 | X72: =IF('III Tool Overview'!$H$6="Orkney Health Board",0,IF('III Tool Overview'!$H$6="Shetland Health Board",0,IF('III Tool Overview'!$H$6="Western Isles Health Board",0,IF('III Tool Overview'!$H$6="Orkney Islands Local Authority",0,IF('III Tool Overview'!$H$6="Shetland Islands Local Authority",0,IF('III Tool Overview'!$H$6="Eilean Siar Local Authority",0,new_yll(10,B72,C72,D72,$C$1,G72+H72,1,F72,F72,SIMDrateratios,RateRatios!$B$3)*10)))))) -> 0 | Y72: 0 | Z72: =IF('III Tool Overview'!$H$6="Orkney Health Board",0,IF('III Tool Overview'!$H$6="Shetland Health Board",0,IF('III Tool Overview'!$H$6="Western Isles Health Board",0,IF('III Tool Overview'!$H$6="Orkney Islands Local Authority",0,IF('III Tool Overview'!$H$6="Shetland Islands Local Authority",0,IF('III Tool Overview'!$H$6="Eilean Siar Local Authority",0,new_yll(20,B72,C72,D72,$C$1,G72,1,F72,F72,SIMDrateratios,RateRatios!$B$3)*10)))))) -> 0 | AA72: =IF('III Tool Overview'!$H$6="Orkney Health Board",0,IF('III Tool Overview'!$H$6="Shetland Health Board",0,IF('III Tool Overview'!$H$6="Western Isles Health Board",0,IF('III Tool Overview'!$H$6="Orkney Islands Local Authority",0,IF('III Tool Overview'!$H$6="Shetland Islands Local Authority",0,IF('III Tool Overview'!$H$6="Eilean Siar Local Authority",0,new_yll(20,B72,C72,D72,$C$1,G72+H72,1,F72,F72,SIMDrateratios,RateRatios!$B$3)*10)))))) -> 0 | AB72: 0 | AC72: =IF('III Tool Overview'!$H$6="Orkney Health Board",0,IF('III Tool Overview'!$H$6="Shetland Health Board",0,IF('III Tool Overview'!$H$6="Western Isles Health Board",0,IF('III Tool Overview'!$H$6="Orkney Islands Local Authority",0,IF('III Tool Overview'!$H$6="Shetland Islands Local Authority",0,IF('III Tool Overview'!$H$6="Eilean Siar Local Authority",0,hosp_count(2,B72,C72,D72,$C$1,G72,1,F72,F72,SIMDRateRatios_hosp,SIMDrateratios,RateRatios!$B$3)*10)))))) -> 0 | AD72: =IF('III Tool Overview'!$H$6="Orkney Health Board",0,IF('III Tool Overview'!$H$6="Shetland Health Board",0,IF('III Tool Overview'!$H$6="Western Isles Health Board",0,IF('III Tool Overview'!$H$6="Orkney Islands Local Authority",0,IF('III Tool Overview'!$H$6="Shetland Islands Local Authority",0,IF('III Tool Overview'!$H$6="Eilean Siar Local Authority",0,hosp_count(2,B72,C72,D72,$C$1,G72+H72,1,F72,F72,SIMDRateRatios_hosp,SIMDrateratios,RateRatios!$B$3)*10)))))) -> 0 | AE72: 0 | AF72: =IF('III Tool Overview'!$H$6="Orkney Health Board",0,IF('III Tool Overview'!$H$6="Shetland Health Board",0,IF('III Tool Overview'!$H$6="Western Isles Health Board",0,IF('III Tool Overview'!$H$6="Orkney Islands Local Authority",0,IF('III Tool Overview'!$H$6="Shetland Islands Local Authority",0,IF('III Tool Overview'!$H$6="Eilean Siar Local Authority",0,hosp_count(5,B72,C72,D72,$C$1,G72,1,F72,F72,SIMDRateRatios_hosp,SIMDrateratios,RateRatios!$B$3)*10)))))) -> 0 | AG72: =IF('III Tool Overview'!$H$6="Orkney Health Board",0,IF('III Tool Overview'!$H$6="Shetland Health Board",0,IF('III Tool Overview'!$H$6="Western Isles Health Board",0,IF('III Tool Overview'!$H$6="Orkney Islands Local Authority",0,IF('III Tool Overview'!$H$6="Shetland Islands Local Authority",0,IF('III Tool Overview'!$H$6="Eilean Siar Local Authority",0,hosp_count(5,B72,C72,D72,$C$1,G72+H72,1,F72,F72,SIMDRateRatios_hosp,SIMDrateratios,RateRatios!$B$3)*10)))))) -> 0 | AH72: 0 | AI72: =IF('III Tool Overview'!$H$6="Orkney Health Board",0,IF('III Tool Overview'!$H$6="Shetland Health Board",0,IF('III Tool Overview'!$H$6="Western Isles Health Board",0,IF('III Tool Overview'!$H$6="Orkney Islands Local Authority",0,IF('III Tool Overview'!$H$6="Shetland Islands Local Authority",0,IF('III Tool Overview'!$H$6="Eilean Siar Local Authority",0,hosp_count(10,B72,C72,D72,$C$1,G72,1,F72,F72,SIMDRateRatios_hosp,SIMDrateratios,RateRatios!$B$3)*10)))))) -> 0 | AJ72: =IF('III Tool Overview'!$H$6="Orkney Health Board",0,IF('III Tool Overview'!$H$6="Shetland Health Board",0,IF('III Tool Overview'!$H$6="Western Isles Health Board",0,IF('III Tool Overview'!$H$6="Orkney Islands Local Authority",0,IF('III Tool Overview'!$H$6="Shetland Islands Local Authority",0,IF('III Tool Overview'!$H$6="Eilean Siar Local Authority",0,hosp_count(10,B72,C72,D72,$C$1,G72+H72,1,F72,F72,SIMDRateRatios_hosp,SIMDrateratios,RateRatios!$B$3)*10)))))) -> 0 | AK72: 0 | AL72: =IF('III Tool Overview'!$H$6="Orkney Health Board",0,IF('III Tool Overview'!$H$6="Shetland Health Board",0,IF('III Tool Overview'!$H$6="Western Isles Health Board",0,IF('III Tool Overview'!$H$6="Orkney Islands Local Authority",0,IF('III Tool Overview'!$H$6="Shetland Islands Local Authority",0,IF('III Tool Overview'!$H$6="Eilean Siar Local Authority",0,hosp_count(20,B72,C72,D72,$C$1,G72,1,F72,F72,SIMDRateRatios_hosp,SIMDrateratios,RateRatios!$B$3)*10)))))) -> 0 | AM72: =IF('III Tool Overview'!$H$6="Orkney Health Board",0,IF('III Tool Overview'!$H$6="Shetland Health Board",0,IF('III Tool Overview'!$H$6="Western Isles Health Board",0,IF('III Tool Overview'!$H$6="Orkney Islands Local Authority",0,IF('III Tool Overview'!$H$6="Shetland Islands Local Authority",0,IF('III Tool Overview'!$H$6="Eilean Siar Local Authority",0,hosp_count(20,B72,C72,D72,$C$1,G72+H72,1,F72,F72,SIMDRateRatios_hosp,SIMDrateratios,RateRatios!$B$3)*10)))))) -> 0 | AN72: 0
A73: Male 30-34 | B73: 32.5 | C73: male | D73: 1 | E73: 1 | F73: =HLOOKUP('III Tool Overview'!$H$6,LookUpData_Pop!$B$1:$AV$269,LookUpData_Pop!BB74,FALSE)/50 -> 0 | G73: ='III Tool Overview'!$H$9/110 -> 0 | H73: 0 | I73: =IF('III Tool Overview'!$H$6="Orkney Health Board",0,IF('III Tool Overview'!$H$6="Shetland Health Board",0,IF('III Tool Overview'!$H$6="Western Isles Health Board",0,IF('III Tool Overview'!$H$6="Orkney Islands Local Authority",0,IF('III Tool Overview'!$H$6="Shetland Islands Local Authority",0,IF('III Tool Overview'!$H$6="Eilean Siar Local Authority",0,new_ci(2,B73,C73,D73,$C$1,G73,1,F73,F73,SIMDrateratios,RateRatios!$B$3)*10)))))) -> 0 | J73: =IF('III Tool Overview'!$H$6="Orkney Health Board",0,IF('III Tool Overview'!$H$6="Shetland Health Board",0,IF('III Tool Overview'!$H$6="Western Isles Health Board",0,IF('III Tool Overview'!$H$6="Orkney Islands Local Authority",0,IF('III Tool Overview'!$H$6="Shetland Islands Local Authority",0,IF('III Tool Overview'!$H$6="Eilean Siar Local Authority",0,new_ci(2,B73,C73,D73,$C$1,G73+H73,1,H73,H73,SIMDrateratios,RateRatios!$B$3)*10)))))) -> 0 | K73: =IF('III Tool Overview'!$H$6="Orkney Health Board",0,IF('III Tool Overview'!$H$6="Shetland Health Board",0,IF('III Tool Overview'!$H$6="Western Isles Health Board",0,IF('III Tool Overview'!$H$6="Orkney Islands Local Authority",0,IF('III Tool Overview'!$H$6="Shetland Islands Local Authority",0,IF('III Tool Overview'!$H$6="Eilean Siar Local Authority",0,new_ci(5,B73,C73,D73,$C$1,G73,1,F73,F73,SIMDrateratios,RateRatios!$B$3)*10)))))) -> 0 | L73: =IF('III Tool Overview'!$H$6="Orkney Health Board",0,IF('III Tool Overview'!$H$6="Shetland Health Board",0,IF('III Tool Overview'!$H$6="Western Isles Health Board",0,IF('III Tool Overview'!$H$6="Orkney Islands Local Authority",0,IF('III Tool Overview'!$H$6="Shetland Islands Local Authority",0,IF('III Tool Overview'!$H$6="Eilean Siar Local Authority",0,new_ci(5,B73,C73,D73,$C$1,G73+H73,1,F73,F73,SIMDrateratios,RateRatios!$B$3)*10)))))) -> 0 | M73: =IF('III Tool Overview'!$H$6="Orkney Health Board",0,IF('III Tool Overview'!$H$6="Shetland Health Board",0,IF('III Tool Overview'!$H$6="Western Isles Health Board",0,IF('III Tool Overview'!$H$6="Orkney Islands Local Authority",0,IF('III Tool Overview'!$H$6="Shetland Islands Local Authority",0,IF('III Tool Overview'!$H$6="Eilean Siar Local Authority",0,new_ci(10,B73,C73,D73,$C$1,G73,1,F73,F73,SIMDrateratios,RateRatios!$B$3)*10)))))) -> 0 | N73: =IF('III Tool Overview'!$H$6="Orkney Health Board",0,IF('III Tool Overview'!$H$6="Shetland Health Board",0,IF('III Tool Overview'!$H$6="Western Isles Health Board",0,IF('III Tool Overview'!$H$6="Orkney Islands Local Authority",0,IF('III Tool Overview'!$H$6="Shetland Islands Local Authority",0,IF('III Tool Overview'!$H$6="Eilean Siar Local Authority",0,new_ci(10,B73,C73,D73,$C$1,G73+H73,1,F73,F73,SIMDrateratios,RateRatios!$B$3)*10)))))) -> 0 | O73: =IF('III Tool Overview'!$H$6="Orkney Health Board",0,IF('III Tool Overview'!$H$6="Shetland Health Board",0,IF('III Tool Overview'!$H$6="Western Isles Health Board",0,IF('III Tool Overview'!$H$6="Orkney Islands Local Authority",0,IF('III Tool Overview'!$H$6="Shetland Islands Local Authority",0,IF('III Tool Overview'!$H$6="Eilean Siar Local Authority",0,new_ci(20,B73,C73,D73,$C$1,G73,1,F73,F73,SIMDrateratios,RateRatios!$B$3)*10)))))) -> 0 | P73: =IF('III Tool Overview'!$H$6="Orkney Health Board",0,IF('III Tool Overview'!$H$6="Shetland Health Board",0,IF('III Tool Overview'!$H$6="Western Isles Health Board",0,IF('III Tool Overview'!$H$6="Orkney Islands Local Authority",0,IF('III Tool Overview'!$H$6="Shetland Islands Local Authority",0,IF('III Tool Overview'!$H$6="Eilean Siar Local Authority",0,new_ci(20,B73,C73,D73,$C$1,G73+H73,1,F73,F73,SIMDrateratios,RateRatios!$B$3)*10)))))) -> 0 | Q73: =IF('III Tool Overview'!$H$6="Orkney Health Board",0,IF('III Tool Overview'!$H$6="Shetland Health Board",0,IF('III Tool Overview'!$H$6="Western Isles Health Board",0,IF('III Tool Overview'!$H$6="Orkney Islands Local Authority",0,IF('III Tool Overview'!$H$6="Shetland Islands Local Authority",0,IF('III Tool Overview'!$H$6="Eilean Siar Local Authority",0,new_yll(2,B73,C73,D73,$C$1,G73,1,F73,F73,SIMDrateratios,RateRatios!$B$3)*10)))))) -> 0 | R73: =IF('III Tool Overview'!$H$6="Orkney Health Board",0,IF('III Tool Overview'!$H$6="Shetland Health Board",0,IF('III Tool Overview'!$H$6="Western Isles Health Board",0,IF('III Tool Overview'!$H$6="Orkney Islands Local Authority",0,IF('III Tool Overview'!$H$6="Shetland Islands Local Authority",0,IF('III Tool Overview'!$H$6="Eilean Siar Local Authority",0,new_yll(2,B73,C73,D73,$C$1,G73+H73,1,F73,F73,SIMDrateratios,RateRatios!$B$3)*10)))))) -> 0 | S73: 0 | T73: =IF('III Tool Overview'!$H$6="Orkney Health Board",0,IF('III Tool Overview'!$H$6="Shetland Health Board",0,IF('III Tool Overview'!$H$6="Western Isles Health Board",0,IF('III Tool Overview'!$H$6="Orkney Islands Local Authority",0,IF('III Tool Overview'!$H$6="Shetland Islands Local Authority",0,IF('III Tool Overview'!$H$6="Eilean Siar Local Authority",0,new_yll(5,B73,C73,D73,$C$1,G73,1,F73,F73,SIMDrateratios,RateRatios!$B$3)*10)))))) -> 0 | U73: =IF('III Tool Overview'!$H$6="Orkney Health Board",0,IF('III Tool Overview'!$H$6="Shetland Health Board",0,IF('III Tool Overview'!$H$6="Western Isles Health Board",0,IF('III Tool Overview'!$H$6="Orkney Islands Local Authority",0,IF('III Tool Overview'!$H$6="Shetland Islands Local Authority",0,IF('III Tool Overview'!$H$6="Eilean Siar Local Authority",0,new_yll(5,B73,C73,D73,$C$1,G73+H73,1,F73,F73,SIMDrateratios,RateRatios!$B$3)*10)))))) -> 0 | V73: 0 | W73: =IF('III Tool Overview'!$H$6="Orkney Health Board",0,IF('III Tool Overview'!$H$6="Shetland Health Board",0,IF('III Tool Overview'!$H$6="Western Isles Health Board",0,IF('III Tool Overview'!$H$6="Orkney Islands Local Authority",0,IF('III Tool Overview'!$H$6="Shetland Islands Local Authority",0,IF('III Tool Overview'!$H$6="Eilean Siar Local Authority",0,new_yll(10,B73,C73,D73,$C$1,G73,1,F73,F73,SIMDrateratios,RateRatios!$B$3)*10)))))) -> 0 | X73: =IF('III Tool Overview'!$H$6="Orkney Health Board",0,IF('III Tool Overview'!$H$6="Shetland Health Board",0,IF('III Tool Overview'!$H$6="Western Isles Health Board",0,IF('III Tool Overview'!$H$6="Orkney Islands Local Authority",0,IF('III Tool Overview'!$H$6="Shetland Islands Local Authority",0,IF('III Tool Overview'!$H$6="Eilean Siar Local Authority",0,new_yll(10,B73,C73,D73,$C$1,G73+H73,1,F73,F73,SIMDrateratios,RateRatios!$B$3)*10)))))) -> 0 | Y73: 0 | Z73: =IF('III Tool Overview'!$H$6="Orkney Health Board",0,IF('III Tool Overview'!$H$6="Shetland Health Board",0,IF('III Tool Overview'!$H$6="Western Isles Health Board",0,IF('III Tool Overview'!$H$6="Orkney Islands Local Authority",0,IF('III Tool Overview'!$H$6="Shetland Islands Local Authority",0,IF('III Tool Overview'!$H$6="Eilean Siar Local Authority",0,new_yll(20,B73,C73,D73,$C$1,G73,1,F73,F73,SIMDrateratios,RateRatios!$B$3)*10)))))) -> 0 | AA73: =IF('III Tool Overview'!$H$6="Orkney Health Board",0,IF('III Tool Overview'!$H$6="Shetland Health Board",0,IF('III Tool Overview'!$H$6="Western Isles Health Board",0,IF('III Tool Overview'!$H$6="Orkney Islands Local Authority",0,IF('III Tool Overview'!$H$6="Shetland Islands Local Authority",0,IF('III Tool Overview'!$H$6="Eilean Siar Local Authority",0,new_yll(20,B73,C73,D73,$C$1,G73+H73,1,F73,F73,SIMDrateratios,RateRatios!$B$3)*10)))))) -> 0 | AB73: 0 | AC73: =IF('III Tool Overview'!$H$6="Orkney Health Board",0,IF('III Tool Overview'!$H$6="Shetland Health Board",0,IF('III Tool Overview'!$H$6="Western Isles Health Board",0,IF('III Tool Overview'!$H$6="Orkney Islands Local Authority",0,IF('III Tool Overview'!$H$6="Shetland Islands Local Authority",0,IF('III Tool Overview'!$H$6="Eilean Siar Local Authority",0,hosp_count(2,B73,C73,D73,$C$1,G73,1,F73,F73,SIMDRateRatios_hosp,SIMDrateratios,RateRatios!$B$3)*10)))))) -> 0 | AD73: =IF('III Tool Overview'!$H$6="Orkney Health Board",0,IF('III Tool Overview'!$H$6="Shetland Health Board",0,IF('III Tool Overview'!$H$6="Western Isles Health Board",0,IF('III Tool Overview'!$H$6="Orkney Islands Local Authority",0,IF('III Tool Overview'!$H$6="Shetland Islands Local Authority",0,IF('III Tool Overview'!$H$6="Eilean Siar Local Authority",0,hosp_count(2,B73,C73,D73,$C$1,G73+H73,1,F73,F73,SIMDRateRatios_hosp,SIMDrateratios,RateRatios!$B$3)*10)))))) -> 0 | AE73: 0 | AF73: =IF('III Tool Overview'!$H$6="Orkney Health Board",0,IF('III Tool Overview'!$H$6="Shetland Health Board",0,IF('III Tool Overview'!$H$6="Western Isles Health Board",0,IF('III Tool Overview'!$H$6="Orkney Islands Local Authority",0,IF('III Tool Overview'!$H$6="Shetland Islands Local Authority",0,IF('III Tool Overview'!$H$6="Eilean Siar Local Authority",0,hosp_count(5,B73,C73,D73,$C$1,G73,1,F73,F73,SIMDRateRatios_hosp,SIMDrateratios,RateRatios!$B$3)*10)))))) -> 0 | AG73: =IF('III Tool Overview'!$H$6="Orkney Health Board",0,IF('III Tool Overview'!$H$6="Shetland Health Board",0,IF('III Tool Overview'!$H$6="Western Isles Health Board",0,IF('III Tool Overview'!$H$6="Orkney Islands Local Authority",0,IF('III Tool Overview'!$H$6="Shetland Islands Local Authority",0,IF('III Tool Overview'!$H$6="Eilean Siar Local Authority",0,hosp_count(5,B73,C73,D73,$C$1,G73+H73,1,F73,F73,SIMDRateRatios_hosp,SIMDrateratios,RateRatios!$B$3)*10)))))) -> 0 | AH73: 0 | AI73: =IF('III Tool Overview'!$H$6="Orkney Health Board",0,IF('III Tool Overview'!$H$6="Shetland Health Board",0,IF('III Tool Overview'!$H$6="Western Isles Health Board",0,IF('III Tool Overview'!$H$6="Orkney Islands Local Authority",0,IF('III Tool Overview'!$H$6="Shetland Islands Local Authority",0,IF('III Tool Overview'!$H$6="Eilean Siar Local Authority",0,hosp_count(10,B73,C73,D73,$C$1,G73,1,F73,F73,SIMDRateRatios_hosp,SIMDrateratios,RateRatios!$B$3)*10)))))) -> 0 | AJ73: =IF('III Tool Overview'!$H$6="Orkney Health Board",0,IF('III Tool Overview'!$H$6="Shetland Health Board",0,IF('III Tool Overview'!$H$6="Western Isles Health Board",0,IF('III Tool Overview'!$H$6="Orkney Islands Local Authority",0,IF('III Tool Overview'!$H$6="Shetland Islands Local Authority",0,IF('III Tool Overview'!$H$6="Eilean Siar Local Authority",0,hosp_count(10,B73,C73,D73,$C$1,G73+H73,1,F73,F73,SIMDRateRatios_hosp,SIMDrateratios,RateRatios!$B$3)*10)))))) -> 0 | AK73: 0 | AL73: =IF('III Tool Overview'!$H$6="Orkney Health Board",0,IF('III Tool Overview'!$H$6="Shetland Health Board",0,IF('III Tool Overview'!$H$6="Western Isles Health Board",0,IF('III Tool Overview'!$H$6="Orkney Islands Local Authority",0,IF('III Tool Overview'!$H$6="Shetland Islands Local Authority",0,IF('III Tool Overview'!$H$6="Eilean Siar Local Authority",0,hosp_count(20,B73,C73,D73,$C$1,G73,1,F73,F73,SIMDRateRatios_hosp,SIMDrateratios,RateRatios!$B$3)*10)))))) -> 0 | AM73: =IF('III Tool Overview'!$H$6="Orkney Health Board",0,IF('III Tool Overview'!$H$6="Shetland Health Board",0,IF('III Tool Overview'!$H$6="Western Isles Health Board",0,IF('III Tool Overview'!$H$6="Orkney Islands Local Authority",0,IF('III Tool Overview'!$H$6="Shetland Islands Local Authority",0,IF('III Tool Overview'!$H$6="Eilean Siar Local Authority",0,hosp_count(20,B73,C73,D73,$C$1,G73+H73,1,F73,F73,SIMDRateRatios_hosp,SIMDrateratios,RateRatios!$B$3)*10)))))) -> 0 | AN73: 0
A74: Male 35-39 | B74: 37.5 | C74: male | D74: 1 | E74: 1 | F74: =HLOOKUP('III Tool Overview'!$H$6,LookUpData_Pop!$B$1:$AV$269,LookUpData_Pop!BB75,FALSE)/50 -> 0 | G74: ='III Tool Overview'!$H$9/110 -> 0 | H74: 0 | I74: =IF('III Tool Overview'!$H$6="Orkney Health Board",0,IF('III Tool Overview'!$H$6="Shetland Health Board",0,IF('III Tool Overview'!$H$6="Western Isles Health Board",0,IF('III Tool Overview'!$H$6="Orkney Islands Local Authority",0,IF('III Tool Overview'!$H$6="Shetland Islands Local Authority",0,IF('III Tool Overview'!$H$6="Eilean Siar Local Authority",0,new_ci(2,B74,C74,D74,$C$1,G74,1,F74,F74,SIMDrateratios,RateRatios!$B$3)*10)))))) -> 0 | J74: =IF('III Tool Overview'!$H$6="Orkney Health Board",0,IF('III Tool Overview'!$H$6="Shetland Health Board",0,IF('III Tool Overview'!$H$6="Western Isles Health Board",0,IF('III Tool Overview'!$H$6="Orkney Islands Local Authority",0,IF('III Tool Overview'!$H$6="Shetland Islands Local Authority",0,IF('III Tool Overview'!$H$6="Eilean Siar Local Authority",0,new_ci(2,B74,C74,D74,$C$1,G74+H74,1,H74,H74,SIMDrateratios,RateRatios!$B$3)*10)))))) -> 0 | K74: =IF('III Tool Overview'!$H$6="Orkney Health Board",0,IF('III Tool Overview'!$H$6="Shetland Health Board",0,IF('III Tool Overview'!$H$6="Western Isles Health Board",0,IF('III Tool Overview'!$H$6="Orkney Islands Local Authority",0,IF('III Tool Overview'!$H$6="Shetland Islands Local Authority",0,IF('III Tool Overview'!$H$6="Eilean Siar Local Authority",0,new_ci(5,B74,C74,D74,$C$1,G74,1,F74,F74,SIMDrateratios,RateRatios!$B$3)*10)))))) -> 0 | L74: =IF('III Tool Overview'!$H$6="Orkney Health Board",0,IF('III Tool Overview'!$H$6="Shetland Health Board",0,IF('III Tool Overview'!$H$6="Western Isles Health Board",0,IF('III Tool Overview'!$H$6="Orkney Islands Local Authority",0,IF('III Tool Overview'!$H$6="Shetland Islands Local Authority",0,IF('III Tool Overview'!$H$6="Eilean Siar Local Authority",0,new_ci(5,B74,C74,D74,$C$1,G74+H74,1,F74,F74,SIMDrateratios,RateRatios!$B$3)*10)))))) -> 0 | M74: =IF('III Tool Overview'!$H$6="Orkney Health Board",0,IF('III Tool Overview'!$H$6="Shetland Health Board",0,IF('III Tool Overview'!$H$6="Western Isles Health Board",0,IF('III Tool Overview'!$H$6="Orkney Islands Local Authority",0,IF('III Tool Overview'!$H$6="Shetland Islands Local Authority",0,IF('III Tool Overview'!$H$6="Eilean Siar Local Authority",0,new_ci(10,B74,C74,D74,$C$1,G74,1,F74,F74,SIMDrateratios,RateRatios!$B$3)*10)))))) -> 0 | N74: =IF('III Tool Overview'!$H$6="Orkney Health Board",0,IF('III Tool Overview'!$H$6="Shetland Health Board",0,IF('III Tool Overview'!$H$6="Western Isles Health Board",0,IF('III Tool Overview'!$H$6="Orkney Islands Local Authority",0,IF('III Tool Overview'!$H$6="Shetland Islands Local Authority",0,IF('III Tool Overview'!$H$6="Eilean Siar Local Authority",0,new_ci(10,B74,C74,D74,$C$1,G74+H74,1,F74,F74,SIMDrateratios,RateRatios!$B$3)*10)))))) -> 0 | O74: =IF('III Tool Overview'!$H$6="Orkney Health Board",0,IF('III Tool Overview'!$H$6="Shetland Health Board",0,IF('III Tool Overview'!$H$6="Western Isles Health Board",0,IF('III Tool Overview'!$H$6="Orkney Islands Local Authority",0,IF('III Tool Overview'!$H$6="Shetland Islands Local Authority",0,IF('III Tool Overview'!$H$6="Eilean Siar Local Authority",0,new_ci(20,B74,C74,D74,$C$1,G74,1,F74,F74,SIMDrateratios,RateRatios!$B$3)*10)))))) -> 0 | P74: =IF('III Tool Overview'!$H$6="Orkney Health Board",0,IF('III Tool Overview'!$H$6="Shetland Health Board",0,IF('III Tool Overview'!$H$6="Western Isles Health Board",0,IF('III Tool Overview'!$H$6="Orkney Islands Local Authority",0,IF('III Tool Overview'!$H$6="Shetland Islands Local Authority",0,IF('III Tool Overview'!$H$6="Eilean Siar Local Authority",0,new_ci(20,B74,C74,D74,$C$1,G74+H74,1,F74,F74,SIMDrateratios,RateRatios!$B$3)*10)))))) -> 0 | Q74: =IF('III Tool Overview'!$H$6="Orkney Health Board",0,IF('III Tool Overview'!$H$6="Shetland Health Board",0,IF('III Tool Overview'!$H$6="Western Isles Health Board",0,IF('III Tool Overview'!$H$6="Orkney Islands Local Authority",0,IF('III Tool Overview'!$H$6="Shetland Islands Local Authority",0,IF('III Tool Overview'!$H$6="Eilean Siar Local Authority",0,new_yll(2,B74,C74,D74,$C$1,G74,1,F74,F74,SIMDrateratios,RateRatios!$B$3)*10)))))) -> 0 | R74: =IF('III Tool Overview'!$H$6="Orkney Health Board",0,IF('III Tool Overview'!$H$6="Shetland Health Board",0,IF('III Tool Overview'!$H$6="Western Isles Health Board",0,IF('III Tool Overview'!$H$6="Orkney Islands Local Authority",0,IF('III Tool Overview'!$H$6="Shetland Islands Local Authority",0,IF('III Tool Overview'!$H$6="Eilean Siar Local Authority",0,new_yll(2,B74,C74,D74,$C$1,G74+H74,1,F74,F74,SIMDrateratios,RateRatios!$B$3)*10)))))) -> 0 | S74: 0 | T74: =IF('III Tool Overview'!$H$6="Orkney Health Board",0,IF('III Tool Overview'!$H$6="Shetland Health Board",0,IF('III Tool Overview'!$H$6="Western Isles Health Board",0,IF('III Tool Overview'!$H$6="Orkney Islands Local Authority",0,IF('III Tool Overview'!$H$6="Shetland Islands Local Authority",0,IF('III Tool Overview'!$H$6="Eilean Siar Local Authority",0,new_yll(5,B74,C74,D74,$C$1,G74,1,F74,F74,SIMDrateratios,RateRatios!$B$3)*10)))))) -> 0 | U74: =IF('III Tool Overview'!$H$6="Orkney Health Board",0,IF('III Tool Overview'!$H$6="Shetland Health Board",0,IF('III Tool Overview'!$H$6="Western Isles Health Board",0,IF('III Tool Overview'!$H$6="Orkney Islands Local Authority",0,IF('III Tool Overview'!$H$6="Shetland Islands Local Authority",0,IF('III Tool Overview'!$H$6="Eilean Siar Local Authority",0,new_yll(5,B74,C74,D74,$C$1,G74+H74,1,F74,F74,SIMDrateratios,RateRatios!$B$3)*10)))))) -> 0 | V74: 0 | W74: =IF('III Tool Overview'!$H$6="Orkney Health Board",0,IF('III Tool Overview'!$H$6="Shetland Health Board",0,IF('III Tool Overview'!$H$6="Western Isles Health Board",0,IF('III Tool Overview'!$H$6="Orkney Islands Local Authority",0,IF('III Tool Overview'!$H$6="Shetland Islands Local Authority",0,IF('III Tool Overview'!$H$6="Eilean Siar Local Authority",0,new_yll(10,B74,C74,D74,$C$1,G74,1,F74,F74,SIMDrateratios,RateRatios!$B$3)*10)))))) -> 0 | X74: =IF('III Tool Overview'!$H$6="Orkney Health Board",0,IF('III Tool Overview'!$H$6="Shetland Health Board",0,IF('III Tool Overview'!$H$6="Western Isles Health Board",0,IF('III Tool Overview'!$H$6="Orkney Islands Local Authority",0,IF('III Tool Overview'!$H$6="Shetland Islands Local Authority",0,IF('III Tool Overview'!$H$6="Eilean Siar Local Authority",0,new_yll(10,B74,C74,D74,$C$1,G74+H74,1,F74,F74,SIMDrateratios,RateRatios!$B$3)*10)))))) -> 0 | Y74: 0 | Z74: =IF('III Tool Overview'!$H$6="Orkney Health Board",0,IF('III Tool Overview'!$H$6="Shetland Health Board",0,IF('III Tool Overview'!$H$6="Western Isles Health Board",0,IF('III Tool Overview'!$H$6="Orkney Islands Local Authority",0,IF('III Tool Overview'!$H$6="Shetland Islands Local Authority",0,IF('III Tool Overview'!$H$6="Eilean Siar Local Authority",0,new_yll(20,B74,C74,D74,$C$1,G74,1,F74,F74,SIMDrateratios,RateRatios!$B$3)*10)))))) -> 0 | AA74: =IF('III Tool Overview'!$H$6="Orkney Health Board",0,IF('III Tool Overview'!$H$6="Shetland Health Board",0,IF('III Tool Overview'!$H$6="Western Isles Health Board",0,IF('III Tool Overview'!$H$6="Orkney Islands Local Authority",0,IF('III Tool Overview'!$H$6="Shetland Islands Local Authority",0,IF('III Tool Overview'!$H$6="Eilean Siar Local Authority",0,new_yll(20,B74,C74,D74,$C$1,G74+H74,1,F74,F74,SIMDrateratios,RateRatios!$B$3)*10)))))) -> 0 | AB74: 0 | AC74: =IF('III Tool Overview'!$H$6="Orkney Health Board",0,IF('III Tool Overview'!$H$6="Shetland Health Board",0,IF('III Tool Overview'!$H$6="Western Isles Health Board",0,IF('III Tool Overview'!$H$6="Orkney Islands Local Authority",0,IF('III Tool Overview'!$H$6="Shetland Islands Local Authority",0,IF('III Tool Overview'!$H$6="Eilean Siar Local Authority",0,hosp_count(2,B74,C74,D74,$C$1,G74,1,F74,F74,SIMDRateRatios_hosp,SIMDrateratios,RateRatios!$B$3)*10)))))) -> 0 | AD74: =IF('III Tool Overview'!$H$6="Orkney Health Board",0,IF('III Tool Overview'!$H$6="Shetland Health Board",0,IF('III Tool Overview'!$H$6="Western Isles Health Board",0,IF('III Tool Overview'!$H$6="Orkney Islands Local Authority",0,IF('III Tool Overview'!$H$6="Shetland Islands Local Authority",0,IF('III Tool Overview'!$H$6="Eilean Siar Local Authority",0,hosp_count(2,B74,C74,D74,$C$1,G74+H74,1,F74,F74,SIMDRateRatios_hosp,SIMDrateratios,RateRatios!$B$3)*10)))))) -> 0 | AE74: 0 | AF74: =IF('III Tool Overview'!$H$6="Orkney Health Board",0,IF('III Tool Overview'!$H$6="Shetland Health Board",0,IF('III Tool Overview'!$H$6="Western Isles Health Board",0,IF('III Tool Overview'!$H$6="Orkney Islands Local Authority",0,IF('III Tool Overview'!$H$6="Shetland Islands Local Authority",0,IF('III Tool Overview'!$H$6="Eilean Siar Local Authority",0,hosp_count(5,B74,C74,D74,$C$1,G74,1,F74,F74,SIMDRateRatios_hosp,SIMDrateratios,RateRatios!$B$3)*10)))))) -> 0 | AG74: =IF('III Tool Overview'!$H$6="Orkney Health Board",0,IF('III Tool Overview'!$H$6="Shetland Health Board",0,IF('III Tool Overview'!$H$6="Western Isles Health Board",0,IF('III Tool Overview'!$H$6="Orkney Islands Local Authority",0,IF('III Tool Overview'!$H$6="Shetland Islands Local Authority",0,IF('III Tool Overview'!$H$6="Eilean Siar Local Authority",0,hosp_count(5,B74,C74,D74,$C$1,G74+H74,1,F74,F74,SIMDRateRatios_hosp,SIMDrateratios,RateRatios!$B$3)*10)))))) -> 0 | AH74: 0 | AI74: =IF('III Tool Overview'!$H$6="Orkney Health Board",0,IF('III Tool Overview'!$H$6="Shetland Health Board",0,IF('III Tool Overview'!$H$6="Western Isles Health Board",0,IF('III Tool Overview'!$H$6="Orkney Islands Local Authority",0,IF('III Tool Overview'!$H$6="Shetland Islands Local Authority",0,IF('III Tool Overview'!$H$6="Eilean Siar Local Authority",0,hosp_count(10,B74,C74,D74,$C$1,G74,1,F74,F74,SIMDRateRatios_hosp,SIMDrateratios,RateRatios!$B$3)*10)))))) -> 0 | AJ74: =IF('III Tool Overview'!$H$6="Orkney Health Board",0,IF('III Tool Overview'!$H$6="Shetland Health Board",0,IF('III Tool Overview'!$H$6="Western Isles Health Board",0,IF('III Tool Overview'!$H$6="Orkney Islands Local Authority",0,IF('III Tool Overview'!$H$6="Shetland Islands Local Authority",0,IF('III Tool Overview'!$H$6="Eilean Siar Local Authority",0,hosp_count(10,B74,C74,D74,$C$1,G74+H74,1,F74,F74,SIMDRateRatios_hosp,SIMDrateratios,RateRatios!$B$3)*10)))))) -> 0 | AK74: 0 | AL74: =IF('III Tool Overview'!$H$6="Orkney Health Board",0,IF('III Tool Overview'!$H$6="Shetland Health Board",0,IF('III Tool Overview'!$H$6="Western Isles Health Board",0,IF('III Tool Overview'!$H$6="Orkney Islands Local Authority",0,IF('III Tool Overview'!$H$6="Shetland Islands Local Authority",0,IF('III Tool Overview'!$H$6="Eilean Siar Local Authority",0,hosp_count(20,B74,C74,D74,$C$1,G74,1,F74,F74,SIMDRateRatios_hosp,SIMDrateratios,RateRatios!$B$3)*10)))))) -> 0 | AM74: =IF('III Tool Overview'!$H$6="Orkney Health Board",0,IF('III Tool Overview'!$H$6="Shetland Health Board",0,IF('III Tool Overview'!$H$6="Western Isles Health Board",0,IF('III Tool Overview'!$H$6="Orkney Islands Local Authority",0,IF('III Tool Overview'!$H$6="Shetland Islands Local Authority",0,IF('III Tool Overview'!$H$6="Eilean Siar Local Authority",0,hosp_count(20,B74,C74,D74,$C$1,G74+H74,1,F74,F74,SIMDRateRatios_hosp,SIMDrateratios,RateRatios!$B$3)*10)))))) -> 0 | AN74: 0
A75: Male 40-44 | B75: 42.5 | C75: male | D75: 1 | E75: 1 | F75: =HLOOKUP('III Tool Overview'!$H$6,LookUpData_Pop!$B$1:$AV$269,LookUpData_Pop!BB76,FALSE)/50 -> 0 | G75: ='III Tool Overview'!$H$9/110 -> 0 | H75: 0 | I75: =IF('III Tool Overview'!$H$6="Orkney Health Board",0,IF('III Tool Overview'!$H$6="Shetland Health Board",0,IF('III Tool Overview'!$H$6="Western Isles Health Board",0,IF('III Tool Overview'!$H$6="Orkney Islands Local Authority",0,IF('III Tool Overview'!$H$6="Shetland Islands Local Authority",0,IF('III Tool Overview'!$H$6="Eilean Siar Local Authority",0,new_ci(2,B75,C75,D75,$C$1,G75,1,F75,F75,SIMDrateratios,RateRatios!$B$3)*10)))))) -> 0 | J75: =IF('III Tool Overview'!$H$6="Orkney Health Board",0,IF('III Tool Overview'!$H$6="Shetland Health Board",0,IF('III Tool Overview'!$H$6="Western Isles Health Board",0,IF('III Tool Overview'!$H$6="Orkney Islands Local Authority",0,IF('III Tool Overview'!$H$6="Shetland Islands Local Authority",0,IF('III Tool Overview'!$H$6="Eilean Siar Local Authority",0,new_ci(2,B75,C75,D75,$C$1,G75+H75,1,H75,H75,SIMDrateratios,RateRatios!$B$3)*10)))))) -> 0 | K75: =IF('III Tool Overview'!$H$6="Orkney Health Board",0,IF('III Tool Overview'!$H$6="Shetland Health Board",0,IF('III Tool Overview'!$H$6="Western Isles Health Board",0,IF('III Tool Overview'!$H$6="Orkney Islands Local Authority",0,IF('III Tool Overview'!$H$6="Shetland Islands Local Authority",0,IF('III Tool Overview'!$H$6="Eilean Siar Local Authority",0,new_ci(5,B75,C75,D75,$C$1,G75,1,F75,F75,SIMDrateratios,RateRatios!$B$3)*10)))))) -> 0 | L75: =IF('III Tool Overview'!$H$6="Orkney Health Board",0,IF('III Tool Overview'!$H$6="Shetland Health Board",0,IF('III Tool Overview'!$H$6="Western Isles Health Board",0,IF('III Tool Overview'!$H$6="Orkney Islands Local Authority",0,IF('III Tool Overview'!$H$6="Shetland Islands Local Authority",0,IF('III Tool Overview'!$H$6="Eilean Siar Local Authority",0,new_ci(5,B75,C75,D75,$C$1,G75+H75,1,F75,F75,SIMDrateratios,RateRatios!$B$3)*10)))))) -> 0 | M75: =IF('III Tool Overview'!$H$6="Orkney Health Board",0,IF('III Tool Overview'!$H$6="Shetland Health Board",0,IF('III Tool Overview'!$H$6="Western Isles Health Board",0,IF('III Tool Overview'!$H$6="Orkney Islands Local Authority",0,IF('III Tool Overview'!$H$6="Shetland Islands Local Authority",0,IF('III Tool Overview'!$H$6="Eilean Siar Local Authority",0,new_ci(10,B75,C75,D75,$C$1,G75,1,F75,F75,SIMDrateratios,RateRatios!$B$3)*10)))))) -> 0 | N75: =IF('III Tool Overview'!$H$6="Orkney Health Board",0,IF('III Tool Overview'!$H$6="Shetland Health Board",0,IF('III Tool Overview'!$H$6="Western Isles Health Board",0,IF('III Tool Overview'!$H$6="Orkney Islands Local Authority",0,IF('III Tool Overview'!$H$6="Shetland Islands Local Authority",0,IF('III Tool Overview'!$H$6="Eilean Siar Local Authority",0,new_ci(10,B75,C75,D75,$C$1,G75+H75,1,F75,F75,SIMDrateratios,RateRatios!$B$3)*10)))))) -> 0 | O75: =IF('III Tool Overview'!$H$6="Orkney Health Board",0,IF('III Tool Overview'!$H$6="Shetland Health Board",0,IF('III Tool Overview'!$H$6="Western Isles Health Board",0,IF('III Tool Overview'!$H$6="Orkney Islands Local Authority",0,IF('III Tool Overview'!$H$6="Shetland Islands Local Authority",0,IF('III Tool Overview'!$H$6="Eilean Siar Local Authority",0,new_ci(20,B75,C75,D75,$C$1,G75,1,F75,F75,SIMDrateratios,RateRatios!$B$3)*10)))))) -> 0 | P75: =IF('III Tool Overview'!$H$6="Orkney Health Board",0,IF('III Tool Overview'!$H$6="Shetland Health Board",0,IF('III Tool Overview'!$H$6="Western Isles Health Board",0,IF('III Tool Overview'!$H$6="Orkney Islands Local Authority",0,IF('III Tool Overview'!$H$6="Shetland Islands Local Authority",0,IF('III Tool Overview'!$H$6="Eilean Siar Local Authority",0,new_ci(20,B75,C75,D75,$C$1,G75+H75,1,F75,F75,SIMDrateratios,RateRatios!$B$3)*10)))))) -> 0 | Q75: =IF('III Tool Overview'!$H$6="Orkney Health Board",0,IF('III Tool Overview'!$H$6="Shetland Health Board",0,IF('III Tool Overview'!$H$6="Western Isles Health Board",0,IF('III Tool Overview'!$H$6="Orkney Islands Local Authority",0,IF('III Tool Overview'!$H$6="Shetland Islands Local Authority",0,IF('III Tool Overview'!$H$6="Eilean Siar Local Authority",0,new_yll(2,B75,C75,D75,$C$1,G75,1,F75,F75,SIMDrateratios,RateRatios!$B$3)*10)))))) -> 0 | R75: =IF('III Tool Overview'!$H$6="Orkney Health Board",0,IF('III Tool Overview'!$H$6="Shetland Health Board",0,IF('III Tool Overview'!$H$6="Western Isles Health Board",0,IF('III Tool Overview'!$H$6="Orkney Islands Local Authority",0,IF('III Tool Overview'!$H$6="Shetland Islands Local Authority",0,IF('III Tool Overview'!$H$6="Eilean Siar Local Authority",0,new_yll(2,B75,C75,D75,$C$1,G75+H75,1,F75,F75,SIMDrateratios,RateRatios!$B$3)*10)))))) -> 0 | S75: 0 | T75: =IF('III Tool Overview'!$H$6="Orkney Health Board",0,IF('III Tool Overview'!$H$6="Shetland Health Board",0,IF('III Tool Overview'!$H$6="Western Isles Health Board",0,IF('III Tool Overview'!$H$6="Orkney Islands Local Authority",0,IF('III Tool Overview'!$H$6="Shetland Islands Local Authority",0,IF('III Tool Overview'!$H$6="Eilean Siar Local Authority",0,new_yll(5,B75,C75,D75,$C$1,G75,1,F75,F75,SIMDrateratios,RateRatios!$B$3)*10)))))) -> 0 | U75: =IF('III Tool Overview'!$H$6="Orkney Health Board",0,IF('III Tool Overview'!$H$6="Shetland Health Board",0,IF('III Tool Overview'!$H$6="Western Isles Health Board",0,IF('III Tool Overview'!$H$6="Orkney Islands Local Authority",0,IF('III Tool Overview'!$H$6="Shetland Islands Local Authority",0,IF('III Tool Overview'!$H$6="Eilean Siar Local Authority",0,new_yll(5,B75,C75,D75,$C$1,G75+H75,1,F75,F75,SIMDrateratios,RateRatios!$B$3)*10)))))) -> 0 | V75: 0 | W75: =IF('III Tool Overview'!$H$6="Orkney Health Board",0,IF('III Tool Overview'!$H$6="Shetland Health Board",0,IF('III Tool Overview'!$H$6="Western Isles Health Board",0,IF('III Tool Overview'!$H$6="Orkney Islands Local Authority",0,IF('III Tool Overview'!$H$6="Shetland Islands Local Authority",0,IF('III Tool Overview'!$H$6="Eilean Siar Local Authority",0,new_yll(10,B75,C75,D75,$C$1,G75,1,F75,F75,SIMDrateratios,RateRatios!$B$3)*10)))))) -> 0 | X75: =IF('III Tool Overview'!$H$6="Orkney Health Board",0,IF('III Tool Overview'!$H$6="Shetland Health Board",0,IF('III Tool Overview'!$H$6="Western Isles Health Board",0,IF('III Tool Overview'!$H$6="Orkney Islands Local Authority",0,IF('III Tool Overview'!$H$6="Shetland Islands Local Authority",0,IF('III Tool Overview'!$H$6="Eilean Siar Local Authority",0,new_yll(10,B75,C75,D75,$C$1,G75+H75,1,F75,F75,SIMDrateratios,RateRatios!$B$3)*10)))))) -> 0 | Y75: 0 | Z75: =IF('III Tool Overview'!$H$6="Orkney Health Board",0,IF('III Tool Overview'!$H$6="Shetland Health Board",0,IF('III Tool Overview'!$H$6="Western Isles Health Board",0,IF('III Tool Overview'!$H$6="Orkney Islands Local Authority",0,IF('III Tool Overview'!$H$6="Shetland Islands Local Authority",0,IF('III Tool Overview'!$H$6="Eilean Siar Local Authority",0,new_yll(20,B75,C75,D75,$C$1,G75,1,F75,F75,SIMDrateratios,RateRatios!$B$3)*10)))))) -> 0 | AA75: =IF('III Tool Overview'!$H$6="Orkney Health Board",0,IF('III Tool Overview'!$H$6="Shetland Health Board",0,IF('III Tool Overview'!$H$6="Western Isles Health Board",0,IF('III Tool Overview'!$H$6="Orkney Islands Local Authority",0,IF('III Tool Overview'!$H$6="Shetland Islands Local Authority",0,IF('III Tool Overview'!$H$6="Eilean Siar Local Authority",0,new_yll(20,B75,C75,D75,$C$1,G75+H75,1,F75,F75,SIMDrateratios,RateRatios!$B$3)*10)))))) -> 0 | AB75: 0 | AC75: =IF('III Tool Overview'!$H$6="Orkney Health Board",0,IF('III Tool Overview'!$H$6="Shetland Health Board",0,IF('III Tool Overview'!$H$6="Western Isles Health Board",0,IF('III Tool Overview'!$H$6="Orkney Islands Local Authority",0,IF('III Tool Overview'!$H$6="Shetland Islands Local Authority",0,IF('III Tool Overview'!$H$6="Eilean Siar Local Authority",0,hosp_count(2,B75,C75,D75,$C$1,G75,1,F75,F75,SIMDRateRatios_hosp,SIMDrateratios,RateRatios!$B$3)*10)))))) -> 0 | AD75: =IF('III Tool Overview'!$H$6="Orkney Health Board",0,IF('III Tool Overview'!$H$6="Shetland Health Board",0,IF('III Tool Overview'!$H$6="Western Isles Health Board",0,IF('III Tool Overview'!$H$6="Orkney Islands Local Authority",0,IF('III Tool Overview'!$H$6="Shetland Islands Local Authority",0,IF('III Tool Overview'!$H$6="Eilean Siar Local Authority",0,hosp_count(2,B75,C75,D75,$C$1,G75+H75,1,F75,F75,SIMDRateRatios_hosp,SIMDrateratios,RateRatios!$B$3)*10)))))) -> 0 | AE75: 0 | AF75: =IF('III Tool Overview'!$H$6="Orkney Health Board",0,IF('III Tool Overview'!$H$6="Shetland Health Board",0,IF('III Tool Overview'!$H$6="Western Isles Health Board",0,IF('III Tool Overview'!$H$6="Orkney Islands Local Authority",0,IF('III Tool Overview'!$H$6="Shetland Islands Local Authority",0,IF('III Tool Overview'!$H$6="Eilean Siar Local Authority",0,hosp_count(5,B75,C75,D75,$C$1,G75,1,F75,F75,SIMDRateRatios_hosp,SIMDrateratios,RateRatios!$B$3)*10)))))) -> 0 | AG75: =IF('III Tool Overview'!$H$6="Orkney Health Board",0,IF('III Tool Overview'!$H$6="Shetland Health Board",0,IF('III Tool Overview'!$H$6="Western Isles Health Board",0,IF('III Tool Overview'!$H$6="Orkney Islands Local Authority",0,IF('III Tool Overview'!$H$6="Shetland Islands Local Authority",0,IF('III Tool Overview'!$H$6="Eilean Siar Local Authority",0,hosp_count(5,B75,C75,D75,$C$1,G75+H75,1,F75,F75,SIMDRateRatios_hosp,SIMDrateratios,RateRatios!$B$3)*10)))))) -> 0 | AH75: 0 | AI75: =IF('III Tool Overview'!$H$6="Orkney Health Board",0,IF('III Tool Overview'!$H$6="Shetland Health Board",0,IF('III Tool Overview'!$H$6="Western Isles Health Board",0,IF('III Tool Overview'!$H$6="Orkney Islands Local Authority",0,IF('III Tool Overview'!$H$6="Shetland Islands Local Authority",0,IF('III Tool Overview'!$H$6="Eilean Siar Local Authority",0,hosp_count(10,B75,C75,D75,$C$1,G75,1,F75,F75,SIMDRateRatios_hosp,SIMDrateratios,RateRatios!$B$3)*10)))))) -> 0 | AJ75: =IF('III Tool Overview'!$H$6="Orkney Health Board",0,IF('III Tool Overview'!$H$6="Shetland Health Board",0,IF('III Tool Overview'!$H$6="Western Isles Health Board",0,IF('III Tool Overview'!$H$6="Orkney Islands Local Authority",0,IF('III Tool Overview'!$H$6="Shetland Islands Local Authority",0,IF('III Tool Overview'!$H$6="Eilean Siar Local Authority",0,hosp_count(10,B75,C75,D75,$C$1,G75+H75,1,F75,F75,SIMDRateRatios_hosp,SIMDrateratios,RateRatios!$B$3)*10)))))) -> 0 | AK75: 0 | AL75: =IF('III Tool Overview'!$H$6="Orkney Health Board",0,IF('III Tool Overview'!$H$6="Shetland Health Board",0,IF('III Tool Overview'!$H$6="Western Isles Health Board",0,IF('III Tool Overview'!$H$6="Orkney Islands Local Authority",0,IF('III Tool Overview'!$H$6="Shetland Islands Local Authority",0,IF('III Tool Overview'!$H$6="Eilean Siar Local Authority",0,hosp_count(20,B75,C75,D75,$C$1,G75,1,F75,F75,SIMDRateRatios_hosp,SIMDrateratios,RateRatios!$B$3)*10)))))) -> 0 | AM75: =IF('III Tool Overview'!$H$6="Orkney Health Board",0,IF('III Tool Overview'!$H$6="Shetland Health Board",0,IF('III Tool Overview'!$H$6="Western Isles Health Board",0,IF('III Tool Overview'!$H$6="Orkney Islands Local Authority",0,IF('III Tool Overview'!$H$6="Shetland Islands Local Authority",0,IF('III Tool Overview'!$H$6="Eilean Siar Local Authority",0,hosp_count(20,B75,C75,D75,$C$1,G75+H75,1,F75,F75,SIMDRateRatios_hosp,SIMDrateratios,RateRatios!$B$3)*10)))))) -> 0 | AN75: 0
A76: Male 45-49 | B76: 47.5 | C76: male | D76: 1 | E76: 1 | F76: =HLOOKUP('III Tool Overview'!$H$6,LookUpData_Pop!$B$1:$AV$269,LookUpData_Pop!BB77,FALSE)/50 -> 0 | G76: ='III Tool Overview'!$H$9/110 -> 0 | H76: 0 | I76: =IF('III Tool Overview'!$H$6="Orkney Health Board",0,IF('III Tool Overview'!$H$6="Shetland Health Board",0,IF('III Tool Overview'!$H$6="Western Isles Health Board",0,IF('III Tool Overview'!$H$6="Orkney Islands Local Authority",0,IF('III Tool Overview'!$H$6="Shetland Islands Local Authority",0,IF('III Tool Overview'!$H$6="Eilean Siar Local Authority",0,new_ci(2,B76,C76,D76,$C$1,G76,1,F76,F76,SIMDrateratios,RateRatios!$B$3)*10)))))) -> 0 | J76: =IF('III Tool Overview'!$H$6="Orkney Health Board",0,IF('III Tool Overview'!$H$6="Shetland Health Board",0,IF('III Tool Overview'!$H$6="Western Isles Health Board",0,IF('III Tool Overview'!$H$6="Orkney Islands Local Authority",0,IF('III Tool Overview'!$H$6="Shetland Islands Local Authority",0,IF('III Tool Overview'!$H$6="Eilean Siar Local Authority",0,new_ci(2,B76,C76,D76,$C$1,G76+H76,1,H76,H76,SIMDrateratios,RateRatios!$B$3)*10)))))) -> 0 | K76: =IF('III Tool Overview'!$H$6="Orkney Health Board",0,IF('III Tool Overview'!$H$6="Shetland Health Board",0,IF('III Tool Overview'!$H$6="Western Isles Health Board",0,IF('III Tool Overview'!$H$6="Orkney Islands Local Authority",0,IF('III Tool Overview'!$H$6="Shetland Islands Local Authority",0,IF('III Tool Overview'!$H$6="Eilean Siar Local Authority",0,new_ci(5,B76,C76,D76,$C$1,G76,1,F76,F76,SIMDrateratios,RateRatios!$B$3)*10)))))) -> 0 | L76: =IF('III Tool Overview'!$H$6="Orkney Health Board",0,IF('III Tool Overview'!$H$6="Shetland Health Board",0,IF('III Tool Overview'!$H$6="Western Isles Health Board",0,IF('III Tool Overview'!$H$6="Orkney Islands Local Authority",0,IF('III Tool Overview'!$H$6="Shetland Islands Local Authority",0,IF('III Tool Overview'!$H$6="Eilean Siar Local Authority",0,new_ci(5,B76,C76,D76,$C$1,G76+H76,1,F76,F76,SIMDrateratios,RateRatios!$B$3)*10)))))) -> 0 | M76: =IF('III Tool Overview'!$H$6="Orkney Health Board",0,IF('III Tool Overview'!$H$6="Shetland Health Board",0,IF('III Tool Overview'!$H$6="Western Isles Health Board",0,IF('III Tool Overview'!$H$6="Orkney Islands Local Authority",0,IF('III Tool Overview'!$H$6="Shetland Islands Local Authority",0,IF('III Tool Overview'!$H$6="Eilean Siar Local Authority",0,new_ci(10,B76,C76,D76,$C$1,G76,1,F76,F76,SIMDrateratios,RateRatios!$B$3)*10)))))) -> 0 | N76: =IF('III Tool Overview'!$H$6="Orkney Health Board",0,IF('III Tool Overview'!$H$6="Shetland Health Board",0,IF('III Tool Overview'!$H$6="Western Isles Health Board",0,IF('III Tool Overview'!$H$6="Orkney Islands Local Authority",0,IF('III Tool Overview'!$H$6="Shetland Islands Local Authority",0,IF('III Tool Overview'!$H$6="Eilean Siar Local Authority",0,new_ci(10,B76,C76,D76,$C$1,G76+H76,1,F76,F76,SIMDrateratios,RateRatios!$B$3)*10)))))) -> 0 | O76: =IF('III Tool Overview'!$H$6="Orkney Health Board",0,IF('III Tool Overview'!$H$6="Shetland Health Board",0,IF('III Tool Overview'!$H$6="Western Isles Health Board",0,IF('III Tool Overview'!$H$6="Orkney Islands Local Authority",0,IF('III Tool Overview'!$H$6="Shetland Islands Local Authority",0,IF('III Tool Overview'!$H$6="Eilean Siar Local Authority",0,new_ci(20,B76,C76,D76,$C$1,G76,1,F76,F76,SIMDrateratios,RateRatios!$B$3)*10)))))) -> 0 | P76: =IF('III Tool Overview'!$H$6="Orkney Health Board",0,IF('III Tool Overview'!$H$6="Shetland Health Board",0,IF('III Tool Overview'!$H$6="Western Isles Health Board",0,IF('III Tool Overview'!$H$6="Orkney Islands Local Authority",0,IF('III Tool Overview'!$H$6="Shetland Islands Local Authority",0,IF('III Tool Overview'!$H$6="Eilean Siar Local Authority",0,new_ci(20,B76,C76,D76,$C$1,G76+H76,1,F76,F76,SIMDrateratios,RateRatios!$B$3)*10)))))) -> 0 | Q76: =IF('III Tool Overview'!$H$6="Orkney Health Board",0,IF('III Tool Overview'!$H$6="Shetland Health Board",0,IF('III Tool Overview'!$H$6="Western Isles Health Board",0,IF('III Tool Overview'!$H$6="Orkney Islands Local Authority",0,IF('III Tool Overview'!$H$6="Shetland Islands Local Authority",0,IF('III Tool Overview'!$H$6="Eilean Siar Local Authority",0,new_yll(2,B76,C76,D76,$C$1,G76,1,F76,F76,SIMDrateratios,RateRatios!$B$3)*10)))))) -> 0 | R76: =IF('III Tool Overview'!$H$6="Orkney Health Board",0,IF('III Tool Overview'!$H$6="Shetland Health Board",0,IF('III Tool Overview'!$H$6="Western Isles Health Board",0,IF('III Tool Overview'!$H$6="Orkney Islands Local Authority",0,IF('III Tool Overview'!$H$6="Shetland Islands Local Authority",0,IF('III Tool Overview'!$H$6="Eilean Siar Local Authority",0,new_yll(2,B76,C76,D76,$C$1,G76+H76,1,F76,F76,SIMDrateratios,RateRatios!$B$3)*10)))))) -> 0 | S76: 0 | T76: =IF('III Tool Overview'!$H$6="Orkney Health Board",0,IF('III Tool Overview'!$H$6="Shetland Health Board",0,IF('III Tool Overview'!$H$6="Western Isles Health Board",0,IF('III Tool Overview'!$H$6="Orkney Islands Local Authority",0,IF('III Tool Overview'!$H$6="Shetland Islands Local Authority",0,IF('III Tool Overview'!$H$6="Eilean Siar Local Authority",0,new_yll(5,B76,C76,D76,$C$1,G76,1,F76,F76,SIMDrateratios,RateRatios!$B$3)*10)))))) -> 0 | U76: =IF('III Tool Overview'!$H$6="Orkney Health Board",0,IF('III Tool Overview'!$H$6="Shetland Health Board",0,IF('III Tool Overview'!$H$6="Western Isles Health Board",0,IF('III Tool Overview'!$H$6="Orkney Islands Local Authority",0,IF('III Tool Overview'!$H$6="Shetland Islands Local Authority",0,IF('III Tool Overview'!$H$6="Eilean Siar Local Authority",0,new_yll(5,B76,C76,D76,$C$1,G76+H76,1,F76,F76,SIMDrateratios,RateRatios!$B$3)*10)))))) -> 0 | V76: 0 | W76: =IF('III Tool Overview'!$H$6="Orkney Health Board",0,IF('III Tool Overview'!$H$6="Shetland Health Board",0,IF('III Tool Overview'!$H$6="Western Isles Health Board",0,IF('III Tool Overview'!$H$6="Orkney Islands Local Authority",0,IF('III Tool Overview'!$H$6="Shetland Islands Local Authority",0,IF('III Tool Overview'!$H$6="Eilean Siar Local Authority",0,new_yll(10,B76,C76,D76,$C$1,G76,1,F76,F76,SIMDrateratios,RateRatios!$B$3)*10)))))) -> 0 | X76: =IF('III Tool Overview'!$H$6="Orkney Health Board",0,IF('III Tool Overview'!$H$6="Shetland Health Board",0,IF('III Tool Overview'!$H$6="Western Isles Health Board",0,IF('III Tool Overview'!$H$6="Orkney Islands Local Authority",0,IF('III Tool Overview'!$H$6="Shetland Islands Local Authority",0,IF('III Tool Overview'!$H$6="Eilean Siar Local Authority",0,new_yll(10,B76,C76,D76,$C$1,G76+H76,1,F76,F76,SIMDrateratios,RateRatios!$B$3)*10)))))) -> 0 | Y76: 0 | Z76: =IF('III Tool Overview'!$H$6="Orkney Health Board",0,IF('III Tool Overview'!$H$6="Shetland Health Board",0,IF('III Tool Overview'!$H$6="Western Isles Health Board",0,IF('III Tool Overview'!$H$6="Orkney Islands Local Authority",0,IF('III Tool Overview'!$H$6="Shetland Islands Local Authority",0,IF('III Tool Overview'!$H$6="Eilean Siar Local Authority",0,new_yll(20,B76,C76,D76,$C$1,G76,1,F76,F76,SIMDrateratios,RateRatios!$B$3)*10)))))) -> 0 | AA76: =IF('III Tool Overview'!$H$6="Orkney Health Board",0,IF('III Tool Overview'!$H$6="Shetland Health Board",0,IF('III Tool Overview'!$H$6="Western Isles Health Board",0,IF('III Tool Overview'!$H$6="Orkney Islands Local Authority",0,IF('III Tool Overview'!$H$6="Shetland Islands Local Authority",0,IF('III Tool Overview'!$H$6="Eilean Siar Local Authority",0,new_yll(20,B76,C76,D76,$C$1,G76+H76,1,F76,F76,SIMDrateratios,RateRatios!$B$3)*10)))))) -> 0 | AB76: 0 | AC76: =IF('III Tool Overview'!$H$6="Orkney Health Board",0,IF('III Tool Overview'!$H$6="Shetland Health Board",0,IF('III Tool Overview'!$H$6="Western Isles Health Board",0,IF('III Tool Overview'!$H$6="Orkney Islands Local Authority",0,IF('III Tool Overview'!$H$6="Shetland Islands Local Authority",0,IF('III Tool Overview'!$H$6="Eilean Siar Local Authority",0,hosp_count(2,B76,C76,D76,$C$1,G76,1,F76,F76,SIMDRateRatios_hosp,SIMDrateratios,RateRatios!$B$3)*10)))))) -> 0 | AD76: =IF('III Tool Overview'!$H$6="Orkney Health Board",0,IF('III Tool Overview'!$H$6="Shetland Health Board",0,IF('III Tool Overview'!$H$6="Western Isles Health Board",0,IF('III Tool Overview'!$H$6="Orkney Islands Local Authority",0,IF('III Tool Overview'!$H$6="Shetland Islands Local Authority",0,IF('III Tool Overview'!$H$6="Eilean Siar Local Authority",0,hosp_count(2,B76,C76,D76,$C$1,G76+H76,1,F76,F76,SIMDRateRatios_hosp,SIMDrateratios,RateRatios!$B$3)*10)))))) -> 0 | AE76: 0 | AF76: =IF('III Tool Overview'!$H$6="Orkney Health Board",0,IF('III Tool Overview'!$H$6="Shetland Health Board",0,IF('III Tool Overview'!$H$6="Western Isles Health Board",0,IF('III Tool Overview'!$H$6="Orkney Islands Local Authority",0,IF('III Tool Overview'!$H$6="Shetland Islands Local Authority",0,IF('III Tool Overview'!$H$6="Eilean Siar Local Authority",0,hosp_count(5,B76,C76,D76,$C$1,G76,1,F76,F76,SIMDRateRatios_hosp,SIMDrateratios,RateRatios!$B$3)*10)))))) -> 0 | AG76: =IF('III Tool Overview'!$H$6="Orkney Health Board",0,IF('III Tool Overview'!$H$6="Shetland Health Board",0,IF('III Tool Overview'!$H$6="Western Isles Health Board",0,IF('III Tool Overview'!$H$6="Orkney Islands Local Authority",0,IF('III Tool Overview'!$H$6="Shetland Islands Local Authority",0,IF('III Tool Overview'!$H$6="Eilean Siar Local Authority",0,hosp_count(5,B76,C76,D76,$C$1,G76+H76,1,F76,F76,SIMDRateRatios_hosp,SIMDrateratios,RateRatios!$B$3)*10)))))) -> 0 | AH76: 0 | AI76: =IF('III Tool Overview'!$H$6="Orkney Health Board",0,IF('III Tool Overview'!$H$6="Shetland Health Board",0,IF('III Tool Overview'!$H$6="Western Isles Health Board",0,IF('III Tool Overview'!$H$6="Orkney Islands Local Authority",0,IF('III Tool Overview'!$H$6="Shetland Islands Local Authority",0,IF('III Tool Overview'!$H$6="Eilean Siar Local Authority",0,hosp_count(10,B76,C76,D76,$C$1,G76,1,F76,F76,SIMDRateRatios_hosp,SIMDrateratios,RateRatios!$B$3)*10)))))) -> 0 | AJ76: =IF('III Tool Overview'!$H$6="Orkney Health Board",0,IF('III Tool Overview'!$H$6="Shetland Health Board",0,IF('III Tool Overview'!$H$6="Western Isles Health Board",0,IF('III Tool Overview'!$H$6="Orkney Islands Local Authority",0,IF('III Tool Overview'!$H$6="Shetland Islands Local Authority",0,IF('III Tool Overview'!$H$6="Eilean Siar Local Authority",0,hosp_count(10,B76,C76,D76,$C$1,G76+H76,1,F76,F76,SIMDRateRatios_hosp,SIMDrateratios,RateRatios!$B$3)*10)))))) -> 0 | AK76: 0 | AL76: =IF('III Tool Overview'!$H$6="Orkney Health Board",0,IF('III Tool Overview'!$H$6="Shetland Health Board",0,IF('III Tool Overview'!$H$6="Western Isles Health Board",0,IF('III Tool Overview'!$H$6="Orkney Islands Local Authority",0,IF('III Tool Overview'!$H$6="Shetland Islands Local Authority",0,IF('III Tool Overview'!$H$6="Eilean Siar Local Authority",0,hosp_count(20,B76,C76,D76,$C$1,G76,1,F76,F76,SIMDRateRatios_hosp,SIMDrateratios,RateRatios!$B$3)*10)))))) -> 0 | AM76: =IF('III Tool Overview'!$H$6="Orkney Health Board",0,IF('III Tool Overview'!$H$6="Shetland Health Board",0,IF('III Tool Overview'!$H$6="Western Isles Health Board",0,IF('III Tool Overview'!$H$6="Orkney Islands Local Authority",0,IF('III Tool Overview'!$H$6="Shetland Islands Local Authority",0,IF('III Tool Overview'!$H$6="Eilean Siar Local Authority",0,hosp_count(20,B76,C76,D76,$C$1,G76+H76,1,F76,F76,SIMDRateRatios_hosp,SIMDrateratios,RateRatios!$B$3)*10)))))) -> 0 | AN76: 0
